Workbook

Sheet Cover-Sheet
B2: File Name | E2: =IFERROR(MID(CELL("filename",E2),FIND("[",CELL("filename",E2))+1,FIND("]",CELL("filename",E2))-FIND("[",CELL("filename",E2))-1),"Please save the file to show here") -> LTICBT Excel Tool.xlsm
B3: Sheet Name | E3: =IFERROR(MID(CELL("filename",E2),FIND("]",CELL("filename",E2))+1,255),"Please save the file to show here") -> Cover-Sheet
B4: Description and Purpose of Model: | E4: Tool to enable high-level quantification of infrastructure carbon emissions of common transport interventions. This tool is intended to be used as a strategic tool, to provide a high-level indication of likely carbon impacts of a range of transport interventions.
B5: Version number | C5: 0.5 | E5: =Version_number -> Benchmark Tool v0.1.xlsx
B7: Version Control
C9: Version | D9: Filename | E9: Description | F9: Changes since last version | G9: Date Created | H9: Analyst | I9: QA status
C10: 0.1 | D10: Benchmark Tool v0.1.xlsx | E10: Initial draft 'skeleton' version of the Benchmark tool in DfT format. | G10: 2023-09-13 | H10: LR | I10: CL
C11: 0.2 | D11: Benchmark Tool v0.2.xlsx | E11: Updated with working functionality for initial DfT review | F11: Carbon Intensity Lever updated to allow more flexible selection of ‘intermediate’ intensities (between benchmark intensities) | G11: 2023-10-20 | H11: LR | I11: CL
C12: 0.3 | D12: Benchmark Tool v0.3.xlsx | E12: Updated with working functionality and initial benchmarks | F12: Addition of initial benchmarks and updates addressing initial feedback | G12: 2023-12-12 | H12: LR | I12: CL
C13: 1 | D13: Benchmarking Tool v1.0.xlsm | E13: Final version with full functionality and all benchmarks | F13: Addition of all benchmarks, updates addressing further feedback, updates to output sheets and refinements of calculations and interface | G13: 2023-03-14 | H13: LR | I13: CL
C14: 1.1 | D14: Benchmarking Tool v1.1.xlsm | E14: Additional benchmarks added | F14: Additional benchmarks added | G14: 2025-03-24 | H14: LR | I14: CL
C15: 2 | D15: LTICBT v2.0.xlsm | E15: Final revised version | F15: Major update to improve functionality and add additional features | G15: 2025-07-18 | H15: BG | I15: LR, CL
C16: 2.1 | D16: LTICBT v2.1.xlsm | F16: Minor correction to B4 factor for RO2 from 1.37 to 1.51. | G16: 2025-11-25 | H16: LR | I16: CL
C17: 2.2 | D17: LTICBT v2.2.xlsm | F17: Fixed allowed edit ranges for columns AZ/BA. | G17: 2025-12-02 | I17: CL
D18: =IF(C18="","",IFERROR(MID(CELL("filename",#REF!),FIND("[",CELL("filename",#REF!))+1,FIND("]",CELL("filename",#REF!))-FIND("[",CELL("filename",#REF!))-1),"Please save the file to show here")) -> 
D19: =IF(C19="","",IFERROR(MID(CELL("filename",#REF!),FIND("[",CELL("filename",#REF!))+1,FIND("]",CELL("filename",#REF!))-FIND("[",CELL("filename",#REF!))-1),"Please save the file to show here")) -> 
B21: Legend
D23: Banner 1: Properties and Section Breaks | F23: Please Note:
D24: Banner 2: Headers, Timeline and Key Labels | F24: Guidance on how to use this tool can be found in the I-User Input worksheet. For more detailed guidance, please refer to the User Guide. This can be obtained from DfT on request.
D25: Input (Raw Data) | E25: < For User Inputs
D26: Input (Assumption) | E26: < For Embedded Data
D27: Calculation
D28: Carried through data
D29: Output
D30: ERROR/OK, FALSE/TRUE (manual or with Conditional Formatting)
D31: Table heading
B33: Table of Contents
B35: Table of Contents
B37: I-User_Input
B38: C-Background Data
B39: O-Summary
B40: O-Dashboard_Comparative
B41: O-Dashboard_Totals

Sheet Inputs>>
C11: Inputs

Sheet I-User_Input
D2: File Name: | I2: =IFERROR(MID(CELL("filename",I2),FIND("[",CELL("filename",I2))+1,FIND("]",CELL("filename",I2))-FIND("[",CELL("filename",I2))-1),"Please save the file to show here") -> LTICBT Excel Tool.xlsm
D3: Sheet Name: | I3: =IFERROR(MID(CELL("filename",I2),FIND("]",CELL("filename",I2))+1,255),"Please save the file to show here") -> I-User_Input
D4: Description & Purpose of Sheet: | I4: Intervention, Carbon Intensity, and Quantity to be selected by the user using the drop down boxes, lever, and entering a value, respectively.
D5: Version: | I5: 0.01
C7: Inputs
B9: 1 | C9: Select Intervention Type (Essential) | H9: 2 | I9: Select Carbon Intensity (Essential) | AE9: 3 | AF9: Input Quantity (Essential) | AK9: Product & Construction Process Stage Carbon | AS9: Carbon Cost Ratio (CCR) | AX9: 4 | AY9: Define Construction Stage Timeframe (Essential) | BD9: Use Stage Carbon
C11: Firstly, Insert a name for the intervention or scheme being assessed. Secondly, select a category from the list to narrow down the intervention types, and then select the specific intervention type within that category. Optionally, enter the direct works cost associated with this intervention or scheme. | I11: Many interventions come in a range of designs, and correspondingly, carbon intensity can vary considerably. Use the carbon intensity lever to choose an appropriate carbon intensity for the intervention or scheme being assessed. For guidance, expand the Carbon Intensity Data section by either clicking the '+' icon on the far left, or the '2' at the top left of the workbook. Here, a list of benchmarks - examples of the intervention - are provided, along with corresponding carbon intensities. This can be used as guidance in selecting an appropriate carbon intensity for the intervention or scheme being assessed. If the intervention or scheme being assessed closely matches the description of one of the benchmarks, then select the 'lever placement' noted for that benchmark. Alternatively, lever placement between benchmarks can also be selected. Finally, make note of the reasons for the lever selection made, in the designated box. | AF11: Input a quantity in the specified units below. | AK11: The table below shows the breakdown of Product & Construction stage [A1-5] capital carbon for the intervention or scheme being assessed, calculated based on the quantity entered in Step 3, and the carbon intensity selected in Step 2. This includes Raw Material Supply [A1], Transport to Factory [A2], Manufacturing [A3], Transport to Site [A4], and Construction [A5]. | AS11: The table below shows the carbon cost ratio (CCR), providing an indication of tCO2e expended or saved for every £100k of direct works cost. Users can input a direct works cost in step 1; otherwise, default costs will be applied. | AY11: Enter a construction stage timeframe. This input requires approx. months to assist in distributing the capital carbon associated with the use stage across the period defined. The end month marks the beginning of the appraisal period (60 years). | BD11: The tables below show the estimated emissions of the project for use stages B2-B4. This requires no user input. The estimated use-stage emissions are spread equally across the 60-year period.
D14: Name of Intervention: | K14: Carbon Intensity Lever
Z16: =IF(D18="Highway Treatment","Use Stage", "Product Stage") -> Product Stage | AA16: =IF(D18="Highway Treatment","", "Construction Process Stage") -> Construction Process Stage | AL16: =IF(D18="Highway Treatment","Use Stage", "Product & Construction Process Stage") -> Product & Construction Process Stage | AN16: =IF(D18="Highway Treatment","Use Stage", "Product Stage") -> Product Stage | AO16: =IF(D18="Highway Treatment","", "Construction Process Stage") -> Construction Process Stage | BE16: Use stage | BG16: Maintenance | BH16: Repair | BI16: Replacement
D17: Select Category: | E17: Select Intervention Type: | J17: Lever Range | K17: 0 | L17: 10 | M17: 20 | N17: 30 | O17: 40 | P17: 50 | Q17: 60 | R17: 70 | S17: 80 | T17: 90 | U17: 100 | W17: Lever Setting selected: | X17: 83 | Z17: =IF(D18="Highway Treatment","Module B", "A1-A3") -> A1-A3 | AA17: =IF(D18="Highway Treatment","","A4") -> A4 | AB17: =IF(D18="Highway Treatment","","A5") -> A5 | AG17: Quantity | AH17: Units | AL17: =IF(D18="Highway Treatment","MODULE B", "TOTAL A1-A5") -> TOTAL A1-A5 | AN17: =IF(D18="Highway Treatment","Module B", "A1-A3") -> A1-A3 | AO17: =IF(D18="Highway Treatment","", "A4") -> A4 | AP17: =IF(D18="Highway Treatment","", "A5") -> A5 | AT17: =_xlfn.CONCAT("Estimated Direct Works Cost (£ / ", AH18, ")") -> Estimated Direct Works Cost (£ / m) | AU17: CCR (tCO2e/£100k) | AZ17: Start Month | BA17: End Month | BE17: TOTAL B2, B3 & B4 | BG17: B2 | BH17: B3 | BI17: B4 | BK17: =_xlfn.IFS(VALUE(TEXT($BA18, "m"))<12, VALUE(TEXT($BA18, "yyyy")), VALUE(TEXT($BA18, "m"))=12, VALUE(TEXT($BA18, "yyyy"))+1) -> 1900 | BL17: =IFERROR(IF(BK17 = VALUE(TEXT($BA18, "yyyy"))+60,"", BK17+1), "") -> 1901 | BM17: =IFERROR(IF(BL17 = VALUE(TEXT($BA18, "yyyy"))+60,"", BL17+1), "") -> 1902 | BN17: 1903 | BO17: 1904 | BP17: 1905 | BQ17: 1906 | BR17: 1907 | BS17: 1908 | BT17: 1909 | BU17: 1910 | BV17: 1911 | BW17: 1912 | BX17: 1913 | BY17: 1914 | BZ17: 1915 | CA17: 1916 | CB17: 1917 | CC17: 1918 | CD17: 1919 | CE17: 1920 | CF17: 1921 | CG17: 1922 | CH17: 1923 | CI17: 1924 | CJ17: 1925 | CK17: 1926 | CL17: 1927 | CM17: 1928 | CN17: 1929 | CO17: 1930 | CP17: 1931 | CQ17: 1932 | CR17: 1933 | CS17: 1934 | CT17: 1935 | CU17: 1936 | CV17: 1937 | CW17: 1938 | CX17: 1939 | CY17: 1940 | CZ17: 1941 | DA17: 1942 | DB17: 1943 | DC17: 1944 | DD17: 1945 | DE17: 1946 | DF17: 1947 | DG17: 1948 | DH17: 1949 | DI17: 1950 | DJ17: 1951 | DK17: 1952 | DL17: 1953 | DM17: 1954 | DN17: 1955 | DO17: 1956 | DP17: 1957 | DQ17: 1958 | DR17: 1959 | DS17: 1960 | DY17: =IFERROR(IF(DX17 = VALUE(TEXT($BA18, "yyyy"))+60,"", DX17+1), "") -> 
D18: Active Travel | E18: Cycle Lane | J18: Carbon Intensity Range | K18: =IF(COUNT($J25:$K34)=1, ($U25-(0.2*$U25)), IF(L18-(($T18-$L18)/8)<0, 0, L18-(($T18-$L18)/8))) -> 0 | L18: =IF(COUNT($J25:$K34)=1, ($U25-(0.16*$U25)), MIN($U25:$V34)) -> 0.008526382895 | M18: =IF(COUNT($J25:$K34)=1, ($U25-(0.12*$U25)), (L18+($T18-$L18)/8)) -> 0.02367614001 | N18: =IF(COUNT($J25:$K34)=1, ($U25-(0.08*$U25)), (M18+($T18-$L18)/8)) -> 0.03882589712 | O18: =IF(COUNT($J25:$K34)=1, ($U25-(0.04*$U25)), (N18+($T18-$L18)/8)) -> 0.05397565424 | P18: =IF(COUNT($J25:$K34)= 1, $U25,O18+($T18-$L18)/8) -> 0.06912541135 | Q18: =IF(COUNT($J25:$K34)=1,($U25+(0.04*$U25)), (P18+($T18-$L18)/8)) -> 0.08427516846 | R18: =IF(COUNT($J25:$K34)=1, ($U25+(0.08*$U25)), (Q18+($T18-$L18)/8)) -> 0.09942492558 | S18: =IF(COUNT($J25:$K34)=1, ($U25+(0.12*$U25)), (R18+($T18-$L18)/8)) -> 0.1145746827 | T18: =IF(COUNT($J25:$K34)=1, ($U25+(0.16*$U25)), MAX($U25:$V34)) -> 0.1297244398 | U18: =IF(COUNT($J25:$K34)=1, $P18+(0.2*$U25), T18+(($T18-$L18)/8)) -> 0.1448741969 | W18: Corresponding Carbon Intensity: | X18: =IFERROR(_xlfn.CHOOSECOLS(_xlfn.CHOOSEROWS(_xlfn._xlws.SORT(_xlfn._xlws.FILTER('C-Background_Data'!$B$11:$N$219, ('C-Background_Data'!$D$11:$D$219 = $E18) * ('C-Background_Data'!$I$11:$I$219 = $X17)), 7, -1),1), 7), _xlfn.IFS($X17="", (MEDIAN(MIN(U25:V34),MAX(U25:V34))), ((L18-($T18-$L18)/8)+(($U18-(L18-($T18-$L18)/8))/100*$X17))<0, 0, ((L18-($T18-$L18)/8)+(($U18-(L18-($T18-$L18)/8))/100*$X17))>=0, (L18-($T18-$L18)/8)+(($U18-(L18-($T18-$L18)/8))/100*$X17))) -> 0.1197724784 | Y18: =CONCATENATE("tCO2e / ",AH18) -> tCO2e / m | Z18: =IFERROR(IF($E18= "Highway Treatment", IFERROR(MAX(_xlfn.CHOOSECOLS(_xlfn._xlws.FILTER('C-Background_Data'!$B$11:$N$219, ('C-Background_Data'!$D$11:$D$219 = $E18) * ('C-Background_Data'!$I$11:$I$219 = $X17)), 7)), $X18), IFERROR(_xlfn.CHOOSECOLS(_xlfn.CHOOSEROWS(_xlfn._xlws.SORT(_xlfn._xlws.FILTER('C-Background_Data'!$B$11:$U$219, ('C-Background_Data'!$D$11:$D$219 = $E18) * ('C-Background_Data'!$I$11:$I$219 = $X17)), 7, -1),1), 18), ((SUM(_xlfn.CHOOSECOLS(_xlfn._xlws.FILTER('C-Background_Data'!$B$11:$U$219, 'C-Background_Data'!$D$11:$D$219 =$E18), 18)))/(SUM(_xlfn.CHOOSECOLS(_xlfn._xlws.FILTER('C-Background_Data'!$B$11:$U$219, 'C-Background_Data'!$D$11:$D$219 =$E18), 7)))*$X18))), "") -> 0.1000494357 | AA18: =IFERROR(IF($E18= "Highway Treatment", "", IFERROR(_xlfn.CHOOSECOLS(_xlfn.CHOOSEROWS(_xlfn._xlws.SORT(_xlfn._xlws.FILTER('C-Background_Data'!$B$11:$U$219, ('C-Background_Data'!$D$11:$D$219 = $E18) * ('C-Background_Data'!$I$11:$I$219 = $X17)), 7, -1),1), 19), ((SUM(_xlfn.CHOOSECOLS(_xlfn._xlws.FILTER('C-Background_Data'!$B$11:$U$219, 'C-Background_Data'!$D$11:$D$219 =$E18), 19)))/(SUM(_xlfn.CHOOSECOLS(_xlfn._xlws.FILTER('C-Background_Data'!$B$11:$U$219, 'C-Background_Data'!$D$11:$D$219 =$E18), 7)))*$X18))), "") -> 0.01785646331 | AB18: =IFERROR(IF($E18= "Highway Treatment", "", IFERROR(_xlfn.CHOOSECOLS(_xlfn.CHOOSEROWS(_xlfn._xlws.SORT(_xlfn._xlws.FILTER('C-Background_Data'!$B$11:$U$219, ('C-Background_Data'!$D$11:$D$219 = $E18) * ('C-Background_Data'!$I$11:$I$219 = $X17)), 7, -1),1), 20), ((SUM(_xlfn.CHOOSECOLS(_xlfn._xlws.FILTER('C-Background_Data'!$B$11:$U$219, 'C-Background_Data'!$D$11:$D$219 =$E18), 20)))/(SUM(_xlfn.CHOOSECOLS(_xlfn._xlws.FILTER('C-Background_Data'!$B$11:$U$219, 'C-Background_Data'!$D$11:$D$219 =$E18), 7)))*$X18))), "") -> 0.001866579373 | AG18: 100 | AH18: =_xlfn.UNIQUE(_xlfn.CHOOSECOLS(_xlfn._xlws.FILTER('C-Background_Data'!$B$11:$F$219, 'C-Background_Data'!$D$11:$D$219 = 'I-User_Input'!$E18, ""), 5)) -> m | AL18: =IF(D18="Highway Treatment", $Z18*$AG18, SUM(AN18:AP18)) -> 11.97724784 | AN18: =IF(D18 = "Highway Treatment", "", IFERROR($AG18*Z18, "")) -> 10.00494357 | AO18: =IF(D18 = "Highway Treatment", "", IFERROR($AG18*AA18, "")) -> 1.785646331 | AP18: =IF(D18 = "highway Treatment", "", IFERROR($AG18*AB18, "")) -> 0.1866579373 | AT18: =IF($E23 <> "", $E23/$AG18, IFERROR(IFERROR(INDEX('C-Background_Data'!$B$11:$N$219, MATCH('I-User_Input'!$E18&'I-User_Input'!$X17, 'C-Background_Data'!$D$11:$D$219 & 'C-Background_Data'!$I$11:$I$219, 0), 13), (AVERAGE(_xlfn.CHOOSECOLS(_xlfn._xlws.FILTER('C-Background_Data'!$B$11:$N$219, 'C-Background_Data'!$D$11:$D$219 =$E18), 13)))), "")) -> 115.936607 | AU18: =IFERROR(X18/(AT18/100000), "") -> 103.3085938 | BE18: =SUM(BG18:BI18) -> 13.5562364 | BG18: =AL18*0.01 -> 0.1197724784 | BH18: =BG18*0.25 -> 0.0299431196 | BI18: =IFERROR('C-B4_Calculation'!$N10*(SUM(AN18:AO18)),0) -> 13.40652081 | BK18: =$BE18/60 -> 0.2259372734 | BL18: =$BE18/60 -> 0.2259372734 | BM18: 0.2259372734 | BN18: 0.2259372734 | BO18: 0.2259372734 | BP18: 0.2259372734 | BQ18: 0.2259372734 | BR18: 0.2259372734 | BS18: 0.2259372734 | BT18: 0.2259372734 | BU18: 0.2259372734 | BV18: 0.2259372734 | BW18: 0.2259372734 | BX18: 0.2259372734 | BY18: 0.2259372734 | BZ18: 0.2259372734 | CA18: 0.2259372734 | CB18: 0.2259372734 | CC18: 0.2259372734 | CD18: 0.2259372734 | CE18: 0.2259372734 | CF18: 0.2259372734 | CG18: 0.2259372734 | CH18: 0.2259372734 | CI18: 0.2259372734 | CJ18: 0.2259372734 | CK18: 0.2259372734 | CL18: 0.2259372734 | CM18: 0.2259372734 | CN18: 0.2259372734 | CO18: 0.2259372734 | CP18: 0.2259372734 | CQ18: 0.2259372734 | CR18: 0.2259372734 | CS18: 0.2259372734 | CT18: 0.2259372734 | CU18: 0.2259372734 | CV18: 0.2259372734 | CW18: 0.2259372734 | CX18: 0.2259372734 | CY18: 0.2259372734 | CZ18: 0.2259372734 | DA18: 0.2259372734 | DB18: 0.2259372734 | DC18: 0.2259372734 | DD18: 0.2259372734 | DE18: 0.2259372734 | DF18: 0.2259372734 | DG18: 0.2259372734 | DH18: 0.2259372734 | DI18: 0.2259372734 | DJ18: 0.2259372734 | DK18: 0.2259372734 | DL18: 0.2259372734 | DM18: 0.2259372734 | DN18: 0.2259372734 | DO18: 0.2259372734 | DP18: 0.2259372734 | DQ18: 0.2259372734 | DR18: 0.2259372734
J20: Reason for Selection of Carbon Intensity: | AL20: A NOTE ON UNCERTAINTY
J22: Carbon Intensity Guidance | AL22: =_xlfn.XLOOKUP(D18,'C-Project-Specific_Uncertainty'!B:B,'C-Project-Specific_Uncertainty'!C:C) -> These benchmarks include a mixture of footways, cycle lanes, crossings and modal filters which should reflect most use cases given the small scale nature of each benchmark. Note that reasonable assumptions will need to be made where a scheme is solely comprised of road markings as all benchmarks within this category contain varying amounts of this as well as other features. Roadside Elements benchmark (RE3) contains only signs and signposts and could be used to get an estimate for schemes only including wayfinding improvements
D23: Direct Works Cost in 2015 Value (if known): | J23: Benchmarks associated with Intervention type selected: | W23: =IFERROR(IF(INDEX('D-Reference'!$D$10:$D$15, MATCH('I-User_Input'!$E18, 'D-Reference'!$D$10:$D$15,0),0)= 'I-User_Input'!$E18, "For further details, see Diagram", ""),"") -> For further details, see Diagram
D24: Please insert the Direct Works Cost after using the CPI to adjust to 2015 value.See section 5c of the User Guide. | J24: Approximate Lever Placement | L24: Benchmark ID | O24: =CONCATENATE("Benchmarks (",E18,")") -> Benchmarks (Cycle Lane) | U24: =IF($D18= "Highway Treatment", CONCATENATE("Module B Carbon Intensity (tCO2e/", $AH18, ")"), CONCATENATE("A1-A5 Carbon Intensity (tCO2e/", $AH18, ")")) -> A1-A5 Carbon Intensity (tCO2e/m) | W24: Description (see Capital Carbon Summary Sheets for full specifications)
J25: =IFERROR(VLOOKUP($M25, 'C-Background_Data'!$B$11:$J$219, 8,FALSE), "") -> 10 | M25: =IF($E18="", "", _xlfn.CHOOSECOLS(_xlfn._xlws.SORT(_xlfn._xlws.FILTER('C-Background_Data'!$B$11:$I$219, 'C-Background_Data'!$D$11:$D$219='I-User_Input'!$E$18, ""),8,1),1)) -> CL1 | O25: =IFERROR(VLOOKUP($M25, 'C-Background_Data'!$B$11:$J$219, 4,FALSE), "") -> Light segregation | U25: =IFERROR(VLOOKUP($M25, 'C-Background_Data'!$B$11:$J$219,7,FALSE), "") -> 0.008526382895 | W25: =IFERROR(VLOOKUP($M25, 'C-Background_Data'!$B$11:$J$219,9,FALSE), "") -> Minimum cycle lane provision - delineation of a 2m-wide one-way cycle lane with marker posts, intermittent microsurfacing asphalt, and road markings.
J26: =IFERROR(VLOOKUP($M26, 'C-Background_Data'!$B$11:$J$219, 8,FALSE), "") -> 48 | M26: CL3 | O26: =IFERROR(VLOOKUP($M26, 'C-Background_Data'!$B$11:$J$219, 4,FALSE), "") -> Fully kerbed cycle track | U26: =IFERROR(VLOOKUP($M26, 'C-Background_Data'!$B$11:$J$219,7,FALSE), "") -> 0.06606584913 | W26: =IFERROR(VLOOKUP($M26, 'C-Background_Data'!$B$11:$J$219,9,FALSE), "") -> Construction of a 0.5m-wide, 0.15m-tall buffer kerb, creating a 2m-wide one-way cycle lane separated from general traffic. Includes intermittent Microsurfacing Asphalt and road markings.
J27: =IFERROR(VLOOKUP($M27, 'C-Background_Data'!$B$11:$J$219, 8,FALSE), "") -> 83 | M27: CL2 | O27: =IFERROR(VLOOKUP($M27, 'C-Background_Data'!$B$11:$J$219, 4,FALSE), "") -> Stepped cycle track | U27: =IFERROR(VLOOKUP($M27, 'C-Background_Data'!$B$11:$J$219,7,FALSE), "") -> 0.1197724784 | W27: =IFERROR(VLOOKUP($M27, 'C-Background_Data'!$B$11:$J$219,9,FALSE), "") -> Construction of a 2m-wide stepped one-way cycle lane raised 75mm above the carriageway (typically a further step of approx. 75mm exists up to footway level), includes intermittent microsurfacing asphalt and road markings.
J28: =IFERROR(VLOOKUP($M28, 'C-Background_Data'!$B$11:$J$219, 8,FALSE), "") -> 90 | M28: CL4 | O28: =IFERROR(VLOOKUP($M28, 'C-Background_Data'!$B$11:$J$219, 4,FALSE), "") -> Cycle track (new track) | U28: =IFERROR(VLOOKUP($M28, 'C-Background_Data'!$B$11:$J$219,7,FALSE), "") -> 0.1297244398 | W28: =IFERROR(VLOOKUP($M28, 'C-Background_Data'!$B$11:$J$219,9,FALSE), "") -> Construction of a 3m-wide bi-directional cycle track independent of any existing carriageway.
J29: =IFERROR(VLOOKUP($M29, 'C-Background_Data'!$B$11:$J$219, 8,FALSE), "") ->  | O29: =IFERROR(VLOOKUP($M29, 'C-Background_Data'!$B$11:$J$219, 4,FALSE), "") ->  | U29: =IFERROR(VLOOKUP($M29, 'C-Background_Data'!$B$11:$J$219,7,FALSE), "") ->  | W29: =IFERROR(VLOOKUP($M29, 'C-Background_Data'!$B$11:$J$219,9,FALSE), "") -> 
J30: =IFERROR(VLOOKUP($M30, 'C-Background_Data'!$B$11:$J$219, 8,FALSE), "") ->  | O30: =IFERROR(VLOOKUP($M30, 'C-Background_Data'!$B$11:$J$219, 4,FALSE), "") ->  | U30: =IFERROR(VLOOKUP($M30, 'C-Background_Data'!$B$11:$J$219,7,FALSE), "") ->  | W30: =IFERROR(VLOOKUP($M30, 'C-Background_Data'!$B$11:$J$219,9,FALSE), "") -> 
J31: =IFERROR(VLOOKUP($M31, 'C-Background_Data'!$B$11:$J$219, 8,FALSE), "") ->  | O31: =IFERROR(VLOOKUP($M31, 'C-Background_Data'!$B$11:$J$219, 4,FALSE), "") ->  | U31: =IFERROR(VLOOKUP($M31, 'C-Background_Data'!$B$11:$J$219,7,FALSE), "") ->  | W31: =IFERROR(VLOOKUP($M31, 'C-Background_Data'!$B$11:$J$219,9,FALSE), "") -> 
J32: =IFERROR(VLOOKUP($M32, 'C-Background_Data'!$B$11:$J$219, 8,FALSE), "") ->  | O32: =IFERROR(VLOOKUP($M32, 'C-Background_Data'!$B$11:$J$219, 4,FALSE), "") ->  | U32: =IFERROR(VLOOKUP($M32, 'C-Background_Data'!$B$11:$J$219,7,FALSE), "") ->  | W32: =IFERROR(VLOOKUP($M32, 'C-Background_Data'!$B$11:$J$219,9,FALSE), "") -> 
J33: =IFERROR(VLOOKUP($M33, 'C-Background_Data'!$B$11:$J$219, 8,FALSE), "") ->  | O33: =IFERROR(VLOOKUP($M33, 'C-Background_Data'!$B$11:$J$219, 4,FALSE), "") ->  | U33: =IFERROR(VLOOKUP($M33, 'C-Background_Data'!$B$11:$J$219,7,FALSE), "") ->  | W33: =IFERROR(VLOOKUP($M33, 'C-Background_Data'!$B$11:$J$219,9,FALSE), "") -> 
J34: =IFERROR(VLOOKUP($M34, 'C-Background_Data'!$B$11:$J$219, 8,FALSE), "") ->  | O34: =IFERROR(VLOOKUP($M34, 'C-Background_Data'!$B$11:$J$219, 4,FALSE), "") ->  | U34: =IFERROR(VLOOKUP($M34, 'C-Background_Data'!$B$11:$J$219,7,FALSE), "") ->  | W34: =IFERROR(VLOOKUP($M34, 'C-Background_Data'!$B$11:$J$219,9,FALSE), "") -> 
J35: <<< Expand [+] for details
D39: Name of Intervention: | K39: Carbon Intensity Lever
Z41: =IF(D43="Highway Treatment","Use Stage", "Product Stage") -> Product Stage | AA41: =IF(D43="Highway Treatment","", "Construction Process Stage") -> Construction Process Stage | AL41: =IF(D43="Highway Treatment","Use Stage", "Product & Construction Process Stage") -> Product & Construction Process Stage | AN41: =IF(D43="Highway Treatment","Use Stage", "Product Stage") -> Product Stage | AO41: =IF(D43="Highway Treatment","", "Construction Process Stage") -> Construction Process Stage | BE41: Use stage | BG41: Maintenance | BH41: Repair | BI41: Replacement
D42: Select Category: | E42: Select Intervention Type: | J42: Lever Range | K42: 0 | L42: 10 | M42: 20 | N42: 30 | O42: 40 | P42: 50 | Q42: 60 | R42: 70 | S42: 80 | T42: 90 | U42: 100 | W42: Lever Setting selected: | X42: 50 | Z42: =IF(D43="Highway Treatment","Module B", "A1-A3") -> A1-A3 | AA42: =IF(D43="Highway Treatment","","A4") -> A4 | AB42: =IF(D43="Highway Treatment","","A5") -> A5 | AG42: Quantity | AH42: Units | AL42: =IF(D43="Highway Treatment","MODULE B", "TOTAL A1-A5") -> TOTAL A1-A5 | AN42: =IF(D43="Highway Treatment","Module B", "A1-A3") -> A1-A3 | AO42: =IF(D43="Highway Treatment","", "A4") -> A4 | AP42: =IF(D43="Highway Treatment","", "A5") -> A5 | AT42: =_xlfn.CONCAT("Estimated Direct Works Cost (£ / ", AH43, ")") -> Estimated Direct Works Cost (£ / 0) | AU42: CCR (tCO2e/£100k) | AZ42: Start Month | BA42: End Month | BE42: TOTAL B2, B3 & B4 | BG42: B2 | BH42: B3 | BI42: B4 | BK42: =_xlfn.IFS(VALUE(TEXT($BA43, "m"))<12, VALUE(TEXT($BA43, "yyyy")), VALUE(TEXT($BA43, "m"))=12, VALUE(TEXT($BA43, "yyyy"))+1) -> 1900 | BL42: =IFERROR(IF(BK42 = VALUE(TEXT($BA43, "yyyy"))+60,"", BK42+1), "") -> 1901 | BM42: =IFERROR(IF(BL42 = VALUE(TEXT($BA43, "yyyy"))+60,"", BL42+1), "") -> 1902 | BN42: =IFERROR(IF(BM42 = VALUE(TEXT($BA43, "yyyy"))+60,"", BM42+1), "") -> 1903 | BO42: =IFERROR(IF(BN42 = VALUE(TEXT($BA43, "yyyy"))+60,"", BN42+1), "") -> 1904 | BP42: =IFERROR(IF(BO42 = VALUE(TEXT($BA43, "yyyy"))+60,"", BO42+1), "") -> 1905 | BQ42: =IFERROR(IF(BP42 = VALUE(TEXT($BA43, "yyyy"))+60,"", BP42+1), "") -> 1906 | BR42: =IFERROR(IF(BQ42 = VALUE(TEXT($BA43, "yyyy"))+60,"", BQ42+1), "") -> 1907 | BS42: =IFERROR(IF(BR42 = VALUE(TEXT($BA43, "yyyy"))+60,"", BR42+1), "") -> 1908 | BT42: =IFERROR(IF(BS42 = VALUE(TEXT($BA43, "yyyy"))+60,"", BS42+1), "") -> 1909 | BU42: =IFERROR(IF(BT42 = VALUE(TEXT($BA43, "yyyy"))+60,"", BT42+1), "") -> 1910 | BV42: =IFERROR(IF(BU42 = VALUE(TEXT($BA43, "yyyy"))+60,"", BU42+1), "") -> 1911 | BW42: =IFERROR(IF(BV42 = VALUE(TEXT($BA43, "yyyy"))+60,"", BV42+1), "") -> 1912 | BX42: =IFERROR(IF(BW42 = VALUE(TEXT($BA43, "yyyy"))+60,"", BW42+1), "") -> 1913 | BY42: =IFERROR(IF(BX42 = VALUE(TEXT($BA43, "yyyy"))+60,"", BX42+1), "") -> 1914 | BZ42: =IFERROR(IF(BY42 = VALUE(TEXT($BA43, "yyyy"))+60,"", BY42+1), "") -> 1915 | CA42: =IFERROR(IF(BZ42 = VALUE(TEXT($BA43, "yyyy"))+60,"", BZ42+1), "") -> 1916 | CB42: =IFERROR(IF(CA42 = VALUE(TEXT($BA43, "yyyy"))+60,"", CA42+1), "") -> 1917 | CC42: =IFERROR(IF(CB42 = VALUE(TEXT($BA43, "yyyy"))+60,"", CB42+1), "") -> 1918 | CD42: =IFERROR(IF(CC42 = VALUE(TEXT($BA43, "yyyy"))+60,"", CC42+1), "") -> 1919 | CE42: =IFERROR(IF(CD42 = VALUE(TEXT($BA43, "yyyy"))+60,"", CD42+1), "") -> 1920 | CF42: =IFERROR(IF(CE42 = VALUE(TEXT($BA43, "yyyy"))+60,"", CE42+1), "") -> 1921 | CG42: =IFERROR(IF(CF42 = VALUE(TEXT($BA43, "yyyy"))+60,"", CF42+1), "") -> 1922 | CH42: =IFERROR(IF(CG42 = VALUE(TEXT($BA43, "yyyy"))+60,"", CG42+1), "") -> 1923 | CI42: =IFERROR(IF(CH42 = VALUE(TEXT($BA43, "yyyy"))+60,"", CH42+1), "") -> 1924 | CJ42: =IFERROR(IF(CI42 = VALUE(TEXT($BA43, "yyyy"))+60,"", CI42+1), "") -> 1925 | CK42: =IFERROR(IF(CJ42 = VALUE(TEXT($BA43, "yyyy"))+60,"", CJ42+1), "") -> 1926 | CL42: =IFERROR(IF(CK42 = VALUE(TEXT($BA43, "yyyy"))+60,"", CK42+1), "") -> 1927 | CM42: =IFERROR(IF(CL42 = VALUE(TEXT($BA43, "yyyy"))+60,"", CL42+1), "") -> 1928 | CN42: =IFERROR(IF(CM42 = VALUE(TEXT($BA43, "yyyy"))+60,"", CM42+1), "") -> 1929 | CO42: =IFERROR(IF(CN42 = VALUE(TEXT($BA43, "yyyy"))+60,"", CN42+1), "") -> 1930 | CP42: =IFERROR(IF(CO42 = VALUE(TEXT($BA43, "yyyy"))+60,"", CO42+1), "") -> 1931 | CQ42: =IFERROR(IF(CP42 = VALUE(TEXT($BA43, "yyyy"))+60,"", CP42+1), "") -> 1932 | CR42: =IFERROR(IF(CQ42 = VALUE(TEXT($BA43, "yyyy"))+60,"", CQ42+1), "") -> 1933 | CS42: =IFERROR(IF(CR42 = VALUE(TEXT($BA43, "yyyy"))+60,"", CR42+1), "") -> 1934 | CT42: =IFERROR(IF(CS42 = VALUE(TEXT($BA43, "yyyy"))+60,"", CS42+1), "") -> 1935 | CU42: =IFERROR(IF(CT42 = VALUE(TEXT($BA43, "yyyy"))+60,"", CT42+1), "") -> 1936 | CV42: =IFERROR(IF(CU42 = VALUE(TEXT($BA43, "yyyy"))+60,"", CU42+1), "") -> 1937 | CW42: =IFERROR(IF(CV42 = VALUE(TEXT($BA43, "yyyy"))+60,"", CV42+1), "") -> 1938 | CX42: =IFERROR(IF(CW42 = VALUE(TEXT($BA43, "yyyy"))+60,"", CW42+1), "") -> 1939 | CY42: =IFERROR(IF(CX42 = VALUE(TEXT($BA43, "yyyy"))+60,"", CX42+1), "") -> 1940 | CZ42: =IFERROR(IF(CY42 = VALUE(TEXT($BA43, "yyyy"))+60,"", CY42+1), "") -> 1941 | DA42: =IFERROR(IF(CZ42 = VALUE(TEXT($BA43, "yyyy"))+60,"", CZ42+1), "") -> 1942 | DB42: =IFERROR(IF(DA42 = VALUE(TEXT($BA43, "yyyy"))+60,"", DA42+1), "") -> 1943 | DC42: =IFERROR(IF(DB42 = VALUE(TEXT($BA43, "yyyy"))+60,"", DB42+1), "") -> 1944 | DD42: =IFERROR(IF(DC42 = VALUE(TEXT($BA43, "yyyy"))+60,"", DC42+1), "") -> 1945 | DE42: =IFERROR(IF(DD42 = VALUE(TEXT($BA43, "yyyy"))+60,"", DD42+1), "") -> 1946 | DF42: =IFERROR(IF(DE42 = VALUE(TEXT($BA43, "yyyy"))+60,"", DE42+1), "") -> 1947 | DG42: =IFERROR(IF(DF42 = VALUE(TEXT($BA43, "yyyy"))+60,"", DF42+1), "") -> 1948 | DH42: =IFERROR(IF(DG42 = VALUE(TEXT($BA43, "yyyy"))+60,"", DG42+1), "") -> 1949 | DI42: =IFERROR(IF(DH42 = VALUE(TEXT($BA43, "yyyy"))+60,"", DH42+1), "") -> 1950 | DJ42: =IFERROR(IF(DI42 = VALUE(TEXT($BA43, "yyyy"))+60,"", DI42+1), "") -> 1951 | DK42: =IFERROR(IF(DJ42 = VALUE(TEXT($BA43, "yyyy"))+60,"", DJ42+1), "") -> 1952 | DL42: =IFERROR(IF(DK42 = VALUE(TEXT($BA43, "yyyy"))+60,"", DK42+1), "") -> 1953 | DM42: =IFERROR(IF(DL42 = VALUE(TEXT($BA43, "yyyy"))+60,"", DL42+1), "") -> 1954 | DN42: =IFERROR(IF(DM42 = VALUE(TEXT($BA43, "yyyy"))+60,"", DM42+1), "") -> 1955 | DO42: =IFERROR(IF(DN42 = VALUE(TEXT($BA43, "yyyy"))+60,"", DN42+1), "") -> 1956 | DP42: =IFERROR(IF(DO42 = VALUE(TEXT($BA43, "yyyy"))+60,"", DO42+1), "") -> 1957 | DQ42: =IFERROR(IF(DP42 = VALUE(TEXT($BA43, "yyyy"))+60,"", DP42+1), "") -> 1958 | DR42: =IFERROR(IF(DQ42 = VALUE(TEXT($BA43, "yyyy"))+60,"", DQ42+1), "") -> 1959 | DS42: =IFERROR(IF(DR42 = VALUE(TEXT($BA43, "yyyy"))+60,"", DR42+1), "") -> 1960 | DT42: =IFERROR(IF(DS42 = VALUE(TEXT($BA43, "yyyy"))+60,"", DS42+1), "") ->  | DU42: =IFERROR(IF(DT42 = VALUE(TEXT($BA43, "yyyy"))+60,"", DT42+1), "") ->  | DV42: =IFERROR(IF(DU42 = VALUE(TEXT($BA43, "yyyy"))+60,"", DU42+1), "") ->  | DW42: =IFERROR(IF(DV42 = VALUE(TEXT($BA43, "yyyy"))+60,"", DV42+1), "") ->  | DX42: =IFERROR(IF(DW42 = VALUE(TEXT($BA43, "yyyy"))+60,"", DW42+1), "") ->  | DY42: =IFERROR(IF(DX42 = VALUE(TEXT($BA43, "yyyy"))+60,"", DX42+1), "") ->  | DZ42: =IFERROR(IF(DY42 = VALUE(TEXT($BA43, "yyyy"))+60,"", DY42+1), "") ->  | EA42: =IFERROR(IF(DZ42 = VALUE(TEXT($BA43, "yyyy"))+60,"", DZ42+1), "") ->  | EB42: =IFERROR(IF(EA42 = VALUE(TEXT($BA43, "yyyy"))+60,"", EA42+1), "") ->  | EC42: =IFERROR(IF(EB42 = VALUE(TEXT($BA43, "yyyy"))+60,"", EB42+1), "") ->  | ED42: =IFERROR(IF(EC42 = VALUE(TEXT($BA43, "yyyy"))+60,"", EC42+1), "") ->  | EE42: =IFERROR(IF(ED42 = VALUE(TEXT($BA43, "yyyy"))+60,"", ED42+1), "") ->  | EF42: =IFERROR(IF(EE42 = VALUE(TEXT($BA43, "yyyy"))+60,"", EE42+1), "") ->  | EG42: =IFERROR(IF(EF42 = VALUE(TEXT($BA43, "yyyy"))+60,"", EF42+1), "") ->  | EH42: =IFERROR(IF(EG42 = VALUE(TEXT($BA43, "yyyy"))+60,"", EG42+1), "") ->  | EI42: =IFERROR(IF(EH42 = VALUE(TEXT($BA43, "yyyy"))+60,"", EH42+1), "") ->  | EJ42: =IFERROR(IF(EI42 = VALUE(TEXT($BA43, "yyyy"))+60,"", EI42+1), "") -> 
J43: Carbon Intensity Range | K43: =IF(COUNT($J50:$K59)=1, ($U50-(0.2*$U50)), IF(L43-(($T43-$L43)/8)<0, 0, L43-(($T43-$L43)/8))) -> 0 | L43: =IF(COUNT($J50:$K59)=1, ($U50-(0.16*$U50)), MIN($U50:$V59)) -> 0 | M43: =IF(COUNT($J50:$K59)=1, ($U50-(0.12*$U50)), (L43+($T43-$L43)/8)) -> 0 | N43: =IF(COUNT($J50:$K59)=1, ($U50-(0.08*$U50)), (M43+($T43-$L43)/8)) -> 0 | O43: =IF(COUNT($J50:$K59)=1, ($U50-(0.04*$U50)), (N43+($T43-$L43)/8)) -> 0 | P43: =IF(COUNT($J50:$K59)= 1, $U50,O43+($T43-$L43)/8) -> 0 | Q43: =IF(COUNT($J50:$K59)=1,($U50+(0.04*$U50)), (P43+($T43-$L43)/8)) -> 0 | R43: =IF(COUNT($J50:$K59)=1, ($U50+(0.08*$U50)), (Q43+($T43-$L43)/8)) -> 0 | S43: =IF(COUNT($J50:$K59)=1, ($U50+(0.12*$U50)), (R43+($T43-$L43)/8)) -> 0 | T43: =IF(COUNT($J50:$K59)=1, ($U50+(0.16*$U50)), MAX($U50:$V59)) -> 0 | U43: =IF(COUNT($J50:$K59)=1, $P43+(0.2*$U50), T43+(($T43-$L43)/8)) -> 0 | W43: Corresponding Carbon Intensity: | X43: =IFERROR(_xlfn.CHOOSECOLS(_xlfn.CHOOSEROWS(_xlfn._xlws.SORT(_xlfn._xlws.FILTER('C-Background_Data'!$B$11:$N$219, ('C-Background_Data'!$D$11:$D$219 = $E43) * ('C-Background_Data'!$I$11:$I$219 = $X42)), 7, -1),1), 7), _xlfn.IFS($X42="", (MEDIAN(MIN(U50:V59),MAX(U50:V59))), ((L43-($T43-$L43)/8)+(($U43-(L43-($T43-$L43)/8))/100*$X42))<0, 0, ((L43-($T43-$L43)/8)+(($U43-(L43-($T43-$L43)/8))/100*$X42))>=0, (L43-($T43-$L43)/8)+(($U43-(L43-($T43-$L43)/8))/100*$X42))) -> 0 | Y43: =CONCATENATE("tCO2e / ",AH43) -> tCO2e / 0 | Z43: =IFERROR(IF($E43= "Highway Treatment", IFERROR(MAX(_xlfn.CHOOSECOLS(_xlfn._xlws.FILTER('C-Background_Data'!$B$11:$N$219, ('C-Background_Data'!$D$11:$D$219 = $E43) * ('C-Background_Data'!$I$11:$I$219 = $X42)), 7)), $X43), IFERROR(_xlfn.CHOOSECOLS(_xlfn.CHOOSEROWS(_xlfn._xlws.SORT(_xlfn._xlws.FILTER('C-Background_Data'!$B$11:$U$219, ('C-Background_Data'!$D$11:$D$219 = $E43) * ('C-Background_Data'!$I$11:$I$219 = $X42)), 7, -1),1), 18), ((SUM(_xlfn.CHOOSECOLS(_xlfn._xlws.FILTER('C-Background_Data'!$B$11:$U$219, 'C-Background_Data'!$D$11:$D$219 =$E43), 18)))/(SUM(_xlfn.CHOOSECOLS(_xlfn._xlws.FILTER('C-Background_Data'!$B$11:$U$219, 'C-Background_Data'!$D$11:$D$219 =$E43), 7)))*$X43))), "") ->  | AA43: =IFERROR(IF($E43= "Highway Treatment", "", IFERROR(_xlfn.CHOOSECOLS(_xlfn.CHOOSEROWS(_xlfn._xlws.SORT(_xlfn._xlws.FILTER('C-Background_Data'!$B$11:$U$219, ('C-Background_Data'!$D$11:$D$219 = $E43) * ('C-Background_Data'!$I$11:$I$219 = $X42)), 7, -1),1), 19), ((SUM(_xlfn.CHOOSECOLS(_xlfn._xlws.FILTER('C-Background_Data'!$B$11:$U$219, 'C-Background_Data'!$D$11:$D$219 =$E43), 19)))/(SUM(_xlfn.CHOOSECOLS(_xlfn._xlws.FILTER('C-Background_Data'!$B$11:$U$219, 'C-Background_Data'!$D$11:$D$219 =$E43), 7)))*$X43))), "") ->  | AB43: =IFERROR(IF($E43= "Highway Treatment", "", IFERROR(_xlfn.CHOOSECOLS(_xlfn.CHOOSEROWS(_xlfn._xlws.SORT(_xlfn._xlws.FILTER('C-Background_Data'!$B$11:$U$219, ('C-Background_Data'!$D$11:$D$219 = $E43) * ('C-Background_Data'!$I$11:$I$219 = $X42)), 7, -1),1), 20), ((SUM(_xlfn.CHOOSECOLS(_xlfn._xlws.FILTER('C-Background_Data'!$B$11:$U$219, 'C-Background_Data'!$D$11:$D$219 =$E43), 20)))/(SUM(_xlfn.CHOOSECOLS(_xlfn._xlws.FILTER('C-Background_Data'!$B$11:$U$219, 'C-Background_Data'!$D$11:$D$219 =$E43), 7)))*$X43))), "") ->  | AH43: =_xlfn.UNIQUE(_xlfn.CHOOSECOLS(_xlfn._xlws.FILTER('C-Background_Data'!$B$11:$F$219, 'C-Background_Data'!$D$11:$D$219 = 'I-User_Input'!$E43, ""), 5)) -> 0 | AL43: =IF(D43="Highway Treatment", $Z43*$AG43, SUM(AN43:AP43)) -> 0 | AN43: =IF(D43 = "Highway Treatment", "", IFERROR($AG43*Z43, "")) ->  | AO43: =IF(D43 = "Highway Treatment", "", IFERROR($AG43*AA43, "")) ->  | AP43: =IF(D43 = "highway Treatment", "", IFERROR($AG43*AB43, "")) ->  | AT43: =IF($E48 <> "", $E48/$AG43, IFERROR(IFERROR(INDEX('C-Background_Data'!$B$11:$N$219, MATCH('I-User_Input'!$E43&'I-User_Input'!$X42, 'C-Background_Data'!$D$11:$D$219 & 'C-Background_Data'!$I$11:$I$219, 0), 13), (AVERAGE(_xlfn.CHOOSECOLS(_xlfn._xlws.FILTER('C-Background_Data'!$B$11:$N$219, 'C-Background_Data'!$D$11:$D$219 =$E43), 13)))), "")) ->  | AU43: =IFERROR(X43/(AT43/100000), "") ->  | BE43: =SUM(BG43:BI43) -> 0 | BG43: =AL43*0.01 -> 0 | BH43: =BG43*0.25 -> 0 | BI43: =IFERROR('C-B4_Calculation'!$N33*(SUM(AN43:AO43)),0) -> 0 | BK43: =$BE43/60 -> 0 | BL43: 0 | BM43: 0 | BN43: 0 | BO43: 0 | BP43: 0 | BQ43: 0 | BR43: 0 | BS43: 0 | BT43: 0 | BU43: 0 | BV43: 0 | BW43: 0 | BX43: 0 | BY43: 0 | BZ43: 0 | CA43: 0 | CB43: 0 | CC43: 0 | CD43: 0 | CE43: 0 | CF43: 0 | CG43: 0 | CH43: 0 | CI43: 0 | CJ43: 0 | CK43: 0 | CL43: 0 | CM43: 0 | CN43: 0 | CO43: 0 | CP43: 0 | CQ43: =$BE43/60 -> 0 | CR43: 0 | CS43: 0 | CT43: 0 | CU43: 0 | CV43: 0 | CW43: 0 | CX43: 0 | CY43: 0 | CZ43: 0 | DA43: 0 | DB43: 0 | DC43: 0 | DD43: 0 | DE43: 0 | DF43: 0 | DG43: 0 | DH43: 0 | DI43: 0 | DJ43: 0 | DK43: 0 | DL43: 0 | DM43: 0 | DN43: 0 | DO43: 0 | DP43: 0 | DQ43: 0 | DR43: 0
J45: Reason for Selection of Carbon Intensity: | AL45: A NOTE ON UNCERTAINTY
J47: Carbon Intensity Guidance | AL47: =_xlfn.XLOOKUP(D43,'C-Project-Specific_Uncertainty'!B:B,'C-Project-Specific_Uncertainty'!C:C) -> 0
D48: Direct Works Cost in 2015 Value (if known): | J48: Benchmarks associated with Intervention type selected: | W48: =IFERROR(IF(INDEX('D-Reference'!$D$10:$D$15, MATCH('I-User_Input'!$E43, 'D-Reference'!$D$10:$D$15,0),0)= 'I-User_Input'!$E43, "For further details, see Diagram", ""),"") -> 
D49: Please insert the Direct Works Cost after using the CPI to adjust to 2015 value.See section 5c of the User Guide. | J49: Approximate Lever Placement | L49: Benchmark ID | O49: =CONCATENATE("Benchmarks (",E43,")") -> Benchmarks () | U49: =IF($D43= "Highway Treatment", CONCATENATE("Module B Carbon Intensity (tCO2e/", $AH43, ")"), CONCATENATE("A1-A5 Carbon Intensity (tCO2e/", $AH43, ")")) -> A1-A5 Carbon Intensity (tCO2e/0) | W49: Description (see Capital Carbon Summary Sheets for full specifications)
J50: =IFERROR(VLOOKUP($M50, 'C-Background_Data'!$B$11:$J$219, 8,FALSE), "") ->  | M50: =IF($E43 = "", "", _xlfn.CHOOSECOLS(_xlfn._xlws.SORT(_xlfn._xlws.FILTER('C-Background_Data'!$B$11:$I$219, 'C-Background_Data'!$D$11:$D$219='I-User_Input'!$E$43, ""),8,1),1)) ->  | O50: =IFERROR(VLOOKUP($M50, 'C-Background_Data'!$B$11:$J$219, 4,FALSE), "") ->  | U50: =IFERROR(VLOOKUP($M50, 'C-Background_Data'!$B$11:$J$219,7,FALSE), "") ->  | W50: =IFERROR(VLOOKUP($M50, 'C-Background_Data'!$B$11:$J$219,9,FALSE), "") -> 
J51: =IFERROR(VLOOKUP($M51, 'C-Background_Data'!$B$11:$J$219, 8,FALSE), "") ->  | O51: =IFERROR(VLOOKUP($M51, 'C-Background_Data'!$B$11:$J$219, 4,FALSE), "") ->  | U51: =IFERROR(VLOOKUP($M51, 'C-Background_Data'!$B$11:$J$219,7,FALSE), "") ->  | W51: =IFERROR(VLOOKUP($M51, 'C-Background_Data'!$B$11:$J$219,9,FALSE), "") -> 
J52: =IFERROR(VLOOKUP($M52, 'C-Background_Data'!$B$11:$J$219, 8,FALSE), "") ->  | O52: =IFERROR(VLOOKUP($M52, 'C-Background_Data'!$B$11:$J$219, 4,FALSE), "") ->  | U52: =IFERROR(VLOOKUP($M52, 'C-Background_Data'!$B$11:$J$219,7,FALSE), "") ->  | W52: =IFERROR(VLOOKUP($M52, 'C-Background_Data'!$B$11:$J$219,9,FALSE), "") -> 
J53: =IFERROR(VLOOKUP($M53, 'C-Background_Data'!$B$11:$J$219, 8,FALSE), "") ->  | O53: =IFERROR(VLOOKUP($M53, 'C-Background_Data'!$B$11:$J$219, 4,FALSE), "") ->  | U53: =IFERROR(VLOOKUP($M53, 'C-Background_Data'!$B$11:$J$219,7,FALSE), "") ->  | W53: =IFERROR(VLOOKUP($M53, 'C-Background_Data'!$B$11:$J$219,9,FALSE), "") -> 
J54: =IFERROR(VLOOKUP($M54, 'C-Background_Data'!$B$11:$J$219, 8,FALSE), "") ->  | O54: =IFERROR(VLOOKUP($M54, 'C-Background_Data'!$B$11:$J$219, 4,FALSE), "") ->  | U54: =IFERROR(VLOOKUP($M54, 'C-Background_Data'!$B$11:$J$219,7,FALSE), "") ->  | W54: =IFERROR(VLOOKUP($M54, 'C-Background_Data'!$B$11:$J$219,9,FALSE), "") -> 
J55: =IFERROR(VLOOKUP($M55, 'C-Background_Data'!$B$11:$J$219, 8,FALSE), "") ->  | O55: =IFERROR(VLOOKUP($M55, 'C-Background_Data'!$B$11:$J$219, 4,FALSE), "") ->  | U55: =IFERROR(VLOOKUP($M55, 'C-Background_Data'!$B$11:$J$219,7,FALSE), "") ->  | W55: =IFERROR(VLOOKUP($M55, 'C-Background_Data'!$B$11:$J$219,9,FALSE), "") -> 
J56: =IFERROR(VLOOKUP($M56, 'C-Background_Data'!$B$11:$J$219, 8,FALSE), "") ->  | O56: =IFERROR(VLOOKUP($M56, 'C-Background_Data'!$B$11:$J$219, 4,FALSE), "") ->  | U56: =IFERROR(VLOOKUP($M56, 'C-Background_Data'!$B$11:$J$219,7,FALSE), "") ->  | W56: =IFERROR(VLOOKUP($M56, 'C-Background_Data'!$B$11:$J$219,9,FALSE), "") -> 
J57: =IFERROR(VLOOKUP($M57, 'C-Background_Data'!$B$11:$J$219, 8,FALSE), "") ->  | O57: =IFERROR(VLOOKUP($M57, 'C-Background_Data'!$B$11:$J$219, 4,FALSE), "") ->  | U57: =IFERROR(VLOOKUP($M57, 'C-Background_Data'!$B$11:$J$219,7,FALSE), "") ->  | W57: =IFERROR(VLOOKUP($M57, 'C-Background_Data'!$B$11:$J$219,9,FALSE), "") -> 
J58: =IFERROR(VLOOKUP($M58, 'C-Background_Data'!$B$11:$J$219, 8,FALSE), "") ->  | O58: =IFERROR(VLOOKUP($M58, 'C-Background_Data'!$B$11:$J$219, 4,FALSE), "") ->  | U58: =IFERROR(VLOOKUP($M58, 'C-Background_Data'!$B$11:$J$219,7,FALSE), "") ->  | W58: =IFERROR(VLOOKUP($M58, 'C-Background_Data'!$B$11:$J$219,9,FALSE), "") -> 
J59: =IFERROR(VLOOKUP($M59, 'C-Background_Data'!$B$11:$J$219, 8,FALSE), "") ->  | O59: =IFERROR(VLOOKUP($M59, 'C-Background_Data'!$B$11:$J$219, 4,FALSE), "") ->  | U59: =IFERROR(VLOOKUP($M59, 'C-Background_Data'!$B$11:$J$219,7,FALSE), "") ->  | W59: =IFERROR(VLOOKUP($M59, 'C-Background_Data'!$B$11:$J$219,9,FALSE), "") -> 
J60: <<< Expand [+] for details
D64: Name of Intervention: | K64: Carbon Intensity Lever
Z66: =IF(D68="Highway Treatment","Use Stage", "Product Stage") -> Product Stage | AA66: =IF(D68="Highway Treatment","", "Construction Process Stage") -> Construction Process Stage | AL66: =IF(D68="Highway Treatment","Use Stage", "Product & Construction Process Stage") -> Product & Construction Process Stage | AN66: =IF(D68="Highway Treatment","Use Stage", "Product Stage") -> Product Stage | AO66: =IF(D68="Highway Treatment","", "Construction Process Stage") -> Construction Process Stage | BE66: Use stage | BG66: Maintenance | BH66: Repair | BI66: Replacement
D67: Select Category: | E67: Select Intervention Type: | J67: Lever Range | K67: 0 | L67: 10 | M67: 20 | N67: 30 | O67: 40 | P67: 50 | Q67: 60 | R67: 70 | S67: 80 | T67: 90 | U67: 100 | W67: Lever Setting selected: | X67: 50 | Z67: =IF(D68="Highway Treatment","Module B", "A1-A3") -> A1-A3 | AA67: =IF(D68="Highway Treatment","","A4") -> A4 | AB67: =IF(D68="Highway Treatment","","A5") -> A5 | AG67: Quantity | AH67: Units | AL67: =IF(D68="Highway Treatment","MODULE B", "TOTAL A1-A5") -> TOTAL A1-A5 | AN67: =IF(D68="Highway Treatment","Module B", "A1-A3") -> A1-A3 | AO67: =IF(D68="Highway Treatment","", "A4") -> A4 | AP67: =IF(D68="Highway Treatment","", "A5") -> A5 | AT67: =_xlfn.CONCAT("Estimated Direct Works Cost (£ / ", AH68, ")") -> Estimated Direct Works Cost (£ / 0) | AU67: CCR (tCO2e/£100k) | AZ67: Start Month | BA67: End Month | BE67: TOTAL B2, B3 & B4 | BG67: B2 | BH67: B3 | BI67: B4 | BK67: =_xlfn.IFS(VALUE(TEXT($BA68, "m"))<12, VALUE(TEXT($BA68, "yyyy")), VALUE(TEXT($BA68, "m"))=12, VALUE(TEXT($BA68, "yyyy"))+1) -> 1900 | BL67: =IFERROR(IF(BK67 = VALUE(TEXT($BA68, "yyyy"))+60,"", BK67+1), "") -> 1901 | BM67: 1902 | BN67: 1903 | BO67: 1904 | BP67: 1905 | BQ67: 1906 | BR67: 1907 | BS67: 1908 | BT67: 1909 | BU67: 1910 | BV67: 1911 | BW67: 1912 | BX67: 1913 | BY67: 1914 | BZ67: 1915 | CA67: 1916 | CB67: 1917 | CC67: 1918 | CD67: 1919 | CE67: 1920 | CF67: 1921 | CG67: 1922 | CH67: 1923 | CI67: 1924 | CJ67: 1925 | CK67: 1926 | CL67: 1927 | CM67: 1928 | CN67: 1929 | CO67: 1930 | CP67: 1931 | CQ67: 1932 | CR67: =IFERROR(IF(CQ67 = VALUE(TEXT($BA68, "yyyy"))+60,"", CQ67+1), "") -> 1933 | CS67: 1934 | CT67: 1935 | CU67: 1936 | CV67: 1937 | CW67: 1938 | CX67: 1939 | CY67: 1940 | CZ67: 1941 | DA67: 1942 | DB67: 1943 | DC67: 1944 | DD67: 1945 | DE67: 1946 | DF67: 1947 | DG67: 1948 | DH67: 1949 | DI67: 1950 | DJ67: 1951 | DK67: 1952 | DL67: 1953 | DM67: 1954 | DN67: 1955 | DO67: 1956 | DP67: 1957 | DQ67: 1958 | DR67: 1959 | DS67: 1960 | DT67: =IFERROR(IF(DS67 = VALUE(TEXT($BA68, "yyyy"))+60,"", DS67+1), "") ->  | DU67: =IFERROR(IF(DT67 = VALUE(TEXT($BA68, "yyyy"))+60,"", DT67+1), "") ->  | DV67: =IFERROR(IF(DU67 = VALUE(TEXT($BA68, "yyyy"))+60,"", DU67+1), "") ->  | DW67: =IFERROR(IF(DV67 = VALUE(TEXT($BA68, "yyyy"))+60,"", DV67+1), "") ->  | DX67: =IFERROR(IF(DW67 = VALUE(TEXT($BA68, "yyyy"))+60,"", DW67+1), "") ->  | DY67: =IFERROR(IF(DX67 = VALUE(TEXT($BA68, "yyyy"))+60,"", DX67+1), "") ->  | DZ67: =IFERROR(IF(DY67 = VALUE(TEXT($BA68, "yyyy"))+60,"", DY67+1), "") ->  | EA67: =IFERROR(IF(DZ67 = VALUE(TEXT($BA68, "yyyy"))+60,"", DZ67+1), "") ->  | EB67: =IFERROR(IF(EA67 = VALUE(TEXT($BA68, "yyyy"))+60,"", EA67+1), "") ->  | EC67: =IFERROR(IF(EB67 = VALUE(TEXT($BA68, "yyyy"))+60,"", EB67+1), "") ->  | ED67: =IFERROR(IF(EC67 = VALUE(TEXT($BA68, "yyyy"))+60,"", EC67+1), "") ->  | EE67: =IFERROR(IF(ED67 = VALUE(TEXT($BA68, "yyyy"))+60,"", ED67+1), "") ->  | EF67: =IFERROR(IF(EE67 = VALUE(TEXT($BA68, "yyyy"))+60,"", EE67+1), "") ->  | EG67: =IFERROR(IF(EF67 = VALUE(TEXT($BA68, "yyyy"))+60,"", EF67+1), "") ->  | EH67: =IFERROR(IF(EG67 = VALUE(TEXT($BA68, "yyyy"))+60,"", EG67+1), "") ->  | EI67: =IFERROR(IF(EH67 = VALUE(TEXT($BA68, "yyyy"))+60,"", EH67+1), "") ->  | EJ67: =IFERROR(IF(EI67 = VALUE(TEXT($BA68, "yyyy"))+60,"", EI67+1), "") -> 
J68: Carbon Intensity Range | K68: =IF(COUNT($J75:$K84)=1, ($U75-(0.2*$U75)), IF(L68-(($T68-$L68)/8)<0, 0, L68-(($T68-$L68)/8))) -> 0 | L68: =IF(COUNT($J75:$K84)=1, ($U75-(0.16*$U75)), MIN($U75:$V84)) -> 0 | M68: =IF(COUNT($J75:$K84)=1, ($U75-(0.12*$U75)), (L68+($T68-$L68)/8)) -> 0 | N68: =IF(COUNT($J75:$K84)=1, ($U75-(0.08*$U75)), (M68+($T68-$L68)/8)) -> 0 | O68: =IF(COUNT($J75:$K84)=1, ($U75-(0.04*$U75)), (N68+($T68-$L68)/8)) -> 0 | P68: =IF(COUNT($J75:$K84)= 1, $U75,O68+($T68-$L68)/8) -> 0 | Q68: =IF(COUNT($J75:$K84)=1,($U75+(0.04*$U75)), (P68+($T68-$L68)/8)) -> 0 | R68: =IF(COUNT($J75:$K84)=1, ($U75+(0.08*$U75)), (Q68+($T68-$L68)/8)) -> 0 | S68: =IF(COUNT($J75:$K84)=1, ($U75+(0.12*$U75)), (R68+($T68-$L68)/8)) -> 0 | T68: =IF(COUNT($J75:$K84)=1, ($U75+(0.16*$U75)), MAX($U75:$V84)) -> 0 | U68: =IF(COUNT($J75:$K84)=1, $P68+(0.2*$U75), T68+(($T68-$L68)/8)) -> 0 | W68: Corresponding Carbon Intensity: | X68: =IFERROR(_xlfn.CHOOSECOLS(_xlfn.CHOOSEROWS(_xlfn._xlws.SORT(_xlfn._xlws.FILTER('C-Background_Data'!$B$11:$N$219, ('C-Background_Data'!$D$11:$D$219 = $E68) * ('C-Background_Data'!$I$11:$I$219 = $X67)), 7, -1),1), 7), _xlfn.IFS($X67="", (MEDIAN(MIN(U75:V84),MAX(U75:V84))), ((L68-($T68-$L68)/8)+(($U68-(L68-($T68-$L68)/8))/100*$X67))<0, 0, ((L68-($T68-$L68)/8)+(($U68-(L68-($T68-$L68)/8))/100*$X67))>=0, (L68-($T68-$L68)/8)+(($U68-(L68-($T68-$L68)/8))/100*$X67))) -> 0 | Y68: =CONCATENATE("tCO2e / ",AH68) -> tCO2e / 0 | Z68: =IFERROR(IF($E68= "Highway Treatment", IFERROR(MAX(_xlfn.CHOOSECOLS(_xlfn._xlws.FILTER('C-Background_Data'!$B$11:$N$219, ('C-Background_Data'!$D$11:$D$219 = $E68) * ('C-Background_Data'!$I$11:$I$219 = $X67)), 7)), $X68), IFERROR(_xlfn.CHOOSECOLS(_xlfn.CHOOSEROWS(_xlfn._xlws.SORT(_xlfn._xlws.FILTER('C-Background_Data'!$B$11:$U$219, ('C-Background_Data'!$D$11:$D$219 = $E68) * ('C-Background_Data'!$I$11:$I$219 = $X67)), 7, -1),1), 18), ((SUM(_xlfn.CHOOSECOLS(_xlfn._xlws.FILTER('C-Background_Data'!$B$11:$U$219, 'C-Background_Data'!$D$11:$D$219 =$E68), 18)))/(SUM(_xlfn.CHOOSECOLS(_xlfn._xlws.FILTER('C-Background_Data'!$B$11:$U$219, 'C-Background_Data'!$D$11:$D$219 =$E68), 7)))*$X68))), "") ->  | AA68: =IFERROR(IF($E68= "Highway Treatment", "", IFERROR(_xlfn.CHOOSECOLS(_xlfn.CHOOSEROWS(_xlfn._xlws.SORT(_xlfn._xlws.FILTER('C-Background_Data'!$B$11:$U$219, ('C-Background_Data'!$D$11:$D$219 = $E68) * ('C-Background_Data'!$I$11:$I$219 = $X67)), 7, -1),1), 19), ((SUM(_xlfn.CHOOSECOLS(_xlfn._xlws.FILTER('C-Background_Data'!$B$11:$U$219, 'C-Background_Data'!$D$11:$D$219 =$E68), 19)))/(SUM(_xlfn.CHOOSECOLS(_xlfn._xlws.FILTER('C-Background_Data'!$B$11:$U$219, 'C-Background_Data'!$D$11:$D$219 =$E68), 7)))*$X68))), "") ->  | AB68: =IFERROR(IF($E68= "Highway Treatment", "", IFERROR(_xlfn.CHOOSECOLS(_xlfn.CHOOSEROWS(_xlfn._xlws.SORT(_xlfn._xlws.FILTER('C-Background_Data'!$B$11:$U$219, ('C-Background_Data'!$D$11:$D$219 = $E68) * ('C-Background_Data'!$I$11:$I$219 = $X67)), 7, -1),1), 20), ((SUM(_xlfn.CHOOSECOLS(_xlfn._xlws.FILTER('C-Background_Data'!$B$11:$U$219, 'C-Background_Data'!$D$11:$D$219 =$E68), 20)))/(SUM(_xlfn.CHOOSECOLS(_xlfn._xlws.FILTER('C-Background_Data'!$B$11:$U$219, 'C-Background_Data'!$D$11:$D$219 =$E68), 7)))*$X68))), "") ->  | AH68: =_xlfn.UNIQUE(_xlfn.CHOOSECOLS(_xlfn._xlws.FILTER('C-Background_Data'!$B$11:$F$219, 'C-Background_Data'!$D$11:$D$219 = 'I-User_Input'!$E68, ""), 5)) -> 0 | AL68: =IF(D68="Highway Treatment", $Z68*$AG68, SUM(AN68:AP68)) -> 0 | AN68: =IF(D68 = "Highway Treatment", "", IFERROR($AG68*Z68, "")) ->  | AO68: =IF(D68 = "Highway Treatment", "", IFERROR($AG68*AA68, "")) ->  | AP68: =IF(D68 = "highway Treatment", "", IFERROR($AG68*AB68, "")) ->  | AT68: =IF($E73 <> "", $E73/$AG68, IFERROR(IFERROR(INDEX('C-Background_Data'!$B$11:$N$219, MATCH('I-User_Input'!$E68&'I-User_Input'!$X67, 'C-Background_Data'!$D$11:$D$219 & 'C-Background_Data'!$I$11:$I$219, 0), 13), (AVERAGE(_xlfn.CHOOSECOLS(_xlfn._xlws.FILTER('C-Background_Data'!$B$11:$N$219, 'C-Background_Data'!$D$11:$D$219 =$E68), 13)))), "")) ->  | AU68: =IFERROR(X68/(AT68/100000), "") ->  | BE68: =SUM(BG68:BI68) -> 0 | BG68: =AL68*0.01 -> 0 | BH68: =BG68*0.25 -> 0 | BI68: =IFERROR('C-B4_Calculation'!$N56*(SUM(AN68:AO68)),0) -> 0 | BK68: =$BE68/60 -> 0 | BL68: 0 | BM68: 0 | BN68: 0 | BO68: 0 | BP68: 0 | BQ68: 0 | BR68: 0 | BS68: 0 | BT68: 0 | BU68: 0 | BV68: 0 | BW68: 0 | BX68: 0 | BY68: 0 | BZ68: 0 | CA68: 0 | CB68: 0 | CC68: 0 | CD68: 0 | CE68: 0 | CF68: 0 | CG68: 0 | CH68: 0 | CI68: 0 | CJ68: 0 | CK68: 0 | CL68: 0 | CM68: 0 | CN68: 0 | CO68: 0 | CP68: 0 | CQ68: =$BE68/60 -> 0 | CR68: 0 | CS68: 0 | CT68: 0 | CU68: 0 | CV68: 0 | CW68: 0 | CX68: 0 | CY68: 0 | CZ68: 0 | DA68: 0 | DB68: 0 | DC68: 0 | DD68: 0 | DE68: 0 | DF68: 0 | DG68: 0 | DH68: 0 | DI68: 0 | DJ68: 0 | DK68: 0 | DL68: 0 | DM68: 0 | DN68: 0 | DO68: 0 | DP68: 0 | DQ68: 0 | DR68: 0 | DS68: 0
J70: Reason for Selection of Carbon Intensity: | AL70: A NOTE ON UNCERTAINTY
J72: Carbon Intensity Guidance | AL72: =_xlfn.XLOOKUP(D68,'C-Project-Specific_Uncertainty'!B:B,'C-Project-Specific_Uncertainty'!C:C) -> 0
D73: Direct Works Cost in 2015 Value (if known): | J73: Benchmarks associated with Intervention selected:
D74: Please insert the Direct Works Cost after using the CPI to adjust to 2015 value.See section 5c of the User Guide. | J74: Approximate Lever Placement | L74: Benchmark ID | O74: =CONCATENATE("Benchmarks (",E68,")") -> Benchmarks () | U74: =IF($D68= "Highway Treatment", CONCATENATE("Module B Carbon Intensity (tCO2e/", $AH68, ")"), CONCATENATE("A1-A5 Carbon Intensity (tCO2e/", $AH68, ")")) -> A1-A5 Carbon Intensity (tCO2e/0) | W74: Description (see Capital Carbon Summary Sheets for full specifications)
J75: =IFERROR(VLOOKUP($M75, 'C-Background_Data'!$B$11:$J$219, 8,FALSE), "") ->  | M75: =IF($E68="", "", _xlfn.CHOOSECOLS(_xlfn._xlws.SORT(_xlfn._xlws.FILTER('C-Background_Data'!$B$11:$I$219, 'C-Background_Data'!$D$11:$D$219='I-User_Input'!$E$68, ""),8,1),1)) ->  | O75: =IFERROR(VLOOKUP($M75, 'C-Background_Data'!$B$11:$J$219, 4,FALSE), "") ->  | U75: =IFERROR(VLOOKUP($M75, 'C-Background_Data'!$B$11:$J$219,7,FALSE), "") ->  | W75: =IFERROR(VLOOKUP($M75, 'C-Background_Data'!$B$11:$J$219,9,FALSE), "") -> 
J76: =IFERROR(VLOOKUP($M76, 'C-Background_Data'!$B$11:$J$219, 8,FALSE), "") ->  | O76: =IFERROR(VLOOKUP($M76, 'C-Background_Data'!$B$11:$J$219, 4,FALSE), "") ->  | U76: =IFERROR(VLOOKUP($M76, 'C-Background_Data'!$B$11:$J$219,7,FALSE), "") ->  | W76: =IFERROR(VLOOKUP($M76, 'C-Background_Data'!$B$11:$J$219,9,FALSE), "") -> 
J77: =IFERROR(VLOOKUP($M77, 'C-Background_Data'!$B$11:$J$219, 8,FALSE), "") ->  | O77: =IFERROR(VLOOKUP($M77, 'C-Background_Data'!$B$11:$J$219, 4,FALSE), "") ->  | U77: =IFERROR(VLOOKUP($M77, 'C-Background_Data'!$B$11:$J$219,7,FALSE), "") ->  | W77: =IFERROR(VLOOKUP($M77, 'C-Background_Data'!$B$11:$J$219,9,FALSE), "") -> 
J78: =IFERROR(VLOOKUP($M78, 'C-Background_Data'!$B$11:$J$219, 8,FALSE), "") ->  | O78: =IFERROR(VLOOKUP($M78, 'C-Background_Data'!$B$11:$J$219, 4,FALSE), "") ->  | U78: =IFERROR(VLOOKUP($M78, 'C-Background_Data'!$B$11:$J$219,7,FALSE), "") ->  | W78: =IFERROR(VLOOKUP($M78, 'C-Background_Data'!$B$11:$J$219,9,FALSE), "") -> 
J79: =IFERROR(VLOOKUP($M79, 'C-Background_Data'!$B$11:$J$219, 8,FALSE), "") ->  | O79: =IFERROR(VLOOKUP($M79, 'C-Background_Data'!$B$11:$J$219, 4,FALSE), "") ->  | U79: =IFERROR(VLOOKUP($M79, 'C-Background_Data'!$B$11:$J$219,7,FALSE), "") ->  | W79: =IFERROR(VLOOKUP($M79, 'C-Background_Data'!$B$11:$J$219,9,FALSE), "") -> 
J80: =IFERROR(VLOOKUP($M80, 'C-Background_Data'!$B$11:$J$219, 8,FALSE), "") ->  | O80: =IFERROR(VLOOKUP($M80, 'C-Background_Data'!$B$11:$J$219, 4,FALSE), "") ->  | U80: =IFERROR(VLOOKUP($M80, 'C-Background_Data'!$B$11:$J$219,7,FALSE), "") ->  | W80: =IFERROR(VLOOKUP($M80, 'C-Background_Data'!$B$11:$J$219,9,FALSE), "") -> 
J81: =IFERROR(VLOOKUP($M81, 'C-Background_Data'!$B$11:$J$219, 8,FALSE), "") ->  | O81: =IFERROR(VLOOKUP($M81, 'C-Background_Data'!$B$11:$J$219, 4,FALSE), "") ->  | U81: =IFERROR(VLOOKUP($M81, 'C-Background_Data'!$B$11:$J$219,7,FALSE), "") ->  | W81: =IFERROR(VLOOKUP($M81, 'C-Background_Data'!$B$11:$J$219,9,FALSE), "") -> 
J82: =IFERROR(VLOOKUP($M82, 'C-Background_Data'!$B$11:$J$219, 8,FALSE), "") ->  | O82: =IFERROR(VLOOKUP($M82, 'C-Background_Data'!$B$11:$J$219, 4,FALSE), "") ->  | U82: =IFERROR(VLOOKUP($M82, 'C-Background_Data'!$B$11:$J$219,7,FALSE), "") ->  | W82: =IFERROR(VLOOKUP($M82, 'C-Background_Data'!$B$11:$J$219,9,FALSE), "") -> 
J83: =IFERROR(VLOOKUP($M83, 'C-Background_Data'!$B$11:$J$219, 8,FALSE), "") ->  | O83: =IFERROR(VLOOKUP($M83, 'C-Background_Data'!$B$11:$J$219, 4,FALSE), "") ->  | U83: =IFERROR(VLOOKUP($M83, 'C-Background_Data'!$B$11:$J$219,7,FALSE), "") ->  | W83: =IFERROR(VLOOKUP($M83, 'C-Background_Data'!$B$11:$J$219,9,FALSE), "") -> 
J84: =IFERROR(VLOOKUP($M84, 'C-Background_Data'!$B$11:$J$219, 8,FALSE), "") ->  | O84: =IFERROR(VLOOKUP($M84, 'C-Background_Data'!$B$11:$J$219, 4,FALSE), "") ->  | U84: =IFERROR(VLOOKUP($M84, 'C-Background_Data'!$B$11:$J$219,7,FALSE), "") ->  | W84: =IFERROR(VLOOKUP($M84, 'C-Background_Data'!$B$11:$J$219,9,FALSE), "") -> 
J85: <<< Expand [+] for details
D89: Name of Intervention: | K89: Carbon Intensity Lever
Z91: =IF(D93="Highway Treatment","Use Stage", "Product Stage") -> Product Stage | AA91: =IF(D93="Highway Treatment","", "Construction Process Stage") -> Construction Process Stage | AL91: =IF(D93="Highway Treatment","Use Stage", "Product & Construction Process Stage") -> Product & Construction Process Stage | AN91: =IF(D93="Highway Treatment","Use Stage", "Product Stage") -> Product Stage | AO91: =IF(D93="Highway Treatment","", "Construction Process Stage") -> Construction Process Stage | BE91: Use stage | BG91: Maintenance | BH91: Repair | BI91: Replacement
D92: Select Category: | E92: Select Intervention Type: | J92: Lever Range | K92: 0 | L92: 10 | M92: 20 | N92: 30 | O92: 40 | P92: 50 | Q92: 60 | R92: 70 | S92: 80 | T92: 90 | U92: 100 | W92: Lever Setting selected: | X92: 50 | Z92: =IF(D93="Highway Treatment","Module B", "A1-A3") -> A1-A3 | AA92: =IF(D93="Highway Treatment","","A4") -> A4 | AB92: =IF(D93="Highway Treatment","","A5") -> A5 | AG92: Quantity | AH92: Units | AL92: =IF(D93="Highway Treatment","MODULE B", "TOTAL A1-A5") -> TOTAL A1-A5 | AN92: =IF(D93="Highway Treatment","Module B", "A1-A3") -> A1-A3 | AO92: =IF(D93="Highway Treatment","", "A4") -> A4 | AP92: =IF(D93="Highway Treatment","", "A5") -> A5 | AT92: =_xlfn.CONCAT("Estimated Direct Works Cost (£ / ", AH93, ")") -> Estimated Direct Works Cost (£ / 0) | AU92: CCR (tCO2e/£100k) | AZ92: Start Month | BA92: End Month | BE92: TOTAL B2, B3 & B4 | BG92: B2 | BH92: B3 | BI92: B4 | BK92: =_xlfn.IFS(VALUE(TEXT($BA93, "m"))<12, VALUE(TEXT($BA93, "yyyy")), VALUE(TEXT($BA93, "m"))=12, VALUE(TEXT($BA93, "yyyy"))+1) -> 1900 | BL92: =IFERROR(IF(BK92 = VALUE(TEXT($BA93, "yyyy"))+60,"", BK92+1), "") -> 1901 | BM92: 1902 | BN92: 1903 | BO92: 1904 | BP92: 1905 | BQ92: 1906 | BR92: 1907 | BS92: 1908 | BT92: 1909 | BU92: 1910 | BV92: 1911 | BW92: 1912 | BX92: 1913 | BY92: 1914 | BZ92: 1915 | CA92: 1916 | CB92: 1917 | CC92: 1918 | CD92: 1919 | CE92: 1920 | CF92: 1921 | CG92: 1922 | CH92: 1923 | CI92: 1924 | CJ92: 1925 | CK92: 1926 | CL92: 1927 | CM92: 1928 | CN92: 1929 | CO92: 1930 | CP92: 1931 | CQ92: 1932 | CR92: =IFERROR(IF(CQ92 = VALUE(TEXT($BA93, "yyyy"))+60,"", CQ92+1), "") -> 1933 | CS92: 1934 | CT92: 1935 | CU92: 1936 | CV92: 1937 | CW92: 1938 | CX92: 1939 | CY92: 1940 | CZ92: 1941 | DA92: 1942 | DB92: 1943 | DC92: 1944 | DD92: 1945 | DE92: 1946 | DF92: 1947 | DG92: 1948 | DH92: 1949 | DI92: 1950 | DJ92: 1951 | DK92: 1952 | DL92: 1953 | DM92: 1954 | DN92: 1955 | DO92: 1956 | DP92: 1957 | DQ92: 1958 | DR92: 1959 | DS92: 1960 | DT92: =IFERROR(IF(DS92 = VALUE(TEXT($BA93, "yyyy"))+60,"", DS92+1), "") ->  | DU92: =IFERROR(IF(DT92 = VALUE(TEXT($BA93, "yyyy"))+60,"", DT92+1), "") ->  | DV92: =IFERROR(IF(DU92 = VALUE(TEXT($BA93, "yyyy"))+60,"", DU92+1), "") ->  | DW92: =IFERROR(IF(DV92 = VALUE(TEXT($BA93, "yyyy"))+60,"", DV92+1), "") ->  | DX92: =IFERROR(IF(DW92 = VALUE(TEXT($BA93, "yyyy"))+60,"", DW92+1), "") ->  | DY92: =IFERROR(IF(DX92 = VALUE(TEXT($BA93, "yyyy"))+60,"", DX92+1), "") ->  | DZ92: =IFERROR(IF(DY92 = VALUE(TEXT($BA93, "yyyy"))+60,"", DY92+1), "") ->  | EA92: =IFERROR(IF(DZ92 = VALUE(TEXT($BA93, "yyyy"))+60,"", DZ92+1), "") ->  | EB92: =IFERROR(IF(EA92 = VALUE(TEXT($BA93, "yyyy"))+60,"", EA92+1), "") ->  | EC92: =IFERROR(IF(EB92 = VALUE(TEXT($BA93, "yyyy"))+60,"", EB92+1), "") ->  | ED92: =IFERROR(IF(EC92 = VALUE(TEXT($BA93, "yyyy"))+60,"", EC92+1), "") ->  | EE92: =IFERROR(IF(ED92 = VALUE(TEXT($BA93, "yyyy"))+60,"", ED92+1), "") ->  | EF92: =IFERROR(IF(EE92 = VALUE(TEXT($BA93, "yyyy"))+60,"", EE92+1), "") ->  | EG92: =IFERROR(IF(EF92 = VALUE(TEXT($BA93, "yyyy"))+60,"", EF92+1), "") ->  | EH92: =IFERROR(IF(EG92 = VALUE(TEXT($BA93, "yyyy"))+60,"", EG92+1), "") ->  | EI92: =IFERROR(IF(EH92 = VALUE(TEXT($BA93, "yyyy"))+60,"", EH92+1), "") ->  | EJ92: =IFERROR(IF(EI92 = VALUE(TEXT($BA93, "yyyy"))+60,"", EI92+1), "") -> 
J93: Carbon Intensity Range | K93: =IF(COUNT($J100:$K109)=1, ($U100-(0.2*$U100)), IF(L93-(($T93-$L93)/8)<0, 0, L93-(($T93-$L93)/8))) -> 0 | L93: =IF(COUNT($J100:$K109)=1, ($U100-(0.16*$U100)), MIN($U100:$V109)) -> 0 | M93: =IF(COUNT($J100:$K109)=1, ($U100-(0.12*$U100)), (L93+($T93-$L93)/8)) -> 0 | N93: =IF(COUNT($J100:$K109)=1, ($U100-(0.08*$U100)), (M93+($T93-$L93)/8)) -> 0 | O93: =IF(COUNT($J100:$K109)=1, ($U100-(0.04*$U100)), (N93+($T93-$L93)/8)) -> 0 | P93: =IF(COUNT($J100:$K109)= 1, $U100,O93+($T93-$L93)/8) -> 0 | Q93: =IF(COUNT($J100:$K109)=1,($U100+(0.04*$U100)), (P93+($T93-$L93)/8)) -> 0 | R93: =IF(COUNT($J100:$K109)=1, ($U100+(0.08*$U100)), (Q93+($T93-$L93)/8)) -> 0 | S93: =IF(COUNT($J100:$K109)=1, ($U100+(0.12*$U100)), (R93+($T93-$L93)/8)) -> 0 | T93: =IF(COUNT($J100:$K109)=1, ($U100+(0.16*$U100)), MAX($U100:$V109)) -> 0 | U93: =IF(COUNT($J100:$K109)=1, $P93+(0.2*$U100), T93+(($T93-$L93)/8)) -> 0 | W93: Corresponding Carbon Intensity: | X93: =IFERROR(_xlfn.CHOOSECOLS(_xlfn.CHOOSEROWS(_xlfn._xlws.SORT(_xlfn._xlws.FILTER('C-Background_Data'!$B$11:$N$219, ('C-Background_Data'!$D$11:$D$219 = $E93) * ('C-Background_Data'!$I$11:$I$219 = $X92)), 7, -1),1), 7), _xlfn.IFS($X92="", (MEDIAN(MIN(U100:V109),MAX(U100:V109))), ((L93-($T93-$L93)/8)+(($U93-(L93-($T93-$L93)/8))/100*$X92))<0, 0, ((L93-($T93-$L93)/8)+(($U93-(L93-($T93-$L93)/8))/100*$X92))>=0, (L93-($T93-$L93)/8)+(($U93-(L93-($T93-$L93)/8))/100*$X92))) -> 0 | Y93: =CONCATENATE("tCO2e / ",AH93) -> tCO2e / 0 | Z93: =IFERROR(IF($E93= "Highway Treatment", IFERROR(MAX(_xlfn.CHOOSECOLS(_xlfn._xlws.FILTER('C-Background_Data'!$B$11:$N$219, ('C-Background_Data'!$D$11:$D$219 = $E93) * ('C-Background_Data'!$I$11:$I$219 = $X92)), 7)), $X93), IFERROR(_xlfn.CHOOSECOLS(_xlfn.CHOOSEROWS(_xlfn._xlws.SORT(_xlfn._xlws.FILTER('C-Background_Data'!$B$11:$U$219, ('C-Background_Data'!$D$11:$D$219 = $E93) * ('C-Background_Data'!$I$11:$I$219 = $X92)), 7, -1),1), 18), ((SUM(_xlfn.CHOOSECOLS(_xlfn._xlws.FILTER('C-Background_Data'!$B$11:$U$219, 'C-Background_Data'!$D$11:$D$219 =$E93), 18)))/(SUM(_xlfn.CHOOSECOLS(_xlfn._xlws.FILTER('C-Background_Data'!$B$11:$U$219, 'C-Background_Data'!$D$11:$D$219 =$E93), 7)))*$X93))), "") ->  | AA93: =IFERROR(IF($E93= "Highway Treatment", "", IFERROR(_xlfn.CHOOSECOLS(_xlfn.CHOOSEROWS(_xlfn._xlws.SORT(_xlfn._xlws.FILTER('C-Background_Data'!$B$11:$U$219, ('C-Background_Data'!$D$11:$D$219 = $E93) * ('C-Background_Data'!$I$11:$I$219 = $X92)), 7, -1),1), 19), ((SUM(_xlfn.CHOOSECOLS(_xlfn._xlws.FILTER('C-Background_Data'!$B$11:$U$219, 'C-Background_Data'!$D$11:$D$219 =$E93), 19)))/(SUM(_xlfn.CHOOSECOLS(_xlfn._xlws.FILTER('C-Background_Data'!$B$11:$U$219, 'C-Background_Data'!$D$11:$D$219 =$E93), 7)))*$X93))), "") ->  | AB93: =IFERROR(IF($E93= "Highway Treatment", "", IFERROR(_xlfn.CHOOSECOLS(_xlfn.CHOOSEROWS(_xlfn._xlws.SORT(_xlfn._xlws.FILTER('C-Background_Data'!$B$11:$U$219, ('C-Background_Data'!$D$11:$D$219 = $E93) * ('C-Background_Data'!$I$11:$I$219 = $X92)), 7, -1),1), 20), ((SUM(_xlfn.CHOOSECOLS(_xlfn._xlws.FILTER('C-Background_Data'!$B$11:$U$219, 'C-Background_Data'!$D$11:$D$219 =$E93), 20)))/(SUM(_xlfn.CHOOSECOLS(_xlfn._xlws.FILTER('C-Background_Data'!$B$11:$U$219, 'C-Background_Data'!$D$11:$D$219 =$E93), 7)))*$X93))), "") ->  | AH93: =_xlfn.UNIQUE(_xlfn.CHOOSECOLS(_xlfn._xlws.FILTER('C-Background_Data'!$B$11:$F$219, 'C-Background_Data'!$D$11:$D$219 = 'I-User_Input'!$E93, ""), 5)) -> 0 | AL93: =IF(D93="Highway Treatment", $Z93*$AG93, SUM(AN93:AP93)) -> 0 | AN93: =IF(D93 = "Highway Treatment", "", IFERROR($AG93*Z93, "")) ->  | AO93: =IF(D93 = "Highway Treatment", "", IFERROR($AG93*AA93, "")) ->  | AP93: =IF(D93 = "highway Treatment", "", IFERROR($AG93*AB93, "")) ->  | AT93: =IF($E98 <> "", $E98/$AG93, IFERROR(IFERROR(INDEX('C-Background_Data'!$B$11:$N$219, MATCH('I-User_Input'!$E93&'I-User_Input'!$X92, 'C-Background_Data'!$D$11:$D$219 & 'C-Background_Data'!$I$11:$I$219, 0), 13), (AVERAGE(_xlfn.CHOOSECOLS(_xlfn._xlws.FILTER('C-Background_Data'!$B$11:$N$219, 'C-Background_Data'!$D$11:$D$219 =$E93), 13)))), "")) ->  | AU93: =IFERROR(X93/(AT93/100000), "") ->  | BE93: =SUM(BG93:BI93) -> 0 | BG93: =AL93*0.01 -> 0 | BH93: =BG93*0.25 -> 0 | BI93: =IFERROR('C-B4_Calculation'!$N79*(SUM(AN93:AO93)),0) -> 0 | BK93: =$BE93/60 -> 0 | BL93: 0 | BM93: 0 | BN93: 0 | BO93: 0 | BP93: 0 | BQ93: 0 | BR93: 0 | BS93: 0 | BT93: 0 | BU93: 0 | BV93: 0 | BW93: 0 | BX93: 0 | BY93: 0 | BZ93: 0 | CA93: 0 | CB93: 0 | CC93: 0 | CD93: 0 | CE93: 0 | CF93: 0 | CG93: 0 | CH93: 0 | CI93: 0 | CJ93: 0 | CK93: 0 | CL93: 0 | CM93: 0 | CN93: 0 | CO93: 0 | CP93: 0 | CQ93: =$BE93/60 -> 0 | CR93: 0 | CS93: 0 | CT93: 0 | CU93: 0 | CV93: 0 | CW93: 0 | CX93: 0 | CY93: 0 | CZ93: 0 | DA93: 0 | DB93: 0 | DC93: 0 | DD93: 0 | DE93: 0 | DF93: 0 | DG93: 0 | DH93: 0 | DI93: 0 | DJ93: 0 | DK93: 0 | DL93: 0 | DM93: 0 | DN93: 0 | DO93: 0 | DP93: 0 | DQ93: 0 | DR93: 0
J95: Reason for Selection of Carbon Intensity: | AL95: A NOTE ON UNCERTAINTY
J97: Carbon Intensity Guidance | AL97: =_xlfn.XLOOKUP(D93,'C-Project-Specific_Uncertainty'!B:B,'C-Project-Specific_Uncertainty'!C:C) -> 0
D98: Direct Works Cost in 2015 Value (if known): | J98: Benchmarks associated with Intervention type selected: | W98: =IFERROR(IF(INDEX('D-Reference'!$D$10:$D$15, MATCH('I-User_Input'!$E93, 'D-Reference'!$D$10:$D$15,0),0)= 'I-User_Input'!$E93, "For further details, see Diagram", ""),"") -> 
D99: Please insert the Direct Works Cost after using the CPI to adjust to 2015 value.See section 5c of the User Guide. | J99: Approximate Lever Placement | L99: Benchmark ID | O99: =CONCATENATE("Benchmarks (",E93,")") -> Benchmarks () | U99: =IF($D93= "Highway Treatment", CONCATENATE("Module B Carbon Intensity (tCO2e/", $AH93, ")"), CONCATENATE("A1-A5 Carbon Intensity (tCO2e/", $AH93, ")")) -> A1-A5 Carbon Intensity (tCO2e/0) | W99: Description (see Capital Carbon Summary Sheets for full specifications)
J100: =IFERROR(VLOOKUP($M100, 'C-Background_Data'!$B$11:$J$219, 8,FALSE), "") ->  | M100: =IF($E93="", "", _xlfn.CHOOSECOLS(_xlfn._xlws.SORT(_xlfn._xlws.FILTER('C-Background_Data'!$B$11:$I$219, 'C-Background_Data'!$D$11:$D$219='I-User_Input'!$E$93, ""),8,1),1)) ->  | O100: =IFERROR(VLOOKUP($M100, 'C-Background_Data'!$B$11:$J$219, 4,FALSE), "") ->  | U100: =IFERROR(VLOOKUP($M100, 'C-Background_Data'!$B$11:$J$219,7,FALSE), "") ->  | W100: =IFERROR(VLOOKUP($M100, 'C-Background_Data'!$B$11:$J$219,9,FALSE), "") -> 
J101: =IFERROR(VLOOKUP($M101, 'C-Background_Data'!$B$11:$J$219, 8,FALSE), "") ->  | O101: =IFERROR(VLOOKUP($M101, 'C-Background_Data'!$B$11:$J$219, 4,FALSE), "") ->  | U101: =IFERROR(VLOOKUP($M101, 'C-Background_Data'!$B$11:$J$219,7,FALSE), "") ->  | W101: =IFERROR(VLOOKUP($M101, 'C-Background_Data'!$B$11:$J$219,9,FALSE), "") -> 
J102: =IFERROR(VLOOKUP($M102, 'C-Background_Data'!$B$11:$J$219, 8,FALSE), "") ->  | O102: =IFERROR(VLOOKUP($M102, 'C-Background_Data'!$B$11:$J$219, 4,FALSE), "") ->  | U102: =IFERROR(VLOOKUP($M102, 'C-Background_Data'!$B$11:$J$219,7,FALSE), "") ->  | W102: =IFERROR(VLOOKUP($M102, 'C-Background_Data'!$B$11:$J$219,9,FALSE), "") -> 
J103: =IFERROR(VLOOKUP($M103, 'C-Background_Data'!$B$11:$J$219, 8,FALSE), "") ->  | O103: =IFERROR(VLOOKUP($M103, 'C-Background_Data'!$B$11:$J$219, 4,FALSE), "") ->  | U103: =IFERROR(VLOOKUP($M103, 'C-Background_Data'!$B$11:$J$219,7,FALSE), "") ->  | W103: =IFERROR(VLOOKUP($M103, 'C-Background_Data'!$B$11:$J$219,9,FALSE), "") -> 
J104: =IFERROR(VLOOKUP($M104, 'C-Background_Data'!$B$11:$J$219, 8,FALSE), "") ->  | O104: =IFERROR(VLOOKUP($M104, 'C-Background_Data'!$B$11:$J$219, 4,FALSE), "") ->  | U104: =IFERROR(VLOOKUP($M104, 'C-Background_Data'!$B$11:$J$219,7,FALSE), "") ->  | W104: =IFERROR(VLOOKUP($M104, 'C-Background_Data'!$B$11:$J$219,9,FALSE), "") -> 
J105: =IFERROR(VLOOKUP($M105, 'C-Background_Data'!$B$11:$J$219, 8,FALSE), "") ->  | O105: =IFERROR(VLOOKUP($M105, 'C-Background_Data'!$B$11:$J$219, 4,FALSE), "") ->  | U105: =IFERROR(VLOOKUP($M105, 'C-Background_Data'!$B$11:$J$219,7,FALSE), "") ->  | W105: =IFERROR(VLOOKUP($M105, 'C-Background_Data'!$B$11:$J$219,9,FALSE), "") -> 
J106: =IFERROR(VLOOKUP($M106, 'C-Background_Data'!$B$11:$J$219, 8,FALSE), "") ->  | O106: =IFERROR(VLOOKUP($M106, 'C-Background_Data'!$B$11:$J$219, 4,FALSE), "") ->  | U106: =IFERROR(VLOOKUP($M106, 'C-Background_Data'!$B$11:$J$219,7,FALSE), "") ->  | W106: =IFERROR(VLOOKUP($M106, 'C-Background_Data'!$B$11:$J$219,9,FALSE), "") -> 
J107: =IFERROR(VLOOKUP($M107, 'C-Background_Data'!$B$11:$J$219, 8,FALSE), "") ->  | O107: =IFERROR(VLOOKUP($M107, 'C-Background_Data'!$B$11:$J$219, 4,FALSE), "") ->  | U107: =IFERROR(VLOOKUP($M107, 'C-Background_Data'!$B$11:$J$219,7,FALSE), "") ->  | W107: =IFERROR(VLOOKUP($M107, 'C-Background_Data'!$B$11:$J$219,9,FALSE), "") -> 
J108: =IFERROR(VLOOKUP($M108, 'C-Background_Data'!$B$11:$J$219, 8,FALSE), "") ->  | O108: =IFERROR(VLOOKUP($M108, 'C-Background_Data'!$B$11:$J$219, 4,FALSE), "") ->  | U108: =IFERROR(VLOOKUP($M108, 'C-Background_Data'!$B$11:$J$219,7,FALSE), "") ->  | W108: =IFERROR(VLOOKUP($M108, 'C-Background_Data'!$B$11:$J$219,9,FALSE), "") -> 
J109: =IFERROR(VLOOKUP($M109, 'C-Background_Data'!$B$11:$J$219, 8,FALSE), "") ->  | O109: =IFERROR(VLOOKUP($M109, 'C-Background_Data'!$B$11:$J$219, 4,FALSE), "") ->  | U109: =IFERROR(VLOOKUP($M109, 'C-Background_Data'!$B$11:$J$219,7,FALSE), "") ->  | W109: =IFERROR(VLOOKUP($M109, 'C-Background_Data'!$B$11:$J$219,9,FALSE), "") -> 
J110: <<< Expand [+] for details
D114: Name of Intervention: | K114: Carbon Intensity Lever
Z116: =IF(D118="Highway Treatment","Use Stage", "Product Stage") -> Product Stage | AA116: =IF(D118="Highway Treatment","", "Construction Process Stage") -> Construction Process Stage | AL116: =IF(D118="Highway Treatment","Use Stage", "Product & Construction Process Stage") -> Product & Construction Process Stage | AN116: =IF(D118="Highway Treatment","Use Stage", "Product Stage") -> Product Stage | AO116: =IF(D118="Highway Treatment","", "Construction Process Stage") -> Construction Process Stage | BE116: Use stage | BG116: Maintenance | BH116: Repair | BI116: Replacement
D117: Select Category: | E117: Select Intervention Type: | J117: Lever Range | K117: 0 | L117: 10 | M117: 20 | N117: 30 | O117: 40 | P117: 50 | Q117: 60 | R117: 70 | S117: 80 | T117: 90 | U117: 100 | W117: Lever Setting selected: | X117: 50 | Z117: =IF(D118="Highway Treatment","Module B", "A1-A3") -> A1-A3 | AA117: =IF(D118="Highway Treatment","","A4") -> A4 | AB117: =IF(D118="Highway Treatment","","A5") -> A5 | AG117: Quantity | AH117: Units | AL117: =IF(D118="Highway Treatment","MODULE B", "TOTAL A1-A5") -> TOTAL A1-A5 | AN117: =IF(D118="Highway Treatment","Module B", "A1-A3") -> A1-A3 | AO117: =IF(D118="Highway Treatment","", "A4") -> A4 | AP117: =IF(D118="Highway Treatment","", "A5") -> A5 | AT117: =_xlfn.CONCAT("Estimated Direct Works Cost (£ / ", AH118, ")") -> Estimated Direct Works Cost (£ / 0) | AU117: CCR (tCO2e/£100k) | AZ117: Start Month | BA117: End Month | BE117: TOTAL B2, B3 & B4 | BG117: B2 | BH117: B3 | BI117: B4 | BK117: =_xlfn.IFS(VALUE(TEXT($BA118, "m"))<12, VALUE(TEXT($BA118, "yyyy")), VALUE(TEXT($BA118, "m"))=12, VALUE(TEXT($BA118, "yyyy"))+1) -> 1900 | BL117: =IFERROR(IF(BK117 = VALUE(TEXT($BA118, "yyyy"))+60,"", BK117+1), "") -> 1901 | BM117: 1902 | BN117: 1903 | BO117: 1904 | BP117: 1905 | BQ117: 1906 | BR117: 1907 | BS117: 1908 | BT117: 1909 | BU117: 1910 | BV117: 1911 | BW117: 1912 | BX117: 1913 | BY117: 1914 | BZ117: 1915 | CA117: 1916 | CB117: 1917 | CC117: 1918 | CD117: 1919 | CE117: 1920 | CF117: 1921 | CG117: 1922 | CH117: 1923 | CI117: 1924 | CJ117: 1925 | CK117: 1926 | CL117: 1927 | CM117: 1928 | CN117: 1929 | CO117: 1930 | CP117: 1931 | CQ117: 1932 | CR117: =IFERROR(IF(CQ117 = VALUE(TEXT($BA118, "yyyy"))+60,"", CQ117+1), "") -> 1933 | CS117: 1934 | CT117: 1935 | CU117: 1936 | CV117: 1937 | CW117: 1938 | CX117: 1939 | CY117: 1940 | CZ117: 1941 | DA117: 1942 | DB117: 1943 | DC117: 1944 | DD117: 1945 | DE117: 1946 | DF117: 1947 | DG117: 1948 | DH117: 1949 | DI117: 1950 | DJ117: 1951 | DK117: 1952 | DL117: 1953 | DM117: 1954 | DN117: 1955 | DO117: 1956 | DP117: 1957 | DQ117: 1958 | DR117: 1959 | DS117: 1960 | DT117: =IFERROR(IF(DS117 = VALUE(TEXT($BA118, "yyyy"))+60,"", DS117+1), "") ->  | DU117: =IFERROR(IF(DT117 = VALUE(TEXT($BA118, "yyyy"))+60,"", DT117+1), "") ->  | DV117: =IFERROR(IF(DU117 = VALUE(TEXT($BA118, "yyyy"))+60,"", DU117+1), "") ->  | DW117: =IFERROR(IF(DV117 = VALUE(TEXT($BA118, "yyyy"))+60,"", DV117+1), "") ->  | DX117: =IFERROR(IF(DW117 = VALUE(TEXT($BA118, "yyyy"))+60,"", DW117+1), "") ->  | DY117: =IFERROR(IF(DX117 = VALUE(TEXT($BA118, "yyyy"))+60,"", DX117+1), "") ->  | DZ117: =IFERROR(IF(DY117 = VALUE(TEXT($BA118, "yyyy"))+60,"", DY117+1), "") ->  | EA117: =IFERROR(IF(DZ117 = VALUE(TEXT($BA118, "yyyy"))+60,"", DZ117+1), "") ->  | EB117: =IFERROR(IF(EA117 = VALUE(TEXT($BA118, "yyyy"))+60,"", EA117+1), "") ->  | EC117: =IFERROR(IF(EB117 = VALUE(TEXT($BA118, "yyyy"))+60,"", EB117+1), "") ->  | ED117: =IFERROR(IF(EC117 = VALUE(TEXT($BA118, "yyyy"))+60,"", EC117+1), "") ->  | EE117: =IFERROR(IF(ED117 = VALUE(TEXT($BA118, "yyyy"))+60,"", ED117+1), "") ->  | EF117: =IFERROR(IF(EE117 = VALUE(TEXT($BA118, "yyyy"))+60,"", EE117+1), "") ->  | EG117: =IFERROR(IF(EF117 = VALUE(TEXT($BA118, "yyyy"))+60,"", EF117+1), "") ->  | EH117: =IFERROR(IF(EG117 = VALUE(TEXT($BA118, "yyyy"))+60,"", EG117+1), "") ->  | EI117: =IFERROR(IF(EH117 = VALUE(TEXT($BA118, "yyyy"))+60,"", EH117+1), "") ->  | EJ117: =IFERROR(IF(EI117 = VALUE(TEXT($BA118, "yyyy"))+60,"", EI117+1), "") -> 
J118: Carbon Intensity Range | K118: =IF(COUNT($J125:$K134)=1, ($U125-(0.2*$U125)), IF(L118-(($T118-$L118)/8)<0, 0, L118-(($T118-$L118)/8))) -> 0 | L118: =IF(COUNT($J125:$K134)=1, ($U125-(0.16*$U125)), MIN($U125:$V134)) -> 0 | M118: =IF(COUNT($J125:$K134)=1, ($U125-(0.12*$U125)), (L118+($T118-$L118)/8)) -> 0 | N118: =IF(COUNT($J125:$K134)=1, ($U125-(0.08*$U125)), (M118+($T118-$L118)/8)) -> 0 | O118: =IF(COUNT($J125:$K134)=1, ($U125-(0.04*$U125)), (N118+($T118-$L118)/8)) -> 0 | P118: =IF(COUNT($J125:$K134)= 1, $U125,O118+($T118-$L118)/8) -> 0 | Q118: =IF(COUNT($J125:$K134)=1,($U125+(0.04*$U125)), (P118+($T118-$L118)/8)) -> 0 | R118: =IF(COUNT($J125:$K134)=1, ($U125+(0.08*$U125)), (Q118+($T118-$L118)/8)) -> 0 | S118: =IF(COUNT($J125:$K134)=1, ($U125+(0.12*$U125)), (R118+($T118-$L118)/8)) -> 0 | T118: =IF(COUNT($J125:$K134)=1, ($U125+(0.16*$U125)), MAX($U125:$V134)) -> 0 | U118: =IF(COUNT($J125:$K134)=1, $P$18+(0.2*$U125), T118+(($T118-$L118)/8)) -> 0 | W118: Corresponding Carbon Intensity: | X118: =IFERROR(_xlfn.CHOOSECOLS(_xlfn.CHOOSEROWS(_xlfn._xlws.SORT(_xlfn._xlws.FILTER('C-Background_Data'!$B$11:$N$219, ('C-Background_Data'!$D$11:$D$219 = $E118) * ('C-Background_Data'!$I$11:$I$219 = $X117)), 7, -1),1), 7), _xlfn.IFS($X117="", (MEDIAN(MIN(U125:V134),MAX(U125:V134))), ((L118-($T118-$L118)/8)+(($U118-(L118-($T118-$L118)/8))/100*$X117))<0, 0, ((L118-($T118-$L118)/8)+(($U118-(L118-($T118-$L118)/8))/100*$X117))>=0, (L118-($T118-$L118)/8)+(($U118-(L118-($T118-$L118)/8))/100*$X117))) -> 0 | Y118: =CONCATENATE("tCO2e / ",AH118) -> tCO2e / 0 | Z118: =IFERROR(IF($E118= "Highway Treatment", IFERROR(MAX(_xlfn.CHOOSECOLS(_xlfn._xlws.FILTER('C-Background_Data'!$B$11:$N$219, ('C-Background_Data'!$D$11:$D$219 = $E118) * ('C-Background_Data'!$I$11:$I$219 = $X117)), 7)), $X118), IFERROR(_xlfn.CHOOSECOLS(_xlfn.CHOOSEROWS(_xlfn._xlws.SORT(_xlfn._xlws.FILTER('C-Background_Data'!$B$11:$U$219, ('C-Background_Data'!$D$11:$D$219 = $E118) * ('C-Background_Data'!$I$11:$I$219 = $X117)), 7, -1),1), 18), ((SUM(_xlfn.CHOOSECOLS(_xlfn._xlws.FILTER('C-Background_Data'!$B$11:$U$219, 'C-Background_Data'!$D$11:$D$219 =$E118), 18)))/(SUM(_xlfn.CHOOSECOLS(_xlfn._xlws.FILTER('C-Background_Data'!$B$11:$U$219, 'C-Background_Data'!$D$11:$D$219 =$E118), 7)))*$X118))), "") ->  | AA118: =IFERROR(IF($E118= "Highway Treatment", "", IFERROR(_xlfn.CHOOSECOLS(_xlfn.CHOOSEROWS(_xlfn._xlws.SORT(_xlfn._xlws.FILTER('C-Background_Data'!$B$11:$U$219, ('C-Background_Data'!$D$11:$D$219 = $E118) * ('C-Background_Data'!$I$11:$I$219 = $X117)), 7, -1),1), 19), ((SUM(_xlfn.CHOOSECOLS(_xlfn._xlws.FILTER('C-Background_Data'!$B$11:$U$219, 'C-Background_Data'!$D$11:$D$219 =$E118), 19)))/(SUM(_xlfn.CHOOSECOLS(_xlfn._xlws.FILTER('C-Background_Data'!$B$11:$U$219, 'C-Background_Data'!$D$11:$D$219 =$E118), 7)))*$X118))), "") ->  | AB118: =IFERROR(IF($E118= "Highway Treatment", "", IFERROR(_xlfn.CHOOSECOLS(_xlfn.CHOOSEROWS(_xlfn._xlws.SORT(_xlfn._xlws.FILTER('C-Background_Data'!$B$11:$U$219, ('C-Background_Data'!$D$11:$D$219 = $E118) * ('C-Background_Data'!$I$11:$I$219 = $X117)), 7, -1),1), 20), ((SUM(_xlfn.CHOOSECOLS(_xlfn._xlws.FILTER('C-Background_Data'!$B$11:$U$219, 'C-Background_Data'!$D$11:$D$219 =$E118), 20)))/(SUM(_xlfn.CHOOSECOLS(_xlfn._xlws.FILTER('C-Background_Data'!$B$11:$U$219, 'C-Background_Data'!$D$11:$D$219 =$E118), 7)))*$X118))), "") ->  | AH118: =_xlfn.UNIQUE(_xlfn.CHOOSECOLS(_xlfn._xlws.FILTER('C-Background_Data'!$B$11:$F$219, 'C-Background_Data'!$D$11:$D$219 = 'I-User_Input'!$E118, ""), 5)) -> 0 | AL118: =IF(D118="Highway Treatment", $Z118*$AG118, SUM(AN118:AP118)) -> 0 | AN118: =IF(D118 = "Highway Treatment", "", IFERROR($AG118*Z118, "")) ->  | AO118: =IF(D118 = "Highway Treatment", "", IFERROR($AG118*AA118, "")) ->  | AP118: =IF(D118 = "highway Treatment", "", IFERROR($AG118*AB118, "")) ->  | AT118: =IF($E123 <> "", $E123/$AG118, IFERROR(IFERROR(INDEX('C-Background_Data'!$B$11:$N$219, MATCH('I-User_Input'!$E118&'I-User_Input'!$X117, 'C-Background_Data'!$D$11:$D$219 & 'C-Background_Data'!$I$11:$I$219, 0), 13), (AVERAGE(_xlfn.CHOOSECOLS(_xlfn._xlws.FILTER('C-Background_Data'!$B$11:$N$219, 'C-Background_Data'!$D$11:$D$219 =$E118), 13)))), "")) ->  | AU118: =IFERROR(X118/(AT118/100000), "") ->  | BE118: =SUM(BG118:BI118) -> 0 | BG118: =AL118*0.01 -> 0 | BH118: =BG118*0.25 -> 0 | BI118: =IFERROR('C-B4_Calculation'!$N102*(SUM(AN118:AO118)),0) -> 0 | BK118: =$BE118/60 -> 0 | BL118: 0 | BM118: 0 | BN118: 0 | BO118: 0 | BP118: 0 | BQ118: 0 | BR118: 0 | BS118: 0 | BT118: 0 | BU118: 0 | BV118: 0 | BW118: 0 | BX118: 0 | BY118: 0 | BZ118: 0 | CA118: 0 | CB118: 0 | CC118: 0 | CD118: 0 | CE118: 0 | CF118: 0 | CG118: 0 | CH118: 0 | CI118: 0 | CJ118: 0 | CK118: 0 | CL118: 0 | CM118: 0 | CN118: 0 | CO118: 0 | CP118: 0 | CQ118: =$BE118/60 -> 0 | CR118: 0 | CS118: 0 | CT118: 0 | CU118: 0 | CV118: 0 | CW118: 0 | CX118: 0 | CY118: 0 | CZ118: 0 | DA118: 0 | DB118: 0 | DC118: 0 | DD118: 0 | DE118: 0 | DF118: 0 | DG118: 0 | DH118: 0 | DI118: 0 | DJ118: 0 | DK118: 0 | DL118: 0 | DM118: 0 | DN118: 0 | DO118: 0 | DP118: 0 | DQ118: 0 | DR118: 0 | DS118: 0
J120: Reason for Selection of Carbon Intensity: | AL120: A NOTE ON UNCERTAINTY
J122: Carbon Intensity Guidance | AL122: =_xlfn.XLOOKUP(D118,'C-Project-Specific_Uncertainty'!B:B,'C-Project-Specific_Uncertainty'!C:C) -> 0
D123: Direct Works Cost in 2015 Value (if known): | J123: Benchmarks associated with Intervention type selected: | W123: =IFERROR(IF(INDEX('D-Reference'!$D$10:$D$15, MATCH('I-User_Input'!$E118, 'D-Reference'!$D$10:$D$15,0),0)= 'I-User_Input'!$E118, "For further details, see Diagram", ""),"") -> 
D124: Please insert the Direct Works Cost after using the CPI to adjust to 2015 value.See section 5c of the User Guide. | J124: Approximate Lever Placement | L124: Benchmark ID | O124: =CONCATENATE("Benchmarks (",E118,")") -> Benchmarks () | U124: =IF($D118= "Highway Treatment", CONCATENATE("Module B Carbon Intensity (tCO2e/", $AH118, ")"), CONCATENATE("A1-A5 Carbon Intensity (tCO2e/", $AH118, ")")) -> A1-A5 Carbon Intensity (tCO2e/0) | W124: Description (see Capital Carbon Summary Sheets for full specifications)
J125: =IFERROR(VLOOKUP($M125, 'C-Background_Data'!$B$11:$J$219, 8,FALSE), "") ->  | M125: =IF($E118="", "", _xlfn.CHOOSECOLS(_xlfn._xlws.SORT(_xlfn._xlws.FILTER('C-Background_Data'!$B$11:$I$219, 'C-Background_Data'!$D$11:$D$219='I-User_Input'!$E$118, ""),8,1),1)) ->  | O125: =IFERROR(VLOOKUP($M125, 'C-Background_Data'!$B$11:$J$219, 4,FALSE), "") ->  | U125: =IFERROR(VLOOKUP($M125, 'C-Background_Data'!$B$11:$J$219,7,FALSE), "") ->  | W125: =IFERROR(VLOOKUP($M125, 'C-Background_Data'!$B$11:$J$219,9,FALSE), "") -> 
J126: =IFERROR(VLOOKUP($M126, 'C-Background_Data'!$B$11:$J$219, 8,FALSE), "") ->  | O126: =IFERROR(VLOOKUP($M126, 'C-Background_Data'!$B$11:$J$219, 4,FALSE), "") ->  | U126: =IFERROR(VLOOKUP($M126, 'C-Background_Data'!$B$11:$J$219,7,FALSE), "") ->  | W126: =IFERROR(VLOOKUP($M126, 'C-Background_Data'!$B$11:$J$219,9,FALSE), "") -> 
J127: =IFERROR(VLOOKUP($M127, 'C-Background_Data'!$B$11:$J$219, 8,FALSE), "") ->  | O127: =IFERROR(VLOOKUP($M127, 'C-Background_Data'!$B$11:$J$219, 4,FALSE), "") ->  | U127: =IFERROR(VLOOKUP($M127, 'C-Background_Data'!$B$11:$J$219,7,FALSE), "") ->  | W127: =IFERROR(VLOOKUP($M127, 'C-Background_Data'!$B$11:$J$219,9,FALSE), "") -> 
J128: =IFERROR(VLOOKUP($M128, 'C-Background_Data'!$B$11:$J$219, 8,FALSE), "") ->  | O128: =IFERROR(VLOOKUP($M128, 'C-Background_Data'!$B$11:$J$219, 4,FALSE), "") ->  | U128: =IFERROR(VLOOKUP($M128, 'C-Background_Data'!$B$11:$J$219,7,FALSE), "") ->  | W128: =IFERROR(VLOOKUP($M128, 'C-Background_Data'!$B$11:$J$219,9,FALSE), "") -> 
J129: =IFERROR(VLOOKUP($M129, 'C-Background_Data'!$B$11:$J$219, 8,FALSE), "") ->  | O129: =IFERROR(VLOOKUP($M129, 'C-Background_Data'!$B$11:$J$219, 4,FALSE), "") ->  | U129: =IFERROR(VLOOKUP($M129, 'C-Background_Data'!$B$11:$J$219,7,FALSE), "") ->  | W129: =IFERROR(VLOOKUP($M129, 'C-Background_Data'!$B$11:$J$219,9,FALSE), "") -> 
J130: =IFERROR(VLOOKUP($M130, 'C-Background_Data'!$B$11:$J$219, 8,FALSE), "") ->  | O130: =IFERROR(VLOOKUP($M130, 'C-Background_Data'!$B$11:$J$219, 4,FALSE), "") ->  | U130: =IFERROR(VLOOKUP($M130, 'C-Background_Data'!$B$11:$J$219,7,FALSE), "") ->  | W130: =IFERROR(VLOOKUP($M130, 'C-Background_Data'!$B$11:$J$219,9,FALSE), "") -> 
J131: =IFERROR(VLOOKUP($M131, 'C-Background_Data'!$B$11:$J$219, 8,FALSE), "") ->  | O131: =IFERROR(VLOOKUP($M131, 'C-Background_Data'!$B$11:$J$219, 4,FALSE), "") ->  | U131: =IFERROR(VLOOKUP($M131, 'C-Background_Data'!$B$11:$J$219,7,FALSE), "") ->  | W131: =IFERROR(VLOOKUP($M131, 'C-Background_Data'!$B$11:$J$219,9,FALSE), "") -> 
J132: =IFERROR(VLOOKUP($M132, 'C-Background_Data'!$B$11:$J$219, 8,FALSE), "") ->  | O132: =IFERROR(VLOOKUP($M132, 'C-Background_Data'!$B$11:$J$219, 4,FALSE), "") ->  | U132: =IFERROR(VLOOKUP($M132, 'C-Background_Data'!$B$11:$J$219,7,FALSE), "") ->  | W132: =IFERROR(VLOOKUP($M132, 'C-Background_Data'!$B$11:$J$219,9,FALSE), "") -> 
J133: =IFERROR(VLOOKUP($M133, 'C-Background_Data'!$B$11:$J$219, 8,FALSE), "") ->  | O133: =IFERROR(VLOOKUP($M133, 'C-Background_Data'!$B$11:$J$219, 4,FALSE), "") ->  | U133: =IFERROR(VLOOKUP($M133, 'C-Background_Data'!$B$11:$J$219,7,FALSE), "") ->  | W133: =IFERROR(VLOOKUP($M133, 'C-Background_Data'!$B$11:$J$219,9,FALSE), "") -> 
J134: =IFERROR(VLOOKUP($M134, 'C-Background_Data'!$B$11:$J$219, 8,FALSE), "") ->  | O134: =IFERROR(VLOOKUP($M134, 'C-Background_Data'!$B$11:$J$219, 4,FALSE), "") ->  | U134: =IFERROR(VLOOKUP($M134, 'C-Background_Data'!$B$11:$J$219,7,FALSE), "") ->  | W134: =IFERROR(VLOOKUP($M134, 'C-Background_Data'!$B$11:$J$219,9,FALSE), "") -> 
J135: <<< Expand [+] for details
D139: Name of Intervention: | K139: Carbon Intensity Lever
Z141: =IF(D143="Highway Treatment","Use Stage", "Product Stage") -> Product Stage | AA141: =IF(D143="Highway Treatment","", "Construction Process Stage") -> Construction Process Stage | AL141: =IF(D143="Highway Treatment","Use Stage", "Product & Construction Process Stage") -> Product & Construction Process Stage | AN141: =IF(D143="Highway Treatment","Use Stage", "Product Stage") -> Product Stage | AO141: =IF(D143="Highway Treatment","", "Construction Process Stage") -> Construction Process Stage | BE141: Use stage | BG141: Maintenance | BH141: Repair | BI141: Replacement
D142: Select Category: | E142: Select Intervention Type: | J142: Lever Range | K142: 0 | L142: 10 | M142: 20 | N142: 30 | O142: 40 | P142: 50 | Q142: 60 | R142: 70 | S142: 80 | T142: 90 | U142: 100 | W142: Lever Setting selected: | X142: 50 | Z142: =IF(D143="Highway Treatment","Module B", "A1-A3") -> A1-A3 | AA142: =IF(D143="Highway Treatment","","A4") -> A4 | AB142: =IF(D143="Highway Treatment","","A5") -> A5 | AG142: Quantity | AH142: Units | AL142: =IF(D143="Highway Treatment","MODULE B", "TOTAL A1-A5") -> TOTAL A1-A5 | AN142: =IF(D143="Highway Treatment","Module B", "A1-A3") -> A1-A3 | AO142: =IF(D143="Highway Treatment","", "A4") -> A4 | AP142: =IF(D143="Highway Treatment","", "A5") -> A5 | AT142: =_xlfn.CONCAT("Estimated Direct Works Cost (£ / ", AH143, ")") -> Estimated Direct Works Cost (£ / 0) | AU142: CCR (tCO2e/£100k) | AZ142: Start Month | BA142: End Month | BE142: TOTAL B2, B3 & B4 | BG142: B2 | BH142: B3 | BI142: B4 | BK142: =_xlfn.IFS(VALUE(TEXT($BA143, "m"))<12, VALUE(TEXT($BA143, "yyyy")), VALUE(TEXT($BA143, "m"))=12, VALUE(TEXT($BA143, "yyyy"))+1) -> 1900 | BL142: =IFERROR(IF(BK142 = VALUE(TEXT($BA143, "yyyy"))+60,"", BK142+1), "") -> 1901 | BM142: 1902 | BN142: 1903 | BO142: 1904 | BP142: 1905 | BQ142: 1906 | BR142: 1907 | BS142: 1908 | BT142: 1909 | BU142: 1910 | BV142: 1911 | BW142: 1912 | BX142: 1913 | BY142: 1914 | BZ142: 1915 | CA142: 1916 | CB142: 1917 | CC142: 1918 | CD142: 1919 | CE142: 1920 | CF142: 1921 | CG142: 1922 | CH142: 1923 | CI142: 1924 | CJ142: 1925 | CK142: 1926 | CL142: 1927 | CM142: 1928 | CN142: 1929 | CO142: 1930 | CP142: 1931 | CQ142: 1932 | CR142: =IFERROR(IF(CQ142 = VALUE(TEXT($BA143, "yyyy"))+60,"", CQ142+1), "") -> 1933 | CS142: 1934 | CT142: 1935 | CU142: 1936 | CV142: 1937 | CW142: 1938 | CX142: 1939 | CY142: 1940 | CZ142: 1941 | DA142: 1942 | DB142: 1943 | DC142: 1944 | DD142: 1945 | DE142: 1946 | DF142: 1947 | DG142: 1948 | DH142: 1949 | DI142: 1950 | DJ142: 1951 | DK142: 1952 | DL142: 1953 | DM142: 1954 | DN142: 1955 | DO142: 1956 | DP142: 1957 | DQ142: 1958 | DR142: 1959 | DS142: 1960 | DT142: =IFERROR(IF(DS142 = VALUE(TEXT($BA143, "yyyy"))+60,"", DS142+1), "") ->  | DU142: =IFERROR(IF(DT142 = VALUE(TEXT($BA143, "yyyy"))+60,"", DT142+1), "") ->  | DV142: =IFERROR(IF(DU142 = VALUE(TEXT($BA143, "yyyy"))+60,"", DU142+1), "") ->  | DW142: =IFERROR(IF(DV142 = VALUE(TEXT($BA143, "yyyy"))+60,"", DV142+1), "") ->  | DX142: =IFERROR(IF(DW142 = VALUE(TEXT($BA143, "yyyy"))+60,"", DW142+1), "") ->  | DY142: =IFERROR(IF(DX142 = VALUE(TEXT($BA143, "yyyy"))+60,"", DX142+1), "") ->  | DZ142: =IFERROR(IF(DY142 = VALUE(TEXT($BA143, "yyyy"))+60,"", DY142+1), "") ->  | EA142: =IFERROR(IF(DZ142 = VALUE(TEXT($BA143, "yyyy"))+60,"", DZ142+1), "") ->  | EB142: =IFERROR(IF(EA142 = VALUE(TEXT($BA143, "yyyy"))+60,"", EA142+1), "") ->  | EC142: =IFERROR(IF(EB142 = VALUE(TEXT($BA143, "yyyy"))+60,"", EB142+1), "") ->  | ED142: =IFERROR(IF(EC142 = VALUE(TEXT($BA143, "yyyy"))+60,"", EC142+1), "") ->  | EE142: =IFERROR(IF(ED142 = VALUE(TEXT($BA143, "yyyy"))+60,"", ED142+1), "") ->  | EF142: =IFERROR(IF(EE142 = VALUE(TEXT($BA143, "yyyy"))+60,"", EE142+1), "") ->  | EG142: =IFERROR(IF(EF142 = VALUE(TEXT($BA143, "yyyy"))+60,"", EF142+1), "") ->  | EH142: =IFERROR(IF(EG142 = VALUE(TEXT($BA143, "yyyy"))+60,"", EG142+1), "") ->  | EI142: =IFERROR(IF(EH142 = VALUE(TEXT($BA143, "yyyy"))+60,"", EH142+1), "") ->  | EJ142: =IFERROR(IF(EI142 = VALUE(TEXT($BA143, "yyyy"))+60,"", EI142+1), "") -> 
J143: Carbon Intensity Range | K143: =IF(COUNT($J150:$K159)=1, ($U150-(0.2*$U150)), IF(L143-(($T143-$L143)/8)<0, 0, L143-(($T143-$L143)/8))) -> 0 | L143: =IF(COUNT($J150:$K159)=1, ($U150-(0.16*$U150)), MIN($U150:$V159)) -> 0 | M143: =IF(COUNT($J150:$K159)=1, ($U150-(0.12*$U150)), (L143+($T143-$L143)/8)) -> 0 | N143: =IF(COUNT($J150:$K159)=1, ($U150-(0.08*$U150)), (M143+($T143-$L143)/8)) -> 0 | O143: =IF(COUNT($J150:$K159)=1, ($U150-(0.04*$U150)), (N143+($T143-$L143)/8)) -> 0 | P143: =IF(COUNT($J150:$K159)= 1, $U150,O143+($T143-$L143)/8) -> 0 | Q143: =IF(COUNT($J150:$K159)=1,($U150+(0.04*$U150)), (P143+($T143-$L143)/8)) -> 0 | R143: =IF(COUNT($J150:$K159)=1, ($U150+(0.08*$U150)), (Q143+($T143-$L143)/8)) -> 0 | S143: =IF(COUNT($J150:$K159)=1, ($U150+(0.12*$U150)), (R143+($T143-$L143)/8)) -> 0 | T143: =IF(COUNT($J150:$K159)=1, ($U150+(0.16*$U150)), MAX($U150:$V159)) -> 0 | U143: =IF(COUNT($J150:$K159)=1, $P143+(0.2*$U150), T143+(($T143-$L143)/8)) -> 0 | W143: Corresponding Carbon Intensity: | X143: =IFERROR(_xlfn.CHOOSECOLS(_xlfn.CHOOSEROWS(_xlfn._xlws.SORT(_xlfn._xlws.FILTER('C-Background_Data'!$B$11:$N$219, ('C-Background_Data'!$D$11:$D$219 = $E143) * ('C-Background_Data'!$I$11:$I$219 = $X142)), 7, -1),1), 7), _xlfn.IFS($X142="", (MEDIAN(MIN(U150:V159),MAX(U150:V159))), ((L143-($T143-$L143)/8)+(($U143-(L143-($T143-$L143)/8))/100*$X142))<0, 0, ((L143-($T143-$L143)/8)+(($U143-(L143-($T143-$L143)/8))/100*$X142))>=0, (L143-($T143-$L143)/8)+(($U143-(L143-($T143-$L143)/8))/100*$X142))) -> 0 | Y143: =CONCATENATE("tCO2e / ",AH143) -> tCO2e / 0 | Z143: =IFERROR(IF($E143= "Highway Treatment", IFERROR(MAX(_xlfn.CHOOSECOLS(_xlfn._xlws.FILTER('C-Background_Data'!$B$11:$N$219, ('C-Background_Data'!$D$11:$D$219 = $E143) * ('C-Background_Data'!$I$11:$I$219 = $X142)), 7)), $X143), IFERROR(_xlfn.CHOOSECOLS(_xlfn.CHOOSEROWS(_xlfn._xlws.SORT(_xlfn._xlws.FILTER('C-Background_Data'!$B$11:$U$219, ('C-Background_Data'!$D$11:$D$219 = $E143) * ('C-Background_Data'!$I$11:$I$219 = $X142)), 7, -1),1), 18), ((SUM(_xlfn.CHOOSECOLS(_xlfn._xlws.FILTER('C-Background_Data'!$B$11:$U$219, 'C-Background_Data'!$D$11:$D$219 =$E143), 18)))/(SUM(_xlfn.CHOOSECOLS(_xlfn._xlws.FILTER('C-Background_Data'!$B$11:$U$219, 'C-Background_Data'!$D$11:$D$219 =$E143), 7)))*$X143))), "") ->  | AA143: =IFERROR(IF($E143= "Highway Treatment", "", IFERROR(_xlfn.CHOOSECOLS(_xlfn.CHOOSEROWS(_xlfn._xlws.SORT(_xlfn._xlws.FILTER('C-Background_Data'!$B$11:$U$219, ('C-Background_Data'!$D$11:$D$219 = $E143) * ('C-Background_Data'!$I$11:$I$219 = $X142)), 7, -1),1), 19), ((SUM(_xlfn.CHOOSECOLS(_xlfn._xlws.FILTER('C-Background_Data'!$B$11:$U$219, 'C-Background_Data'!$D$11:$D$219 =$E143), 19)))/(SUM(_xlfn.CHOOSECOLS(_xlfn._xlws.FILTER('C-Background_Data'!$B$11:$U$219, 'C-Background_Data'!$D$11:$D$219 =$E143), 7)))*$X143))), "") ->  | AB143: =IFERROR(IF($E143= "Highway Treatment", "", IFERROR(_xlfn.CHOOSECOLS(_xlfn.CHOOSEROWS(_xlfn._xlws.SORT(_xlfn._xlws.FILTER('C-Background_Data'!$B$11:$U$219, ('C-Background_Data'!$D$11:$D$219 = $E143) * ('C-Background_Data'!$I$11:$I$219 = $X142)), 7, -1),1), 20), ((SUM(_xlfn.CHOOSECOLS(_xlfn._xlws.FILTER('C-Background_Data'!$B$11:$U$219, 'C-Background_Data'!$D$11:$D$219 =$E143), 20)))/(SUM(_xlfn.CHOOSECOLS(_xlfn._xlws.FILTER('C-Background_Data'!$B$11:$U$219, 'C-Background_Data'!$D$11:$D$219 =$E143), 7)))*$X143))), "") ->  | AH143: =_xlfn.UNIQUE(_xlfn.CHOOSECOLS(_xlfn._xlws.FILTER('C-Background_Data'!$B$11:$F$219, 'C-Background_Data'!$D$11:$D$219 = 'I-User_Input'!$E143, ""), 5)) -> 0 | AL143: =IF(D143="Highway Treatment", $Z143*$AG143, SUM(AN143:AP143)) -> 0 | AN143: =IF(D143 = "Highway Treatment", "", IFERROR($AG143*Z143, "")) ->  | AO143: =IF(D143 = "Highway Treatment", "", IFERROR($AG143*AA143, "")) ->  | AP143: =IF(D143 = "highway Treatment", "", IFERROR($AG143*AB143, "")) ->  | AT143: =IF($E148 <> "", $E148/$AG143, IFERROR(IFERROR(INDEX('C-Background_Data'!$B$11:$N$219, MATCH('I-User_Input'!$E143&'I-User_Input'!$X142, 'C-Background_Data'!$D$11:$D$219 & 'C-Background_Data'!$I$11:$I$219, 0), 13), (AVERAGE(_xlfn.CHOOSECOLS(_xlfn._xlws.FILTER('C-Background_Data'!$B$11:$N$219, 'C-Background_Data'!$D$11:$D$219 =$E143), 13)))), "")) ->  | AU143: =IFERROR(X143/(AT143/100000), "") ->  | BE143: =SUM(BG143:BI143) -> 0 | BG143: =AL143*0.01 -> 0 | BH143: =BG143*0.25 -> 0 | BI143: =IFERROR('C-B4_Calculation'!$N125*(SUM(AN143:AO143)),0) -> 0 | BK143: =$BE143/60 -> 0 | BL143: 0 | BM143: 0 | BN143: 0 | BO143: 0 | BP143: 0 | BQ143: 0 | BR143: 0 | BS143: 0 | BT143: 0 | BU143: 0 | BV143: 0 | BW143: 0 | BX143: 0 | BY143: 0 | BZ143: 0 | CA143: 0 | CB143: 0 | CC143: 0 | CD143: 0 | CE143: 0 | CF143: 0 | CG143: 0 | CH143: 0 | CI143: 0 | CJ143: 0 | CK143: 0 | CL143: 0 | CM143: 0 | CN143: 0 | CO143: 0 | CP143: 0 | CQ143: =$BE143/60 -> 0 | CR143: 0 | CS143: 0 | CT143: 0 | CU143: 0 | CV143: 0 | CW143: 0 | CX143: 0 | CY143: 0 | CZ143: 0 | DA143: 0 | DB143: 0 | DC143: 0 | DD143: 0 | DE143: 0 | DF143: 0 | DG143: 0 | DH143: 0 | DI143: 0 | DJ143: 0 | DK143: 0 | DL143: 0 | DM143: 0 | DN143: 0 | DO143: 0 | DP143: 0 | DQ143: 0 | DR143: 0 | DS143: 0
J145: Reason for Selection of Carbon Intensity: | AL145: A NOTE ON UNCERTAINTY
J147: Carbon Intensity Guidance | AL147: =_xlfn.XLOOKUP(D143,'C-Project-Specific_Uncertainty'!B:B,'C-Project-Specific_Uncertainty'!C:C) -> 0
D148: Direct Works Cost in 2015 Value (if known): | J148: Benchmarks associated with Intervention type selected: | W148: =IFERROR(IF(INDEX('D-Reference'!$D$10:$D$15, MATCH('I-User_Input'!$E143, 'D-Reference'!$D$10:$D$15,0),0)= 'I-User_Input'!$E143, "For further details, see Diagram", ""),"") -> 
D149: Please insert the Direct Works Cost after using the CPI to adjust to 2015 value.See section 5c of the User Guide. | J149: Approximate Lever Placement | L149: Benchmark ID | O149: =CONCATENATE("Benchmarks (",E143,")") -> Benchmarks () | U149: =IF($D143= "Highway Treatment", CONCATENATE("Module B Carbon Intensity (tCO2e/", $AH143, ")"), CONCATENATE("A1-A5 Carbon Intensity (tCO2e/", $AH143, ")")) -> A1-A5 Carbon Intensity (tCO2e/0) | W149: Description (see Capital Carbon Summary Sheets for full specifications)
J150: =IFERROR(VLOOKUP($M150, 'C-Background_Data'!$B$11:$J$219, 8,FALSE), "") ->  | M150: =IF($E143="", "", _xlfn.CHOOSECOLS(_xlfn._xlws.SORT(_xlfn._xlws.FILTER('C-Background_Data'!$B$11:$I$219, 'C-Background_Data'!$D$11:$D$219='I-User_Input'!$E$143, ""),8,1),1)) ->  | O150: =IFERROR(VLOOKUP($M150, 'C-Background_Data'!$B$11:$J$219, 4,FALSE), "") ->  | U150: =IFERROR(VLOOKUP($M150, 'C-Background_Data'!$B$11:$J$219,7,FALSE), "") ->  | W150: =IFERROR(VLOOKUP($M150, 'C-Background_Data'!$B$11:$J$219,9,FALSE), "") -> 
J151: =IFERROR(VLOOKUP($M151, 'C-Background_Data'!$B$11:$J$219, 8,FALSE), "") ->  | O151: =IFERROR(VLOOKUP($M151, 'C-Background_Data'!$B$11:$J$219, 4,FALSE), "") ->  | U151: =IFERROR(VLOOKUP($M151, 'C-Background_Data'!$B$11:$J$219,7,FALSE), "") ->  | W151: =IFERROR(VLOOKUP($M151, 'C-Background_Data'!$B$11:$J$219,9,FALSE), "") -> 
J152: =IFERROR(VLOOKUP($M152, 'C-Background_Data'!$B$11:$J$219, 8,FALSE), "") ->  | O152: =IFERROR(VLOOKUP($M152, 'C-Background_Data'!$B$11:$J$219, 4,FALSE), "") ->  | U152: =IFERROR(VLOOKUP($M152, 'C-Background_Data'!$B$11:$J$219,7,FALSE), "") ->  | W152: =IFERROR(VLOOKUP($M152, 'C-Background_Data'!$B$11:$J$219,9,FALSE), "") -> 
J153: =IFERROR(VLOOKUP($M153, 'C-Background_Data'!$B$11:$J$219, 8,FALSE), "") ->  | O153: =IFERROR(VLOOKUP($M153, 'C-Background_Data'!$B$11:$J$219, 4,FALSE), "") ->  | U153: =IFERROR(VLOOKUP($M153, 'C-Background_Data'!$B$11:$J$219,7,FALSE), "") ->  | W153: =IFERROR(VLOOKUP($M153, 'C-Background_Data'!$B$11:$J$219,9,FALSE), "") -> 
J154: =IFERROR(VLOOKUP($M154, 'C-Background_Data'!$B$11:$J$219, 8,FALSE), "") ->  | O154: =IFERROR(VLOOKUP($M154, 'C-Background_Data'!$B$11:$J$219, 4,FALSE), "") ->  | U154: =IFERROR(VLOOKUP($M154, 'C-Background_Data'!$B$11:$J$219,7,FALSE), "") ->  | W154: =IFERROR(VLOOKUP($M154, 'C-Background_Data'!$B$11:$J$219,9,FALSE), "") -> 
J155: =IFERROR(VLOOKUP($M155, 'C-Background_Data'!$B$11:$J$219, 8,FALSE), "") ->  | O155: =IFERROR(VLOOKUP($M155, 'C-Background_Data'!$B$11:$J$219, 4,FALSE), "") ->  | U155: =IFERROR(VLOOKUP($M155, 'C-Background_Data'!$B$11:$J$219,7,FALSE), "") ->  | W155: =IFERROR(VLOOKUP($M155, 'C-Background_Data'!$B$11:$J$219,9,FALSE), "") -> 
J156: =IFERROR(VLOOKUP($M156, 'C-Background_Data'!$B$11:$J$219, 8,FALSE), "") ->  | O156: =IFERROR(VLOOKUP($M156, 'C-Background_Data'!$B$11:$J$219, 4,FALSE), "") ->  | U156: =IFERROR(VLOOKUP($M156, 'C-Background_Data'!$B$11:$J$219,7,FALSE), "") ->  | W156: =IFERROR(VLOOKUP($M156, 'C-Background_Data'!$B$11:$J$219,9,FALSE), "") -> 
J157: =IFERROR(VLOOKUP($M157, 'C-Background_Data'!$B$11:$J$219, 8,FALSE), "") ->  | O157: =IFERROR(VLOOKUP($M157, 'C-Background_Data'!$B$11:$J$219, 4,FALSE), "") ->  | U157: =IFERROR(VLOOKUP($M157, 'C-Background_Data'!$B$11:$J$219,7,FALSE), "") ->  | W157: =IFERROR(VLOOKUP($M157, 'C-Background_Data'!$B$11:$J$219,9,FALSE), "") -> 
J158: =IFERROR(VLOOKUP($M158, 'C-Background_Data'!$B$11:$J$219, 8,FALSE), "") ->  | O158: =IFERROR(VLOOKUP($M158, 'C-Background_Data'!$B$11:$J$219, 4,FALSE), "") ->  | U158: =IFERROR(VLOOKUP($M158, 'C-Background_Data'!$B$11:$J$219,7,FALSE), "") ->  | W158: =IFERROR(VLOOKUP($M158, 'C-Background_Data'!$B$11:$J$219,9,FALSE), "") -> 
J159: =IFERROR(VLOOKUP($M159, 'C-Background_Data'!$B$11:$J$219, 8,FALSE), "") ->  | O159: =IFERROR(VLOOKUP($M159, 'C-Background_Data'!$B$11:$J$219, 4,FALSE), "") ->  | U159: =IFERROR(VLOOKUP($M159, 'C-Background_Data'!$B$11:$J$219,7,FALSE), "") ->  | W159: =IFERROR(VLOOKUP($M159, 'C-Background_Data'!$B$11:$J$219,9,FALSE), "") -> 
J160: <<< Expand [+] for details
D164: Name of Intervention: | K164: Carbon Intensity Lever
Z166: =IF(D168="Highway Treatment","Use Stage", "Product Stage") -> Product Stage | AA166: =IF(D168="Highway Treatment","", "Construction Process Stage") -> Construction Process Stage | AL166: =IF(D168="Highway Treatment","Use Stage", "Product & Construction Process Stage") -> Product & Construction Process Stage | AN166: =IF(D168="Highway Treatment","Use Stage", "Product Stage") -> Product Stage | AO166: =IF(D168="Highway Treatment","", "Construction Process Stage") -> Construction Process Stage | BE166: Use stage | BG166: Maintenance | BH166: Repair | BI166: Replacement
D167: Select Category: | E167: Select Intervention Type: | J167: Lever Range | K167: 0 | L167: 10 | M167: 20 | N167: 30 | O167: 40 | P167: 50 | Q167: 60 | R167: 70 | S167: 80 | T167: 90 | U167: 100 | W167: Lever Setting selected: | X167: 50 | Z167: =IF(D168="Highway Treatment","Module B", "A1-A3") -> A1-A3 | AA167: =IF(D168="Highway Treatment","","A4") -> A4 | AB167: =IF(D168="Highway Treatment","","A5") -> A5 | AG167: Quantity | AH167: Units | AL167: =IF(D168="Highway Treatment","MODULE B", "TOTAL A1-A5") -> TOTAL A1-A5 | AN167: =IF(D168="Highway Treatment","Module B", "A1-A3") -> A1-A3 | AO167: =IF(D168="Highway Treatment","", "A4") -> A4 | AP167: =IF(D168="Highway Treatment","", "A5") -> A5 | AT167: =_xlfn.CONCAT("Estimated Direct Works Cost (£ / ", AH168, ")") -> Estimated Direct Works Cost (£ / 0) | AU167: CCR (tCO2e/£100k) | AZ167: Start Month | BA167: End Month | BE167: TOTAL B2, B3 & B4 | BG167: B2 | BH167: B3 | BI167: B4 | BK167: =_xlfn.IFS(VALUE(TEXT($BA168, "m"))<12, VALUE(TEXT($BA168, "yyyy")), VALUE(TEXT($BA168, "m"))=12, VALUE(TEXT($BA168, "yyyy"))+1) -> 1900 | BL167: =IFERROR(IF(BK167 = VALUE(TEXT($BA168, "yyyy"))+60,"", BK167+1), "") -> 1901 | BM167: 1902 | BN167: 1903 | BO167: 1904 | BP167: 1905 | BQ167: 1906 | BR167: 1907 | BS167: 1908 | BT167: 1909 | BU167: 1910 | BV167: 1911 | BW167: 1912 | BX167: 1913 | BY167: 1914 | BZ167: 1915 | CA167: 1916 | CB167: 1917 | CC167: 1918 | CD167: 1919 | CE167: 1920 | CF167: 1921 | CG167: 1922 | CH167: 1923 | CI167: 1924 | CJ167: 1925 | CK167: 1926 | CL167: 1927 | CM167: 1928 | CN167: 1929 | CO167: 1930 | CP167: 1931 | CQ167: 1932 | CR167: =IFERROR(IF(CQ167 = VALUE(TEXT($BA168, "yyyy"))+60,"", CQ167+1), "") -> 1933 | CS167: 1934 | CT167: 1935 | CU167: 1936 | CV167: 1937 | CW167: 1938 | CX167: 1939 | CY167: 1940 | CZ167: 1941 | DA167: 1942 | DB167: 1943 | DC167: 1944 | DD167: 1945 | DE167: 1946 | DF167: 1947 | DG167: 1948 | DH167: 1949 | DI167: 1950 | DJ167: 1951 | DK167: 1952 | DL167: 1953 | DM167: 1954 | DN167: 1955 | DO167: 1956 | DP167: 1957 | DQ167: 1958 | DR167: 1959 | DS167: 1960 | DT167: =IFERROR(IF(DS167 = VALUE(TEXT($BA168, "yyyy"))+60,"", DS167+1), "") ->  | DU167: =IFERROR(IF(DT167 = VALUE(TEXT($BA168, "yyyy"))+60,"", DT167+1), "") ->  | DV167: =IFERROR(IF(DU167 = VALUE(TEXT($BA168, "yyyy"))+60,"", DU167+1), "") ->  | DW167: =IFERROR(IF(DV167 = VALUE(TEXT($BA168, "yyyy"))+60,"", DV167+1), "") ->  | DX167: =IFERROR(IF(DW167 = VALUE(TEXT($BA168, "yyyy"))+60,"", DW167+1), "") ->  | DY167: =IFERROR(IF(DX167 = VALUE(TEXT($BA168, "yyyy"))+60,"", DX167+1), "") ->  | DZ167: =IFERROR(IF(DY167 = VALUE(TEXT($BA168, "yyyy"))+60,"", DY167+1), "") ->  | EA167: =IFERROR(IF(DZ167 = VALUE(TEXT($BA168, "yyyy"))+60,"", DZ167+1), "") ->  | EB167: =IFERROR(IF(EA167 = VALUE(TEXT($BA168, "yyyy"))+60,"", EA167+1), "") ->  | EC167: =IFERROR(IF(EB167 = VALUE(TEXT($BA168, "yyyy"))+60,"", EB167+1), "") ->  | ED167: =IFERROR(IF(EC167 = VALUE(TEXT($BA168, "yyyy"))+60,"", EC167+1), "") ->  | EE167: =IFERROR(IF(ED167 = VALUE(TEXT($BA168, "yyyy"))+60,"", ED167+1), "") ->  | EF167: =IFERROR(IF(EE167 = VALUE(TEXT($BA168, "yyyy"))+60,"", EE167+1), "") ->  | EG167: =IFERROR(IF(EF167 = VALUE(TEXT($BA168, "yyyy"))+60,"", EF167+1), "") ->  | EH167: =IFERROR(IF(EG167 = VALUE(TEXT($BA168, "yyyy"))+60,"", EG167+1), "") ->  | EI167: =IFERROR(IF(EH167 = VALUE(TEXT($BA168, "yyyy"))+60,"", EH167+1), "") ->  | EJ167: =IFERROR(IF(EI167 = VALUE(TEXT($BA168, "yyyy"))+60,"", EI167+1), "") -> 
J168: Carbon Intensity Range | K168: =IF(COUNT($J175:$K184)=1, ($U175-(0.2*$U175)), IF(L168-(($T168-$L168)/8)<0, 0, L168-(($T168-$L168)/8))) -> 0 | L168: =IF(COUNT($J175:$K184)=1, ($U175-(0.16*$U175)), MIN($U175:$V184)) -> 0 | M168: =IF(COUNT($J175:$K184)=1, ($U175-(0.12*$U175)), (L168+($T168-$L168)/8)) -> 0 | N168: =IF(COUNT($J175:$K184)=1, ($U175-(0.08*$U175)), (M168+($T168-$L168)/8)) -> 0 | O168: =IF(COUNT($J175:$K184)=1, ($U175-(0.04*$U175)), (N168+($T168-$L168)/8)) -> 0 | P168: =IF(COUNT($J175:$K184)= 1, $U175,O168+($T168-$L168)/8) -> 0 | Q168: =IF(COUNT($J175:$K184)=1,($U175+(0.04*$U175)), (P168+($T168-$L168)/8)) -> 0 | R168: =IF(COUNT($J175:$K184)=1, ($U175+(0.08*$U175)), (Q168+($T168-$L168)/8)) -> 0 | S168: =IF(COUNT($J175:$K184)=1, ($U175+(0.12*$U175)), (R168+($T168-$L168)/8)) -> 0 | T168: =IF(COUNT($J175:$K184)=1, ($U175+(0.16*$U175)), MAX($U175:$V184)) -> 0 | U168: =IF(COUNT($J175:$K184)=1, $P168+(0.2*$U175), T168+(($T168-$L168)/8)) -> 0 | W168: Corresponding Carbon Intensity: | X168: =IFERROR(_xlfn.CHOOSECOLS(_xlfn.CHOOSEROWS(_xlfn._xlws.SORT(_xlfn._xlws.FILTER('C-Background_Data'!$B$11:$N$219, ('C-Background_Data'!$D$11:$D$219 = $E168) * ('C-Background_Data'!$I$11:$I$219 = $X167)), 7, -1),1), 7), _xlfn.IFS($X167="", (MEDIAN(MIN(U175:V184),MAX(U175:V184))), ((L168-($T168-$L168)/8)+(($U168-(L168-($T168-$L168)/8))/100*$X167))<0, 0, ((L168-($T168-$L168)/8)+(($U168-(L168-($T168-$L168)/8))/100*$X167))>=0, (L168-($T168-$L168)/8)+(($U168-(L168-($T168-$L168)/8))/100*$X167))) -> 0 | Y168: =CONCATENATE("tCO2e / ",AH168) -> tCO2e / 0 | Z168: =IFERROR(IF($E168= "Highway Treatment", IFERROR(MAX(_xlfn.CHOOSECOLS(_xlfn._xlws.FILTER('C-Background_Data'!$B$11:$N$219, ('C-Background_Data'!$D$11:$D$219 = $E168) * ('C-Background_Data'!$I$11:$I$219 = $X167)), 7)), $X168), IFERROR(_xlfn.CHOOSECOLS(_xlfn.CHOOSEROWS(_xlfn._xlws.SORT(_xlfn._xlws.FILTER('C-Background_Data'!$B$11:$U$219, ('C-Background_Data'!$D$11:$D$219 = $E168) * ('C-Background_Data'!$I$11:$I$219 = $X167)), 7, -1),1), 18), ((SUM(_xlfn.CHOOSECOLS(_xlfn._xlws.FILTER('C-Background_Data'!$B$11:$U$219, 'C-Background_Data'!$D$11:$D$219 =$E168), 18)))/(SUM(_xlfn.CHOOSECOLS(_xlfn._xlws.FILTER('C-Background_Data'!$B$11:$U$219, 'C-Background_Data'!$D$11:$D$219 =$E168), 7)))*$X168))), "") ->  | AA168: =IFERROR(IF($E168= "Highway Treatment", "", IFERROR(_xlfn.CHOOSECOLS(_xlfn.CHOOSEROWS(_xlfn._xlws.SORT(_xlfn._xlws.FILTER('C-Background_Data'!$B$11:$U$219, ('C-Background_Data'!$D$11:$D$219 = $E168) * ('C-Background_Data'!$I$11:$I$219 = $X167)), 7, -1),1), 19), ((SUM(_xlfn.CHOOSECOLS(_xlfn._xlws.FILTER('C-Background_Data'!$B$11:$U$219, 'C-Background_Data'!$D$11:$D$219 =$E168), 19)))/(SUM(_xlfn.CHOOSECOLS(_xlfn._xlws.FILTER('C-Background_Data'!$B$11:$U$219, 'C-Background_Data'!$D$11:$D$219 =$E168), 7)))*$X168))), "") ->  | AB168: =IFERROR(IF($E168= "Highway Treatment", "", IFERROR(_xlfn.CHOOSECOLS(_xlfn.CHOOSEROWS(_xlfn._xlws.SORT(_xlfn._xlws.FILTER('C-Background_Data'!$B$11:$U$219, ('C-Background_Data'!$D$11:$D$219 = $E168) * ('C-Background_Data'!$I$11:$I$219 = $X167)), 7, -1),1), 20), ((SUM(_xlfn.CHOOSECOLS(_xlfn._xlws.FILTER('C-Background_Data'!$B$11:$U$219, 'C-Background_Data'!$D$11:$D$219 =$E168), 20)))/(SUM(_xlfn.CHOOSECOLS(_xlfn._xlws.FILTER('C-Background_Data'!$B$11:$U$219, 'C-Background_Data'!$D$11:$D$219 =$E168), 7)))*$X168))), "") ->  | AH168: =_xlfn.UNIQUE(_xlfn.CHOOSECOLS(_xlfn._xlws.FILTER('C-Background_Data'!$B$11:$F$219, 'C-Background_Data'!$D$11:$D$219 = 'I-User_Input'!$E168, ""), 5)) -> 0 | AL168: =IF(D168="Highway Treatment", $Z168*$AG168, SUM(AN168:AP168)) -> 0 | AN168: =IF(D168 = "Highway Treatment", "", IFERROR($AG168*Z168, "")) ->  | AO168: =IF(D168 = "Highway Treatment", "", IFERROR($AG168*AA168, "")) ->  | AP168: =IF(D168 = "highway Treatment", "", IFERROR($AG168*AB168, "")) ->  | AT168: =IF($E173 <> "", $E173/$AG168, IFERROR(IFERROR(INDEX('C-Background_Data'!$B$11:$N$219, MATCH('I-User_Input'!$E168&'I-User_Input'!$X167, 'C-Background_Data'!$D$11:$D$219 & 'C-Background_Data'!$I$11:$I$219, 0), 13), (AVERAGE(_xlfn.CHOOSECOLS(_xlfn._xlws.FILTER('C-Background_Data'!$B$11:$N$219, 'C-Background_Data'!$D$11:$D$219 =$E168), 13)))), "")) ->  | AU168: =IFERROR(X168/(AT168/100000), "") ->  | BE168: =SUM(BG168:BI168) -> 0 | BG168: =AL168*0.01 -> 0 | BH168: =BG168*0.25 -> 0 | BI168: =IFERROR('C-B4_Calculation'!$N148*(SUM(AN168:AO168)),0) -> 0 | BK168: =$BE168/60 -> 0 | BL168: 0 | BM168: 0 | BN168: 0 | BO168: 0 | BP168: 0 | BQ168: 0 | BR168: 0 | BS168: 0 | BT168: 0 | BU168: 0 | BV168: 0 | BW168: 0 | BX168: 0 | BY168: 0 | BZ168: 0 | CA168: 0 | CB168: 0 | CC168: 0 | CD168: 0 | CE168: 0 | CF168: 0 | CG168: 0 | CH168: 0 | CI168: 0 | CJ168: 0 | CK168: 0 | CL168: 0 | CM168: 0 | CN168: 0 | CO168: 0 | CP168: 0 | CQ168: =$BE168/60 -> 0 | CR168: 0 | CS168: 0 | CT168: 0 | CU168: 0 | CV168: 0 | CW168: 0 | CX168: 0 | CY168: 0 | CZ168: 0 | DA168: 0 | DB168: 0 | DC168: 0 | DD168: 0 | DE168: 0 | DF168: 0 | DG168: 0 | DH168: 0 | DI168: 0 | DJ168: 0 | DK168: 0 | DL168: 0 | DM168: 0 | DN168: 0 | DO168: 0 | DP168: 0 | DQ168: 0 | DR168: 0 | DS168: 0
J170: Reason for Selection of Carbon Intensity: | AL170: A NOTE ON UNCERTAINTY
J172: Carbon Intensity Guidance | AL172: =_xlfn.XLOOKUP(D168,'C-Project-Specific_Uncertainty'!B:B,'C-Project-Specific_Uncertainty'!C:C) -> 0
D173: Direct Works Cost in 2015 Value (if known): | J173: Benchmarks associated with Intervention type selected: | W173: =IFERROR(IF(INDEX('D-Reference'!$D$10:$D$15, MATCH('I-User_Input'!$E168, 'D-Reference'!$D$10:$D$15,0),0)= 'I-User_Input'!$E168, "For further details, see Diagram", ""),"") -> 
D174: Please insert the Direct Works Cost after using the CPI to adjust to 2015 value.See section 5c of the User Guide. | J174: Approximate Lever Placement | L174: Benchmark ID | O174: =CONCATENATE("Benchmarks (",E168,")") -> Benchmarks () | U174: =IF($D168= "Highway Treatment", CONCATENATE("Module B Carbon Intensity (tCO2e/", $AH168, ")"), CONCATENATE("A1-A5 Carbon Intensity (tCO2e/", $AH168, ")")) -> A1-A5 Carbon Intensity (tCO2e/0) | W174: Description (see Capital Carbon Summary Sheets for full specifications)
J175: =IFERROR(VLOOKUP($M175, 'C-Background_Data'!$B$11:$J$219, 8,FALSE), "") ->  | M175: =IF($E168="", "", _xlfn.CHOOSECOLS(_xlfn._xlws.SORT(_xlfn._xlws.FILTER('C-Background_Data'!$B$11:$I$219, 'C-Background_Data'!$D$11:$D$219='I-User_Input'!$E$168, ""),8,1),1)) ->  | O175: =IFERROR(VLOOKUP($M175, 'C-Background_Data'!$B$11:$J$219, 4,FALSE), "") ->  | U175: =IFERROR(VLOOKUP($M175, 'C-Background_Data'!$B$11:$J$219,7,FALSE), "") ->  | W175: =IFERROR(VLOOKUP($M175, 'C-Background_Data'!$B$11:$J$219,9,FALSE), "") -> 
J176: =IFERROR(VLOOKUP($M176, 'C-Background_Data'!$B$11:$J$219, 8,FALSE), "") ->  | O176: =IFERROR(VLOOKUP($M176, 'C-Background_Data'!$B$11:$J$219, 4,FALSE), "") ->  | U176: =IFERROR(VLOOKUP($M176, 'C-Background_Data'!$B$11:$J$219,7,FALSE), "") ->  | W176: =IFERROR(VLOOKUP($M176, 'C-Background_Data'!$B$11:$J$219,9,FALSE), "") -> 
J177: =IFERROR(VLOOKUP($M177, 'C-Background_Data'!$B$11:$J$219, 8,FALSE), "") ->  | O177: =IFERROR(VLOOKUP($M177, 'C-Background_Data'!$B$11:$J$219, 4,FALSE), "") ->  | U177: =IFERROR(VLOOKUP($M177, 'C-Background_Data'!$B$11:$J$219,7,FALSE), "") ->  | W177: =IFERROR(VLOOKUP($M177, 'C-Background_Data'!$B$11:$J$219,9,FALSE), "") -> 
J178: =IFERROR(VLOOKUP($M178, 'C-Background_Data'!$B$11:$J$219, 8,FALSE), "") ->  | O178: =IFERROR(VLOOKUP($M178, 'C-Background_Data'!$B$11:$J$219, 4,FALSE), "") ->  | U178: =IFERROR(VLOOKUP($M178, 'C-Background_Data'!$B$11:$J$219,7,FALSE), "") ->  | W178: =IFERROR(VLOOKUP($M178, 'C-Background_Data'!$B$11:$J$219,9,FALSE), "") -> 
J179: =IFERROR(VLOOKUP($M179, 'C-Background_Data'!$B$11:$J$219, 8,FALSE), "") ->  | O179: =IFERROR(VLOOKUP($M179, 'C-Background_Data'!$B$11:$J$219, 4,FALSE), "") ->  | U179: =IFERROR(VLOOKUP($M179, 'C-Background_Data'!$B$11:$J$219,7,FALSE), "") ->  | W179: =IFERROR(VLOOKUP($M179, 'C-Background_Data'!$B$11:$J$219,9,FALSE), "") -> 
J180: =IFERROR(VLOOKUP($M180, 'C-Background_Data'!$B$11:$J$219, 8,FALSE), "") ->  | O180: =IFERROR(VLOOKUP($M180, 'C-Background_Data'!$B$11:$J$219, 4,FALSE), "") ->  | U180: =IFERROR(VLOOKUP($M180, 'C-Background_Data'!$B$11:$J$219,7,FALSE), "") ->  | W180: =IFERROR(VLOOKUP($M180, 'C-Background_Data'!$B$11:$J$219,9,FALSE), "") -> 
J181: =IFERROR(VLOOKUP($M181, 'C-Background_Data'!$B$11:$J$219, 8,FALSE), "") ->  | O181: =IFERROR(VLOOKUP($M181, 'C-Background_Data'!$B$11:$J$219, 4,FALSE), "") ->  | U181: =IFERROR(VLOOKUP($M181, 'C-Background_Data'!$B$11:$J$219,7,FALSE), "") ->  | W181: =IFERROR(VLOOKUP($M181, 'C-Background_Data'!$B$11:$J$219,9,FALSE), "") -> 
J182: =IFERROR(VLOOKUP($M182, 'C-Background_Data'!$B$11:$J$219, 8,FALSE), "") ->  | O182: =IFERROR(VLOOKUP($M182, 'C-Background_Data'!$B$11:$J$219, 4,FALSE), "") ->  | U182: =IFERROR(VLOOKUP($M182, 'C-Background_Data'!$B$11:$J$219,7,FALSE), "") ->  | W182: =IFERROR(VLOOKUP($M182, 'C-Background_Data'!$B$11:$J$219,9,FALSE), "") -> 
J183: =IFERROR(VLOOKUP($M183, 'C-Background_Data'!$B$11:$J$219, 8,FALSE), "") ->  | O183: =IFERROR(VLOOKUP($M183, 'C-Background_Data'!$B$11:$J$219, 4,FALSE), "") ->  | U183: =IFERROR(VLOOKUP($M183, 'C-Background_Data'!$B$11:$J$219,7,FALSE), "") ->  | W183: =IFERROR(VLOOKUP($M183, 'C-Background_Data'!$B$11:$J$219,9,FALSE), "") -> 
J184: =IFERROR(VLOOKUP($M184, 'C-Background_Data'!$B$11:$J$219, 8,FALSE), "") ->  | O184: =IFERROR(VLOOKUP($M184, 'C-Background_Data'!$B$11:$J$219, 4,FALSE), "") ->  | U184: =IFERROR(VLOOKUP($M184, 'C-Background_Data'!$B$11:$J$219,7,FALSE), "") ->  | W184: =IFERROR(VLOOKUP($M184, 'C-Background_Data'!$B$11:$J$219,9,FALSE), "") -> 
J185: <<< Expand [+] for details
D189: Name of Intervention: | K189: Carbon Intensity Lever
Z191: =IF(D193="Highway Treatment","Use Stage", "Product Stage") -> Product Stage | AA191: =IF(D193="Highway Treatment","", "Construction Process Stage") -> Construction Process Stage | AL191: =IF(D193="Highway Treatment","Use Stage", "Product & Construction Process Stage") -> Product & Construction Process Stage | AN191: =IF(D193="Highway Treatment","Use Stage", "Product Stage") -> Product Stage | AO191: =IF(D193="Highway Treatment","", "Construction Process Stage") -> Construction Process Stage | BE191: Use stage | BG191: Maintenance | BH191: Repair | BI191: Replacement
D192: Select Category: | E192: Select Intervention Type: | J192: Lever Range | K192: 0 | L192: 10 | M192: 20 | N192: 30 | O192: 40 | P192: 50 | Q192: 60 | R192: 70 | S192: 80 | T192: 90 | U192: 100 | W192: Lever Setting selected: | X192: 50 | Z192: =IF(D193="Highway Treatment","Module B", "A1-A3") -> A1-A3 | AA192: =IF(D193="Highway Treatment","","A4") -> A4 | AB192: =IF(D193="Highway Treatment","","A5") -> A5 | AG192: Quantity | AH192: Units | AL192: =IF(D193="Highway Treatment","MODULE B", "TOTAL A1-A5") -> TOTAL A1-A5 | AN192: =IF(D193="Highway Treatment","Module B", "A1-A3") -> A1-A3 | AO192: =IF(D193="Highway Treatment","", "A4") -> A4 | AP192: =IF(D193="Highway Treatment","", "A5") -> A5 | AT192: =_xlfn.CONCAT("Estimated Direct Works Cost (£ / ", AH193, ")") -> Estimated Direct Works Cost (£ / 0) | AU192: CCR (tCO2e/£100k) | AZ192: Start Month | BA192: End Month | BE192: TOTAL B2, B3 & B4 | BG192: B2 | BH192: B3 | BI192: B4 | BK192: =_xlfn.IFS(VALUE(TEXT($BA193, "m"))<12, VALUE(TEXT($BA193, "yyyy")), VALUE(TEXT($BA193, "m"))=12, VALUE(TEXT($BA193, "yyyy"))+1) -> 1900 | BL192: =IFERROR(IF(BK192 = VALUE(TEXT($BA193, "yyyy"))+60,"", BK192+1), "") -> 1901 | BM192: 1902 | BN192: 1903 | BO192: 1904 | BP192: 1905 | BQ192: 1906 | BR192: 1907 | BS192: 1908 | BT192: 1909 | BU192: 1910 | BV192: 1911 | BW192: 1912 | BX192: 1913 | BY192: 1914 | BZ192: 1915 | CA192: 1916 | CB192: 1917 | CC192: 1918 | CD192: 1919 | CE192: 1920 | CF192: 1921 | CG192: 1922 | CH192: 1923 | CI192: 1924 | CJ192: 1925 | CK192: 1926 | CL192: 1927 | CM192: 1928 | CN192: 1929 | CO192: 1930 | CP192: 1931 | CQ192: 1932 | CR192: =IFERROR(IF(CQ192 = VALUE(TEXT($BA193, "yyyy"))+60,"", CQ192+1), "") -> 1933 | CS192: 1934 | CT192: 1935 | CU192: 1936 | CV192: 1937 | CW192: 1938 | CX192: 1939 | CY192: 1940 | CZ192: 1941 | DA192: 1942 | DB192: 1943 | DC192: 1944 | DD192: 1945 | DE192: 1946 | DF192: 1947 | DG192: 1948 | DH192: 1949 | DI192: 1950 | DJ192: 1951 | DK192: 1952 | DL192: 1953 | DM192: 1954 | DN192: 1955 | DO192: 1956 | DP192: 1957 | DQ192: 1958 | DR192: 1959 | DS192: 1960 | DT192: =IFERROR(IF(DS192 = VALUE(TEXT($BA193, "yyyy"))+60,"", DS192+1), "") ->  | DU192: =IFERROR(IF(DT192 = VALUE(TEXT($BA193, "yyyy"))+60,"", DT192+1), "") ->  | DV192: =IFERROR(IF(DU192 = VALUE(TEXT($BA193, "yyyy"))+60,"", DU192+1), "") ->  | DW192: =IFERROR(IF(DV192 = VALUE(TEXT($BA193, "yyyy"))+60,"", DV192+1), "") ->  | DX192: =IFERROR(IF(DW192 = VALUE(TEXT($BA193, "yyyy"))+60,"", DW192+1), "") ->  | DY192: =IFERROR(IF(DX192 = VALUE(TEXT($BA193, "yyyy"))+60,"", DX192+1), "") ->  | DZ192: =IFERROR(IF(DY192 = VALUE(TEXT($BA193, "yyyy"))+60,"", DY192+1), "") ->  | EA192: =IFERROR(IF(DZ192 = VALUE(TEXT($BA193, "yyyy"))+60,"", DZ192+1), "") ->  | EB192: =IFERROR(IF(EA192 = VALUE(TEXT($BA193, "yyyy"))+60,"", EA192+1), "") ->  | EC192: =IFERROR(IF(EB192 = VALUE(TEXT($BA193, "yyyy"))+60,"", EB192+1), "") ->  | ED192: =IFERROR(IF(EC192 = VALUE(TEXT($BA193, "yyyy"))+60,"", EC192+1), "") ->  | EE192: =IFERROR(IF(ED192 = VALUE(TEXT($BA193, "yyyy"))+60,"", ED192+1), "") ->  | EF192: =IFERROR(IF(EE192 = VALUE(TEXT($BA193, "yyyy"))+60,"", EE192+1), "") ->  | EG192: =IFERROR(IF(EF192 = VALUE(TEXT($BA193, "yyyy"))+60,"", EF192+1), "") ->  | EH192: =IFERROR(IF(EG192 = VALUE(TEXT($BA193, "yyyy"))+60,"", EG192+1), "") ->  | EI192: =IFERROR(IF(EH192 = VALUE(TEXT($BA193, "yyyy"))+60,"", EH192+1), "") ->  | EJ192: =IFERROR(IF(EI192 = VALUE(TEXT($BA193, "yyyy"))+60,"", EI192+1), "") -> 
J193: Carbon Intensity Range | K193: =IF(COUNT($J200:$K209)=1, ($U200-(0.2*$U200)), IF(L193-(($T193-$L193)/8)<0, 0, L193-(($T193-$L193)/8))) -> 0 | L193: =IF(COUNT($J200:$K209)=1, ($U200-(0.16*$U200)), MIN($U200:$V209)) -> 0 | M193: =IF(COUNT($J200:$K209)=1, ($U200-(0.12*$U200)), (L193+($T193-$L193)/8)) -> 0 | N193: =IF(COUNT($J200:$K209)=1, ($U200-(0.08*$U200)), (M193+($T193-$L193)/8)) -> 0 | O193: =IF(COUNT($J200:$K209)=1, ($U200-(0.04*$U200)), (N193+($T193-$L193)/8)) -> 0 | P193: =IF(COUNT($J200:$K209)= 1, $U200,O193+($T193-$L193)/8) -> 0 | Q193: =IF(COUNT($J200:$K209)=1,($U200+(0.04*$U200)), (P193+($T193-$L193)/8)) -> 0 | R193: =IF(COUNT($J200:$K209)=1, ($U200+(0.08*$U200)), (Q193+($T193-$L193)/8)) -> 0 | S193: =IF(COUNT($J200:$K209)=1, ($U200+(0.12*$U200)), (R193+($T193-$L193)/8)) -> 0 | T193: =IF(COUNT($J200:$K209)=1, ($U200+(0.16*$U200)), MAX($U200:$V209)) -> 0 | U193: =IF(COUNT($J200:$K209)=1, $P193+(0.2*$U200), T193+(($T193-$L193)/8)) -> 0 | W193: Corresponding Carbon Intensity: | X193: =IFERROR(_xlfn.CHOOSECOLS(_xlfn.CHOOSEROWS(_xlfn._xlws.SORT(_xlfn._xlws.FILTER('C-Background_Data'!$B$11:$N$219, ('C-Background_Data'!$D$11:$D$219 = $E193) * ('C-Background_Data'!$I$11:$I$219 = $X192)), 7, -1),1), 7), _xlfn.IFS($X192="", (MEDIAN(MIN(U200:V209),MAX(U200:V209))), ((L193-($T193-$L193)/8)+(($U193-(L193-($T193-$L193)/8))/100*$X192))<0, 0, ((L193-($T193-$L193)/8)+(($U193-(L193-($T193-$L193)/8))/100*$X192))>=0, (L193-($T193-$L193)/8)+(($U193-(L193-($T193-$L193)/8))/100*$X192))) -> 0 | Y193: =CONCATENATE("tCO2e / ",AH193) -> tCO2e / 0 | Z193: =IFERROR(IF($E193= "Highway Treatment", IFERROR(MAX(_xlfn.CHOOSECOLS(_xlfn._xlws.FILTER('C-Background_Data'!$B$11:$N$219, ('C-Background_Data'!$D$11:$D$219 = $E193) * ('C-Background_Data'!$I$11:$I$219 = $X192)), 7)), $X193), IFERROR(_xlfn.CHOOSECOLS(_xlfn.CHOOSEROWS(_xlfn._xlws.SORT(_xlfn._xlws.FILTER('C-Background_Data'!$B$11:$U$219, ('C-Background_Data'!$D$11:$D$219 = $E193) * ('C-Background_Data'!$I$11:$I$219 = $X192)), 7, -1),1), 18), ((SUM(_xlfn.CHOOSECOLS(_xlfn._xlws.FILTER('C-Background_Data'!$B$11:$U$219, 'C-Background_Data'!$D$11:$D$219 =$E193), 18)))/(SUM(_xlfn.CHOOSECOLS(_xlfn._xlws.FILTER('C-Background_Data'!$B$11:$U$219, 'C-Background_Data'!$D$11:$D$219 =$E193), 7)))*$X193))), "") ->  | AA193: =IFERROR(IF($E193= "Highway Treatment", "", IFERROR(_xlfn.CHOOSECOLS(_xlfn.CHOOSEROWS(_xlfn._xlws.SORT(_xlfn._xlws.FILTER('C-Background_Data'!$B$11:$U$219, ('C-Background_Data'!$D$11:$D$219 = $E193) * ('C-Background_Data'!$I$11:$I$219 = $X192)), 7, -1),1), 19), ((SUM(_xlfn.CHOOSECOLS(_xlfn._xlws.FILTER('C-Background_Data'!$B$11:$U$219, 'C-Background_Data'!$D$11:$D$219 =$E193), 19)))/(SUM(_xlfn.CHOOSECOLS(_xlfn._xlws.FILTER('C-Background_Data'!$B$11:$U$219, 'C-Background_Data'!$D$11:$D$219 =$E193), 7)))*$X193))), "") ->  | AB193: =IFERROR(IF($E193= "Highway Treatment", "", IFERROR(_xlfn.CHOOSECOLS(_xlfn.CHOOSEROWS(_xlfn._xlws.SORT(_xlfn._xlws.FILTER('C-Background_Data'!$B$11:$U$219, ('C-Background_Data'!$D$11:$D$219 = $E193) * ('C-Background_Data'!$I$11:$I$219 = $X192)), 7, -1),1), 20), ((SUM(_xlfn.CHOOSECOLS(_xlfn._xlws.FILTER('C-Background_Data'!$B$11:$U$219, 'C-Background_Data'!$D$11:$D$219 =$E193), 20)))/(SUM(_xlfn.CHOOSECOLS(_xlfn._xlws.FILTER('C-Background_Data'!$B$11:$U$219, 'C-Background_Data'!$D$11:$D$219 =$E193), 7)))*$X193))), "") ->  | AH193: =_xlfn.UNIQUE(_xlfn.CHOOSECOLS(_xlfn._xlws.FILTER('C-Background_Data'!$B$11:$F$219, 'C-Background_Data'!$D$11:$D$219 = 'I-User_Input'!$E193, ""), 5)) -> 0 | AL193: =IF(D193="Highway Treatment", $Z193*$AG193, SUM(AN193:AP193)) -> 0 | AN193: =IF(D193 = "Highway Treatment", "", IFERROR($AG193*Z193, "")) ->  | AO193: =IF(D193 = "Highway Treatment", "", IFERROR($AG193*AA193, "")) ->  | AP193: =IF(D193 = "highway Treatment", "", IFERROR($AG193*AB193, "")) ->  | AT193: =IF($E198 <> "", $E198/$AG193, IFERROR(IFERROR(INDEX('C-Background_Data'!$B$11:$N$219, MATCH('I-User_Input'!$E193&'I-User_Input'!$X192, 'C-Background_Data'!$D$11:$D$219 & 'C-Background_Data'!$I$11:$I$219, 0), 13), (AVERAGE(_xlfn.CHOOSECOLS(_xlfn._xlws.FILTER('C-Background_Data'!$B$11:$N$219, 'C-Background_Data'!$D$11:$D$219 =$E193), 13)))), "")) ->  | AU193: =IFERROR(X193/(AT193/100000), "") ->  | BE193: =SUM(BG193:BI193) -> 0 | BG193: =AL193*0.01 -> 0 | BH193: =BG193*0.25 -> 0 | BI193: =IFERROR('C-B4_Calculation'!$N171*(SUM(AN193:AO193)),0) -> 0 | BK193: =$BE193/60 -> 0 | BL193: 0 | BM193: 0 | BN193: 0 | BO193: 0 | BP193: 0 | BQ193: 0 | BR193: 0 | BS193: 0 | BT193: 0 | BU193: 0 | BV193: 0 | BW193: 0 | BX193: 0 | BY193: 0 | BZ193: 0 | CA193: 0 | CB193: 0 | CC193: 0 | CD193: 0 | CE193: 0 | CF193: 0 | CG193: 0 | CH193: 0 | CI193: 0 | CJ193: 0 | CK193: 0 | CL193: 0 | CM193: 0 | CN193: 0 | CO193: 0 | CP193: 0 | CQ193: =$BE193/60 -> 0 | CR193: 0 | CS193: 0 | CT193: 0 | CU193: 0 | CV193: 0 | CW193: 0 | CX193: 0 | CY193: 0 | CZ193: 0 | DA193: 0 | DB193: 0 | DC193: 0 | DD193: 0 | DE193: 0 | DF193: 0 | DG193: 0 | DH193: 0 | DI193: 0 | DJ193: 0 | DK193: 0 | DL193: 0 | DM193: 0 | DN193: 0 | DO193: 0 | DP193: 0 | DQ193: 0 | DR193: 0 | DS193: 0
J195: Reason for Selection of Carbon Intensity: | AL195: A NOTE ON UNCERTAINTY
J197: Carbon Intensity Guidance | AL197: =_xlfn.XLOOKUP(D193,'C-Project-Specific_Uncertainty'!B:B,'C-Project-Specific_Uncertainty'!C:C) -> 0
D198: Direct Works Cost in 2015 Value (if known): | J198: Benchmarks associated with Intervention type selected: | W198: =IFERROR(IF(INDEX('D-Reference'!$D$10:$D$15, MATCH('I-User_Input'!$E193, 'D-Reference'!$D$10:$D$15,0),0)= 'I-User_Input'!$E193, "For further details, see Diagram", ""),"") -> 
D199: Please insert the Direct Works Cost after using the CPI to adjust to 2015 value.See section 5c of the User Guide. | J199: Approximate Lever Placement | L199: Benchmark ID | O199: =CONCATENATE("Benchmarks (",E193,")") -> Benchmarks () | U199: =IF($D193= "Highway Treatment", CONCATENATE("Module B Carbon Intensity (tCO2e/", $AH193, ")"), CONCATENATE("A1-A5 Carbon Intensity (tCO2e/", $AH193, ")")) -> A1-A5 Carbon Intensity (tCO2e/0) | W199: Description (see Capital Carbon Summary Sheets for full specifications)
J200: =IFERROR(VLOOKUP($M200, 'C-Background_Data'!$B$11:$J$219, 8,FALSE), "") ->  | M200: =IF($E193="", "", _xlfn.CHOOSECOLS(_xlfn._xlws.SORT(_xlfn._xlws.FILTER('C-Background_Data'!$B$11:$I$219, 'C-Background_Data'!$D$11:$D$219='I-User_Input'!$E$193, ""),8,1),1)) ->  | O200: =IFERROR(VLOOKUP($M200, 'C-Background_Data'!$B$11:$J$219, 4,FALSE), "") ->  | U200: =IFERROR(VLOOKUP($M200, 'C-Background_Data'!$B$11:$J$219,7,FALSE), "") ->  | W200: =IFERROR(VLOOKUP($M200, 'C-Background_Data'!$B$11:$J$219,9,FALSE), "") -> 
J201: =IFERROR(VLOOKUP($M201, 'C-Background_Data'!$B$11:$J$219, 8,FALSE), "") ->  | O201: =IFERROR(VLOOKUP($M201, 'C-Background_Data'!$B$11:$J$219, 4,FALSE), "") ->  | U201: =IFERROR(VLOOKUP($M201, 'C-Background_Data'!$B$11:$J$219,7,FALSE), "") ->  | W201: =IFERROR(VLOOKUP($M201, 'C-Background_Data'!$B$11:$J$219,9,FALSE), "") -> 
J202: =IFERROR(VLOOKUP($M202, 'C-Background_Data'!$B$11:$J$219, 8,FALSE), "") ->  | O202: =IFERROR(VLOOKUP($M202, 'C-Background_Data'!$B$11:$J$219, 4,FALSE), "") ->  | U202: =IFERROR(VLOOKUP($M202, 'C-Background_Data'!$B$11:$J$219,7,FALSE), "") ->  | W202: =IFERROR(VLOOKUP($M202, 'C-Background_Data'!$B$11:$J$219,9,FALSE), "") -> 
J203: =IFERROR(VLOOKUP($M203, 'C-Background_Data'!$B$11:$J$219, 8,FALSE), "") ->  | O203: =IFERROR(VLOOKUP($M203, 'C-Background_Data'!$B$11:$J$219, 4,FALSE), "") ->  | U203: =IFERROR(VLOOKUP($M203, 'C-Background_Data'!$B$11:$J$219,7,FALSE), "") ->  | W203: =IFERROR(VLOOKUP($M203, 'C-Background_Data'!$B$11:$J$219,9,FALSE), "") -> 
J204: =IFERROR(VLOOKUP($M204, 'C-Background_Data'!$B$11:$J$219, 8,FALSE), "") ->  | O204: =IFERROR(VLOOKUP($M204, 'C-Background_Data'!$B$11:$J$219, 4,FALSE), "") ->  | U204: =IFERROR(VLOOKUP($M204, 'C-Background_Data'!$B$11:$J$219,7,FALSE), "") ->  | W204: =IFERROR(VLOOKUP($M204, 'C-Background_Data'!$B$11:$J$219,9,FALSE), "") -> 
J205: =IFERROR(VLOOKUP($M205, 'C-Background_Data'!$B$11:$J$219, 8,FALSE), "") ->  | O205: =IFERROR(VLOOKUP($M205, 'C-Background_Data'!$B$11:$J$219, 4,FALSE), "") ->  | U205: =IFERROR(VLOOKUP($M205, 'C-Background_Data'!$B$11:$J$219,7,FALSE), "") ->  | W205: =IFERROR(VLOOKUP($M205, 'C-Background_Data'!$B$11:$J$219,9,FALSE), "") -> 
J206: =IFERROR(VLOOKUP($M206, 'C-Background_Data'!$B$11:$J$219, 8,FALSE), "") ->  | O206: =IFERROR(VLOOKUP($M206, 'C-Background_Data'!$B$11:$J$219, 4,FALSE), "") ->  | U206: =IFERROR(VLOOKUP($M206, 'C-Background_Data'!$B$11:$J$219,7,FALSE), "") ->  | W206: =IFERROR(VLOOKUP($M206, 'C-Background_Data'!$B$11:$J$219,9,FALSE), "") -> 
J207: =IFERROR(VLOOKUP($M207, 'C-Background_Data'!$B$11:$J$219, 8,FALSE), "") ->  | O207: =IFERROR(VLOOKUP($M207, 'C-Background_Data'!$B$11:$J$219, 4,FALSE), "") ->  | U207: =IFERROR(VLOOKUP($M207, 'C-Background_Data'!$B$11:$J$219,7,FALSE), "") ->  | W207: =IFERROR(VLOOKUP($M207, 'C-Background_Data'!$B$11:$J$219,9,FALSE), "") -> 
J208: =IFERROR(VLOOKUP($M208, 'C-Background_Data'!$B$11:$J$219, 8,FALSE), "") ->  | O208: =IFERROR(VLOOKUP($M208, 'C-Background_Data'!$B$11:$J$219, 4,FALSE), "") ->  | U208: =IFERROR(VLOOKUP($M208, 'C-Background_Data'!$B$11:$J$219,7,FALSE), "") ->  | W208: =IFERROR(VLOOKUP($M208, 'C-Background_Data'!$B$11:$J$219,9,FALSE), "") -> 
J209: =IFERROR(VLOOKUP($M209, 'C-Background_Data'!$B$11:$J$219, 8,FALSE), "") ->  | O209: =IFERROR(VLOOKUP($M209, 'C-Background_Data'!$B$11:$J$219, 4,FALSE), "") ->  | U209: =IFERROR(VLOOKUP($M209, 'C-Background_Data'!$B$11:$J$219,7,FALSE), "") ->  | W209: =IFERROR(VLOOKUP($M209, 'C-Background_Data'!$B$11:$J$219,9,FALSE), "") -> 
J210: <<< Expand [+] for details
D214: Name of Intervention: | K214: Carbon Intensity Lever
Z216: =IF(D218="Highway Treatment","Use Stage", "Product Stage") -> Product Stage | AA216: =IF(D218="Highway Treatment","", "Construction Process Stage") -> Construction Process Stage | AL216: =IF(D218="Highway Treatment","Use Stage", "Product & Construction Process Stage") -> Product & Construction Process Stage | AN216: =IF(D218="Highway Treatment","Use Stage", "Product Stage") -> Product Stage | AO216: =IF(D218="Highway Treatment","", "Construction Process Stage") -> Construction Process Stage | BE216: Use stage | BG216: Maintenance | BH216: Repair | BI216: Replacement
D217: Select Category: | E217: Select Intervention Type: | J217: Lever Range | K217: 0 | L217: 10 | M217: 20 | N217: 30 | O217: 40 | P217: 50 | Q217: 60 | R217: 70 | S217: 80 | T217: 90 | U217: 100 | W217: Lever Setting selected: | X217: 50 | Z217: =IF(D218="Highway Treatment","Module B", "A1-A3") -> A1-A3 | AA217: =IF(D218="Highway Treatment","","A4") -> A4 | AB217: =IF(D218="Highway Treatment","","A5") -> A5 | AG217: Quantity | AH217: Units | AL217: =IF(D218="Highway Treatment","MODULE B", "TOTAL A1-A5") -> TOTAL A1-A5 | AN217: =IF(D218="Highway Treatment","Module B", "A1-A3") -> A1-A3 | AO217: =IF(D218="Highway Treatment","", "A4") -> A4 | AP217: =IF(D218="Highway Treatment","", "A5") -> A5 | AT217: =_xlfn.CONCAT("Estimated Direct Works Cost (£ / ", AH218, ")") -> Estimated Direct Works Cost (£ / 0) | AU217: CCR (tCO2e/£100k) | AZ217: Start Month | BA217: End Month | BE217: TOTAL B2, B3 & B4 | BG217: B2 | BH217: B3 | BI217: B4 | BK217: =_xlfn.IFS(VALUE(TEXT($BA218, "m"))<12, VALUE(TEXT($BA218, "yyyy")), VALUE(TEXT($BA218, "m"))=12, VALUE(TEXT($BA218, "yyyy"))+1) -> 1900 | BL217: =IFERROR(IF(BK217 = VALUE(TEXT($BA218, "yyyy"))+60,"", BK217+1), "") -> 1901 | BM217: 1902 | BN217: 1903 | BO217: 1904 | BP217: 1905 | BQ217: 1906 | BR217: 1907 | BS217: 1908 | BT217: 1909 | BU217: 1910 | BV217: 1911 | BW217: 1912 | BX217: 1913 | BY217: 1914 | BZ217: 1915 | CA217: 1916 | CB217: 1917 | CC217: 1918 | CD217: 1919 | CE217: 1920 | CF217: 1921 | CG217: 1922 | CH217: 1923 | CI217: 1924 | CJ217: 1925 | CK217: 1926 | CL217: 1927 | CM217: 1928 | CN217: 1929 | CO217: 1930 | CP217: 1931 | CQ217: 1932 | CR217: =IFERROR(IF(CQ217 = VALUE(TEXT($BA218, "yyyy"))+60,"", CQ217+1), "") -> 1933 | CS217: 1934 | CT217: 1935 | CU217: 1936 | CV217: 1937 | CW217: 1938 | CX217: 1939 | CY217: 1940 | CZ217: 1941 | DA217: 1942 | DB217: 1943 | DC217: 1944 | DD217: 1945 | DE217: 1946 | DF217: 1947 | DG217: 1948 | DH217: 1949 | DI217: 1950 | DJ217: 1951 | DK217: 1952 | DL217: 1953 | DM217: 1954 | DN217: 1955 | DO217: 1956 | DP217: 1957 | DQ217: 1958 | DR217: 1959 | DS217: 1960 | DT217: =IFERROR(IF(DS217 = VALUE(TEXT($BA218, "yyyy"))+60,"", DS217+1), "") ->  | DU217: =IFERROR(IF(DT217 = VALUE(TEXT($BA218, "yyyy"))+60,"", DT217+1), "") ->  | DV217: =IFERROR(IF(DU217 = VALUE(TEXT($BA218, "yyyy"))+60,"", DU217+1), "") ->  | DW217: =IFERROR(IF(DV217 = VALUE(TEXT($BA218, "yyyy"))+60,"", DV217+1), "") ->  | DX217: =IFERROR(IF(DW217 = VALUE(TEXT($BA218, "yyyy"))+60,"", DW217+1), "") ->  | DY217: =IFERROR(IF(DX217 = VALUE(TEXT($BA218, "yyyy"))+60,"", DX217+1), "") ->  | DZ217: =IFERROR(IF(DY217 = VALUE(TEXT($BA218, "yyyy"))+60,"", DY217+1), "") ->  | EA217: =IFERROR(IF(DZ217 = VALUE(TEXT($BA218, "yyyy"))+60,"", DZ217+1), "") ->  | EB217: =IFERROR(IF(EA217 = VALUE(TEXT($BA218, "yyyy"))+60,"", EA217+1), "") ->  | EC217: =IFERROR(IF(EB217 = VALUE(TEXT($BA218, "yyyy"))+60,"", EB217+1), "") ->  | ED217: =IFERROR(IF(EC217 = VALUE(TEXT($BA218, "yyyy"))+60,"", EC217+1), "") ->  | EE217: =IFERROR(IF(ED217 = VALUE(TEXT($BA218, "yyyy"))+60,"", ED217+1), "") ->  | EF217: =IFERROR(IF(EE217 = VALUE(TEXT($BA218, "yyyy"))+60,"", EE217+1), "") ->  | EG217: =IFERROR(IF(EF217 = VALUE(TEXT($BA218, "yyyy"))+60,"", EF217+1), "") ->  | EH217: =IFERROR(IF(EG217 = VALUE(TEXT($BA218, "yyyy"))+60,"", EG217+1), "") ->  | EI217: =IFERROR(IF(EH217 = VALUE(TEXT($BA218, "yyyy"))+60,"", EH217+1), "") ->  | EJ217: =IFERROR(IF(EI217 = VALUE(TEXT($BA218, "yyyy"))+60,"", EI217+1), "") -> 
J218: Carbon Intensity Range | K218: =IF(COUNT($J225:$K234)=1, ($U225-(0.2*$U225)), IF(L218-(($T218-$L218)/8)<0, 0, L218-(($T218-$L218)/8))) -> 0 | L218: =IF(COUNT($J225:$K234)=1, ($U225-(0.16*$U225)), MIN($U225:$V234)) -> 0 | M218: =IF(COUNT($J225:$K234)=1, ($U225-(0.12*$U225)), (L218+($T218-$L218)/8)) -> 0 | N218: =IF(COUNT($J225:$K234)=1, ($U225-(0.08*$U225)), (M218+($T218-$L218)/8)) -> 0 | O218: =IF(COUNT($J225:$K234)=1, ($U225-(0.04*$U225)), (N218+($T218-$L218)/8)) -> 0 | P218: =IF(COUNT($J225:$K234)= 1, $U225,O218+($T218-$L218)/8) -> 0 | Q218: =IF(COUNT($J225:$K234)=1,($U225+(0.04*$U225)), (P218+($T218-$L218)/8)) -> 0 | R218: =IF(COUNT($J225:$K234)=1, ($U225+(0.08*$U225)), (Q218+($T218-$L218)/8)) -> 0 | S218: =IF(COUNT($J225:$K234)=1, ($U225+(0.12*$U225)), (R218+($T218-$L218)/8)) -> 0 | T218: =IF(COUNT($J225:$K234)=1, ($U225+(0.16*$U225)), MAX($U225:$V234)) -> 0 | U218: =IF(COUNT($J225:$K234)=1, $P218+(0.2*$U225), T218+(($T218-$L218)/8)) -> 0 | W218: Corresponding Carbon Intensity: | X218: =IFERROR(_xlfn.CHOOSECOLS(_xlfn.CHOOSEROWS(_xlfn._xlws.SORT(_xlfn._xlws.FILTER('C-Background_Data'!$B$11:$N$219, ('C-Background_Data'!$D$11:$D$219 = $E218) * ('C-Background_Data'!$I$11:$I$219 = $X217)), 7, -1),1), 7), _xlfn.IFS($X217="", (MEDIAN(MIN(U225:V234),MAX(U225:V234))), ((L218-($T218-$L218)/8)+(($U218-(L218-($T218-$L218)/8))/100*$X217))<0, 0, ((L218-($T218-$L218)/8)+(($U218-(L218-($T218-$L218)/8))/100*$X217))>=0, (L218-($T218-$L218)/8)+(($U218-(L218-($T218-$L218)/8))/100*$X217))) -> 0 | Y218: =CONCATENATE("tCO2e / ",AH218) -> tCO2e / 0 | Z218: =IFERROR(IF($E218= "Highway Treatment", IFERROR(MAX(_xlfn.CHOOSECOLS(_xlfn._xlws.FILTER('C-Background_Data'!$B$11:$N$219, ('C-Background_Data'!$D$11:$D$219 = $E218) * ('C-Background_Data'!$I$11:$I$219 = $X217)), 7)), $X218), IFERROR(_xlfn.CHOOSECOLS(_xlfn.CHOOSEROWS(_xlfn._xlws.SORT(_xlfn._xlws.FILTER('C-Background_Data'!$B$11:$U$219, ('C-Background_Data'!$D$11:$D$219 = $E218) * ('C-Background_Data'!$I$11:$I$219 = $X217)), 7, -1),1), 18), ((SUM(_xlfn.CHOOSECOLS(_xlfn._xlws.FILTER('C-Background_Data'!$B$11:$U$219, 'C-Background_Data'!$D$11:$D$219 =$E218), 18)))/(SUM(_xlfn.CHOOSECOLS(_xlfn._xlws.FILTER('C-Background_Data'!$B$11:$U$219, 'C-Background_Data'!$D$11:$D$219 =$E218), 7)))*$X218))), "") ->  | AA218: =IFERROR(IF($E218= "Highway Treatment", "", IFERROR(_xlfn.CHOOSECOLS(_xlfn.CHOOSEROWS(_xlfn._xlws.SORT(_xlfn._xlws.FILTER('C-Background_Data'!$B$11:$U$219, ('C-Background_Data'!$D$11:$D$219 = $E218) * ('C-Background_Data'!$I$11:$I$219 = $X217)), 7, -1),1), 19), ((SUM(_xlfn.CHOOSECOLS(_xlfn._xlws.FILTER('C-Background_Data'!$B$11:$U$219, 'C-Background_Data'!$D$11:$D$219 =$E218), 19)))/(SUM(_xlfn.CHOOSECOLS(_xlfn._xlws.FILTER('C-Background_Data'!$B$11:$U$219, 'C-Background_Data'!$D$11:$D$219 =$E218), 7)))*$X218))), "") ->  | AB218: =IFERROR(IF($E218= "Highway Treatment", "", IFERROR(_xlfn.CHOOSECOLS(_xlfn.CHOOSEROWS(_xlfn._xlws.SORT(_xlfn._xlws.FILTER('C-Background_Data'!$B$11:$U$219, ('C-Background_Data'!$D$11:$D$219 = $E218) * ('C-Background_Data'!$I$11:$I$219 = $X217)), 7, -1),1), 20), ((SUM(_xlfn.CHOOSECOLS(_xlfn._xlws.FILTER('C-Background_Data'!$B$11:$U$219, 'C-Background_Data'!$D$11:$D$219 =$E218), 20)))/(SUM(_xlfn.CHOOSECOLS(_xlfn._xlws.FILTER('C-Background_Data'!$B$11:$U$219, 'C-Background_Data'!$D$11:$D$219 =$E218), 7)))*$X218))), "") ->  | AH218: =_xlfn.UNIQUE(_xlfn.CHOOSECOLS(_xlfn._xlws.FILTER('C-Background_Data'!$B$11:$F$219, 'C-Background_Data'!$D$11:$D$219 = 'I-User_Input'!$E218, ""), 5)) -> 0 | AL218: =IF(D218="Highway Treatment", $Z218*$AG218, SUM(AN218:AP218)) -> 0 | AN218: =IF(D218 = "Highway Treatment", "", IFERROR($AG218*Z218, "")) ->  | AO218: =IF(D218 = "Highway Treatment", "", IFERROR($AG218*AA218, "")) ->  | AP218: =IF(D218 = "highway Treatment", "", IFERROR($AG218*AB218, "")) ->  | AT218: =IF($E223 <> "", $E223/$AG218, IFERROR(IFERROR(INDEX('C-Background_Data'!$B$11:$N$219, MATCH('I-User_Input'!$E218&'I-User_Input'!$X217, 'C-Background_Data'!$D$11:$D$219 & 'C-Background_Data'!$I$11:$I$219, 0), 13), (AVERAGE(_xlfn.CHOOSECOLS(_xlfn._xlws.FILTER('C-Background_Data'!$B$11:$N$219, 'C-Background_Data'!$D$11:$D$219 =$E218), 13)))), "")) ->  | AU218: =IFERROR(X218/(AT218/100000), "") ->  | BE218: =SUM(BG218:BI218) -> 0 | BG218: =AL218*0.01 -> 0 | BH218: =BG218*0.25 -> 0 | BI218: =IFERROR('C-B4_Calculation'!$N194*(SUM(AN218:AO218)),0) -> 0 | BK218: =$BE218/60 -> 0 | BL218: 0 | BM218: 0 | BN218: 0 | BO218: 0 | BP218: 0 | BQ218: 0 | BR218: 0 | BS218: 0 | BT218: 0 | BU218: 0 | BV218: 0 | BW218: 0 | BX218: 0 | BY218: 0 | BZ218: 0 | CA218: 0 | CB218: 0 | CC218: 0 | CD218: 0 | CE218: 0 | CF218: 0 | CG218: 0 | CH218: 0 | CI218: 0 | CJ218: 0 | CK218: 0 | CL218: 0 | CM218: 0 | CN218: 0 | CO218: 0 | CP218: 0 | CQ218: =$BE218/60 -> 0 | CR218: 0 | CS218: 0 | CT218: 0 | CU218: 0 | CV218: 0 | CW218: 0 | CX218: 0 | CY218: 0 | CZ218: 0 | DA218: 0 | DB218: 0 | DC218: 0 | DD218: 0 | DE218: 0 | DF218: 0 | DG218: 0 | DH218: 0 | DI218: 0 | DJ218: 0 | DK218: 0 | DL218: 0 | DM218: 0 | DN218: 0 | DO218: 0 | DP218: 0 | DQ218: 0 | DR218: 0 | DS218: 0
J220: Reason for Selection of Carbon Intensity: | AL220: A NOTE ON UNCERTAINTY
J222: Carbon Intensity Guidance | AL222: =_xlfn.XLOOKUP(D218,'C-Project-Specific_Uncertainty'!B:B,'C-Project-Specific_Uncertainty'!C:C) -> 0
D223: Direct Works Cost in 2015 Value (if known): | J223: Benchmarks associated with Intervention type selected: | W223: =IFERROR(IF(INDEX('D-Reference'!$D$10:$D$15, MATCH('I-User_Input'!$E218, 'D-Reference'!$D$10:$D$15,0),0)= 'I-User_Input'!$E218, "For further details, see Diagram", ""),"") -> 
D224: Please insert the Direct Works Cost after using the CPI to adjust to 2015 value.See section 5c of the User Guide. | J224: Approximate Lever Placement | L224: Benchmark ID | O224: =CONCATENATE("Benchmarks (",E218,")") -> Benchmarks () | U224: =IF($D218= "Highway Treatment", CONCATENATE("Module B Carbon Intensity (tCO2e/", $AH218, ")"), CONCATENATE("A1-A5 Carbon Intensity (tCO2e/", $AH218, ")")) -> A1-A5 Carbon Intensity (tCO2e/0) | W224: Description (see Capital Carbon Summary Sheets for full specifications)
J225: =IFERROR(VLOOKUP($M225, 'C-Background_Data'!$B$11:$J$219, 8,FALSE), "") ->  | M225: =IF($E218="", "", _xlfn.CHOOSECOLS(_xlfn._xlws.SORT(_xlfn._xlws.FILTER('C-Background_Data'!$B$11:$I$219, 'C-Background_Data'!$D$11:$D$219='I-User_Input'!$E$218, ""),8,1),1)) ->  | O225: =IFERROR(VLOOKUP($M225, 'C-Background_Data'!$B$11:$J$219, 4,FALSE), "") ->  | U225: =IFERROR(VLOOKUP($M225, 'C-Background_Data'!$B$11:$J$219,7,FALSE), "") ->  | W225: =IFERROR(VLOOKUP($M225, 'C-Background_Data'!$B$11:$J$219,9,FALSE), "") -> 
J226: =IFERROR(VLOOKUP($M226, 'C-Background_Data'!$B$11:$J$219, 8,FALSE), "") ->  | O226: =IFERROR(VLOOKUP($M226, 'C-Background_Data'!$B$11:$J$219, 4,FALSE), "") ->  | U226: =IFERROR(VLOOKUP($M226, 'C-Background_Data'!$B$11:$J$219,7,FALSE), "") ->  | W226: =IFERROR(VLOOKUP($M226, 'C-Background_Data'!$B$11:$J$219,9,FALSE), "") -> 
J227: =IFERROR(VLOOKUP($M227, 'C-Background_Data'!$B$11:$J$219, 8,FALSE), "") ->  | O227: =IFERROR(VLOOKUP($M227, 'C-Background_Data'!$B$11:$J$219, 4,FALSE), "") ->  | U227: =IFERROR(VLOOKUP($M227, 'C-Background_Data'!$B$11:$J$219,7,FALSE), "") ->  | W227: =IFERROR(VLOOKUP($M227, 'C-Background_Data'!$B$11:$J$219,9,FALSE), "") -> 
J228: =IFERROR(VLOOKUP($M228, 'C-Background_Data'!$B$11:$J$219, 8,FALSE), "") ->  | O228: =IFERROR(VLOOKUP($M228, 'C-Background_Data'!$B$11:$J$219, 4,FALSE), "") ->  | U228: =IFERROR(VLOOKUP($M228, 'C-Background_Data'!$B$11:$J$219,7,FALSE), "") ->  | W228: =IFERROR(VLOOKUP($M228, 'C-Background_Data'!$B$11:$J$219,9,FALSE), "") -> 
J229: =IFERROR(VLOOKUP($M229, 'C-Background_Data'!$B$11:$J$219, 8,FALSE), "") ->  | O229: =IFERROR(VLOOKUP($M229, 'C-Background_Data'!$B$11:$J$219, 4,FALSE), "") ->  | U229: =IFERROR(VLOOKUP($M229, 'C-Background_Data'!$B$11:$J$219,7,FALSE), "") ->  | W229: =IFERROR(VLOOKUP($M229, 'C-Background_Data'!$B$11:$J$219,9,FALSE), "") -> 
J230: =IFERROR(VLOOKUP($M230, 'C-Background_Data'!$B$11:$J$219, 8,FALSE), "") ->  | O230: =IFERROR(VLOOKUP($M230, 'C-Background_Data'!$B$11:$J$219, 4,FALSE), "") ->  | U230: =IFERROR(VLOOKUP($M230, 'C-Background_Data'!$B$11:$J$219,7,FALSE), "") ->  | W230: =IFERROR(VLOOKUP($M230, 'C-Background_Data'!$B$11:$J$219,9,FALSE), "") -> 
J231: =IFERROR(VLOOKUP($M231, 'C-Background_Data'!$B$11:$J$219, 8,FALSE), "") ->  | O231: =IFERROR(VLOOKUP($M231, 'C-Background_Data'!$B$11:$J$219, 4,FALSE), "") ->  | U231: =IFERROR(VLOOKUP($M231, 'C-Background_Data'!$B$11:$J$219,7,FALSE), "") ->  | W231: =IFERROR(VLOOKUP($M231, 'C-Background_Data'!$B$11:$J$219,9,FALSE), "") -> 
J232: =IFERROR(VLOOKUP($M232, 'C-Background_Data'!$B$11:$J$219, 8,FALSE), "") ->  | O232: =IFERROR(VLOOKUP($M232, 'C-Background_Data'!$B$11:$J$219, 4,FALSE), "") ->  | U232: =IFERROR(VLOOKUP($M232, 'C-Background_Data'!$B$11:$J$219,7,FALSE), "") ->  | W232: =IFERROR(VLOOKUP($M232, 'C-Background_Data'!$B$11:$J$219,9,FALSE), "") -> 
J233: =IFERROR(VLOOKUP($M233, 'C-Background_Data'!$B$11:$J$219, 8,FALSE), "") ->  | O233: =IFERROR(VLOOKUP($M233, 'C-Background_Data'!$B$11:$J$219, 4,FALSE), "") ->  | U233: =IFERROR(VLOOKUP($M233, 'C-Background_Data'!$B$11:$J$219,7,FALSE), "") ->  | W233: =IFERROR(VLOOKUP($M233, 'C-Background_Data'!$B$11:$J$219,9,FALSE), "") -> 
J234: =IFERROR(VLOOKUP($M234, 'C-Background_Data'!$B$11:$J$219, 8,FALSE), "") ->  | O234: =IFERROR(VLOOKUP($M234, 'C-Background_Data'!$B$11:$J$219, 4,FALSE), "") ->  | U234: =IFERROR(VLOOKUP($M234, 'C-Background_Data'!$B$11:$J$219,7,FALSE), "") ->  | W234: =IFERROR(VLOOKUP($M234, 'C-Background_Data'!$B$11:$J$219,9,FALSE), "") -> 
J235: <<< Expand [+] for details
D239: Name of Intervention: | K239: Carbon Intensity Lever
Z241: =IF(D243="Highway Treatment","Use Stage", "Product Stage") -> Product Stage | AA241: =IF(D243="Highway Treatment","", "Construction Process Stage") -> Construction Process Stage | AL241: =IF(D243="Highway Treatment","Use Stage", "Product & Construction Process Stage") -> Product & Construction Process Stage | AN241: =IF(D243="Highway Treatment","Use Stage", "Product Stage") -> Product Stage | AO241: =IF(D243="Highway Treatment","", "Construction Process Stage") -> Construction Process Stage | BE241: Use stage | BG241: Maintenance | BH241: Repair | BI241: Replacement
D242: Select Category: | E242: Select Intervention Type: | J242: Lever Range | K242: 0 | L242: 10 | M242: 20 | N242: 30 | O242: 40 | P242: 50 | Q242: 60 | R242: 70 | S242: 80 | T242: 90 | U242: 100 | W242: Lever Setting selected: | X242: 50 | Z242: =IF(D243="Highway Treatment","Module B", "A1-A3") -> A1-A3 | AA242: =IF(D243="Highway Treatment","","A4") -> A4 | AB242: =IF(D243="Highway Treatment","","A5") -> A5 | AG242: Quantity | AH242: Units | AL242: =IF(D243="Highway Treatment","MODULE B", "TOTAL A1-A5") -> TOTAL A1-A5 | AN242: =IF(D243="Highway Treatment","Module B", "A1-A3") -> A1-A3 | AO242: =IF(D243="Highway Treatment","", "A4") -> A4 | AP242: =IF(D243="Highway Treatment","", "A5") -> A5 | AT242: =_xlfn.CONCAT("Estimated Direct Works Cost (£ / ", AH243, ")") -> Estimated Direct Works Cost (£ / 0) | AU242: CCR (tCO2e/£100k) | AZ242: Start Month | BA242: End Month | BE242: TOTAL B2, B3 & B4 | BG242: B2 | BH242: B3 | BI242: B4 | BK242: =_xlfn.IFS(VALUE(TEXT($BA243, "m"))<12, VALUE(TEXT($BA243, "yyyy")), VALUE(TEXT($BA243, "m"))=12, VALUE(TEXT($BA243, "yyyy"))+1) -> 1900 | BL242: =IFERROR(IF(BK242 = VALUE(TEXT($BA243, "yyyy"))+60,"", BK242+1), "") -> 1901 | BM242: 1902 | BN242: 1903 | BO242: 1904 | BP242: 1905 | BQ242: 1906 | BR242: 1907 | BS242: 1908 | BT242: 1909 | BU242: 1910 | BV242: 1911 | BW242: 1912 | BX242: 1913 | BY242: 1914 | BZ242: 1915 | CA242: 1916 | CB242: 1917 | CC242: 1918 | CD242: 1919 | CE242: 1920 | CF242: 1921 | CG242: 1922 | CH242: 1923 | CI242: 1924 | CJ242: 1925 | CK242: 1926 | CL242: 1927 | CM242: 1928 | CN242: 1929 | CO242: 1930 | CP242: 1931 | CQ242: 1932 | CR242: =IFERROR(IF(CQ242 = VALUE(TEXT($BA243, "yyyy"))+60,"", CQ242+1), "") -> 1933 | CS242: 1934 | CT242: 1935 | CU242: 1936 | CV242: 1937 | CW242: 1938 | CX242: 1939 | CY242: 1940 | CZ242: 1941 | DA242: 1942 | DB242: 1943 | DC242: 1944 | DD242: 1945 | DE242: 1946 | DF242: 1947 | DG242: 1948 | DH242: 1949 | DI242: 1950 | DJ242: 1951 | DK242: 1952 | DL242: 1953 | DM242: 1954 | DN242: 1955 | DO242: 1956 | DP242: 1957 | DQ242: 1958 | DR242: 1959 | DS242: 1960 | DT242: =IFERROR(IF(DS242 = VALUE(TEXT($BA243, "yyyy"))+60,"", DS242+1), "") ->  | DU242: =IFERROR(IF(DT242 = VALUE(TEXT($BA243, "yyyy"))+60,"", DT242+1), "") ->  | DV242: =IFERROR(IF(DU242 = VALUE(TEXT($BA243, "yyyy"))+60,"", DU242+1), "") ->  | DW242: =IFERROR(IF(DV242 = VALUE(TEXT($BA243, "yyyy"))+60,"", DV242+1), "") ->  | DX242: =IFERROR(IF(DW242 = VALUE(TEXT($BA243, "yyyy"))+60,"", DW242+1), "") ->  | DY242: =IFERROR(IF(DX242 = VALUE(TEXT($BA243, "yyyy"))+60,"", DX242+1), "") ->  | DZ242: =IFERROR(IF(DY242 = VALUE(TEXT($BA243, "yyyy"))+60,"", DY242+1), "") ->  | EA242: =IFERROR(IF(DZ242 = VALUE(TEXT($BA243, "yyyy"))+60,"", DZ242+1), "") ->  | EB242: =IFERROR(IF(EA242 = VALUE(TEXT($BA243, "yyyy"))+60,"", EA242+1), "") ->  | EC242: =IFERROR(IF(EB242 = VALUE(TEXT($BA243, "yyyy"))+60,"", EB242+1), "") ->  | ED242: =IFERROR(IF(EC242 = VALUE(TEXT($BA243, "yyyy"))+60,"", EC242+1), "") ->  | EE242: =IFERROR(IF(ED242 = VALUE(TEXT($BA243, "yyyy"))+60,"", ED242+1), "") ->  | EF242: =IFERROR(IF(EE242 = VALUE(TEXT($BA243, "yyyy"))+60,"", EE242+1), "") ->  | EG242: =IFERROR(IF(EF242 = VALUE(TEXT($BA243, "yyyy"))+60,"", EF242+1), "") ->  | EH242: =IFERROR(IF(EG242 = VALUE(TEXT($BA243, "yyyy"))+60,"", EG242+1), "") ->  | EI242: =IFERROR(IF(EH242 = VALUE(TEXT($BA243, "yyyy"))+60,"", EH242+1), "") ->  | EJ242: =IFERROR(IF(EI242 = VALUE(TEXT($BA243, "yyyy"))+60,"", EI242+1), "") -> 
J243: Carbon Intensity Range | K243: =IF(COUNT($J250:$K259)=1, ($U250-(0.2*$U250)), IF(L243-(($T243-$L243)/8)<0, 0, L243-(($T243-$L243)/8))) -> 0 | L243: =IF(COUNT($J250:$K259)=1, ($U250-(0.16*$U250)), MIN($U250:$V259)) -> 0 | M243: =IF(COUNT($J250:$K259)=1, ($U250-(0.12*$U250)), (L243+($T243-$L243)/8)) -> 0 | N243: =IF(COUNT($J250:$K259)=1, ($U250-(0.08*$U250)), (M243+($T243-$L243)/8)) -> 0 | O243: =IF(COUNT($J250:$K259)=1, ($U250-(0.04*$U250)), (N243+($T243-$L243)/8)) -> 0 | P243: =IF(COUNT($J250:$K259)= 1, $U250,O243+($T243-$L243)/8) -> 0 | Q243: =IF(COUNT($J250:$K259)=1,($U250+(0.04*$U250)), (P243+($T243-$L243)/8)) -> 0 | R243: =IF(COUNT($J250:$K259)=1, ($U250+(0.08*$U250)), (Q243+($T243-$L243)/8)) -> 0 | S243: =IF(COUNT($J250:$K259)=1, ($U250+(0.12*$U250)), (R243+($T243-$L243)/8)) -> 0 | T243: =IF(COUNT($J250:$K259)=1, ($U250+(0.16*$U250)), MAX($U250:$V259)) -> 0 | U243: =IF(COUNT($J250:$K259)=1, $P243+(0.2*$U250), T243+(($T243-$L243)/8)) -> 0 | W243: Corresponding Carbon Intensity: | X243: =IFERROR(_xlfn.CHOOSECOLS(_xlfn.CHOOSEROWS(_xlfn._xlws.SORT(_xlfn._xlws.FILTER('C-Background_Data'!$B$11:$N$219, ('C-Background_Data'!$D$11:$D$219 = $E243) * ('C-Background_Data'!$I$11:$I$219 = $X242)), 7, -1),1), 7), _xlfn.IFS($X242="", (MEDIAN(MIN(U250:V259),MAX(U250:V259))), ((L243-($T243-$L243)/8)+(($U243-(L243-($T243-$L243)/8))/100*$X242))<0, 0, ((L243-($T243-$L243)/8)+(($U243-(L243-($T243-$L243)/8))/100*$X242))>=0, (L243-($T243-$L243)/8)+(($U243-(L243-($T243-$L243)/8))/100*$X242))) -> 0 | Y243: =CONCATENATE("tCO2e / ",AH243) -> tCO2e / 0 | Z243: =IFERROR(IF($E243= "Highway Treatment", IFERROR(MAX(_xlfn.CHOOSECOLS(_xlfn._xlws.FILTER('C-Background_Data'!$B$11:$N$219, ('C-Background_Data'!$D$11:$D$219 = $E243) * ('C-Background_Data'!$I$11:$I$219 = $X242)), 7)), $X243), IFERROR(_xlfn.CHOOSECOLS(_xlfn.CHOOSEROWS(_xlfn._xlws.SORT(_xlfn._xlws.FILTER('C-Background_Data'!$B$11:$U$219, ('C-Background_Data'!$D$11:$D$219 = $E243) * ('C-Background_Data'!$I$11:$I$219 = $X242)), 7, -1),1), 18), ((SUM(_xlfn.CHOOSECOLS(_xlfn._xlws.FILTER('C-Background_Data'!$B$11:$U$219, 'C-Background_Data'!$D$11:$D$219 =$E243), 18)))/(SUM(_xlfn.CHOOSECOLS(_xlfn._xlws.FILTER('C-Background_Data'!$B$11:$U$219, 'C-Background_Data'!$D$11:$D$219 =$E243), 7)))*$X243))), "") ->  | AA243: =IFERROR(IF($E243= "Highway Treatment", "", IFERROR(_xlfn.CHOOSECOLS(_xlfn.CHOOSEROWS(_xlfn._xlws.SORT(_xlfn._xlws.FILTER('C-Background_Data'!$B$11:$U$219, ('C-Background_Data'!$D$11:$D$219 = $E243) * ('C-Background_Data'!$I$11:$I$219 = $X242)), 7, -1),1), 19), ((SUM(_xlfn.CHOOSECOLS(_xlfn._xlws.FILTER('C-Background_Data'!$B$11:$U$219, 'C-Background_Data'!$D$11:$D$219 =$E243), 19)))/(SUM(_xlfn.CHOOSECOLS(_xlfn._xlws.FILTER('C-Background_Data'!$B$11:$U$219, 'C-Background_Data'!$D$11:$D$219 =$E243), 7)))*$X243))), "") ->  | AB243: =IFERROR(IF($E243= "Highway Treatment", "", IFERROR(_xlfn.CHOOSECOLS(_xlfn.CHOOSEROWS(_xlfn._xlws.SORT(_xlfn._xlws.FILTER('C-Background_Data'!$B$11:$U$219, ('C-Background_Data'!$D$11:$D$219 = $E243) * ('C-Background_Data'!$I$11:$I$219 = $X242)), 7, -1),1), 20), ((SUM(_xlfn.CHOOSECOLS(_xlfn._xlws.FILTER('C-Background_Data'!$B$11:$U$219, 'C-Background_Data'!$D$11:$D$219 =$E243), 20)))/(SUM(_xlfn.CHOOSECOLS(_xlfn._xlws.FILTER('C-Background_Data'!$B$11:$U$219, 'C-Background_Data'!$D$11:$D$219 =$E243), 7)))*$X243))), "") ->  | AH243: =_xlfn.UNIQUE(_xlfn.CHOOSECOLS(_xlfn._xlws.FILTER('C-Background_Data'!$B$11:$F$219, 'C-Background_Data'!$D$11:$D$219 = 'I-User_Input'!$E243, ""), 5)) -> 0 | AL243: =IF(D243="Highway Treatment", $Z243*$AG243, SUM(AN243:AP243)) -> 0 | AN243: =IF(D243 = "Highway Treatment", "", IFERROR($AG243*Z243, "")) ->  | AO243: =IF(D243 = "Highway Treatment", "", IFERROR($AG243*AA243, "")) ->  | AP243: =IF(D243 = "highway Treatment", "", IFERROR($AG243*AB243, "")) ->  | AT243: =IF($E248 <> "", $E248/$AG243, IFERROR(IFERROR(INDEX('C-Background_Data'!$B$11:$N$219, MATCH('I-User_Input'!$E243&'I-User_Input'!$X242, 'C-Background_Data'!$D$11:$D$219 & 'C-Background_Data'!$I$11:$I$219, 0), 13), (AVERAGE(_xlfn.CHOOSECOLS(_xlfn._xlws.FILTER('C-Background_Data'!$B$11:$N$219, 'C-Background_Data'!$D$11:$D$219 =$E243), 13)))), "")) ->  | AU243: =IFERROR(X243/(AT243/100000), "") ->  | BE243: =SUM(BG243:BI243) -> 0 | BG243: =AL243*0.01 -> 0 | BH243: =BG243*0.25 -> 0 | BI243: =IFERROR('C-B4_Calculation'!$N217*(SUM(AN243:AO243)),0) -> 0 | BK243: =$BE243/60 -> 0 | BL243: 0 | BM243: 0 | BN243: 0 | BO243: 0 | BP243: 0 | BQ243: 0 | BR243: 0 | BS243: 0 | BT243: 0 | BU243: 0 | BV243: 0 | BW243: 0 | BX243: 0 | BY243: 0 | BZ243: 0 | CA243: 0 | CB243: 0 | CC243: 0 | CD243: 0 | CE243: 0 | CF243: 0 | CG243: 0 | CH243: 0 | CI243: 0 | CJ243: 0 | CK243: 0 | CL243: 0 | CM243: 0 | CN243: 0 | CO243: 0 | CP243: 0 | CQ243: =$BE243/60 -> 0 | CR243: 0 | CS243: 0 | CT243: 0 | CU243: 0 | CV243: 0 | CW243: 0 | CX243: 0 | CY243: 0 | CZ243: 0 | DA243: 0 | DB243: 0 | DC243: 0 | DD243: 0 | DE243: 0 | DF243: 0 | DG243: 0 | DH243: 0 | DI243: 0 | DJ243: 0 | DK243: 0 | DL243: 0 | DM243: 0 | DN243: 0 | DO243: 0 | DP243: 0 | DQ243: 0 | DR243: 0 | DS243: 0
J245: Reason for Selection of Carbon Intensity: | AL245: A NOTE ON UNCERTAINTY
J247: Carbon Intensity Guidance | AL247: =_xlfn.XLOOKUP(D243,'C-Project-Specific_Uncertainty'!B:B,'C-Project-Specific_Uncertainty'!C:C) -> 0
D248: Direct Works Cost in 2015 Value (if known): | J248: Benchmarks associated with Intervention type selected: | W248: =IFERROR(IF(INDEX('D-Reference'!$D$10:$D$15, MATCH('I-User_Input'!$E243, 'D-Reference'!$D$10:$D$15,0),0)= 'I-User_Input'!$E243, "For further details, see Diagram", ""),"") -> 
D249: Please insert the Direct Works Cost after using the CPI to adjust to 2015 value.See section 5c of the User Guide. | J249: Approximate Lever Placement | L249: Benchmark ID | O249: =CONCATENATE("Benchmarks (",E243,")") -> Benchmarks () | U249: =IF($D243= "Highway Treatment", CONCATENATE("Module B Carbon Intensity (tCO2e/", $AH243, ")"), CONCATENATE("A1-A5 Carbon Intensity (tCO2e/", $AH243, ")")) -> A1-A5 Carbon Intensity (tCO2e/0) | W249: Description (see Capital Carbon Summary Sheets for full specifications)
J250: =IFERROR(VLOOKUP($M250, 'C-Background_Data'!$B$11:$J$219, 8,FALSE), "") ->  | M250: =IF($E243="", "", _xlfn.CHOOSECOLS(_xlfn._xlws.SORT(_xlfn._xlws.FILTER('C-Background_Data'!$B$11:$I$219, 'C-Background_Data'!$D$11:$D$219='I-User_Input'!$E$243, ""),8,1),1)) ->  | O250: =IFERROR(VLOOKUP($M250, 'C-Background_Data'!$B$11:$J$219, 4,FALSE), "") ->  | U250: =IFERROR(VLOOKUP($M250, 'C-Background_Data'!$B$11:$J$219,7,FALSE), "") ->  | W250: =IFERROR(VLOOKUP($M250, 'C-Background_Data'!$B$11:$J$219,9,FALSE), "") -> 
J251: =IFERROR(VLOOKUP($M251, 'C-Background_Data'!$B$11:$J$219, 8,FALSE), "") ->  | O251: =IFERROR(VLOOKUP($M251, 'C-Background_Data'!$B$11:$J$219, 4,FALSE), "") ->  | U251: =IFERROR(VLOOKUP($M251, 'C-Background_Data'!$B$11:$J$219,7,FALSE), "") ->  | W251: =IFERROR(VLOOKUP($M251, 'C-Background_Data'!$B$11:$J$219,9,FALSE), "") -> 
J252: =IFERROR(VLOOKUP($M252, 'C-Background_Data'!$B$11:$J$219, 8,FALSE), "") ->  | O252: =IFERROR(VLOOKUP($M252, 'C-Background_Data'!$B$11:$J$219, 4,FALSE), "") ->  | U252: =IFERROR(VLOOKUP($M252, 'C-Background_Data'!$B$11:$J$219,7,FALSE), "") ->  | W252: =IFERROR(VLOOKUP($M252, 'C-Background_Data'!$B$11:$J$219,9,FALSE), "") -> 
J253: =IFERROR(VLOOKUP($M253, 'C-Background_Data'!$B$11:$J$219, 8,FALSE), "") ->  | O253: =IFERROR(VLOOKUP($M253, 'C-Background_Data'!$B$11:$J$219, 4,FALSE), "") ->  | U253: =IFERROR(VLOOKUP($M253, 'C-Background_Data'!$B$11:$J$219,7,FALSE), "") ->  | W253: =IFERROR(VLOOKUP($M253, 'C-Background_Data'!$B$11:$J$219,9,FALSE), "") -> 
J254: =IFERROR(VLOOKUP($M254, 'C-Background_Data'!$B$11:$J$219, 8,FALSE), "") ->  | O254: =IFERROR(VLOOKUP($M254, 'C-Background_Data'!$B$11:$J$219, 4,FALSE), "") ->  | U254: =IFERROR(VLOOKUP($M254, 'C-Background_Data'!$B$11:$J$219,7,FALSE), "") ->  | W254: =IFERROR(VLOOKUP($M254, 'C-Background_Data'!$B$11:$J$219,9,FALSE), "") -> 
J255: =IFERROR(VLOOKUP($M255, 'C-Background_Data'!$B$11:$J$219, 8,FALSE), "") ->  | O255: =IFERROR(VLOOKUP($M255, 'C-Background_Data'!$B$11:$J$219, 4,FALSE), "") ->  | U255: =IFERROR(VLOOKUP($M255, 'C-Background_Data'!$B$11:$J$219,7,FALSE), "") ->  | W255: =IFERROR(VLOOKUP($M255, 'C-Background_Data'!$B$11:$J$219,9,FALSE), "") -> 
J256: =IFERROR(VLOOKUP($M256, 'C-Background_Data'!$B$11:$J$219, 8,FALSE), "") ->  | O256: =IFERROR(VLOOKUP($M256, 'C-Background_Data'!$B$11:$J$219, 4,FALSE), "") ->  | U256: =IFERROR(VLOOKUP($M256, 'C-Background_Data'!$B$11:$J$219,7,FALSE), "") ->  | W256: =IFERROR(VLOOKUP($M256, 'C-Background_Data'!$B$11:$J$219,9,FALSE), "") -> 
J257: =IFERROR(VLOOKUP($M257, 'C-Background_Data'!$B$11:$J$219, 8,FALSE), "") ->  | O257: =IFERROR(VLOOKUP($M257, 'C-Background_Data'!$B$11:$J$219, 4,FALSE), "") ->  | U257: =IFERROR(VLOOKUP($M257, 'C-Background_Data'!$B$11:$J$219,7,FALSE), "") ->  | W257: =IFERROR(VLOOKUP($M257, 'C-Background_Data'!$B$11:$J$219,9,FALSE), "") -> 
J258: =IFERROR(VLOOKUP($M258, 'C-Background_Data'!$B$11:$J$219, 8,FALSE), "") ->  | O258: =IFERROR(VLOOKUP($M258, 'C-Background_Data'!$B$11:$J$219, 4,FALSE), "") ->  | U258: =IFERROR(VLOOKUP($M258, 'C-Background_Data'!$B$11:$J$219,7,FALSE), "") ->  | W258: =IFERROR(VLOOKUP($M258, 'C-Background_Data'!$B$11:$J$219,9,FALSE), "") -> 
J259: =IFERROR(VLOOKUP($M259, 'C-Background_Data'!$B$11:$J$219, 8,FALSE), "") ->  | O259: =IFERROR(VLOOKUP($M259, 'C-Background_Data'!$B$11:$J$219, 4,FALSE), "") ->  | U259: =IFERROR(VLOOKUP($M259, 'C-Background_Data'!$B$11:$J$219,7,FALSE), "") ->  | W259: =IFERROR(VLOOKUP($M259, 'C-Background_Data'!$B$11:$J$219,9,FALSE), "") -> 
J260: <<< Expand [+] for details

Sheet Calcs>>
C11: Calculations

Sheet C-Background_Data
C2: File Name: | E2: =IFERROR(MID(CELL("filename",E2),FIND("[",CELL("filename",E2))+1,FIND("]",CELL("filename",E2))-FIND("[",CELL("filename",E2))-1),"Please save the file to show here") -> LTICBT Excel Tool.xlsm
C3: Sheet Name: | E3: =IFERROR(MID(CELL("filename",E2),FIND("]",CELL("filename",E2))+1,255),"Please save the file to show here") -> C-Background_Data
C4: Description & Purpose of Sheet: | E4: Stores the benchmark data to be pulled through to the carbon intensity guidance table on the I-User Input worksheet.
C5: Version: | E5: 0.01
B7: Background Data - Table of Benchmarks
B9: Benchmark ID (if applicable) | C9: Category | D9: Intervention Type | E9: Benchmark | F9: Benchmark Units | G9: Carbon Units | H9: A1-A5 Emission Factor (tCO2e) | I9: Lever Placement | J9: Description | K9: A1-A3 Emission Factor (tCO2e) | L9: A4 Emission Factor (tCO2e) | M9: A5 Emission Factor (tCO2e) | N9: Direct Works Cost (£/unit) 2015 | O9: B4 Emission Factor (tCO2e) | P9: B4 as % of A1-A4 | R9: Contingency Factor | S9: A1-A3 Emission Factor (tCO2e) | T9: A4 Emission Factor (tCO2e) | U9: A5 Emission Factor (tCO2e) | V9: B4 Emission Factor (tCO2e)
B11: FP1 | C11: Active Travel | D11: Footway | E11: New footway (min width) | F11: m | G11: =IF(B11="", "", CONCATENATE("tCO2e/", F11)) -> tCO2e/m | H11: =IF(B11= "", "", SUM(S11:U11)) -> 0.06398044544 | I11: =IFERROR(ROUND(INDEX('C-Intervention_Grouping'!$B$10:$BA$163,(SUMPRODUCT(('C-Intervention_Grouping'!$B$10:$BA$163='C-Background_Data'!$B11)*(ROW('C-Intervention_Grouping'!$B$10:$BA$163)))+95),(SUMPRODUCT(('C-Intervention_Grouping'!$B$10:$BA$163='C-Background_Data'!$B11)*(COLUMN('C-Intervention_Grouping'!$B$10:$BA$163))))-1),0), "") -> 10 | J11: Construction of a 1.6m-wide flexible footway including kerbing on carriageway side | K11: 0.04406706191 | L11: 0.00992616975 | M11: 0.001641938288 | N11: 117.2813063 | O11: 0.05399323166 | P11: =IFERROR(O11/SUM(K11:L11),"") -> 1 | R11: 0.15 | S11: =K11*($R11+100%) -> 0.0506771212 | T11: =L11*($R11+100%) -> 0.01141509521 | U11: =M11*($R11+100%) -> 0.001888229031 | V11: =O11*($R11+100%) -> 0.06209221641
B12: FP2 | C12: Active Travel | D12: Footway | E12: Shared Use Path | F12: m | G12: tCO2e/m | H12: =IF(B12= "", "", SUM(S12:U12)) -> 0.1935922997 | I12: =IFERROR(ROUND(INDEX('C-Intervention_Grouping'!$B$10:$BA$163,(SUMPRODUCT(('C-Intervention_Grouping'!$B$10:$BA$163='C-Background_Data'!$B12)*(ROW('C-Intervention_Grouping'!$B$10:$BA$163)))+95),(SUMPRODUCT(('C-Intervention_Grouping'!$B$10:$BA$163='C-Background_Data'!$B12)*(COLUMN('C-Intervention_Grouping'!$B$10:$BA$163))))-1),0), "") -> 90 | J12: Construction of a 4.5m-wide shared use path independent of any existing carriageway. | K12: 0.1355164701 | L12: 0.02706875739 | M12: 0.005755902749 | N12: 411.1359107 | O12: 0.1625852275 | P12: 1 | R12: 0.15 | S12: =K12*($R12+100%) -> 0.1558439406 | T12: =L12*($R12+100%) -> 0.031129071 | U12: =M12*($R12+100%) -> 0.006619288162 | V12: =O12*($R12+100%) -> 0.1869730116
B13: FP3 | C13: Active Travel | D13: Footway | E13: Local Street Footway | F13: m | G13: tCO2e/m | H13: 0.1066385072 | I13: =IFERROR(ROUND(INDEX('C-Intervention_Grouping'!$B$10:$BA$163,(SUMPRODUCT(('C-Intervention_Grouping'!$B$10:$BA$163='C-Background_Data'!$B13)*(ROW('C-Intervention_Grouping'!$B$10:$BA$163)))+95),(SUMPRODUCT(('C-Intervention_Grouping'!$B$10:$BA$163='C-Background_Data'!$B13)*(COLUMN('C-Intervention_Grouping'!$B$10:$BA$163))))-1),0), "") -> 36 | J13: Disaggregated benchmark for the construction of a typical 2.5m-wide flexible footway on one side of a carriageway. Where carriageway and roadside elements construction is also proposed, selection of CA1 & RE1 benchmarks is expected. | K13: 0.07372241161 | L13: 0.01794065595 | M13: 0.001066069156 | N13: 76.14779685 | O13: 0.09166306756 | P13: 1 | R13: 0.15 | S13: 0.08478077335 | T13: 0.02063175434 | U13: 0.001225979529 | V13: 0.1054125277
B14: FP4 | C14: Active Travel | D14: Footway | E14: Primary Road Footway | F14: m | G14: =IF(B14="", "", CONCATENATE("tCO2e/", F14)) -> tCO2e/m | H14: 0.1307097035 | I14: =IFERROR(ROUND(INDEX('C-Intervention_Grouping'!$B$10:$BA$163,(SUMPRODUCT(('C-Intervention_Grouping'!$B$10:$BA$163='C-Background_Data'!$B14)*(ROW('C-Intervention_Grouping'!$B$10:$BA$163)))+95),(SUMPRODUCT(('C-Intervention_Grouping'!$B$10:$BA$163='C-Background_Data'!$B14)*(COLUMN('C-Intervention_Grouping'!$B$10:$BA$163))))-1),0), "") -> 51 | J14: Disaggregated benchmark for the construction of a typical 3m wide flexible footway with edging on one side of a carriageway. Where carriageway and roadside elements construction is also proposed, selection of CA2 & RE2 benchmarks is expected. | K14: 0.08993311161 | L14: 0.0217341432 | M14: 0.001993356946 | N14: 142.382639 | O14: 0.1116672548 | P14: =IFERROR(O14/SUM(K14:L14),"") -> 1 | R14: 0.15 | S14: 0.1034230784 | T14: 0.02499426468 | U14: 0.002292360487 | V14: 0.128417343
B15: CL1 | C15: Active Travel | D15: Cycle Lane | E15: Light segregation | F15: m | G15: tCO2e/m | H15: 0.008526382895 | I15: =IFERROR(ROUND(INDEX('C-Intervention_Grouping'!$B$10:$BA$163,(SUMPRODUCT(('C-Intervention_Grouping'!$B$10:$BA$163='C-Background_Data'!$B15)*(ROW('C-Intervention_Grouping'!$B$10:$BA$163)))+95),(SUMPRODUCT(('C-Intervention_Grouping'!$B$10:$BA$163='C-Background_Data'!$B15)*(COLUMN('C-Intervention_Grouping'!$B$10:$BA$163))))-1),0), "") -> 10 | J15: Minimum cycle lane provision - delineation of a 2m-wide one-way cycle lane with marker posts, intermittent microsurfacing asphalt, and road markings. | K15: 0.007028992 | L15: 0.0001228813219 | M15: 0.0002623726738 | N15: 18.74090527 | O15: 0.07026553343 | P15: 9.824773213 | R15: 0.15 | S15: 0.0080833408 | T15: 0.0001413135202 | U15: 0.0003017285749 | V15: 0.08080536345
B16: CL2 | C16: Active Travel | D16: Cycle Lane | E16: Stepped cycle track | F16: m | G16: tCO2e/m | H16: =IF(B16= "", "", SUM(S16:U16)) -> 0.1197724784 | I16: =IFERROR(ROUND(INDEX('C-Intervention_Grouping'!$B$10:$BA$163,(SUMPRODUCT(('C-Intervention_Grouping'!$B$10:$BA$163='C-Background_Data'!$B16)*(ROW('C-Intervention_Grouping'!$B$10:$BA$163)))+95),(SUMPRODUCT(('C-Intervention_Grouping'!$B$10:$BA$163='C-Background_Data'!$B16)*(COLUMN('C-Intervention_Grouping'!$B$10:$BA$163))))-1),0), "") -> 83 | J16: Construction of a 2m-wide stepped one-way cycle lane raised 75mm above the carriageway (typically a further step of approx. 75mm exists up to footway level), includes intermittent microsurfacing asphalt and road markings. | K16: 0.08699950934 | L16: 0.0155273594 | M16: 0.001623112498 | N16: 115.936607 | O16: 0.1165784418 | P16: =IFERROR(O16/SUM(K16:L16),"") -> 1.137052591 | R16: 0.15 | S16: 0.1000494357 | T16: 0.01785646331 | U16: 0.001866579373 | V16: 0.1340652081
B17: CL3 | C17: Active Travel | D17: Cycle Lane | E17: Fully kerbed cycle track | F17: m | G17: tCO2e/m | H17: 0.06606584913 | I17: =IFERROR(ROUND(INDEX('C-Intervention_Grouping'!$B$10:$BA$163,(SUMPRODUCT(('C-Intervention_Grouping'!$B$10:$BA$163='C-Background_Data'!$B17)*(ROW('C-Intervention_Grouping'!$B$10:$BA$163)))+95),(SUMPRODUCT(('C-Intervention_Grouping'!$B$10:$BA$163='C-Background_Data'!$B17)*(COLUMN('C-Intervention_Grouping'!$B$10:$BA$163))))-1),0), "") -> 48 | J17: Construction of a 0.5m-wide, 0.15m-tall buffer kerb, creating a 2m-wide one-way cycle lane separated from general traffic. Includes intermittent Microsurfacing Asphalt and road markings. | K17: 0.05076546146 | L17: 0.005217691786 | M17: 0.001465411214 | N17: 104.6722296 | O17: 0.0733947063 | P17: 1.311014154 | R17: 0.15 | S17: 0.05838028068 | T17: 0.006000345553 | U17: 0.001685222896 | V17: 0.08440391225
B18: CL4 | C18: Active Travel | D18: Cycle Lane | E18: Cycle track (new track) | F18: m | G18: tCO2e/m | H18: 0.1297244398 | I18: =IFERROR(ROUND(INDEX('C-Intervention_Grouping'!$B$10:$BA$163,(SUMPRODUCT(('C-Intervention_Grouping'!$B$10:$BA$163='C-Background_Data'!$B18)*(ROW('C-Intervention_Grouping'!$B$10:$BA$163)))+95),(SUMPRODUCT(('C-Intervention_Grouping'!$B$10:$BA$163='C-Background_Data'!$B18)*(COLUMN('C-Intervention_Grouping'!$B$10:$BA$163))))-1),0), "") -> 90 | J18: Construction of a 3m-wide bi-directional cycle track independent of any existing carriageway. | K18: 0.08904872875 | L18: 0.02073667547 | M18: 0.003018456477 | N18: 215.6040341 | O18: 0.1423111526 | P18: 1.2962666 | R18: 0.15 | S18: 0.1024060381 | T18: 0.02384717679 | U18: 0.003471224949 | V18: 0.1636578255
B19: SC1 | C19: Corridor | D19: Travel Corridor [Case Studies] | E19: [Case Study] Active Travel Provision (along approx. 85-100% of corridor length) | F19: m | G19: tCO2e/m | H19: =IF(B19= "", "", SUM(S19:U19)) -> 0.1042057681 | I19: =IFERROR(ROUND(INDEX('C-Intervention_Grouping'!$B$10:$BA$163,(SUMPRODUCT(('C-Intervention_Grouping'!$B$10:$BA$163='C-Background_Data'!$B19)*(ROW('C-Intervention_Grouping'!$B$10:$BA$163)))+95),(SUMPRODUCT(('C-Intervention_Grouping'!$B$10:$BA$163='C-Background_Data'!$B19)*(COLUMN('C-Intervention_Grouping'!$B$10:$BA$163))))-1),0), "") -> 15 | J19: Case study of the active travel elements of a corridor enhancement scheme, including the introduction of a fully segregated 2-way cycle route along approx. 90% of the corridor length, demarkation of on-road cycle lanes along the other 10% of the corridor length, introduction of new footway along approx. 85% of the corridor length, and other associated infrastracture along the corridor such as parallel crossings (approx. every 1.5-2km), and verges (approx 500m2 per km). | K19: 0.07409245711 | L19: 0.01406402916 | M19: 0.002457225078 | N19: 175.516077 | O19: 0.09902579087 | P19: 1.123295574 | R19: 0.15 | S19: =K19*($R19+100%) -> 0.08520632568 | T19: 0.01617363353 | U19: 0.00282580884 | V19: 0.1138796595
B20: SC2 | C20: Corridor | D20: Travel Corridor [Case Studies] | E20: [Case Study] Active Travel Provision (along approx. 85-100% of corridor length) + Bus Provision (along approx. 3% of corridor length) | F20: m | G20: tCO2e/m | H20: 0.1143766014 | I20: =IFERROR(ROUND(INDEX('C-Intervention_Grouping'!$B$10:$BA$163,(SUMPRODUCT(('C-Intervention_Grouping'!$B$10:$BA$163='C-Background_Data'!$B20)*(ROW('C-Intervention_Grouping'!$B$10:$BA$163)))+95),(SUMPRODUCT(('C-Intervention_Grouping'!$B$10:$BA$163='C-Background_Data'!$B20)*(COLUMN('C-Intervention_Grouping'!$B$10:$BA$163))))-1),0), "") -> 16 | J20: Case study of a corridor enhancement scheme including the introduction of a fully segregated 2-way cycle route along approx. 90% of the corridor length, demarkation of on-road cycle lanes along the other 10% of the corridor length, introduction of a new footway along approx. 85% of the corridor length, other associated infrastructure along the corridor such as parallel crossings (approx. every 1.5-2km) and verges (approx. 500m2 per km), road widening to introduce a new bus lane along approx. 3% of the corridor length, junction improvements (approx. every 15-20km), and earthworks. | K20: 0.07786106245 | L20: 0.01753332917 | M20: 0.004063522627 | N20: 290.2516162 | O20: 0.1036101253 | P20: 1.086123864 | R20: 0.15 | S20: 0.08954022182 | T20: 0.02016332854 | U20: 0.004673051021 | V20: 0.1191516441
B21: SC3 | C21: Corridor | D21: Travel Corridor [Case Studies] | E21: [Case Study] Active Travel Provision (along approx. 45-60% of corridor length) + Bus Provision (along approx. 25-50% of corridor length) | F21: m | G21: tCO2e/m | H21: 0.5708758621 | I21: =IFERROR(ROUND(INDEX('C-Intervention_Grouping'!$B$10:$BA$163,(SUMPRODUCT(('C-Intervention_Grouping'!$B$10:$BA$163='C-Background_Data'!$B21)*(ROW('C-Intervention_Grouping'!$B$10:$BA$163)))+95),(SUMPRODUCT(('C-Intervention_Grouping'!$B$10:$BA$163='C-Background_Data'!$B21)*(COLUMN('C-Intervention_Grouping'!$B$10:$BA$163))))-1),0), "") -> 90 | J21: Case study of a corridor enhancment scheme, including implementation of new bus lanes along approx. 50% of the corridor length in one direction and 25% of the corridor in the other direction, construction of a fully segregated 2-way cycle route along approx. 20% of the corridor, introduction of new shared cycle/pedestrian space along approx. 15% of the corridor, improved existing shared cycle/pedestrian space along approx. 15% of the corridor, pedestrian and cycle crossing improvements, and integrated local connections at sites approximately every 1.5km along the corridor. | K21: 0.3848965517 | L21: 0.06186206897 | M21: 0.04965517241 | N21: 1492.486306 | O21: 0.2496012449 | P21: 0.5586937404 | R21: 0.15 | S21: 0.4426310345 | T21: 0.07114137931 | U21: 0.05710344828 | V21: 0.2870414316
B22: SC4 | C22: Corridor | D22: Travel Corridor [Case Studies] | E22: [Case Study] Active Travel Provision (along approx. 10-15% of corridor length) + Bus Provision (along approx. 10-15% of corridor length) | F22: m | G22: =IF(B22="", "", CONCATENATE("tCO2e/", F22)) -> tCO2e/m | H22: 0.07582078496 | I22: =IFERROR(ROUND(INDEX('C-Intervention_Grouping'!$B$10:$BA$163,(SUMPRODUCT(('C-Intervention_Grouping'!$B$10:$BA$163='C-Background_Data'!$B22)*(ROW('C-Intervention_Grouping'!$B$10:$BA$163)))+95),(SUMPRODUCT(('C-Intervention_Grouping'!$B$10:$BA$163='C-Background_Data'!$B22)*(COLUMN('C-Intervention_Grouping'!$B$10:$BA$163))))-1),0), "") -> 10 | J22: Case study of a corridor enhancement scheme including the implmenetation of new bus and cycle lanes along approx. 10-15% of the corridor length. Also includes upgraded signalisation, new bus stops, new pedestrian crossings, and footway widening. | K22: 0.05202858022 | L22: 0.01090352011 | M22: 0.002999017035 | N22: 215.9865926 | O22: 2.698148e-06 | P22: 4.287395441e-05 | R22: 0.15 | S22: 0.05983286725 | T22: 0.01253904813 | U22: 0.003448869591 | V22: 3.1028702e-06
B23: PC1 | C23: Active Travel | D23: Pedestrian/Cycle Crossing | E23: Zebra Crossing | F23: no. | G23: tCO2e/no. | H23: 4.061671367 | I23: =IFERROR(ROUND(INDEX('C-Intervention_Grouping'!$B$10:$BA$163,(SUMPRODUCT(('C-Intervention_Grouping'!$B$10:$BA$163='C-Background_Data'!$B23)*(ROW('C-Intervention_Grouping'!$B$10:$BA$163)))+95),(SUMPRODUCT(('C-Intervention_Grouping'!$B$10:$BA$163='C-Background_Data'!$B23)*(COLUMN('C-Intervention_Grouping'!$B$10:$BA$163))))-1),0), "") -> 17 | J23: Construction of a 2.8m-wide Zebra Crossing across a local street (5.5m crossing distance), including kerbs, tactile paving, and beacons. | K23: 3.30325219 | L23: 0.1858072837 | M23: 0.04282867091 | N23: 3181.894585 | O23: 8.07353254 | P23: 2.313956698 | R23: 0.15 | S23: 3.798740019 | T23: 0.2136783763 | U23: 0.04925297155 | V23: 9.284562421
B24: PC2 | C24: Active Travel | D24: Pedestrian/Cycle Crossing | E24: Puffin Crossing | F24: no. | G24: tCO2e/no. | H24: 10.79237236 | I24: =IFERROR(ROUND(INDEX('C-Intervention_Grouping'!$B$10:$BA$163,(SUMPRODUCT(('C-Intervention_Grouping'!$B$10:$BA$163='C-Background_Data'!$B24)*(ROW('C-Intervention_Grouping'!$B$10:$BA$163)))+95),(SUMPRODUCT(('C-Intervention_Grouping'!$B$10:$BA$163='C-Background_Data'!$B24)*(COLUMN('C-Intervention_Grouping'!$B$10:$BA$163))))-1),0), "") -> 73 | J24: Construction of a 3.2m-wide Puffin Crossing across a primary road (15.6m crossing distance), including kerbs, tactile paving, and traffic signals and signs. | K24: 8.486315745 | L24: 0.5531974441 | M24: 0.3451584258 | N24: 24654.17327 | O24: 21.85901657 | P24: 2.418163027 | R24: 0.15 | S24: 9.759263106 | T24: 0.6361770607 | U24: 0.3969321897 | V24: 25.13786906
B25: PC3 | C25: Active Travel | D25: Pedestrian/Cycle Crossing | E25: Toucan Crossing | F25: no. | G25: tCO2e/no. | H25: 12.77865336 | I25: =IFERROR(ROUND(INDEX('C-Intervention_Grouping'!$B$10:$BA$163,(SUMPRODUCT(('C-Intervention_Grouping'!$B$10:$BA$163='C-Background_Data'!$B25)*(ROW('C-Intervention_Grouping'!$B$10:$BA$163)))+95),(SUMPRODUCT(('C-Intervention_Grouping'!$B$10:$BA$163='C-Background_Data'!$B25)*(COLUMN('C-Intervention_Grouping'!$B$10:$BA$163))))-1),0), "") -> 90 | J25: Construction of a 4m-wide Toucan crossing across a primary road (15.6m crossing distance) designed for use by pedestrians and cycle-users at once, including kerbs, tactile paving, and traffic signals and signs. | K25: 10.08266328 | L25: 0.6100537925 | M25: 0.4191554154 | N25: 29939.67253 | O25: 23.624967 | P25: 2.209444694 | R25: 0.15 | S25: 11.59506277 | T25: 0.7015618614 | U25: 0.4820287278 | V25: 27.16871205
B26: PC4 | C26: Active Travel | D26: Pedestrian/Cycle Crossing | E26: Refuge Island | F26: no. | G26: =IF(B26="", "", CONCATENATE("tCO2e/", F26)) -> tCO2e/no. | H26: 3.212250255 | I26: =IFERROR(ROUND(INDEX('C-Intervention_Grouping'!$B$10:$BA$163,(SUMPRODUCT(('C-Intervention_Grouping'!$B$10:$BA$163='C-Background_Data'!$B26)*(ROW('C-Intervention_Grouping'!$B$10:$BA$163)))+95),(SUMPRODUCT(('C-Intervention_Grouping'!$B$10:$BA$163='C-Background_Data'!$B26)*(COLUMN('C-Intervention_Grouping'!$B$10:$BA$163))))-1),0), "") -> 10 | J26: Construction of a pedestrian refuge island adhereing to minimum accessible design guidance with 1.5m width and 2.5m length | K26: 2.666823159 | L26: 0.120901244 | M26: 0.005536688198 | N26: 395.4777284 | O26: 2.787724403 | P26: =IFERROR(O26/SUM(K26:L26),"") -> 1 | R26: 0.15 | S26: 3.066846633 | T26: 0.1390364306 | U26: 0.006367191428 | V26: 3.205883064
B27: PB1 | C27: Structures | D27: Pedestrian/Cycle Bridge | E27: Single Span Pedestrian / Cycle Steel Truss Bridge, approx. 4m wide | F27: m | G27: tCO2e/m | H27: 6.683559713 | I27: =IFERROR(ROUND(INDEX('C-Intervention_Grouping'!$B$10:$BA$163,(SUMPRODUCT(('C-Intervention_Grouping'!$B$10:$BA$163='C-Background_Data'!$B27)*(ROW('C-Intervention_Grouping'!$B$10:$BA$163)))+95),(SUMPRODUCT(('C-Intervention_Grouping'!$B$10:$BA$163='C-Background_Data'!$B27)*(COLUMN('C-Intervention_Grouping'!$B$10:$BA$163))))-1),0), "") -> 10 | J27: Case study of a single span pedestrian / cycle steel truss bridge, approx. 4m wide. | K27: 4.86381803 | L27: 0.7925405315 | M27: 0.1554324933 | O27: 0 | P27: =IFERROR(O27/SUM(K27:L27),"") -> 0 | R27: 0.15 | S27: 5.593390735 | T27: 0.9114216112 | U27: 0.1787473673 | V27: 0
B28: PB2 | C28: Structures | D28: Pedestrian/Cycle Bridge | E28: Multiple Span Pedestrian / Cycle Steel Truss Bridge, approx. 4m wide | F28: m | G28: tCO2e/m | H28: 9.39433968 | I28: =IFERROR(ROUND(INDEX('C-Intervention_Grouping'!$B$10:$BA$163,(SUMPRODUCT(('C-Intervention_Grouping'!$B$10:$BA$163='C-Background_Data'!$B28)*(ROW('C-Intervention_Grouping'!$B$10:$BA$163)))+95),(SUMPRODUCT(('C-Intervention_Grouping'!$B$10:$BA$163='C-Background_Data'!$B28)*(COLUMN('C-Intervention_Grouping'!$B$10:$BA$163))))-1),0), "") -> 90 | J28: Case study of a multiple span pedestrian / cycle steel truss bridge, approx. 4m wide. | K28: 5.316808405 | L28: 2.568635422 | M28: 0.2835471998 | O28: 0 | P28: 0 | R28: 0.15 | S28: 6.114329665 | T28: 2.953930735 | U28: 0.3260792797 | V28: 0
B29: PS1 | C29: Structures | D29: Pedestrian/Cycle Subway | E29: Pedestrian / Cycle subway, 5m wide, below single carriageway | F29: m | G29: tCO2e/m | H29: 11.17913668 | I29: =IFERROR(ROUND(INDEX('C-Intervention_Grouping'!$B$10:$BA$163,(SUMPRODUCT(('C-Intervention_Grouping'!$B$10:$BA$163='C-Background_Data'!$B29)*(ROW('C-Intervention_Grouping'!$B$10:$BA$163)))+95),(SUMPRODUCT(('C-Intervention_Grouping'!$B$10:$BA$163='C-Background_Data'!$B29)*(COLUMN('C-Intervention_Grouping'!$B$10:$BA$163))))-1),0), "") -> 10 | J29: Case study of a reinforced concrete box subway, approx. 5m wide, below two-lane single carriageway (no central verge) above. | K29: 5.01191447 | L29: 3.892288039 | M29: 0.8167859078 | O29: 0 | P29: 0 | R29: 0.15 | S29: 5.763701641 | T29: 4.476131245 | U29: 0.939303794 | V29: 0
B30: PS2 | C30: Structures | D30: Pedestrian/Cycle Subway | E30: Pedestrian / Cycle subway, 5m wide, below dual carriageway | F30: m | G30: tCO2e/m | H30: 18.60250073 | I30: =IFERROR(ROUND(INDEX('C-Intervention_Grouping'!$B$10:$BA$163,(SUMPRODUCT(('C-Intervention_Grouping'!$B$10:$BA$163='C-Background_Data'!$B30)*(ROW('C-Intervention_Grouping'!$B$10:$BA$163)))+95),(SUMPRODUCT(('C-Intervention_Grouping'!$B$10:$BA$163='C-Background_Data'!$B30)*(COLUMN('C-Intervention_Grouping'!$B$10:$BA$163))))-1),0), "") -> 51 | J30: Case study of a reinforced concrete box subway, approx. 5m wide, below four-lane dual carriageway with central verge above. | K30: 9.80726582 | L30: 5.857576128 | M30: 0.5112456429 | O30: 0 | P30: 0 | R30: 0.15 | S30: 11.27835569 | T30: 6.736212548 | U30: 0.5879324893 | V30: 0
B31: PS3 | C31: Structures | D31: Pedestrian/Cycle Subway | E31: Pedestrian / Cycle subway, approx. 5m wide, incl. approach ramps | F31: m | G31: tCO2e/m | H31: 25.65277546 | I31: =IFERROR(ROUND(INDEX('C-Intervention_Grouping'!$B$10:$BA$163,(SUMPRODUCT(('C-Intervention_Grouping'!$B$10:$BA$163='C-Background_Data'!$B31)*(ROW('C-Intervention_Grouping'!$B$10:$BA$163)))+95),(SUMPRODUCT(('C-Intervention_Grouping'!$B$10:$BA$163='C-Background_Data'!$B31)*(COLUMN('C-Intervention_Grouping'!$B$10:$BA$163))))-1),0), "") -> 90 | J31: Case study of a reinforced concrete box subway, approx. 5m wide, and including approach ramps on each side with length approximately 15x the depth of the subway. | K31: 12.00239978 | L31: 7.697562137 | M31: 2.606799355 | O31: 0 | P31: 0 | R31: 0.15 | S31: 13.80275975 | T31: 8.852196458 | U31: 2.997819259 | V31: 0
B32: PD1 | C32: Parking, Docking & Charging | D32: Parking & Docking for Active Travel Modes | E32: Bike parking loop - Sheffield Stand | F32: no. | G32: tCO2e/no. | H32: 0.0332487885 | I32: =IFERROR(ROUND(INDEX('C-Intervention_Grouping'!$B$10:$BA$163,(SUMPRODUCT(('C-Intervention_Grouping'!$B$10:$BA$163='C-Background_Data'!$B32)*(ROW('C-Intervention_Grouping'!$B$10:$BA$163)))+95),(SUMPRODUCT(('C-Intervention_Grouping'!$B$10:$BA$163='C-Background_Data'!$B32)*(COLUMN('C-Intervention_Grouping'!$B$10:$BA$163))))-1),0), "") -> 10 | J32: Single, sheffield bike stand made of galvanised steel (8kgs), with ready mix concrete foundations (x2). | K32: 0.026986039 | L32: 0.000514017 | M32: 0.001411934 | N32: 100.8524433 | O32: 0.02750005617 | P32: 1.000000006 | R32: 0.15 | S32: 0.03103394485 | T32: 0.00059111955 | U32: 0.0016237241 | V32: 0.0316250646
B33: PD2 | C33: Parking, Docking & Charging | D33: Parking & Docking for Active Travel Modes | E33: Bike/scooter Docking Station | F33: no. | G33: tCO2e/no. | H33: 0.2564187038 | I33: =IFERROR(ROUND(INDEX('C-Intervention_Grouping'!$B$10:$BA$163,(SUMPRODUCT(('C-Intervention_Grouping'!$B$10:$BA$163='C-Background_Data'!$B33)*(ROW('C-Intervention_Grouping'!$B$10:$BA$163)))+95),(SUMPRODUCT(('C-Intervention_Grouping'!$B$10:$BA$163='C-Background_Data'!$B33)*(COLUMN('C-Intervention_Grouping'!$B$10:$BA$163))))-1),0), "") -> 17 | J33: Single docking point, made of hollow galvanised steel shell. | K33: 0.1345523161 | L33: 0.002571383887 | M33: 0.08584908597 | N33: 6132.077569 | O33: 0.1371237 | P33: 1 | R33: 0.15 | S33: 0.1547351635 | T33: 0.00295709147 | U33: 0.09872644886 | V33: 0.1576922549
B34: PD3 | C34: Parking, Docking & Charging | D34: Parking & Docking for Active Travel Modes | E34: Bike Storage Shelter | F34: no. | G34: =IF(B34="", "", CONCATENATE("tCO2e/", F34)) -> tCO2e/no. | H34: =IF(B34= "", "", SUM(S34:U34)) -> 2.755741344 | I34: =IFERROR(ROUND(INDEX('C-Intervention_Grouping'!$B$10:$BA$163,(SUMPRODUCT(('C-Intervention_Grouping'!$B$10:$BA$163='C-Background_Data'!$B34)*(ROW('C-Intervention_Grouping'!$B$10:$BA$163)))+95),(SUMPRODUCT(('C-Intervention_Grouping'!$B$10:$BA$163='C-Background_Data'!$B34)*(COLUMN('C-Intervention_Grouping'!$B$10:$BA$163))))-1),0), "") -> 90 | J34: Shelter for 7 sheffield bike stands (x14 bike capacity). | K34: 2.325856538 | L34: 0.0378246024 | M34: 0.03261568015 | N34: 2329.69144 | O34: 0.1925003932 | P34: =IFERROR(O34/SUM(K34:L34),"") -> 0.08144093122 | R34: 0.15 | S34: =K34*($R34+100%) -> 2.674735019 | T34: =L34*($R34+100%) -> 0.04349829276 | U34: =M34*($R34+100%) -> 0.03750803218 | V34: =O34*($R34+100%) -> 0.2213754522
B35: MF1 | C35: Active Travel | D35: Modal Filter | E35: Basic Modal Filter - Bollards | F35: no. | G35: tCO2e/no. | H35: 1.226833375 | I35: =IFERROR(ROUND(INDEX('C-Intervention_Grouping'!$B$10:$BA$163,(SUMPRODUCT(('C-Intervention_Grouping'!$B$10:$BA$163='C-Background_Data'!$B35)*(ROW('C-Intervention_Grouping'!$B$10:$BA$163)))+95),(SUMPRODUCT(('C-Intervention_Grouping'!$B$10:$BA$163='C-Background_Data'!$B35)*(COLUMN('C-Intervention_Grouping'!$B$10:$BA$163))))-1),0), "") -> 29 | J35: Introduction of a modal filter using bollards across a 5.5m-wide carriageway, designed to allow passage for cycling and walking while excluding motorised traffic. One bollard is removable to allow permitted motorised traffic. | K35: 1.008004042 | L35: 0.0346635134 | M35: 0.02414407492 | N35: 1724.57678 | O35: 0.9873885479 | P35: 0.9469830945 | R35: 0.15 | S35: 1.159204648 | T35: 0.03986304041 | U35: 0.02776568616 | V35: 1.13549683
B36: MF2 | C36: Active Travel | D36: Modal Filter | E36: Landscaped Modal Filter | F36: no. | G36: tCO2e/no. | H36: 0.6527356791 | I36: =IFERROR(ROUND(INDEX('C-Intervention_Grouping'!$B$10:$BA$163,(SUMPRODUCT(('C-Intervention_Grouping'!$B$10:$BA$163='C-Background_Data'!$B36)*(ROW('C-Intervention_Grouping'!$B$10:$BA$163)))+95),(SUMPRODUCT(('C-Intervention_Grouping'!$B$10:$BA$163='C-Background_Data'!$B36)*(COLUMN('C-Intervention_Grouping'!$B$10:$BA$163))))-1),0), "") -> 10 | J36: Introduction of a modal filter using planters or flower beds across a 5.5m-wide carriageway, designed to allow passage for cycling and walking while excluding all motorised traffic. | K36: 0.5180261202 | L36: 0.03640269178 | M36: 0.01316743072 | N36: 940.530766 | O36: 1.799924936 | P36: 3.246449133 | R36: 0.15 | S36: 0.5957300382 | T36: 0.04186309555 | U36: 0.01514254533 | V36: 2.069913676
B37: MF3 | C37: Active Travel | D37: Modal Filter | E37: Chicane Modal Filter | F37: no. | G37: =IF(B37="", "", CONCATENATE("tCO2e/", F37)) -> tCO2e/no. | H37: 3.079651806 | I37: =IFERROR(ROUND(INDEX('C-Intervention_Grouping'!$B$10:$BA$163,(SUMPRODUCT(('C-Intervention_Grouping'!$B$10:$BA$163='C-Background_Data'!$B37)*(ROW('C-Intervention_Grouping'!$B$10:$BA$163)))+95),(SUMPRODUCT(('C-Intervention_Grouping'!$B$10:$BA$163='C-Background_Data'!$B37)*(COLUMN('C-Intervention_Grouping'!$B$10:$BA$163))))-1),0), "") -> 90 | J37: Introduction of a modal filter using kerbed road narrowing hosting planting, leaving a bi-directional 3m wide cycle and pedestrian friendly opening while excluding all motorised traffic. One removable bollard placed in the centre of the opening allow permitted motorised traffic such as emergency services | K37: 2.559206927 | L37: 0.1039024858 | M37: 0.01484867961 | N37: 1060.619972 | O37: 3.437502516 | P37: 1.290785313 | R37: 0.15 | S37: 2.943087966 | T37: 0.1194878587 | U37: 0.01707598156 | V37: 3.953127894
B38: RS1 | C38: Rail | D38: Railway Station | E38: Railway Station Improvement | F38: no. | G38: tCO2e/no. | H38: 494.730235 | I38: =IFERROR(ROUND(INDEX('C-Intervention_Grouping'!$B$10:$BA$163,(SUMPRODUCT(('C-Intervention_Grouping'!$B$10:$BA$163='C-Background_Data'!$B38)*(ROW('C-Intervention_Grouping'!$B$10:$BA$163)))+95),(SUMPRODUCT(('C-Intervention_Grouping'!$B$10:$BA$163='C-Background_Data'!$B38)*(COLUMN('C-Intervention_Grouping'!$B$10:$BA$163))))-1),0), "") -> 10 | J38: Rail station improvement scheme including construction of new pedestrian bridge, associated lifts (x2) and stairs (x4). | K38: 385.3938922 | L38: 17.1110462 | M38: 27.69526594 | N38: 1978233.28 | O38: 401.2938259 | P38: 0.9969910618 | R38: 0.15 | S38: 443.202976 | T38: 19.67770313 | U38: 31.84955583 | V38: 461.4878998
B39: RS2 | C39: Rail | D39: Railway Station | E39: New Railway Station | F39: no. | G39: tCO2e/no. | H39: 3556.95 | I39: =IFERROR(ROUND(INDEX('C-Intervention_Grouping'!$B$10:$BA$163,(SUMPRODUCT(('C-Intervention_Grouping'!$B$10:$BA$163='C-Background_Data'!$B39)*(ROW('C-Intervention_Grouping'!$B$10:$BA$163)))+95),(SUMPRODUCT(('C-Intervention_Grouping'!$B$10:$BA$163='C-Background_Data'!$B39)*(COLUMN('C-Intervention_Grouping'!$B$10:$BA$163))))-1),0), "") -> 90 | J39: Construction of a new two-platform station on an existing two-track railway line, with a footbridge, small car park, and alterations to OHLE and track. Note: This benchmark has not been developed using the same methodology as others, and is based on a carbon assessment obtained by WSP from an external source. It is included as a guide only and to provide an indicative span of carbon intensity. | K39: 2559 | L39: 94 | M39: 440 | P39: 0 | R39: 0.15 | S39: 2942.85 | T39: 108.1 | U39: 506 | V39: 0
B40: BL1 | C40: Bus | D40: Bus Lane | E40: Reallocation to bus lane | F40: m | G40: tCO2e/m | H40: 0.3179150694 | I40: =IFERROR(ROUND(INDEX('C-Intervention_Grouping'!$B$10:$BA$163,(SUMPRODUCT(('C-Intervention_Grouping'!$B$10:$BA$163='C-Background_Data'!$B40)*(ROW('C-Intervention_Grouping'!$B$10:$BA$163)))+95),(SUMPRODUCT(('C-Intervention_Grouping'!$B$10:$BA$163='C-Background_Data'!$B40)*(COLUMN('C-Intervention_Grouping'!$B$10:$BA$163))))-1),0), "") -> 10 | J40: Conversion of an existing 6m-wide single-direction carriageway of 2 general traffic lanes (each 3m wide), to a carriageway with 1 narrow bus lane (3m wide) and 1 general traffic lane (3m wide), by repurposing of one lane. Includes resurfacing of upper layers for both the 3m-wide reallocated lane and 3m-wide retained general traffic lane. No amendments to kerbs or pavements. | K40: 0.21702384 | L40: 0.04969346652 | M40: 0.009730579902 | N40: 695.0414215 | O40: 0.3774525782 | P40: =IFERROR(O40/SUM(K40:L40),"") -> 1.415178427 | R40: 0.15 | S40: 0.249577416 | T40: 0.0571474865 | U40: 0.01119016689 | V40: 0.434070465
B41: BL2 | C41: Bus | D41: Bus Lane | E41: Widening to bus lane | F41: m | G41: tCO2e/m | H41: 0.6911093988 | I41: =IFERROR(ROUND(INDEX('C-Intervention_Grouping'!$B$10:$BA$163,(SUMPRODUCT(('C-Intervention_Grouping'!$B$10:$BA$163='C-Background_Data'!$B41)*(ROW('C-Intervention_Grouping'!$B$10:$BA$163)))+95),(SUMPRODUCT(('C-Intervention_Grouping'!$B$10:$BA$163='C-Background_Data'!$B41)*(COLUMN('C-Intervention_Grouping'!$B$10:$BA$163))))-1),0), "") -> 90 | J41: Widening of an existing 3.65m-wide single-direction carriageway by 4.5m to introduce a new 4.5m-wide bus lane. Includes full construction of the 4.5m-wide bus lane, resurfacing of the upper layers of the 3.65m-wide existing carriageway, and reconstruction of pavement and kerb on one side. | K41: 0.4524407319 | L41: 0.1211912627 | M41: 0.0273327 | N41: 1952.335214 | O41: 0.6906040366 | P41: 1.20391478 | R41: 0.15 | S41: 0.5203068416 | T41: 0.1393699522 | U41: 0.031432605 | V41: 0.7941946421
B42: BL3 | C42: Bus | D42: Bus Lane | E42: Partial widening to bus lane | F42: m | G42: tCO2e/m | H42: 0.5842036562 | I42: =IFERROR(ROUND(INDEX('C-Intervention_Grouping'!$B$10:$BA$163,(SUMPRODUCT(('C-Intervention_Grouping'!$B$10:$BA$163='C-Background_Data'!$B42)*(ROW('C-Intervention_Grouping'!$B$10:$BA$163)))+95),(SUMPRODUCT(('C-Intervention_Grouping'!$B$10:$BA$163='C-Background_Data'!$B42)*(COLUMN('C-Intervention_Grouping'!$B$10:$BA$163))))-1),0), "") -> 67 | J42: Widening of an existing 6m-wide single-direction carriageway by 1.5m to facilitate a new 4.5m-wide bus lane and retention of one 3m-wide general traffic lane. Includes full construction of the 1.5m widened carriageway, resurfacing of upper layers of the 6m-wide existing carriageway, and reconstruction of pavement and kerb on one side. | K42: 0.3929401919 | L42: 0.09519001347 | M42: 0.01987297395 | N42: 1419.498139 | O42: 0.47472944 | P42: 0.9725467401 | R42: 0.15 | S42: 0.4518812207 | T42: 0.1094685155 | U42: 0.02285392004 | V42: 0.545938856
B43: BG1 | C43: Bus | D43: Bus Gate | E43: Minimal Bus Gate | F43: no. | G43: tCO2e/no. | H43: 2.183295734 | I43: =IFERROR(ROUND(INDEX('C-Intervention_Grouping'!$B$10:$BA$163,(SUMPRODUCT(('C-Intervention_Grouping'!$B$10:$BA$163='C-Background_Data'!$B43)*(ROW('C-Intervention_Grouping'!$B$10:$BA$163)))+95),(SUMPRODUCT(('C-Intervention_Grouping'!$B$10:$BA$163='C-Background_Data'!$B43)*(COLUMN('C-Intervention_Grouping'!$B$10:$BA$163))))-1),0), "") -> 10 | J43: Minimum bus gate provision - includes signs and lines only. | K43: 1.807343066 | L43: 0.06172636057 | M43: 0.0294486022 | N43: 1692.115862 | O43: 3.250981188 | P43: 1.739358175 | R43: 0.15 | S43: 2.078444526 | T43: 0.07098531465 | U43: 0.03386589253 | V43: 3.738628366
B44: BG2 | C44: Bus | D44: Bus Gate | E44: Physically Separated Bus Gate | F44: no. | G44: tCO2e/no. | H44: 9.426720899 | I44: =IFERROR(ROUND(INDEX('C-Intervention_Grouping'!$B$10:$BA$163,(SUMPRODUCT(('C-Intervention_Grouping'!$B$10:$BA$163='C-Background_Data'!$B44)*(ROW('C-Intervention_Grouping'!$B$10:$BA$163)))+95),(SUMPRODUCT(('C-Intervention_Grouping'!$B$10:$BA$163='C-Background_Data'!$B44)*(COLUMN('C-Intervention_Grouping'!$B$10:$BA$163))))-1),0), "") -> 90 | J44: Construction of a traffic island separating buses from general traffic. Includes provision of signs and lines, and traffic lights to faciliate bus priority. | K44: 7.795239611 | L44: 0.2618461933 | M44: 0.1400628036 | N44: 10004.48597 | O44: 11.55620071 | P44: =IFERROR(O44/SUM(K44:L44),"") -> 1.434290386 | R44: 0.15 | S44: 8.964525552 | T44: 0.3011231223 | U44: 0.1610722241 | V44: 13.28963081
B45: BS1 | C45: Bus | D45: Bus Stop | E45: On-road | F45: no. | G45: tCO2e/no. | H45: 10.06582192 | I45: =IFERROR(ROUND(INDEX('C-Intervention_Grouping'!$B$10:$BA$163,(SUMPRODUCT(('C-Intervention_Grouping'!$B$10:$BA$163='C-Background_Data'!$B45)*(ROW('C-Intervention_Grouping'!$B$10:$BA$163)))+95),(SUMPRODUCT(('C-Intervention_Grouping'!$B$10:$BA$163='C-Background_Data'!$B45)*(COLUMN('C-Intervention_Grouping'!$B$10:$BA$163))))-1),0), "") -> 10 | J45: Minimum bus stop provision | K45: 8.380304802 | L45: 0.1203888454 | M45: 0.2521949814 | N45: 18013.92724 | O45: 14.33871713 | P45: 1.686770248 | R45: 0.15 | S45: 9.637350522 | T45: 0.1384471723 | U45: 0.2900242286 | V45: 16.4895247
B46: BS2 | C46: Bus | D46: Bus Stop | E46: Half-Width Bus Boarder (aka build out) | F46: no. | G46: tCO2e/no. | H46: 11.89391008 | I46: =IFERROR(ROUND(INDEX('C-Intervention_Grouping'!$B$10:$BA$163,(SUMPRODUCT(('C-Intervention_Grouping'!$B$10:$BA$163='C-Background_Data'!$B46)*(ROW('C-Intervention_Grouping'!$B$10:$BA$163)))+95),(SUMPRODUCT(('C-Intervention_Grouping'!$B$10:$BA$163='C-Background_Data'!$B46)*(COLUMN('C-Intervention_Grouping'!$B$10:$BA$163))))-1),0), "") -> 24 | J46: Half-width boarder (build-out) bus stop (1m), aligned with the specifications & dimensions in Figure 18 of the TfL Accessible Bus Stop Design Guidance. | K46: 9.674919239 | L46: 0.3726935048 | M46: 0.2949177572 | N46: 21065.55409 | O46: 16.68291003 | P46: 1.660385452 | R46: 0.15 | S46: 11.12615712 | T46: 0.4285975306 | U46: 0.3391554208 | V46: 19.18534654
B47: BS3 | C47: Bus | D47: Bus Stop | E47: Full Width Bus Boarder (aka build out) | F47: no. | G47: tCO2e/no. | H47: 12.4602365 | I47: =IFERROR(ROUND(INDEX('C-Intervention_Grouping'!$B$10:$BA$163,(SUMPRODUCT(('C-Intervention_Grouping'!$B$10:$BA$163='C-Background_Data'!$B47)*(ROW('C-Intervention_Grouping'!$B$10:$BA$163)))+95),(SUMPRODUCT(('C-Intervention_Grouping'!$B$10:$BA$163='C-Background_Data'!$B47)*(COLUMN('C-Intervention_Grouping'!$B$10:$BA$163))))-1),0), "") -> 28 | J47: Full-width boarder (build out) bus stop (2.5m), aligned with the specifications & dimensions in Figure 15 of the TfL Accessible Bus Stop Design Guidance. | K47: 9.964109264 | L47: 0.5448751532 | M47: 0.326003842 | N47: 23285.98871 | O47: 14.99492531 | P47: 1.426867214 | R47: 0.15 | S47: 11.45872565 | T47: 0.6266064261 | U47: 0.3749044183 | V47: 17.24416411
B48: BS4 | C48: Bus | D48: Bus Stop | E48: Bus Stop Bypass (aka Bus Stop Island) | F48: no. | G48: tCO2e/no. | H48: 17.37357108 | I48: =IFERROR(ROUND(INDEX('C-Intervention_Grouping'!$B$10:$BA$163,(SUMPRODUCT(('C-Intervention_Grouping'!$B$10:$BA$163='C-Background_Data'!$B48)*(ROW('C-Intervention_Grouping'!$B$10:$BA$163)))+95),(SUMPRODUCT(('C-Intervention_Grouping'!$B$10:$BA$163='C-Background_Data'!$B48)*(COLUMN('C-Intervention_Grouping'!$B$10:$BA$163))))-1),0), "") -> 65 | J48: Reconfiguration of existing footway to establish a cycle lane bypassing the outside of a bus stop waiting area, aligned with the specifications & dimensions of the Bus Stop Bypass in Figure 23 of the TfL Accessible Bus Stop Design Guidance. | K48: 13.43298619 | L48: 1.235025934 | M48: 0.4394409893 | N48: 31388.64209 | O48: 22.24416807 | P48: 1.516508705 | R48: 0.15 | S48: 15.44793412 | T48: 1.420279824 | U48: 0.5053571377 | V48: 25.58079328
B49: BS5 | C49: Bus | D49: Bus Stop | E49: Bus Bay (aka lay-by) | F49: no. | G49: tCO2e/no. | H49: 20.70648596 | I49: =IFERROR(ROUND(INDEX('C-Intervention_Grouping'!$B$10:$BA$163,(SUMPRODUCT(('C-Intervention_Grouping'!$B$10:$BA$163='C-Background_Data'!$B49)*(ROW('C-Intervention_Grouping'!$B$10:$BA$163)))+95),(SUMPRODUCT(('C-Intervention_Grouping'!$B$10:$BA$163='C-Background_Data'!$B49)*(COLUMN('C-Intervention_Grouping'!$B$10:$BA$163))))-1),0), "") -> 90 | J49: Amended Bus Bay (also known as lay-by) with the specifications & dimensions in Figure 19 of the TfL Accessible Bus Stop Design Guidance. | K49: 15.38601165 | L49: 2.085093555 | M49: 0.5345347581 | N49: 38181.05415 | O49: 23.48473455 | P49: 1.344204289 | R49: 0.15 | S49: 17.6939134 | T49: 2.397857588 | U49: 0.6147149718 | V49: 27.00744474
B50: BN1 | C50: Bus | D50: Bus Station | E50: Refurbished Bus Station With Building | F50: stop | G50: tCO2e/stop | H50: 132.4755092 | I50: =IFERROR(ROUND(INDEX('C-Intervention_Grouping'!$B$10:$BA$163,(SUMPRODUCT(('C-Intervention_Grouping'!$B$10:$BA$163='C-Background_Data'!$B50)*(ROW('C-Intervention_Grouping'!$B$10:$BA$163)))+95),(SUMPRODUCT(('C-Intervention_Grouping'!$B$10:$BA$163='C-Background_Data'!$B50)*(COLUMN('C-Intervention_Grouping'!$B$10:$BA$163))))-1),0), "") -> 90 | J50: Case study of a new bus station with station building and facilities. Note: this benchmark is in units of bus stops/stands; i.e. '1' represents a bus station with a single bus stop/stand. | K50: 98.36510575 | L50: 12.87027183 | M50: 3.960717342 | N50: 40415.48308 | O50: 121.0653726 | P50: 1.088371121 | R50: 0.15 | S50: 113.1198716 | T50: 14.8008126 | U50: 4.554824943 | V50: 139.2251784
B51: BN2 | C51: Bus | D51: Bus Station | E51: New Bus Station Without Building | F51: stop | G51: tCO2e/stop | H51: 45.42876686 | I51: =IFERROR(ROUND(INDEX('C-Intervention_Grouping'!$B$10:$BA$163,(SUMPRODUCT(('C-Intervention_Grouping'!$B$10:$BA$163='C-Background_Data'!$B51)*(ROW('C-Intervention_Grouping'!$B$10:$BA$163)))+95),(SUMPRODUCT(('C-Intervention_Grouping'!$B$10:$BA$163='C-Background_Data'!$B51)*(COLUMN('C-Intervention_Grouping'!$B$10:$BA$163))))-1),0), "") -> 10 | J51: Bus station with minimal provision and facilities, and no station building. Note: this benchmark is in units of bus stops/stands; i.e. '1' represents a bus station with a single bus stop/stand. | K51: 36.11846737 | L51: 2.542423115 | M51: 0.8423850482 | N51: 60170.36059 | O51: 17.31192423 | P51: 0.4477890708 | R51: 0.15 | S51: 41.53623748 | T51: 2.923786582 | U51: 0.9687428055 | V51: 19.90871286
B52: CH1 | C52: Parking, Docking & Charging | D52: Charging Infrastructure | E52: Smart DC Charger C7 | F52: no. | G52: tCO2e/no. | H52: 26.0036505 | I52: =IFERROR(ROUND(INDEX('C-Intervention_Grouping'!$B$10:$BA$163,(SUMPRODUCT(('C-Intervention_Grouping'!$B$10:$BA$163='C-Background_Data'!$B52)*(ROW('C-Intervention_Grouping'!$B$10:$BA$163)))+95),(SUMPRODUCT(('C-Intervention_Grouping'!$B$10:$BA$163='C-Background_Data'!$B52)*(COLUMN('C-Intervention_Grouping'!$B$10:$BA$163))))-1),0), "") -> 90 | J52: XCHARGE smart DC charger C7 Environmental Product Declaration (EPD), in accordance with 14025 and EN15804+A2. | K52: 22.226 | L52: 0.376 | M52: 0.00987 | O52: =SUM(K52:M52)*2 -> 45.22374 | P52: =IFERROR(O52/SUM(K52:L52),"") -> 2.000873374 | R52: 0.15 | S52: 25.5599 | T52: 0.4324 | U52: 0.0113505 | V52: 52.007301
B53: CH2 | C53: Parking, Docking & Charging | D53: Charging Infrastructure | E53: Urban Highway Charging Terminal | F53: no. | G53: =IF(B53="", "", CONCATENATE("tCO2e/", F53)) -> tCO2e/no. | H53: 8.32416 | I53: =IFERROR(ROUND(INDEX('C-Intervention_Grouping'!$B$10:$BA$163,(SUMPRODUCT(('C-Intervention_Grouping'!$B$10:$BA$163='C-Background_Data'!$B53)*(ROW('C-Intervention_Grouping'!$B$10:$BA$163)))+95),(SUMPRODUCT(('C-Intervention_Grouping'!$B$10:$BA$163='C-Background_Data'!$B53)*(COLUMN('C-Intervention_Grouping'!$B$10:$BA$163))))-1),0), "") -> 34 | J53: Approximation of a charging device for 2x 25kW electric vehicles located on public highway based on assumed 145kg weight for a 50kW charger. | K53: 7.1136 | L53: 0.1216 | M53: 0.0032 | O53: =SUM(K53:M53)*5 -> 36.192 | P53: 5.002211411 | R53: 0.15 | S53: 8.18064 | T53: 0.13984 | U53: 0.00368 | V53: 41.6208
B54: CH3 | C54: Parking, Docking & Charging | D54: Charging Infrastructure | E54: E-bike Charging Dock | F54: no. | G54: =IF(B54="", "", CONCATENATE("tCO2e/", F54)) -> tCO2e/no. | H54: 0.52026 | I54: =IFERROR(ROUND(INDEX('C-Intervention_Grouping'!$B$10:$BA$163,(SUMPRODUCT(('C-Intervention_Grouping'!$B$10:$BA$163='C-Background_Data'!$B54)*(ROW('C-Intervention_Grouping'!$B$10:$BA$163)))+95),(SUMPRODUCT(('C-Intervention_Grouping'!$B$10:$BA$163='C-Background_Data'!$B54)*(COLUMN('C-Intervention_Grouping'!$B$10:$BA$163))))-1),0), "") -> 10 | J54: Approximation of a charging device for an e-bike, such as one that may be integrated into a bike dock for e-bikes based on factoring the CH1 benchmark based on assumed 15kg weight for a 7kW charger. | K54: 0.4446 | L54: 0.0076 | M54: 0.0002 | O54: =SUM(K54:M54)*5 -> 2.262 | P54: 5.002211411 | R54: 0.15 | S54: 0.51129 | T54: 0.00874 | U54: 0.00023 | V54: 2.6013
B55: CP1 | C55: Parking, Docking & Charging | D55: Car Parking | E55: Car Parking resurfacing | F55: no. | G55: tCO2e/no. | H55: 0.3503131057 | I55: =IFERROR(ROUND(INDEX('C-Intervention_Grouping'!$B$10:$BA$163,(SUMPRODUCT(('C-Intervention_Grouping'!$B$10:$BA$163='C-Background_Data'!$B55)*(ROW('C-Intervention_Grouping'!$B$10:$BA$163)))+95),(SUMPRODUCT(('C-Intervention_Grouping'!$B$10:$BA$163='C-Background_Data'!$B55)*(COLUMN('C-Intervention_Grouping'!$B$10:$BA$163))))-1),0), "") -> 10 | J55: Resurfacing and re-marking of an existing car parking space, including 110mm cold milling. Note this benchmark is in units of parking spaces; i.e. '1' represents a single 5.5x2.5m space, and includes an additional allowance of 50% per space to account for the running lane (i.e. 20.625m2 per space in total). | K55: 0.2325121688 | L55: 0.05221546156 | M55: 0.01989246158 | N55: 1420.890113 | O55: 0.4514384465 | P55: 1.585509794 | R55: 0.15 | S55: 0.2673889941 | T55: 0.06004778079 | U55: 0.02287633082 | V55: 0.5191542135
B56: CP2 | C56: Parking, Docking & Charging | D56: Car Parking | E56: Car Parking full construction | F56: no. | G56: tCO2e/no. | H56: 3.045209204 | I56: =IFERROR(ROUND(INDEX('C-Intervention_Grouping'!$B$10:$BA$163,(SUMPRODUCT(('C-Intervention_Grouping'!$B$10:$BA$163='C-Background_Data'!$B56)*(ROW('C-Intervention_Grouping'!$B$10:$BA$163)))+95),(SUMPRODUCT(('C-Intervention_Grouping'!$B$10:$BA$163='C-Background_Data'!$B56)*(COLUMN('C-Intervention_Grouping'!$B$10:$BA$163))))-1),0), "") -> 90 | J56: Full construction of a new car park. Note this benchmark is in units of parking space; i.e. '1' represents a single 5.5x2.5m space, and includes an additional allowance of 50% per space to account for the running lane (i.e. 20.625m2 per space in total). Also includes excavation, road markings, and kerbing. | K56: 2.356502875 | L56: 0.2490229694 | M56: 0.04248215872 | N56: 3034.439909 | O56: 2.738424861 | P56: 1.051006601 | R56: 0.15 | S56: 2.709978306 | T56: 0.2863764148 | U56: 0.04885448253 | V56: 3.14918859
B57: RO1 | C57: Highway / Road | D57: Road | E57: Local Street | F57: m | G57: tCO2e/m | H57: 0.5061952304 | I57: =IFERROR(ROUND(INDEX('C-Intervention_Grouping'!$B$10:$BA$163,(SUMPRODUCT(('C-Intervention_Grouping'!$B$10:$BA$163='C-Background_Data'!$B57)*(ROW('C-Intervention_Grouping'!$B$10:$BA$163)))+95),(SUMPRODUCT(('C-Intervention_Grouping'!$B$10:$BA$163='C-Background_Data'!$B57)*(COLUMN('C-Intervention_Grouping'!$B$10:$BA$163))))-1),0), "") -> 10 | J57: Low-traffic, two-way street with a 5.5m-wide single carriageway and 2.5m-wide footway on either side. Representative of a "Local Street" as defined in Section M.1.iii. of the National Model Design Code. Made up of 2x CA1 + 2x FP3 + 1x RE1. | K57: 0.344580244 | L57: 0.07986982155 | M57: 0.0157197 | N57: 1122.838996 | O57: 0.4244500655 | P57: 1 | R57: 0.15 | S57: 0.3962672806 | T57: 0.09185029478 | U57: 0.018077655 | V57: 0.4881175754
B58: RO2 | C58: Highway / Road | D58: Road | E58: Primary Road | F58: m | G58: tCO2e/m | H58: 1.578224662 | I58: =IFERROR(ROUND(INDEX('C-Intervention_Grouping'!$B$10:$BA$163,(SUMPRODUCT(('C-Intervention_Grouping'!$B$10:$BA$163='C-Background_Data'!$B58)*(ROW('C-Intervention_Grouping'!$B$10:$BA$163)))+95),(SUMPRODUCT(('C-Intervention_Grouping'!$B$10:$BA$163='C-Background_Data'!$B58)*(COLUMN('C-Intervention_Grouping'!$B$10:$BA$163))))-1),0), "") -> 90 | J58: High-traffic, dual carriageway (separated by a median strip of 1m wide) of 4 lanes (two in each direction), each lane 3650mm wide, and 2.5m-wide footway on either side. Representative of a "Primary Street" as defined in Section of M.1.iii. of the National Model Design Code. Made up of 4x CA2 + 2x FP4 + 1x RE2. | K58: 1.047768548 | L58: 0.271665945 | M58: 0.05293477824 | N58: 3781.055589 | O58: 1.507563894 | P58: 1.142583358 | R58: 0.15 | S58: =K58*($R58+100%) -> 1.20493383 | T58: 0.3124158367 | U58: 0.06087499498 | V58: 1.733698478
B59: JU1 | C59: Highway / Road | D59: Junction | E59: Local Street Junction | F59: no. | G59: tCO2e/no. | H59: 92.41636982 | I59: =IFERROR(ROUND(INDEX('C-Intervention_Grouping'!$B$10:$BA$163,(SUMPRODUCT(('C-Intervention_Grouping'!$B$10:$BA$163='C-Background_Data'!$B59)*(ROW('C-Intervention_Grouping'!$B$10:$BA$163)))+95),(SUMPRODUCT(('C-Intervention_Grouping'!$B$10:$BA$163='C-Background_Data'!$B59)*(COLUMN('C-Intervention_Grouping'!$B$10:$BA$163))))-1),0), "") -> 10 | J59: Four-way signal-controlled intersection of local streets. Includes 30m-long arms in each direction (specifications as per the Local Street benchmark). | K59: 67.08372517 | L59: 10.24332414 | M59: 3.035011406 | N59: 216786.529 | O59: 233.2244372 | P59: 3.016078323 | R59: 0.15 | S59: 77.14628394 | T59: 11.77982276 | U59: 3.490263117 | V59: 268.2081027
B60: JU2 | C60: Highway / Road | D60: Junction | E60: Primary Road Junction | F60: no. | G60: tCO2e/no. | H60: 255.8593128 | I60: =IFERROR(ROUND(INDEX('C-Intervention_Grouping'!$B$10:$BA$163,(SUMPRODUCT(('C-Intervention_Grouping'!$B$10:$BA$163='C-Background_Data'!$B60)*(ROW('C-Intervention_Grouping'!$B$10:$BA$163)))+95),(SUMPRODUCT(('C-Intervention_Grouping'!$B$10:$BA$163='C-Background_Data'!$B60)*(COLUMN('C-Intervention_Grouping'!$B$10:$BA$163))))-1),0), "") -> 14 | J60: Four-way signal-controlled intersection of primary roads. Includes 30m-long arms in each direction (specifications as per the Primary Road benchmark). | K60: 175.9154135 | L60: 38.65959568 | M60: 7.911349742 | N60: 565096.4101 | O60: 515.6036266 | P60: 2.402906231 | R60: 0.15 | S60: 202.3027255 | T60: 44.45853503 | U60: 9.098052203 | V60: 592.9441706
B61: JU3 | C61: Highway / Road | D61: Junction | E61: CYCLOPS Junction | F61: no. | G61: =IF(B61="", "", CONCATENATE("tCO2e/", F61)) -> tCO2e/no. | H61: 126.316 | I61: =IFERROR(ROUND(INDEX('C-Intervention_Grouping'!$B$10:$BA$163,(SUMPRODUCT(('C-Intervention_Grouping'!$B$10:$BA$163='C-Background_Data'!$B61)*(ROW('C-Intervention_Grouping'!$B$10:$BA$163)))+95),(SUMPRODUCT(('C-Intervention_Grouping'!$B$10:$BA$163='C-Background_Data'!$B61)*(COLUMN('C-Intervention_Grouping'!$B$10:$BA$163))))-1),0), "") -> 11 | J61: Case study of a new junction in the form of a CYCLOPS junction assuming the addition of tactile paving, traffic signals, sign poles, pedestrian & cycle indicators, road studs and other elements. | K61: 78.22 | L61: 9.63 | M61: 21.99 | O61: 77.37715439 | P61: 0.8807871871 | R61: 0.15 | S61: 89.953 | T61: 11.0745 | U61: 25.2885 | V61: 88.98372754
B62: JU4 | C62: Highway / Road | D62: Junction | E62: [Case Study] Major Road Junction | F62: no. | G62: tCO2e/no. | H62: 3378.22 | I62: =IFERROR(ROUND(INDEX('C-Intervention_Grouping'!$B$10:$BA$163,(SUMPRODUCT(('C-Intervention_Grouping'!$B$10:$BA$163='C-Background_Data'!$B62)*(ROW('C-Intervention_Grouping'!$B$10:$BA$163)))+95),(SUMPRODUCT(('C-Intervention_Grouping'!$B$10:$BA$163='C-Background_Data'!$B62)*(COLUMN('C-Intervention_Grouping'!$B$10:$BA$163))))-1),0), "") -> 90 | J62: Case study of a major junction upgrade from a roundabout to a larger gyratory, including significant realignment and new cut-through, widening of all four approach arms (widening of approx. 1km total length of carriageway), additional bus lanes, and extensive new active travel provisions. | K62: 2526 | L62: 464 | M62: 197 | N62: 13803472.27 | O62: 0 | P62: 0 | R62: 0.06 | S62: 2677.56 | T62: 491.84 | U62: 208.82 | V62: 0
B63: RB1 | C63: Structures | D63: Road Bridge | E63: Prestressed Concrete Beam Bridge, approx. 15m wide | F63: m | G63: tCO2e/m | H63: 14.54440551 | I63: =IFERROR(ROUND(INDEX('C-Intervention_Grouping'!$B$10:$BA$163,(SUMPRODUCT(('C-Intervention_Grouping'!$B$10:$BA$163='C-Background_Data'!$B63)*(ROW('C-Intervention_Grouping'!$B$10:$BA$163)))+95),(SUMPRODUCT(('C-Intervention_Grouping'!$B$10:$BA$163='C-Background_Data'!$B63)*(COLUMN('C-Intervention_Grouping'!$B$10:$BA$163))))-1),0), "") -> 10 | J63: Case study of a prestressed concrete beam bridge, approx. 15m wide. | K63: 8.821823492 | L63: 3.417238691 | M63: 0.4082469548 | O63: 0 | P63: 0 | R63: 0.15 | S63: 10.14509702 | T63: 3.929824494 | U63: 0.4694839981 | V63: 0
B64: RB2 | C64: Structures | D64: Road Bridge | E64: Steel-Concrete Composite Bridge, approx. 15m wide | F64: m | G64: tCO2e/m | H64: 29.12728433 | I64: =IFERROR(ROUND(INDEX('C-Intervention_Grouping'!$B$10:$BA$163,(SUMPRODUCT(('C-Intervention_Grouping'!$B$10:$BA$163='C-Background_Data'!$B64)*(ROW('C-Intervention_Grouping'!$B$10:$BA$163)))+95),(SUMPRODUCT(('C-Intervention_Grouping'!$B$10:$BA$163='C-Background_Data'!$B64)*(COLUMN('C-Intervention_Grouping'!$B$10:$BA$163))))-1),0), "") -> 34 | J64: Case study of a steel-concrete composite bridge, approx. 15m wide. | K64: 22.04700786 | L64: 2.234137073 | M64: 1.046928395 | O64: 0 | P64: 0 | R64: 0.15 | S64: 25.35405904 | T64: 2.569257634 | U64: 1.203967655 | V64: 0
B65: RB3 | C65: Structures | D65: Road Bridge | E65: Prestressed Concrete Beam Bridge, approx. 30m wide | F65: m | G65: tCO2e/m | H65: 36.97601448 | I65: =IFERROR(ROUND(INDEX('C-Intervention_Grouping'!$B$10:$BA$163,(SUMPRODUCT(('C-Intervention_Grouping'!$B$10:$BA$163='C-Background_Data'!$B65)*(ROW('C-Intervention_Grouping'!$B$10:$BA$163)))+95),(SUMPRODUCT(('C-Intervention_Grouping'!$B$10:$BA$163='C-Background_Data'!$B65)*(COLUMN('C-Intervention_Grouping'!$B$10:$BA$163))))-1),0), "") -> 47 | J65: Case study of a prestressed concrete beam bridge, approx. 30m wide. | K65: 23.79562055 | L65: 6.646448978 | M65: 1.71098654 | O65: 0 | P65: 0 | R65: 0.15 | S65: 27.36496363 | T65: 7.643416325 | U65: 1.967634521 | V65: 0
B66: RB4 | C66: Structures | D66: Road Bridge | E66: Steel-Concrete Composite Bridge, approx. 32m wide | F66: m | G66: tCO2e/m | H66: 63.32844311 | I66: =IFERROR(ROUND(INDEX('C-Intervention_Grouping'!$B$10:$BA$163,(SUMPRODUCT(('C-Intervention_Grouping'!$B$10:$BA$163='C-Background_Data'!$B66)*(ROW('C-Intervention_Grouping'!$B$10:$BA$163)))+95),(SUMPRODUCT(('C-Intervention_Grouping'!$B$10:$BA$163='C-Background_Data'!$B66)*(COLUMN('C-Intervention_Grouping'!$B$10:$BA$163))))-1),0), "") -> 90 | J66: Case study of a steel-concrete composite bridge, approx. 30m wide. | K66: 43.99148388 | L66: 8.626536956 | M66: 2.450190562 | O66: 0 | P66: 0 | R66: 0.15 | S66: 50.59020646 | T66: 9.920517499 | U66: 2.817719146 | V66: 0
B67: HT1 | C67: Highway Treatment | D67: Highway Treatment | E67: Patch and Surface Dressing | F67: m2 | G67: tCO2e/m2 | H67: 0.01242909417 | I67: =IFERROR(ROUND(INDEX('C-Intervention_Grouping'!$B$10:$BA$163,(SUMPRODUCT(('C-Intervention_Grouping'!$B$10:$BA$163='C-Background_Data'!$B67)*(ROW('C-Intervention_Grouping'!$B$10:$BA$163)))+95),(SUMPRODUCT(('C-Intervention_Grouping'!$B$10:$BA$163='C-Background_Data'!$B67)*(COLUMN('C-Intervention_Grouping'!$B$10:$BA$163))))-1),0), "") -> 54 | J67: Surface dressing involves spraying the surface with liquid bitumen. Small aggregate chips (typically crushed stone or gravel) are then rolled into the bitumen creating a textured surface. It is typically used as a targeted repair technique to address specific dificiencies and prevent them from worsening over time. Helps to address issues such as potholes and cracks. | K67: 0.0071296 | L67: 0.003134125 | M67: 0.0005441829751 | N67: 38.87021251 | O67: 0 | P67: 0 | R67: 0.15 | S67: 0.00819904 | T67: 0.00360424375 | U67: 0.0006258104214 | V67: 0
B68: HT2 | C68: Highway Treatment | D68: Highway Treatment | E68: Strengthen | F68: m2 | G68: tCO2e/m2 | H68: 0.02104857451 | I68: =IFERROR(ROUND(INDEX('C-Intervention_Grouping'!$B$10:$BA$163,(SUMPRODUCT(('C-Intervention_Grouping'!$B$10:$BA$163='C-Background_Data'!$B68)*(ROW('C-Intervention_Grouping'!$B$10:$BA$163)))+95),(SUMPRODUCT(('C-Intervention_Grouping'!$B$10:$BA$163='C-Background_Data'!$B68)*(COLUMN('C-Intervention_Grouping'!$B$10:$BA$163))))-1),0), "") -> 90 | J68: Strengthening refers to the process of improving the structural integrity and durability of existing roads. This treatment is typically carried out to address issues such as pavement deterioration, fatigue, or structural weaknesses due to heavy traffic loads, weathering, or other factors. | K68: 0.01161285 | L68: 0.00499887875 | M68: 0.001691379517 | N68: 120.8128227 | O68: 0 | P68: 0 | R68: 0.15 | S68: 0.0133547775 | T68: 0.005748710563 | U68: 0.001945086445 | V68: 0
B69: HT3 | C69: Highway Treatment | D69: Highway Treatment | E69: Micro Asphalt | F69: m2 | G69: tCO2e/m2 | H69: 0.003164820161 | I69: =IFERROR(ROUND(INDEX('C-Intervention_Grouping'!$B$10:$BA$163,(SUMPRODUCT(('C-Intervention_Grouping'!$B$10:$BA$163='C-Background_Data'!$B69)*(ROW('C-Intervention_Grouping'!$B$10:$BA$163)))+95),(SUMPRODUCT(('C-Intervention_Grouping'!$B$10:$BA$163='C-Background_Data'!$B69)*(COLUMN('C-Intervention_Grouping'!$B$10:$BA$163))))-1),0), "") -> 16 | J69: Micro asphalt involves the application of a thin layer of asphalt emulsion mixed with fine aggregate and mineral filler to the existing road surface. It creates a smooth, durable, and skid-resistant surface. It is a cost-effective surface treatment used to improve the condition and longevity. | K69: 0.00152067 | L69: 0.0007312875 | M69: 0.0005000600312 | N69: 35.71857366 | O69: 0 | P69: 0 | R69: 0.15 | S69: 0.0017487705 | T69: 0.000840980625 | U69: 0.0005750690359 | V69: 0
B70: HT4 | C70: Highway Treatment | D70: Highway Treatment | E70: Patching | F70: m2 | G70: tCO2e/m2 | H70: 0.008229658517 | I70: =IFERROR(ROUND(INDEX('C-Intervention_Grouping'!$B$10:$BA$163,(SUMPRODUCT(('C-Intervention_Grouping'!$B$10:$BA$163='C-Background_Data'!$B70)*(ROW('C-Intervention_Grouping'!$B$10:$BA$163)))+95),(SUMPRODUCT(('C-Intervention_Grouping'!$B$10:$BA$163='C-Background_Data'!$B70)*(COLUMN('C-Intervention_Grouping'!$B$10:$BA$163))))-1),0), "") -> 37 | J70: Patching refers to the process of repairing areas of damage or deterioration (i.e potholes or defects). | K70: 0.004719085 | L70: 0.000966375 | M70: 0.001470764798 | N70: 105.0546284 | O70: 0 | P70: 0 | R70: 0.15 | S70: 0.00542694775 | T70: 0.00111133125 | U70: 0.001691379517 | V70: 0
B71: HT5 | C71: Highway Treatment | D71: Highway Treatment | E71: Preservation | F71: m2 | G71: tCO2e/m2 | H71: 0.001708676619 | I71: =IFERROR(ROUND(INDEX('C-Intervention_Grouping'!$B$10:$BA$163,(SUMPRODUCT(('C-Intervention_Grouping'!$B$10:$BA$163='C-Background_Data'!$B71)*(ROW('C-Intervention_Grouping'!$B$10:$BA$163)))+95),(SUMPRODUCT(('C-Intervention_Grouping'!$B$10:$BA$163='C-Background_Data'!$B71)*(COLUMN('C-Intervention_Grouping'!$B$10:$BA$163))))-1),0), "") -> 10 | J71: Preservation refers to the applicaion of a protective coating or treatment (in this context bitumen coating) to asphalt surfaces to prolong lifespan and maintain structural integrity. Bitumen coartings are commonly used to waterproof. | K71: 0.00111 | L71: 5.22375e-05 | M71: 0.0003235682555 | N71: 23.11201825 | O71: 0 | P71: 0 | R71: 0.15 | S71: 0.0012765 | T71: 6.0073125e-05 | U71: 0.0003721034938 | V71: 0
B72: HT6 | C72: Highway Treatment | D72: Highway Treatment | E72: Resurfacing | F72: m2 | G72: tCO2e/m2 | H72: 0.01571089074 | I72: =IFERROR(ROUND(INDEX('C-Intervention_Grouping'!$B$10:$BA$163,(SUMPRODUCT(('C-Intervention_Grouping'!$B$10:$BA$163='C-Background_Data'!$B72)*(ROW('C-Intervention_Grouping'!$B$10:$BA$163)))+95),(SUMPRODUCT(('C-Intervention_Grouping'!$B$10:$BA$163='C-Background_Data'!$B72)*(COLUMN('C-Intervention_Grouping'!$B$10:$BA$163))))-1),0), "") -> 68 | J72: Resurfacing, in the context of road maintenance and construction, refers to the process of applying a new layer of asphalt or concrete over an existing pavement surface. This technique is used to restore the structural integrity, smoothness, and ride quality of roads that have experienced deterioration or wear over time. | K72: 0.00999495 | L72: 0.00238712875 | M72: 0.001279565374 | N72: 91.39752671 | O72: 0 | P72: 0 | R72: 0.15 | S72: 0.0114941925 | T72: 0.002745198062 | U72: 0.00147150018 | V72: 0
B73: HT7 | C73: Highway Treatment | D73: Highway Treatment | E73: Surface Course | F73: m2 | G73: tCO2e/m2 | H73: 0.008371294922 | I73: =IFERROR(ROUND(INDEX('C-Intervention_Grouping'!$B$10:$BA$163,(SUMPRODUCT(('C-Intervention_Grouping'!$B$10:$BA$163='C-Background_Data'!$B73)*(ROW('C-Intervention_Grouping'!$B$10:$BA$163)))+95),(SUMPRODUCT(('C-Intervention_Grouping'!$B$10:$BA$163='C-Background_Data'!$B73)*(COLUMN('C-Intervention_Grouping'!$B$10:$BA$163))))-1),0), "") -> 38 | J73: The surface course is the top layer of road construction, treatments including maintenance or replacement of the surface course maintain quality, and prevent deterioration which in turn minises disruption. | K73: 0.0052325 | L73: 0.00123796625 | M73: 0.0008089206387 | N73: 57.78004562 | O73: 0 | P73: 0 | R73: 0.15 | S73: 0.006017375 | T73: 0.001423661188 | U73: 0.0009302587345 | V73: 0
B74: HT8 | C74: Highway Treatment | D74: Highway Treatment | E74: Surface Dressing | F74: m2 | G74: tCO2e/m2 | H74: 0.00222162743 | I74: =IFERROR(ROUND(INDEX('C-Intervention_Grouping'!$B$10:$BA$163,(SUMPRODUCT(('C-Intervention_Grouping'!$B$10:$BA$163='C-Background_Data'!$B74)*(ROW('C-Intervention_Grouping'!$B$10:$BA$163)))+95),(SUMPRODUCT(('C-Intervention_Grouping'!$B$10:$BA$163='C-Background_Data'!$B74)*(COLUMN('C-Intervention_Grouping'!$B$10:$BA$163))))-1),0), "") -> 12 | J74: Surface dressing involves spraying the surface with liquid bitumen. Small aggregate chips (typically crushed stone or gravel) are then rolled into the bitumen creating a textured surface. It is typically applied to large sections of the road as a cost-effective way to extend the service life. | K74: 0.001229448 | L74: 0.0002611725 | M74: 0.0004412294393 | N74: 31.51638852 | O74: 0 | P74: 0 | R74: 0.15 | S74: 0.0014138652 | T74: 0.000300348375 | U74: 0.0005074138552 | V74: 0
B75: CA1 | C75: Highway / Road | D75: Road - Single Lane of Carriageway | E75: Local Street Carriageway | F75: m | G75: tCO2e/m | H75: 0.1021711765 | I75: =IFERROR(ROUND(INDEX('C-Intervention_Grouping'!$B$10:$BA$163,(SUMPRODUCT(('C-Intervention_Grouping'!$B$10:$BA$163='C-Background_Data'!$B75)*(ROW('C-Intervention_Grouping'!$B$10:$BA$163)))+95),(SUMPRODUCT(('C-Intervention_Grouping'!$B$10:$BA$163='C-Background_Data'!$B75)*(COLUMN('C-Intervention_Grouping'!$B$10:$BA$163))))-1),0), "") -> 10 | J75: Disaggregated benchmark for the construction of 1 lane of carriageway using the Local Street with a lane width of 2.75m. Where footway and roadside elements construction is also proposed, selection of FP3 & RE1 benchmarks is expected. | K75: 0.0640778 | L75: 0.02127894145 | M75: 0.003487759875 | N75: 249.1257054 | O75: 0.1312661099 | P75: 1.537852871 | R75: 0.15 | S75: 0.07368947 | T75: 0.02447078266 | U75: 0.004010923856 | V75: 0.1509560263
B76: CA2 | C76: Highway / Road | D76: Road - Single Lane of Carriageway | E76: Primary Road Carriageway | F76: m | G76: tCO2e/m | H76: 0.2467964365 | I76: =IFERROR(ROUND(INDEX('C-Intervention_Grouping'!$B$10:$BA$163,(SUMPRODUCT(('C-Intervention_Grouping'!$B$10:$BA$163='C-Background_Data'!$B76)*(ROW('C-Intervention_Grouping'!$B$10:$BA$163)))+95),(SUMPRODUCT(('C-Intervention_Grouping'!$B$10:$BA$163='C-Background_Data'!$B76)*(COLUMN('C-Intervention_Grouping'!$B$10:$BA$163))))-1),0), "") -> 90 | J76: Disaggregated benchmark for the construction of only carriageway lane using the Primary Road Lane width of 3.65m. Where footway and roadside elements construction is also proposed, selection of FP4 & RE2 benchmarks is expected. | K76: 0.150589115 | L76: 0.05538795198 | M76: 0.008628529956 | N76: 616.3235683 | O76: 0.2539478736 | P76: =IFERROR(O76/SUM(K76:L76),"") -> 1.23289392 | R76: 0.15 | S76: 0.1731774822 | T76: 0.06369614478 | U76: 0.009922809449 | V76: 0.2920400546
B77: RE1 | C77: Highway / Road | D77: Road - Roadside Elements | E77: Local Street Elements | F77: m | G77: tCO2e/m | H77: =IF(B77= "", "", SUM(S77:U77)) -> 0.08859174702 | I77: =IFERROR(ROUND(INDEX('C-Intervention_Grouping'!$B$10:$BA$163,(SUMPRODUCT(('C-Intervention_Grouping'!$B$10:$BA$163='C-Background_Data'!$B77)*(ROW('C-Intervention_Grouping'!$B$10:$BA$163)))+95),(SUMPRODUCT(('C-Intervention_Grouping'!$B$10:$BA$163='C-Background_Data'!$B77)*(COLUMN('C-Intervention_Grouping'!$B$10:$BA$163))))-1),0), "") -> 29 | J77: Disaggregated benchmark for the construction of roadside elements on a Local Street containing: lighting columns (every 50m on one side), sockets and concrete foundations for traffic signals, gullies (every 30m on one side) & gully beds, and drainage pipes. Where carriageway and footway construction is also proposed, selection of FP3 & CA1 benchmarks is expected. | K77: 0.06897982075 | L77: 0.001430626758 | M77: 0.006625854244 | N77: 473.2753032 | O77: 0.08374170535 | P77: 1.18933636 | R77: 0.15 | S77: =K77*($R77+100%) -> 0.07932679387 | T77: =L77*($R77+100%) -> 0.001645220772 | U77: =M77*($R77+100%) -> 0.007619732381 | V77: =O77*($R77+100%) -> 0.09630296115
B78: RE2 | C78: Highway / Road | D78: Road - Roadside Elements | E78: Primary Road Elements | F78: m | G78: tCO2e/m | H78: 0.3321497044 | I78: =IFERROR(ROUND(INDEX('C-Intervention_Grouping'!$B$10:$BA$163,(SUMPRODUCT(('C-Intervention_Grouping'!$B$10:$BA$163='C-Background_Data'!$B78)*(ROW('C-Intervention_Grouping'!$B$10:$BA$163)))+95),(SUMPRODUCT(('C-Intervention_Grouping'!$B$10:$BA$163='C-Background_Data'!$B78)*(COLUMN('C-Intervention_Grouping'!$B$10:$BA$163))))-1),0), "") -> 90 | J78: Disaggregated benchmark for the construction of roadside elements on a Primary Road containing: lighting columns (every 50m on one side only), sockets and concrete foundations for traffic signals, gullies (every 30m on one side) & gully pots, and drainage pipes. Where carriageway and footway construction is also proposed, selection of FP4 &CA2 benchmarks is expected. | K78: 0.2677037748 | L78: 0.006655353686 | M78: 0.0144667014 | N78: 1033.335815 | O78: 0.3036773944 | P78: 1.106860909 | R78: 0.15 | S78: 0.3078593411 | T78: 0.007653656739 | U78: 0.01663670662 | V78: 0.3492290035
B79: RE3 | C79: Highway / Road | D79: Road - Roadside Elements | E79: Traffic Signs | F79: m | G79: tCO2e/m | H79: 0.0101024548 | I79: =IFERROR(ROUND(INDEX('C-Intervention_Grouping'!$B$10:$BA$163,(SUMPRODUCT(('C-Intervention_Grouping'!$B$10:$BA$163='C-Background_Data'!$B79)*(ROW('C-Intervention_Grouping'!$B$10:$BA$163)))+95),(SUMPRODUCT(('C-Intervention_Grouping'!$B$10:$BA$163='C-Background_Data'!$B79)*(COLUMN('C-Intervention_Grouping'!$B$10:$BA$163))))-1),0), "") -> 10 | J79: Disaggregated benchmark for 2 traffic signs (0.36m2 each), 2 sign posts (4m tall) and 2 post foundation (1 x1x0.5 m3 per post) per 100m of highway/road | K79: 0.008544795981 | L79: 0.00014242032 | M79: 9.752700204e-05 | N79: 6.966214432 | O79: 0.01591789622 | P79: 1.832335661 | R79: 0.15 | S79: 0.009826515378 | T79: 0.000163783368 | U79: 0.0001121560523 | V79: 0.01830558065
B80: HI1 | C80: Highway / Road | D80: Major Road Case Studies | E80: [Case Study] New 7-8m wide single carriageway road with significant bridge structure accounting for approx. 10-15% of the scheme length | F80: m | G80: tCO2e/m | H80: 6.456310786 | I80: =IFERROR(ROUND(INDEX('C-Intervention_Grouping'!$B$10:$BA$163,(SUMPRODUCT(('C-Intervention_Grouping'!$B$10:$BA$163='C-Background_Data'!$B80)*(ROW('C-Intervention_Grouping'!$B$10:$BA$163)))+95),(SUMPRODUCT(('C-Intervention_Grouping'!$B$10:$BA$163='C-Background_Data'!$B80)*(COLUMN('C-Intervention_Grouping'!$B$10:$BA$163))))-1),0), "") -> 10 | J80: Case study of a new 7-8m wide single carriageway road with a significant bridge structure (15.5m wide) accounting for approx. 10-15% of the length of the scheme. Also includes a 3m wide shared footway/cycleway along the full length of the scheme, major intersection re-builds at each end of the new road, a small bridge over a railway line, a pedestrian bridge, new flood storage areas and significant landscaping, drainage, bridleway, and environmental mitigation works. | K80: 5.058866545 | L80: 0.642047532 | M80: 0.3899451554 | N80: 18774.4135 | O80: 0.8812601591 | P80: 0.154582256 | R80: 0.06 | S80: 5.362398537 | T80: 0.6805703839 | U80: 0.4133418647 | V80: 0.9341357686
B81: HI2 | C81: Highway / Road | D81: Major Road Case Studies | E81: [Case Study] New dual carriageway road, each carriageway 7-8m wide (total width approx. 15m) | F81: m | G81: tCO2e/m | H81: 7.679546667 | I81: =IFERROR(ROUND(INDEX('C-Intervention_Grouping'!$B$10:$BA$163,(SUMPRODUCT(('C-Intervention_Grouping'!$B$10:$BA$163='C-Background_Data'!$B81)*(ROW('C-Intervention_Grouping'!$B$10:$BA$163)))+95),(SUMPRODUCT(('C-Intervention_Grouping'!$B$10:$BA$163='C-Background_Data'!$B81)*(COLUMN('C-Intervention_Grouping'!$B$10:$BA$163))))-1),0), "") -> 90 | J81: Case study of a new dual carriageway road (each carriageway 7-8m wide, total width approx. 15m). approximately 70% of the scheme length is an entirely new dual carriageway; the other 30% features upgrades to an existing dual carriageway. Also includes a 3m wide shared footway/cycleway along the full length of the scheme, a new 2m wide footway along 15-20% of the length of the scheme, major intersection rebuilds at each end of the new road, three small bridges, and other interventions including drainage works and pedestrian crossings and underpasses. | K81: 5.447466667 | L81: 1.097066667 | M81: 0.1333333333 | N81: 9359.306547 | O81: 1.25396864 | P81: 0.1916055089 | R81: 0.15 | S81: 6.264586667 | T81: 1.261626667 | U81: 0.1533333333 | V81: 1.442063936
D82: (additional benchmarks can be added by filling the blue cells. Overwrite this text first.) | I82: =IFERROR(ROUND(INDEX('C-Intervention_Grouping'!$B$10:$BA$163,(SUMPRODUCT(('C-Intervention_Grouping'!$B$10:$BA$163='C-Background_Data'!$B82)*(ROW('C-Intervention_Grouping'!$B$10:$BA$163)))+95),(SUMPRODUCT(('C-Intervention_Grouping'!$B$10:$BA$163='C-Background_Data'!$B82)*(COLUMN('C-Intervention_Grouping'!$B$10:$BA$163))))-1),0), "") -> 
I83: =IFERROR(ROUND(INDEX('C-Intervention_Grouping'!$B$10:$BA$163,(SUMPRODUCT(('C-Intervention_Grouping'!$B$10:$BA$163='C-Background_Data'!$B83)*(ROW('C-Intervention_Grouping'!$B$10:$BA$163)))+95),(SUMPRODUCT(('C-Intervention_Grouping'!$B$10:$BA$163='C-Background_Data'!$B83)*(COLUMN('C-Intervention_Grouping'!$B$10:$BA$163))))-1),0), "") -> 
G84: =IF(B84="", "", CONCATENATE("tCO2e/", F84)) ->  | I84: =IFERROR(ROUND(INDEX('C-Intervention_Grouping'!$B$10:$BA$163,(SUMPRODUCT(('C-Intervention_Grouping'!$B$10:$BA$163='C-Background_Data'!$B84)*(ROW('C-Intervention_Grouping'!$B$10:$BA$163)))+95),(SUMPRODUCT(('C-Intervention_Grouping'!$B$10:$BA$163='C-Background_Data'!$B84)*(COLUMN('C-Intervention_Grouping'!$B$10:$BA$163))))-1),0), "") -> 
I85: =IFERROR(ROUND(INDEX('C-Intervention_Grouping'!$B$10:$BA$163,(SUMPRODUCT(('C-Intervention_Grouping'!$B$10:$BA$163='C-Background_Data'!$B85)*(ROW('C-Intervention_Grouping'!$B$10:$BA$163)))+95),(SUMPRODUCT(('C-Intervention_Grouping'!$B$10:$BA$163='C-Background_Data'!$B85)*(COLUMN('C-Intervention_Grouping'!$B$10:$BA$163))))-1),0), "") -> 
I86: =IFERROR(ROUND(INDEX('C-Intervention_Grouping'!$B$10:$BA$163,(SUMPRODUCT(('C-Intervention_Grouping'!$B$10:$BA$163='C-Background_Data'!$B86)*(ROW('C-Intervention_Grouping'!$B$10:$BA$163)))+95),(SUMPRODUCT(('C-Intervention_Grouping'!$B$10:$BA$163='C-Background_Data'!$B86)*(COLUMN('C-Intervention_Grouping'!$B$10:$BA$163))))-1),0), "") -> 
I87: =IFERROR(ROUND(INDEX('C-Intervention_Grouping'!$B$10:$BA$163,(SUMPRODUCT(('C-Intervention_Grouping'!$B$10:$BA$163='C-Background_Data'!$B87)*(ROW('C-Intervention_Grouping'!$B$10:$BA$163)))+95),(SUMPRODUCT(('C-Intervention_Grouping'!$B$10:$BA$163='C-Background_Data'!$B87)*(COLUMN('C-Intervention_Grouping'!$B$10:$BA$163))))-1),0), "") -> 
I88: =IFERROR(ROUND(INDEX('C-Intervention_Grouping'!$B$10:$BA$163,(SUMPRODUCT(('C-Intervention_Grouping'!$B$10:$BA$163='C-Background_Data'!$B88)*(ROW('C-Intervention_Grouping'!$B$10:$BA$163)))+95),(SUMPRODUCT(('C-Intervention_Grouping'!$B$10:$BA$163='C-Background_Data'!$B88)*(COLUMN('C-Intervention_Grouping'!$B$10:$BA$163))))-1),0), "") -> 
I89: =IFERROR(ROUND(INDEX('C-Intervention_Grouping'!$B$10:$BA$163,(SUMPRODUCT(('C-Intervention_Grouping'!$B$10:$BA$163='C-Background_Data'!$B89)*(ROW('C-Intervention_Grouping'!$B$10:$BA$163)))+95),(SUMPRODUCT(('C-Intervention_Grouping'!$B$10:$BA$163='C-Background_Data'!$B89)*(COLUMN('C-Intervention_Grouping'!$B$10:$BA$163))))-1),0), "") -> 
I90: =IFERROR(ROUND(INDEX('C-Intervention_Grouping'!$B$10:$BA$163,(SUMPRODUCT(('C-Intervention_Grouping'!$B$10:$BA$163='C-Background_Data'!$B90)*(ROW('C-Intervention_Grouping'!$B$10:$BA$163)))+95),(SUMPRODUCT(('C-Intervention_Grouping'!$B$10:$BA$163='C-Background_Data'!$B90)*(COLUMN('C-Intervention_Grouping'!$B$10:$BA$163))))-1),0), "") -> 
I91: =IFERROR(ROUND(INDEX('C-Intervention_Grouping'!$B$10:$BA$163,(SUMPRODUCT(('C-Intervention_Grouping'!$B$10:$BA$163='C-Background_Data'!$B91)*(ROW('C-Intervention_Grouping'!$B$10:$BA$163)))+95),(SUMPRODUCT(('C-Intervention_Grouping'!$B$10:$BA$163='C-Background_Data'!$B91)*(COLUMN('C-Intervention_Grouping'!$B$10:$BA$163))))-1),0), "") -> 
I92: =IFERROR(ROUND(INDEX('C-Intervention_Grouping'!$B$10:$BA$163,(SUMPRODUCT(('C-Intervention_Grouping'!$B$10:$BA$163='C-Background_Data'!$B92)*(ROW('C-Intervention_Grouping'!$B$10:$BA$163)))+95),(SUMPRODUCT(('C-Intervention_Grouping'!$B$10:$BA$163='C-Background_Data'!$B92)*(COLUMN('C-Intervention_Grouping'!$B$10:$BA$163))))-1),0), "") -> 
I93: =IFERROR(ROUND(INDEX('C-Intervention_Grouping'!$B$10:$BA$163,(SUMPRODUCT(('C-Intervention_Grouping'!$B$10:$BA$163='C-Background_Data'!$B93)*(ROW('C-Intervention_Grouping'!$B$10:$BA$163)))+95),(SUMPRODUCT(('C-Intervention_Grouping'!$B$10:$BA$163='C-Background_Data'!$B93)*(COLUMN('C-Intervention_Grouping'!$B$10:$BA$163))))-1),0), "") -> 
I94: =IFERROR(ROUND(INDEX('C-Intervention_Grouping'!$B$10:$BA$163,(SUMPRODUCT(('C-Intervention_Grouping'!$B$10:$BA$163='C-Background_Data'!$B94)*(ROW('C-Intervention_Grouping'!$B$10:$BA$163)))+95),(SUMPRODUCT(('C-Intervention_Grouping'!$B$10:$BA$163='C-Background_Data'!$B94)*(COLUMN('C-Intervention_Grouping'!$B$10:$BA$163))))-1),0), "") -> 
I95: =IFERROR(ROUND(INDEX('C-Intervention_Grouping'!$B$10:$BA$163,(SUMPRODUCT(('C-Intervention_Grouping'!$B$10:$BA$163='C-Background_Data'!$B95)*(ROW('C-Intervention_Grouping'!$B$10:$BA$163)))+95),(SUMPRODUCT(('C-Intervention_Grouping'!$B$10:$BA$163='C-Background_Data'!$B95)*(COLUMN('C-Intervention_Grouping'!$B$10:$BA$163))))-1),0), "") -> 
I96: =IFERROR(ROUND(INDEX('C-Intervention_Grouping'!$B$10:$BA$163,(SUMPRODUCT(('C-Intervention_Grouping'!$B$10:$BA$163='C-Background_Data'!$B96)*(ROW('C-Intervention_Grouping'!$B$10:$BA$163)))+95),(SUMPRODUCT(('C-Intervention_Grouping'!$B$10:$BA$163='C-Background_Data'!$B96)*(COLUMN('C-Intervention_Grouping'!$B$10:$BA$163))))-1),0), "") -> 
I97: =IFERROR(ROUND(INDEX('C-Intervention_Grouping'!$B$10:$BA$163,(SUMPRODUCT(('C-Intervention_Grouping'!$B$10:$BA$163='C-Background_Data'!$B97)*(ROW('C-Intervention_Grouping'!$B$10:$BA$163)))+95),(SUMPRODUCT(('C-Intervention_Grouping'!$B$10:$BA$163='C-Background_Data'!$B97)*(COLUMN('C-Intervention_Grouping'!$B$10:$BA$163))))-1),0), "") -> 
I98: =IFERROR(ROUND(INDEX('C-Intervention_Grouping'!$B$10:$BA$163,(SUMPRODUCT(('C-Intervention_Grouping'!$B$10:$BA$163='C-Background_Data'!$B98)*(ROW('C-Intervention_Grouping'!$B$10:$BA$163)))+95),(SUMPRODUCT(('C-Intervention_Grouping'!$B$10:$BA$163='C-Background_Data'!$B98)*(COLUMN('C-Intervention_Grouping'!$B$10:$BA$163))))-1),0), "") -> 
I99: =IFERROR(ROUND(INDEX('C-Intervention_Grouping'!$B$10:$BA$163,(SUMPRODUCT(('C-Intervention_Grouping'!$B$10:$BA$163='C-Background_Data'!$B99)*(ROW('C-Intervention_Grouping'!$B$10:$BA$163)))+95),(SUMPRODUCT(('C-Intervention_Grouping'!$B$10:$BA$163='C-Background_Data'!$B99)*(COLUMN('C-Intervention_Grouping'!$B$10:$BA$163))))-1),0), "") -> 
I100: =IFERROR(ROUND(INDEX('C-Intervention_Grouping'!$B$10:$BA$163,(SUMPRODUCT(('C-Intervention_Grouping'!$B$10:$BA$163='C-Background_Data'!$B100)*(ROW('C-Intervention_Grouping'!$B$10:$BA$163)))+95),(SUMPRODUCT(('C-Intervention_Grouping'!$B$10:$BA$163='C-Background_Data'!$B100)*(COLUMN('C-Intervention_Grouping'!$B$10:$BA$163))))-1),0), "") -> 
I101: =IFERROR(ROUND(INDEX('C-Intervention_Grouping'!$B$10:$BA$163,(SUMPRODUCT(('C-Intervention_Grouping'!$B$10:$BA$163='C-Background_Data'!$B101)*(ROW('C-Intervention_Grouping'!$B$10:$BA$163)))+95),(SUMPRODUCT(('C-Intervention_Grouping'!$B$10:$BA$163='C-Background_Data'!$B101)*(COLUMN('C-Intervention_Grouping'!$B$10:$BA$163))))-1),0), "") -> 
I102: =IFERROR(ROUND(INDEX('C-Intervention_Grouping'!$B$10:$BA$163,(SUMPRODUCT(('C-Intervention_Grouping'!$B$10:$BA$163='C-Background_Data'!$B102)*(ROW('C-Intervention_Grouping'!$B$10:$BA$163)))+95),(SUMPRODUCT(('C-Intervention_Grouping'!$B$10:$BA$163='C-Background_Data'!$B102)*(COLUMN('C-Intervention_Grouping'!$B$10:$BA$163))))-1),0), "") -> 
I103: =IFERROR(ROUND(INDEX('C-Intervention_Grouping'!$B$10:$BA$163,(SUMPRODUCT(('C-Intervention_Grouping'!$B$10:$BA$163='C-Background_Data'!$B103)*(ROW('C-Intervention_Grouping'!$B$10:$BA$163)))+95),(SUMPRODUCT(('C-Intervention_Grouping'!$B$10:$BA$163='C-Background_Data'!$B103)*(COLUMN('C-Intervention_Grouping'!$B$10:$BA$163))))-1),0), "") -> 
I104: =IFERROR(ROUND(INDEX('C-Intervention_Grouping'!$B$10:$BA$163,(SUMPRODUCT(('C-Intervention_Grouping'!$B$10:$BA$163='C-Background_Data'!$B104)*(ROW('C-Intervention_Grouping'!$B$10:$BA$163)))+95),(SUMPRODUCT(('C-Intervention_Grouping'!$B$10:$BA$163='C-Background_Data'!$B104)*(COLUMN('C-Intervention_Grouping'!$B$10:$BA$163))))-1),0), "") -> 
I105: =IFERROR(ROUND(INDEX('C-Intervention_Grouping'!$B$10:$BA$163,(SUMPRODUCT(('C-Intervention_Grouping'!$B$10:$BA$163='C-Background_Data'!$B105)*(ROW('C-Intervention_Grouping'!$B$10:$BA$163)))+95),(SUMPRODUCT(('C-Intervention_Grouping'!$B$10:$BA$163='C-Background_Data'!$B105)*(COLUMN('C-Intervention_Grouping'!$B$10:$BA$163))))-1),0), "") -> 
I106: =IFERROR(ROUND(INDEX('C-Intervention_Grouping'!$B$10:$BA$163,(SUMPRODUCT(('C-Intervention_Grouping'!$B$10:$BA$163='C-Background_Data'!$B106)*(ROW('C-Intervention_Grouping'!$B$10:$BA$163)))+95),(SUMPRODUCT(('C-Intervention_Grouping'!$B$10:$BA$163='C-Background_Data'!$B106)*(COLUMN('C-Intervention_Grouping'!$B$10:$BA$163))))-1),0), "") -> 
I107: =IFERROR(ROUND(INDEX('C-Intervention_Grouping'!$B$10:$BA$163,(SUMPRODUCT(('C-Intervention_Grouping'!$B$10:$BA$163='C-Background_Data'!$B107)*(ROW('C-Intervention_Grouping'!$B$10:$BA$163)))+95),(SUMPRODUCT(('C-Intervention_Grouping'!$B$10:$BA$163='C-Background_Data'!$B107)*(COLUMN('C-Intervention_Grouping'!$B$10:$BA$163))))-1),0), "") -> 
I108: =IFERROR(ROUND(INDEX('C-Intervention_Grouping'!$B$10:$BA$163,(SUMPRODUCT(('C-Intervention_Grouping'!$B$10:$BA$163='C-Background_Data'!$B108)*(ROW('C-Intervention_Grouping'!$B$10:$BA$163)))+95),(SUMPRODUCT(('C-Intervention_Grouping'!$B$10:$BA$163='C-Background_Data'!$B108)*(COLUMN('C-Intervention_Grouping'!$B$10:$BA$163))))-1),0), "") -> 
I109: =IFERROR(ROUND(INDEX('C-Intervention_Grouping'!$B$10:$BA$163,(SUMPRODUCT(('C-Intervention_Grouping'!$B$10:$BA$163='C-Background_Data'!$B109)*(ROW('C-Intervention_Grouping'!$B$10:$BA$163)))+95),(SUMPRODUCT(('C-Intervention_Grouping'!$B$10:$BA$163='C-Background_Data'!$B109)*(COLUMN('C-Intervention_Grouping'!$B$10:$BA$163))))-1),0), "") -> 
I110: =IFERROR(ROUND(INDEX('C-Intervention_Grouping'!$B$10:$BA$163,(SUMPRODUCT(('C-Intervention_Grouping'!$B$10:$BA$163='C-Background_Data'!$B110)*(ROW('C-Intervention_Grouping'!$B$10:$BA$163)))+95),(SUMPRODUCT(('C-Intervention_Grouping'!$B$10:$BA$163='C-Background_Data'!$B110)*(COLUMN('C-Intervention_Grouping'!$B$10:$BA$163))))-1),0), "") -> 
I111: =IFERROR(ROUND(INDEX('C-Intervention_Grouping'!$B$10:$BA$163,(SUMPRODUCT(('C-Intervention_Grouping'!$B$10:$BA$163='C-Background_Data'!$B111)*(ROW('C-Intervention_Grouping'!$B$10:$BA$163)))+95),(SUMPRODUCT(('C-Intervention_Grouping'!$B$10:$BA$163='C-Background_Data'!$B111)*(COLUMN('C-Intervention_Grouping'!$B$10:$BA$163))))-1),0), "") -> 
I112: =IFERROR(ROUND(INDEX('C-Intervention_Grouping'!$B$10:$BA$163,(SUMPRODUCT(('C-Intervention_Grouping'!$B$10:$BA$163='C-Background_Data'!$B112)*(ROW('C-Intervention_Grouping'!$B$10:$BA$163)))+95),(SUMPRODUCT(('C-Intervention_Grouping'!$B$10:$BA$163='C-Background_Data'!$B112)*(COLUMN('C-Intervention_Grouping'!$B$10:$BA$163))))-1),0), "") -> 
I113: =IFERROR(ROUND(INDEX('C-Intervention_Grouping'!$B$10:$BA$163,(SUMPRODUCT(('C-Intervention_Grouping'!$B$10:$BA$163='C-Background_Data'!$B113)*(ROW('C-Intervention_Grouping'!$B$10:$BA$163)))+95),(SUMPRODUCT(('C-Intervention_Grouping'!$B$10:$BA$163='C-Background_Data'!$B113)*(COLUMN('C-Intervention_Grouping'!$B$10:$BA$163))))-1),0), "") -> 
I114: =IFERROR(ROUND(INDEX('C-Intervention_Grouping'!$B$10:$BA$163,(SUMPRODUCT(('C-Intervention_Grouping'!$B$10:$BA$163='C-Background_Data'!$B114)*(ROW('C-Intervention_Grouping'!$B$10:$BA$163)))+95),(SUMPRODUCT(('C-Intervention_Grouping'!$B$10:$BA$163='C-Background_Data'!$B114)*(COLUMN('C-Intervention_Grouping'!$B$10:$BA$163))))-1),0), "") -> 
I115: =IFERROR(ROUND(INDEX('C-Intervention_Grouping'!$B$10:$BA$163,(SUMPRODUCT(('C-Intervention_Grouping'!$B$10:$BA$163='C-Background_Data'!$B115)*(ROW('C-Intervention_Grouping'!$B$10:$BA$163)))+95),(SUMPRODUCT(('C-Intervention_Grouping'!$B$10:$BA$163='C-Background_Data'!$B115)*(COLUMN('C-Intervention_Grouping'!$B$10:$BA$163))))-1),0), "") -> 
I116: =IFERROR(ROUND(INDEX('C-Intervention_Grouping'!$B$10:$BA$163,(SUMPRODUCT(('C-Intervention_Grouping'!$B$10:$BA$163='C-Background_Data'!$B116)*(ROW('C-Intervention_Grouping'!$B$10:$BA$163)))+95),(SUMPRODUCT(('C-Intervention_Grouping'!$B$10:$BA$163='C-Background_Data'!$B116)*(COLUMN('C-Intervention_Grouping'!$B$10:$BA$163))))-1),0), "") -> 
I117: =IFERROR(ROUND(INDEX('C-Intervention_Grouping'!$B$10:$BA$163,(SUMPRODUCT(('C-Intervention_Grouping'!$B$10:$BA$163='C-Background_Data'!$B117)*(ROW('C-Intervention_Grouping'!$B$10:$BA$163)))+95),(SUMPRODUCT(('C-Intervention_Grouping'!$B$10:$BA$163='C-Background_Data'!$B117)*(COLUMN('C-Intervention_Grouping'!$B$10:$BA$163))))-1),0), "") -> 
I118: =IFERROR(ROUND(INDEX('C-Intervention_Grouping'!$B$10:$BA$163,(SUMPRODUCT(('C-Intervention_Grouping'!$B$10:$BA$163='C-Background_Data'!$B118)*(ROW('C-Intervention_Grouping'!$B$10:$BA$163)))+95),(SUMPRODUCT(('C-Intervention_Grouping'!$B$10:$BA$163='C-Background_Data'!$B118)*(COLUMN('C-Intervention_Grouping'!$B$10:$BA$163))))-1),0), "") -> 
I119: =IFERROR(ROUND(INDEX('C-Intervention_Grouping'!$B$10:$BA$163,(SUMPRODUCT(('C-Intervention_Grouping'!$B$10:$BA$163='C-Background_Data'!$B119)*(ROW('C-Intervention_Grouping'!$B$10:$BA$163)))+95),(SUMPRODUCT(('C-Intervention_Grouping'!$B$10:$BA$163='C-Background_Data'!$B119)*(COLUMN('C-Intervention_Grouping'!$B$10:$BA$163))))-1),0), "") -> 
I120: =IFERROR(ROUND(INDEX('C-Intervention_Grouping'!$B$10:$BA$163,(SUMPRODUCT(('C-Intervention_Grouping'!$B$10:$BA$163='C-Background_Data'!$B120)*(ROW('C-Intervention_Grouping'!$B$10:$BA$163)))+95),(SUMPRODUCT(('C-Intervention_Grouping'!$B$10:$BA$163='C-Background_Data'!$B120)*(COLUMN('C-Intervention_Grouping'!$B$10:$BA$163))))-1),0), "") -> 
I121: =IFERROR(ROUND(INDEX('C-Intervention_Grouping'!$B$10:$BA$163,(SUMPRODUCT(('C-Intervention_Grouping'!$B$10:$BA$163='C-Background_Data'!$B121)*(ROW('C-Intervention_Grouping'!$B$10:$BA$163)))+95),(SUMPRODUCT(('C-Intervention_Grouping'!$B$10:$BA$163='C-Background_Data'!$B121)*(COLUMN('C-Intervention_Grouping'!$B$10:$BA$163))))-1),0), "") -> 
I122: =IFERROR(ROUND(INDEX('C-Intervention_Grouping'!$B$10:$BA$163,(SUMPRODUCT(('C-Intervention_Grouping'!$B$10:$BA$163='C-Background_Data'!$B122)*(ROW('C-Intervention_Grouping'!$B$10:$BA$163)))+95),(SUMPRODUCT(('C-Intervention_Grouping'!$B$10:$BA$163='C-Background_Data'!$B122)*(COLUMN('C-Intervention_Grouping'!$B$10:$BA$163))))-1),0), "") -> 
I123: =IFERROR(ROUND(INDEX('C-Intervention_Grouping'!$B$10:$BA$163,(SUMPRODUCT(('C-Intervention_Grouping'!$B$10:$BA$163='C-Background_Data'!$B123)*(ROW('C-Intervention_Grouping'!$B$10:$BA$163)))+95),(SUMPRODUCT(('C-Intervention_Grouping'!$B$10:$BA$163='C-Background_Data'!$B123)*(COLUMN('C-Intervention_Grouping'!$B$10:$BA$163))))-1),0), "") -> 
I124: =IFERROR(ROUND(INDEX('C-Intervention_Grouping'!$B$10:$BA$163,(SUMPRODUCT(('C-Intervention_Grouping'!$B$10:$BA$163='C-Background_Data'!$B124)*(ROW('C-Intervention_Grouping'!$B$10:$BA$163)))+95),(SUMPRODUCT(('C-Intervention_Grouping'!$B$10:$BA$163='C-Background_Data'!$B124)*(COLUMN('C-Intervention_Grouping'!$B$10:$BA$163))))-1),0), "") -> 
I125: =IFERROR(ROUND(INDEX('C-Intervention_Grouping'!$B$10:$BA$163,(SUMPRODUCT(('C-Intervention_Grouping'!$B$10:$BA$163='C-Background_Data'!$B125)*(ROW('C-Intervention_Grouping'!$B$10:$BA$163)))+95),(SUMPRODUCT(('C-Intervention_Grouping'!$B$10:$BA$163='C-Background_Data'!$B125)*(COLUMN('C-Intervention_Grouping'!$B$10:$BA$163))))-1),0), "") -> 
I126: =IFERROR(ROUND(INDEX('C-Intervention_Grouping'!$B$10:$BA$163,(SUMPRODUCT(('C-Intervention_Grouping'!$B$10:$BA$163='C-Background_Data'!$B126)*(ROW('C-Intervention_Grouping'!$B$10:$BA$163)))+95),(SUMPRODUCT(('C-Intervention_Grouping'!$B$10:$BA$163='C-Background_Data'!$B126)*(COLUMN('C-Intervention_Grouping'!$B$10:$BA$163))))-1),0), "") -> 
I127: =IFERROR(ROUND(INDEX('C-Intervention_Grouping'!$B$10:$BA$163,(SUMPRODUCT(('C-Intervention_Grouping'!$B$10:$BA$163='C-Background_Data'!$B127)*(ROW('C-Intervention_Grouping'!$B$10:$BA$163)))+95),(SUMPRODUCT(('C-Intervention_Grouping'!$B$10:$BA$163='C-Background_Data'!$B127)*(COLUMN('C-Intervention_Grouping'!$B$10:$BA$163))))-1),0), "") -> 
I128: =IFERROR(ROUND(INDEX('C-Intervention_Grouping'!$B$10:$BA$163,(SUMPRODUCT(('C-Intervention_Grouping'!$B$10:$BA$163='C-Background_Data'!$B128)*(ROW('C-Intervention_Grouping'!$B$10:$BA$163)))+95),(SUMPRODUCT(('C-Intervention_Grouping'!$B$10:$BA$163='C-Background_Data'!$B128)*(COLUMN('C-Intervention_Grouping'!$B$10:$BA$163))))-1),0), "") -> 
I129: =IFERROR(ROUND(INDEX('C-Intervention_Grouping'!$B$10:$BA$163,(SUMPRODUCT(('C-Intervention_Grouping'!$B$10:$BA$163='C-Background_Data'!$B129)*(ROW('C-Intervention_Grouping'!$B$10:$BA$163)))+95),(SUMPRODUCT(('C-Intervention_Grouping'!$B$10:$BA$163='C-Background_Data'!$B129)*(COLUMN('C-Intervention_Grouping'!$B$10:$BA$163))))-1),0), "") -> 
I130: =IFERROR(ROUND(INDEX('C-Intervention_Grouping'!$B$10:$BA$163,(SUMPRODUCT(('C-Intervention_Grouping'!$B$10:$BA$163='C-Background_Data'!$B130)*(ROW('C-Intervention_Grouping'!$B$10:$BA$163)))+95),(SUMPRODUCT(('C-Intervention_Grouping'!$B$10:$BA$163='C-Background_Data'!$B130)*(COLUMN('C-Intervention_Grouping'!$B$10:$BA$163))))-1),0), "") -> 
I131: =IFERROR(ROUND(INDEX('C-Intervention_Grouping'!$B$10:$BA$163,(SUMPRODUCT(('C-Intervention_Grouping'!$B$10:$BA$163='C-Background_Data'!$B131)*(ROW('C-Intervention_Grouping'!$B$10:$BA$163)))+95),(SUMPRODUCT(('C-Intervention_Grouping'!$B$10:$BA$163='C-Background_Data'!$B131)*(COLUMN('C-Intervention_Grouping'!$B$10:$BA$163))))-1),0), "") -> 
I132: =IFERROR(ROUND(INDEX('C-Intervention_Grouping'!$B$10:$BA$163,(SUMPRODUCT(('C-Intervention_Grouping'!$B$10:$BA$163='C-Background_Data'!$B132)*(ROW('C-Intervention_Grouping'!$B$10:$BA$163)))+95),(SUMPRODUCT(('C-Intervention_Grouping'!$B$10:$BA$163='C-Background_Data'!$B132)*(COLUMN('C-Intervention_Grouping'!$B$10:$BA$163))))-1),0), "") -> 
I133: =IFERROR(ROUND(INDEX('C-Intervention_Grouping'!$B$10:$BA$163,(SUMPRODUCT(('C-Intervention_Grouping'!$B$10:$BA$163='C-Background_Data'!$B133)*(ROW('C-Intervention_Grouping'!$B$10:$BA$163)))+95),(SUMPRODUCT(('C-Intervention_Grouping'!$B$10:$BA$163='C-Background_Data'!$B133)*(COLUMN('C-Intervention_Grouping'!$B$10:$BA$163))))-1),0), "") -> 
I134: =IFERROR(ROUND(INDEX('C-Intervention_Grouping'!$B$10:$BA$163,(SUMPRODUCT(('C-Intervention_Grouping'!$B$10:$BA$163='C-Background_Data'!$B134)*(ROW('C-Intervention_Grouping'!$B$10:$BA$163)))+95),(SUMPRODUCT(('C-Intervention_Grouping'!$B$10:$BA$163='C-Background_Data'!$B134)*(COLUMN('C-Intervention_Grouping'!$B$10:$BA$163))))-1),0), "") -> 
I135: =IFERROR(ROUND(INDEX('C-Intervention_Grouping'!$B$10:$BA$163,(SUMPRODUCT(('C-Intervention_Grouping'!$B$10:$BA$163='C-Background_Data'!$B135)*(ROW('C-Intervention_Grouping'!$B$10:$BA$163)))+95),(SUMPRODUCT(('C-Intervention_Grouping'!$B$10:$BA$163='C-Background_Data'!$B135)*(COLUMN('C-Intervention_Grouping'!$B$10:$BA$163))))-1),0), "") -> 
I136: =IFERROR(ROUND(INDEX('C-Intervention_Grouping'!$B$10:$BA$163,(SUMPRODUCT(('C-Intervention_Grouping'!$B$10:$BA$163='C-Background_Data'!$B136)*(ROW('C-Intervention_Grouping'!$B$10:$BA$163)))+95),(SUMPRODUCT(('C-Intervention_Grouping'!$B$10:$BA$163='C-Background_Data'!$B136)*(COLUMN('C-Intervention_Grouping'!$B$10:$BA$163))))-1),0), "") -> 
I137: =IFERROR(ROUND(INDEX('C-Intervention_Grouping'!$B$10:$BA$163,(SUMPRODUCT(('C-Intervention_Grouping'!$B$10:$BA$163='C-Background_Data'!$B137)*(ROW('C-Intervention_Grouping'!$B$10:$BA$163)))+95),(SUMPRODUCT(('C-Intervention_Grouping'!$B$10:$BA$163='C-Background_Data'!$B137)*(COLUMN('C-Intervention_Grouping'!$B$10:$BA$163))))-1),0), "") -> 
I138: =IFERROR(ROUND(INDEX('C-Intervention_Grouping'!$B$10:$BA$163,(SUMPRODUCT(('C-Intervention_Grouping'!$B$10:$BA$163='C-Background_Data'!$B138)*(ROW('C-Intervention_Grouping'!$B$10:$BA$163)))+95),(SUMPRODUCT(('C-Intervention_Grouping'!$B$10:$BA$163='C-Background_Data'!$B138)*(COLUMN('C-Intervention_Grouping'!$B$10:$BA$163))))-1),0), "") -> 
I139: =IFERROR(ROUND(INDEX('C-Intervention_Grouping'!$B$10:$BA$163,(SUMPRODUCT(('C-Intervention_Grouping'!$B$10:$BA$163='C-Background_Data'!$B139)*(ROW('C-Intervention_Grouping'!$B$10:$BA$163)))+95),(SUMPRODUCT(('C-Intervention_Grouping'!$B$10:$BA$163='C-Background_Data'!$B139)*(COLUMN('C-Intervention_Grouping'!$B$10:$BA$163))))-1),0), "") -> 
I140: =IFERROR(ROUND(INDEX('C-Intervention_Grouping'!$B$10:$BA$163,(SUMPRODUCT(('C-Intervention_Grouping'!$B$10:$BA$163='C-Background_Data'!$B140)*(ROW('C-Intervention_Grouping'!$B$10:$BA$163)))+95),(SUMPRODUCT(('C-Intervention_Grouping'!$B$10:$BA$163='C-Background_Data'!$B140)*(COLUMN('C-Intervention_Grouping'!$B$10:$BA$163))))-1),0), "") -> 
H141: =IF(B141= "", "", SUM(S141:U141)) ->  | I141: =IFERROR(ROUND(INDEX('C-Intervention_Grouping'!$B$10:$BA$163,(SUMPRODUCT(('C-Intervention_Grouping'!$B$10:$BA$163='C-Background_Data'!$B141)*(ROW('C-Intervention_Grouping'!$B$10:$BA$163)))+95),(SUMPRODUCT(('C-Intervention_Grouping'!$B$10:$BA$163='C-Background_Data'!$B141)*(COLUMN('C-Intervention_Grouping'!$B$10:$BA$163))))-1),0), "") -> 
I142: =IFERROR(ROUND(INDEX('C-Intervention_Grouping'!$B$10:$BA$163,(SUMPRODUCT(('C-Intervention_Grouping'!$B$10:$BA$163='C-Background_Data'!$B142)*(ROW('C-Intervention_Grouping'!$B$10:$BA$163)))+95),(SUMPRODUCT(('C-Intervention_Grouping'!$B$10:$BA$163='C-Background_Data'!$B142)*(COLUMN('C-Intervention_Grouping'!$B$10:$BA$163))))-1),0), "") -> 
I143: =IFERROR(ROUND(INDEX('C-Intervention_Grouping'!$B$10:$BA$163,(SUMPRODUCT(('C-Intervention_Grouping'!$B$10:$BA$163='C-Background_Data'!$B143)*(ROW('C-Intervention_Grouping'!$B$10:$BA$163)))+95),(SUMPRODUCT(('C-Intervention_Grouping'!$B$10:$BA$163='C-Background_Data'!$B143)*(COLUMN('C-Intervention_Grouping'!$B$10:$BA$163))))-1),0), "") -> 
I144: =IFERROR(ROUND(INDEX('C-Intervention_Grouping'!$B$10:$BA$163,(SUMPRODUCT(('C-Intervention_Grouping'!$B$10:$BA$163='C-Background_Data'!$B144)*(ROW('C-Intervention_Grouping'!$B$10:$BA$163)))+95),(SUMPRODUCT(('C-Intervention_Grouping'!$B$10:$BA$163='C-Background_Data'!$B144)*(COLUMN('C-Intervention_Grouping'!$B$10:$BA$163))))-1),0), "") -> 
I145: =IFERROR(ROUND(INDEX('C-Intervention_Grouping'!$B$10:$BA$163,(SUMPRODUCT(('C-Intervention_Grouping'!$B$10:$BA$163='C-Background_Data'!$B145)*(ROW('C-Intervention_Grouping'!$B$10:$BA$163)))+95),(SUMPRODUCT(('C-Intervention_Grouping'!$B$10:$BA$163='C-Background_Data'!$B145)*(COLUMN('C-Intervention_Grouping'!$B$10:$BA$163))))-1),0), "") -> 
I146: =IFERROR(ROUND(INDEX('C-Intervention_Grouping'!$B$10:$BA$163,(SUMPRODUCT(('C-Intervention_Grouping'!$B$10:$BA$163='C-Background_Data'!$B146)*(ROW('C-Intervention_Grouping'!$B$10:$BA$163)))+95),(SUMPRODUCT(('C-Intervention_Grouping'!$B$10:$BA$163='C-Background_Data'!$B146)*(COLUMN('C-Intervention_Grouping'!$B$10:$BA$163))))-1),0), "") -> 
I147: =IFERROR(ROUND(INDEX('C-Intervention_Grouping'!$B$10:$BA$163,(SUMPRODUCT(('C-Intervention_Grouping'!$B$10:$BA$163='C-Background_Data'!$B147)*(ROW('C-Intervention_Grouping'!$B$10:$BA$163)))+95),(SUMPRODUCT(('C-Intervention_Grouping'!$B$10:$BA$163='C-Background_Data'!$B147)*(COLUMN('C-Intervention_Grouping'!$B$10:$BA$163))))-1),0), "") -> 
G148: =IF(B148="", "", CONCATENATE("tCO2e/", F148)) ->  | I148: =IFERROR(ROUND(INDEX('C-Intervention_Grouping'!$B$10:$BA$163,(SUMPRODUCT(('C-Intervention_Grouping'!$B$10:$BA$163='C-Background_Data'!$B148)*(ROW('C-Intervention_Grouping'!$B$10:$BA$163)))+95),(SUMPRODUCT(('C-Intervention_Grouping'!$B$10:$BA$163='C-Background_Data'!$B148)*(COLUMN('C-Intervention_Grouping'!$B$10:$BA$163))))-1),0), "") -> 
I149: =IFERROR(ROUND(INDEX('C-Intervention_Grouping'!$B$10:$BA$163,(SUMPRODUCT(('C-Intervention_Grouping'!$B$10:$BA$163='C-Background_Data'!$B149)*(ROW('C-Intervention_Grouping'!$B$10:$BA$163)))+95),(SUMPRODUCT(('C-Intervention_Grouping'!$B$10:$BA$163='C-Background_Data'!$B149)*(COLUMN('C-Intervention_Grouping'!$B$10:$BA$163))))-1),0), "") -> 
I150: =IFERROR(ROUND(INDEX('C-Intervention_Grouping'!$B$10:$BA$163,(SUMPRODUCT(('C-Intervention_Grouping'!$B$10:$BA$163='C-Background_Data'!$B150)*(ROW('C-Intervention_Grouping'!$B$10:$BA$163)))+95),(SUMPRODUCT(('C-Intervention_Grouping'!$B$10:$BA$163='C-Background_Data'!$B150)*(COLUMN('C-Intervention_Grouping'!$B$10:$BA$163))))-1),0), "") -> 
I151: =IFERROR(ROUND(INDEX('C-Intervention_Grouping'!$B$10:$BA$163,(SUMPRODUCT(('C-Intervention_Grouping'!$B$10:$BA$163='C-Background_Data'!$B151)*(ROW('C-Intervention_Grouping'!$B$10:$BA$163)))+95),(SUMPRODUCT(('C-Intervention_Grouping'!$B$10:$BA$163='C-Background_Data'!$B151)*(COLUMN('C-Intervention_Grouping'!$B$10:$BA$163))))-1),0), "") -> 
I152: =IFERROR(ROUND(INDEX('C-Intervention_Grouping'!$B$10:$BA$163,(SUMPRODUCT(('C-Intervention_Grouping'!$B$10:$BA$163='C-Background_Data'!$B152)*(ROW('C-Intervention_Grouping'!$B$10:$BA$163)))+95),(SUMPRODUCT(('C-Intervention_Grouping'!$B$10:$BA$163='C-Background_Data'!$B152)*(COLUMN('C-Intervention_Grouping'!$B$10:$BA$163))))-1),0), "") -> 
I153: =IFERROR(ROUND(INDEX('C-Intervention_Grouping'!$B$10:$BA$163,(SUMPRODUCT(('C-Intervention_Grouping'!$B$10:$BA$163='C-Background_Data'!$B153)*(ROW('C-Intervention_Grouping'!$B$10:$BA$163)))+95),(SUMPRODUCT(('C-Intervention_Grouping'!$B$10:$BA$163='C-Background_Data'!$B153)*(COLUMN('C-Intervention_Grouping'!$B$10:$BA$163))))-1),0), "") -> 
I154: =IFERROR(ROUND(INDEX('C-Intervention_Grouping'!$B$10:$BA$163,(SUMPRODUCT(('C-Intervention_Grouping'!$B$10:$BA$163='C-Background_Data'!$B154)*(ROW('C-Intervention_Grouping'!$B$10:$BA$163)))+95),(SUMPRODUCT(('C-Intervention_Grouping'!$B$10:$BA$163='C-Background_Data'!$B154)*(COLUMN('C-Intervention_Grouping'!$B$10:$BA$163))))-1),0), "") -> 
I155: =IFERROR(ROUND(INDEX('C-Intervention_Grouping'!$B$10:$BA$163,(SUMPRODUCT(('C-Intervention_Grouping'!$B$10:$BA$163='C-Background_Data'!$B155)*(ROW('C-Intervention_Grouping'!$B$10:$BA$163)))+95),(SUMPRODUCT(('C-Intervention_Grouping'!$B$10:$BA$163='C-Background_Data'!$B155)*(COLUMN('C-Intervention_Grouping'!$B$10:$BA$163))))-1),0), "") -> 
I156: =IFERROR(ROUND(INDEX('C-Intervention_Grouping'!$B$10:$BA$163,(SUMPRODUCT(('C-Intervention_Grouping'!$B$10:$BA$163='C-Background_Data'!$B156)*(ROW('C-Intervention_Grouping'!$B$10:$BA$163)))+95),(SUMPRODUCT(('C-Intervention_Grouping'!$B$10:$BA$163='C-Background_Data'!$B156)*(COLUMN('C-Intervention_Grouping'!$B$10:$BA$163))))-1),0), "") -> 
I157: =IFERROR(ROUND(INDEX('C-Intervention_Grouping'!$B$10:$BA$163,(SUMPRODUCT(('C-Intervention_Grouping'!$B$10:$BA$163='C-Background_Data'!$B157)*(ROW('C-Intervention_Grouping'!$B$10:$BA$163)))+95),(SUMPRODUCT(('C-Intervention_Grouping'!$B$10:$BA$163='C-Background_Data'!$B157)*(COLUMN('C-Intervention_Grouping'!$B$10:$BA$163))))-1),0), "") -> 
I158: =IFERROR(ROUND(INDEX('C-Intervention_Grouping'!$B$10:$BA$163,(SUMPRODUCT(('C-Intervention_Grouping'!$B$10:$BA$163='C-Background_Data'!$B158)*(ROW('C-Intervention_Grouping'!$B$10:$BA$163)))+95),(SUMPRODUCT(('C-Intervention_Grouping'!$B$10:$BA$163='C-Background_Data'!$B158)*(COLUMN('C-Intervention_Grouping'!$B$10:$BA$163))))-1),0), "") -> 
I159: =IFERROR(ROUND(INDEX('C-Intervention_Grouping'!$B$10:$BA$163,(SUMPRODUCT(('C-Intervention_Grouping'!$B$10:$BA$163='C-Background_Data'!$B159)*(ROW('C-Intervention_Grouping'!$B$10:$BA$163)))+95),(SUMPRODUCT(('C-Intervention_Grouping'!$B$10:$BA$163='C-Background_Data'!$B159)*(COLUMN('C-Intervention_Grouping'!$B$10:$BA$163))))-1),0), "") -> 
I160: =IFERROR(ROUND(INDEX('C-Intervention_Grouping'!$B$10:$BA$163,(SUMPRODUCT(('C-Intervention_Grouping'!$B$10:$BA$163='C-Background_Data'!$B160)*(ROW('C-Intervention_Grouping'!$B$10:$BA$163)))+95),(SUMPRODUCT(('C-Intervention_Grouping'!$B$10:$BA$163='C-Background_Data'!$B160)*(COLUMN('C-Intervention_Grouping'!$B$10:$BA$163))))-1),0), "") -> 
I161: =IFERROR(ROUND(INDEX('C-Intervention_Grouping'!$B$10:$BA$163,(SUMPRODUCT(('C-Intervention_Grouping'!$B$10:$BA$163='C-Background_Data'!$B161)*(ROW('C-Intervention_Grouping'!$B$10:$BA$163)))+95),(SUMPRODUCT(('C-Intervention_Grouping'!$B$10:$BA$163='C-Background_Data'!$B161)*(COLUMN('C-Intervention_Grouping'!$B$10:$BA$163))))-1),0), "") -> 
I162: =IFERROR(ROUND(INDEX('C-Intervention_Grouping'!$B$10:$BA$163,(SUMPRODUCT(('C-Intervention_Grouping'!$B$10:$BA$163='C-Background_Data'!$B162)*(ROW('C-Intervention_Grouping'!$B$10:$BA$163)))+95),(SUMPRODUCT(('C-Intervention_Grouping'!$B$10:$BA$163='C-Background_Data'!$B162)*(COLUMN('C-Intervention_Grouping'!$B$10:$BA$163))))-1),0), "") -> 
I163: =IFERROR(ROUND(INDEX('C-Intervention_Grouping'!$B$10:$BA$163,(SUMPRODUCT(('C-Intervention_Grouping'!$B$10:$BA$163='C-Background_Data'!$B163)*(ROW('C-Intervention_Grouping'!$B$10:$BA$163)))+95),(SUMPRODUCT(('C-Intervention_Grouping'!$B$10:$BA$163='C-Background_Data'!$B163)*(COLUMN('C-Intervention_Grouping'!$B$10:$BA$163))))-1),0), "") -> 
I164: =IFERROR(ROUND(INDEX('C-Intervention_Grouping'!$B$10:$BA$163,(SUMPRODUCT(('C-Intervention_Grouping'!$B$10:$BA$163='C-Background_Data'!$B164)*(ROW('C-Intervention_Grouping'!$B$10:$BA$163)))+95),(SUMPRODUCT(('C-Intervention_Grouping'!$B$10:$BA$163='C-Background_Data'!$B164)*(COLUMN('C-Intervention_Grouping'!$B$10:$BA$163))))-1),0), "") -> 
I165: =IFERROR(ROUND(INDEX('C-Intervention_Grouping'!$B$10:$BA$163,(SUMPRODUCT(('C-Intervention_Grouping'!$B$10:$BA$163='C-Background_Data'!$B165)*(ROW('C-Intervention_Grouping'!$B$10:$BA$163)))+95),(SUMPRODUCT(('C-Intervention_Grouping'!$B$10:$BA$163='C-Background_Data'!$B165)*(COLUMN('C-Intervention_Grouping'!$B$10:$BA$163))))-1),0), "") -> 
I166: =IFERROR(ROUND(INDEX('C-Intervention_Grouping'!$B$10:$BA$163,(SUMPRODUCT(('C-Intervention_Grouping'!$B$10:$BA$163='C-Background_Data'!$B166)*(ROW('C-Intervention_Grouping'!$B$10:$BA$163)))+95),(SUMPRODUCT(('C-Intervention_Grouping'!$B$10:$BA$163='C-Background_Data'!$B166)*(COLUMN('C-Intervention_Grouping'!$B$10:$BA$163))))-1),0), "") -> 
I167: =IFERROR(ROUND(INDEX('C-Intervention_Grouping'!$B$10:$BA$163,(SUMPRODUCT(('C-Intervention_Grouping'!$B$10:$BA$163='C-Background_Data'!$B167)*(ROW('C-Intervention_Grouping'!$B$10:$BA$163)))+95),(SUMPRODUCT(('C-Intervention_Grouping'!$B$10:$BA$163='C-Background_Data'!$B167)*(COLUMN('C-Intervention_Grouping'!$B$10:$BA$163))))-1),0), "") -> 
I168: =IFERROR(ROUND(INDEX('C-Intervention_Grouping'!$B$10:$BA$163,(SUMPRODUCT(('C-Intervention_Grouping'!$B$10:$BA$163='C-Background_Data'!$B168)*(ROW('C-Intervention_Grouping'!$B$10:$BA$163)))+95),(SUMPRODUCT(('C-Intervention_Grouping'!$B$10:$BA$163='C-Background_Data'!$B168)*(COLUMN('C-Intervention_Grouping'!$B$10:$BA$163))))-1),0), "") -> 
I169: =IFERROR(ROUND(INDEX('C-Intervention_Grouping'!$B$10:$BA$163,(SUMPRODUCT(('C-Intervention_Grouping'!$B$10:$BA$163='C-Background_Data'!$B169)*(ROW('C-Intervention_Grouping'!$B$10:$BA$163)))+95),(SUMPRODUCT(('C-Intervention_Grouping'!$B$10:$BA$163='C-Background_Data'!$B169)*(COLUMN('C-Intervention_Grouping'!$B$10:$BA$163))))-1),0), "") -> 
I170: =IFERROR(ROUND(INDEX('C-Intervention_Grouping'!$B$10:$BA$163,(SUMPRODUCT(('C-Intervention_Grouping'!$B$10:$BA$163='C-Background_Data'!$B170)*(ROW('C-Intervention_Grouping'!$B$10:$BA$163)))+95),(SUMPRODUCT(('C-Intervention_Grouping'!$B$10:$BA$163='C-Background_Data'!$B170)*(COLUMN('C-Intervention_Grouping'!$B$10:$BA$163))))-1),0), "") -> 
I171: =IFERROR(ROUND(INDEX('C-Intervention_Grouping'!$B$10:$BA$163,(SUMPRODUCT(('C-Intervention_Grouping'!$B$10:$BA$163='C-Background_Data'!$B171)*(ROW('C-Intervention_Grouping'!$B$10:$BA$163)))+95),(SUMPRODUCT(('C-Intervention_Grouping'!$B$10:$BA$163='C-Background_Data'!$B171)*(COLUMN('C-Intervention_Grouping'!$B$10:$BA$163))))-1),0), "") -> 
I172: =IFERROR(ROUND(INDEX('C-Intervention_Grouping'!$B$10:$BA$163,(SUMPRODUCT(('C-Intervention_Grouping'!$B$10:$BA$163='C-Background_Data'!$B172)*(ROW('C-Intervention_Grouping'!$B$10:$BA$163)))+95),(SUMPRODUCT(('C-Intervention_Grouping'!$B$10:$BA$163='C-Background_Data'!$B172)*(COLUMN('C-Intervention_Grouping'!$B$10:$BA$163))))-1),0), "") -> 
I173: =IFERROR(ROUND(INDEX('C-Intervention_Grouping'!$B$10:$BA$163,(SUMPRODUCT(('C-Intervention_Grouping'!$B$10:$BA$163='C-Background_Data'!$B173)*(ROW('C-Intervention_Grouping'!$B$10:$BA$163)))+95),(SUMPRODUCT(('C-Intervention_Grouping'!$B$10:$BA$163='C-Background_Data'!$B173)*(COLUMN('C-Intervention_Grouping'!$B$10:$BA$163))))-1),0), "") -> 
I174: =IFERROR(ROUND(INDEX('C-Intervention_Grouping'!$B$10:$BA$163,(SUMPRODUCT(('C-Intervention_Grouping'!$B$10:$BA$163='C-Background_Data'!$B174)*(ROW('C-Intervention_Grouping'!$B$10:$BA$163)))+95),(SUMPRODUCT(('C-Intervention_Grouping'!$B$10:$BA$163='C-Background_Data'!$B174)*(COLUMN('C-Intervention_Grouping'!$B$10:$BA$163))))-1),0), "") -> 
I175: =IFERROR(ROUND(INDEX('C-Intervention_Grouping'!$B$10:$BA$163,(SUMPRODUCT(('C-Intervention_Grouping'!$B$10:$BA$163='C-Background_Data'!$B175)*(ROW('C-Intervention_Grouping'!$B$10:$BA$163)))+95),(SUMPRODUCT(('C-Intervention_Grouping'!$B$10:$BA$163='C-Background_Data'!$B175)*(COLUMN('C-Intervention_Grouping'!$B$10:$BA$163))))-1),0), "") -> 
I176: =IFERROR(ROUND(INDEX('C-Intervention_Grouping'!$B$10:$BA$163,(SUMPRODUCT(('C-Intervention_Grouping'!$B$10:$BA$163='C-Background_Data'!$B176)*(ROW('C-Intervention_Grouping'!$B$10:$BA$163)))+95),(SUMPRODUCT(('C-Intervention_Grouping'!$B$10:$BA$163='C-Background_Data'!$B176)*(COLUMN('C-Intervention_Grouping'!$B$10:$BA$163))))-1),0), "") -> 
I177: =IFERROR(ROUND(INDEX('C-Intervention_Grouping'!$B$10:$BA$163,(SUMPRODUCT(('C-Intervention_Grouping'!$B$10:$BA$163='C-Background_Data'!$B177)*(ROW('C-Intervention_Grouping'!$B$10:$BA$163)))+95),(SUMPRODUCT(('C-Intervention_Grouping'!$B$10:$BA$163='C-Background_Data'!$B177)*(COLUMN('C-Intervention_Grouping'!$B$10:$BA$163))))-1),0), "") -> 
I178: =IFERROR(ROUND(INDEX('C-Intervention_Grouping'!$B$10:$BA$163,(SUMPRODUCT(('C-Intervention_Grouping'!$B$10:$BA$163='C-Background_Data'!$B178)*(ROW('C-Intervention_Grouping'!$B$10:$BA$163)))+95),(SUMPRODUCT(('C-Intervention_Grouping'!$B$10:$BA$163='C-Background_Data'!$B178)*(COLUMN('C-Intervention_Grouping'!$B$10:$BA$163))))-1),0), "") -> 
I179: =IFERROR(ROUND(INDEX('C-Intervention_Grouping'!$B$10:$BA$163,(SUMPRODUCT(('C-Intervention_Grouping'!$B$10:$BA$163='C-Background_Data'!$B179)*(ROW('C-Intervention_Grouping'!$B$10:$BA$163)))+95),(SUMPRODUCT(('C-Intervention_Grouping'!$B$10:$BA$163='C-Background_Data'!$B179)*(COLUMN('C-Intervention_Grouping'!$B$10:$BA$163))))-1),0), "") -> 
I180: =IFERROR(ROUND(INDEX('C-Intervention_Grouping'!$B$10:$BA$163,(SUMPRODUCT(('C-Intervention_Grouping'!$B$10:$BA$163='C-Background_Data'!$B180)*(ROW('C-Intervention_Grouping'!$B$10:$BA$163)))+95),(SUMPRODUCT(('C-Intervention_Grouping'!$B$10:$BA$163='C-Background_Data'!$B180)*(COLUMN('C-Intervention_Grouping'!$B$10:$BA$163))))-1),0), "") -> 
I181: =IFERROR(ROUND(INDEX('C-Intervention_Grouping'!$B$10:$BA$163,(SUMPRODUCT(('C-Intervention_Grouping'!$B$10:$BA$163='C-Background_Data'!$B181)*(ROW('C-Intervention_Grouping'!$B$10:$BA$163)))+95),(SUMPRODUCT(('C-Intervention_Grouping'!$B$10:$BA$163='C-Background_Data'!$B181)*(COLUMN('C-Intervention_Grouping'!$B$10:$BA$163))))-1),0), "") -> 
I182: =IFERROR(ROUND(INDEX('C-Intervention_Grouping'!$B$10:$BA$163,(SUMPRODUCT(('C-Intervention_Grouping'!$B$10:$BA$163='C-Background_Data'!$B182)*(ROW('C-Intervention_Grouping'!$B$10:$BA$163)))+95),(SUMPRODUCT(('C-Intervention_Grouping'!$B$10:$BA$163='C-Background_Data'!$B182)*(COLUMN('C-Intervention_Grouping'!$B$10:$BA$163))))-1),0), "") -> 
I183: =IFERROR(ROUND(INDEX('C-Intervention_Grouping'!$B$10:$BA$163,(SUMPRODUCT(('C-Intervention_Grouping'!$B$10:$BA$163='C-Background_Data'!$B183)*(ROW('C-Intervention_Grouping'!$B$10:$BA$163)))+95),(SUMPRODUCT(('C-Intervention_Grouping'!$B$10:$BA$163='C-Background_Data'!$B183)*(COLUMN('C-Intervention_Grouping'!$B$10:$BA$163))))-1),0), "") -> 
I184: =IFERROR(ROUND(INDEX('C-Intervention_Grouping'!$B$10:$BA$163,(SUMPRODUCT(('C-Intervention_Grouping'!$B$10:$BA$163='C-Background_Data'!$B184)*(ROW('C-Intervention_Grouping'!$B$10:$BA$163)))+95),(SUMPRODUCT(('C-Intervention_Grouping'!$B$10:$BA$163='C-Background_Data'!$B184)*(COLUMN('C-Intervention_Grouping'!$B$10:$BA$163))))-1),0), "") -> 
I185: =IFERROR(ROUND(INDEX('C-Intervention_Grouping'!$B$10:$BA$163,(SUMPRODUCT(('C-Intervention_Grouping'!$B$10:$BA$163='C-Background_Data'!$B185)*(ROW('C-Intervention_Grouping'!$B$10:$BA$163)))+95),(SUMPRODUCT(('C-Intervention_Grouping'!$B$10:$BA$163='C-Background_Data'!$B185)*(COLUMN('C-Intervention_Grouping'!$B$10:$BA$163))))-1),0), "") -> 
I186: =IFERROR(ROUND(INDEX('C-Intervention_Grouping'!$B$10:$BA$163,(SUMPRODUCT(('C-Intervention_Grouping'!$B$10:$BA$163='C-Background_Data'!$B186)*(ROW('C-Intervention_Grouping'!$B$10:$BA$163)))+95),(SUMPRODUCT(('C-Intervention_Grouping'!$B$10:$BA$163='C-Background_Data'!$B186)*(COLUMN('C-Intervention_Grouping'!$B$10:$BA$163))))-1),0), "") -> 
I187: =IFERROR(ROUND(INDEX('C-Intervention_Grouping'!$B$10:$BA$163,(SUMPRODUCT(('C-Intervention_Grouping'!$B$10:$BA$163='C-Background_Data'!$B187)*(ROW('C-Intervention_Grouping'!$B$10:$BA$163)))+95),(SUMPRODUCT(('C-Intervention_Grouping'!$B$10:$BA$163='C-Background_Data'!$B187)*(COLUMN('C-Intervention_Grouping'!$B$10:$BA$163))))-1),0), "") -> 
I188: =IFERROR(ROUND(INDEX('C-Intervention_Grouping'!$B$10:$BA$163,(SUMPRODUCT(('C-Intervention_Grouping'!$B$10:$BA$163='C-Background_Data'!$B188)*(ROW('C-Intervention_Grouping'!$B$10:$BA$163)))+95),(SUMPRODUCT(('C-Intervention_Grouping'!$B$10:$BA$163='C-Background_Data'!$B188)*(COLUMN('C-Intervention_Grouping'!$B$10:$BA$163))))-1),0), "") -> 
I189: =IFERROR(ROUND(INDEX('C-Intervention_Grouping'!$B$10:$BA$163,(SUMPRODUCT(('C-Intervention_Grouping'!$B$10:$BA$163='C-Background_Data'!$B189)*(ROW('C-Intervention_Grouping'!$B$10:$BA$163)))+95),(SUMPRODUCT(('C-Intervention_Grouping'!$B$10:$BA$163='C-Background_Data'!$B189)*(COLUMN('C-Intervention_Grouping'!$B$10:$BA$163))))-1),0), "") -> 
I190: =IFERROR(ROUND(INDEX('C-Intervention_Grouping'!$B$10:$BA$163,(SUMPRODUCT(('C-Intervention_Grouping'!$B$10:$BA$163='C-Background_Data'!$B190)*(ROW('C-Intervention_Grouping'!$B$10:$BA$163)))+95),(SUMPRODUCT(('C-Intervention_Grouping'!$B$10:$BA$163='C-Background_Data'!$B190)*(COLUMN('C-Intervention_Grouping'!$B$10:$BA$163))))-1),0), "") -> 
I191: =IFERROR(ROUND(INDEX('C-Intervention_Grouping'!$B$10:$BA$163,(SUMPRODUCT(('C-Intervention_Grouping'!$B$10:$BA$163='C-Background_Data'!$B191)*(ROW('C-Intervention_Grouping'!$B$10:$BA$163)))+95),(SUMPRODUCT(('C-Intervention_Grouping'!$B$10:$BA$163='C-Background_Data'!$B191)*(COLUMN('C-Intervention_Grouping'!$B$10:$BA$163))))-1),0), "") -> 
I192: =IFERROR(ROUND(INDEX('C-Intervention_Grouping'!$B$10:$BA$163,(SUMPRODUCT(('C-Intervention_Grouping'!$B$10:$BA$163='C-Background_Data'!$B192)*(ROW('C-Intervention_Grouping'!$B$10:$BA$163)))+95),(SUMPRODUCT(('C-Intervention_Grouping'!$B$10:$BA$163='C-Background_Data'!$B192)*(COLUMN('C-Intervention_Grouping'!$B$10:$BA$163))))-1),0), "") -> 
I193: =IFERROR(ROUND(INDEX('C-Intervention_Grouping'!$B$10:$BA$163,(SUMPRODUCT(('C-Intervention_Grouping'!$B$10:$BA$163='C-Background_Data'!$B193)*(ROW('C-Intervention_Grouping'!$B$10:$BA$163)))+95),(SUMPRODUCT(('C-Intervention_Grouping'!$B$10:$BA$163='C-Background_Data'!$B193)*(COLUMN('C-Intervention_Grouping'!$B$10:$BA$163))))-1),0), "") -> 
I194: =IFERROR(ROUND(INDEX('C-Intervention_Grouping'!$B$10:$BA$163,(SUMPRODUCT(('C-Intervention_Grouping'!$B$10:$BA$163='C-Background_Data'!$B194)*(ROW('C-Intervention_Grouping'!$B$10:$BA$163)))+95),(SUMPRODUCT(('C-Intervention_Grouping'!$B$10:$BA$163='C-Background_Data'!$B194)*(COLUMN('C-Intervention_Grouping'!$B$10:$BA$163))))-1),0), "") -> 
I195: =IFERROR(ROUND(INDEX('C-Intervention_Grouping'!$B$10:$BA$163,(SUMPRODUCT(('C-Intervention_Grouping'!$B$10:$BA$163='C-Background_Data'!$B195)*(ROW('C-Intervention_Grouping'!$B$10:$BA$163)))+95),(SUMPRODUCT(('C-Intervention_Grouping'!$B$10:$BA$163='C-Background_Data'!$B195)*(COLUMN('C-Intervention_Grouping'!$B$10:$BA$163))))-1),0), "") -> 
I196: =IFERROR(ROUND(INDEX('C-Intervention_Grouping'!$B$10:$BA$163,(SUMPRODUCT(('C-Intervention_Grouping'!$B$10:$BA$163='C-Background_Data'!$B196)*(ROW('C-Intervention_Grouping'!$B$10:$BA$163)))+95),(SUMPRODUCT(('C-Intervention_Grouping'!$B$10:$BA$163='C-Background_Data'!$B196)*(COLUMN('C-Intervention_Grouping'!$B$10:$BA$163))))-1),0), "") -> 
I197: =IFERROR(ROUND(INDEX('C-Intervention_Grouping'!$B$10:$BA$163,(SUMPRODUCT(('C-Intervention_Grouping'!$B$10:$BA$163='C-Background_Data'!$B197)*(ROW('C-Intervention_Grouping'!$B$10:$BA$163)))+95),(SUMPRODUCT(('C-Intervention_Grouping'!$B$10:$BA$163='C-Background_Data'!$B197)*(COLUMN('C-Intervention_Grouping'!$B$10:$BA$163))))-1),0), "") -> 
I198: =IFERROR(ROUND(INDEX('C-Intervention_Grouping'!$B$10:$BA$163,(SUMPRODUCT(('C-Intervention_Grouping'!$B$10:$BA$163='C-Background_Data'!$B198)*(ROW('C-Intervention_Grouping'!$B$10:$BA$163)))+95),(SUMPRODUCT(('C-Intervention_Grouping'!$B$10:$BA$163='C-Background_Data'!$B198)*(COLUMN('C-Intervention_Grouping'!$B$10:$BA$163))))-1),0), "") -> 
I199: =IFERROR(ROUND(INDEX('C-Intervention_Grouping'!$B$10:$BA$163,(SUMPRODUCT(('C-Intervention_Grouping'!$B$10:$BA$163='C-Background_Data'!$B199)*(ROW('C-Intervention_Grouping'!$B$10:$BA$163)))+95),(SUMPRODUCT(('C-Intervention_Grouping'!$B$10:$BA$163='C-Background_Data'!$B199)*(COLUMN('C-Intervention_Grouping'!$B$10:$BA$163))))-1),0), "") -> 
I200: =IFERROR(ROUND(INDEX('C-Intervention_Grouping'!$B$10:$BA$163,(SUMPRODUCT(('C-Intervention_Grouping'!$B$10:$BA$163='C-Background_Data'!$B200)*(ROW('C-Intervention_Grouping'!$B$10:$BA$163)))+95),(SUMPRODUCT(('C-Intervention_Grouping'!$B$10:$BA$163='C-Background_Data'!$B200)*(COLUMN('C-Intervention_Grouping'!$B$10:$BA$163))))-1),0), "") -> 
I201: =IFERROR(ROUND(INDEX('C-Intervention_Grouping'!$B$10:$BA$163,(SUMPRODUCT(('C-Intervention_Grouping'!$B$10:$BA$163='C-Background_Data'!$B201)*(ROW('C-Intervention_Grouping'!$B$10:$BA$163)))+95),(SUMPRODUCT(('C-Intervention_Grouping'!$B$10:$BA$163='C-Background_Data'!$B201)*(COLUMN('C-Intervention_Grouping'!$B$10:$BA$163))))-1),0), "") -> 
I202: =IFERROR(ROUND(INDEX('C-Intervention_Grouping'!$B$10:$BA$163,(SUMPRODUCT(('C-Intervention_Grouping'!$B$10:$BA$163='C-Background_Data'!$B202)*(ROW('C-Intervention_Grouping'!$B$10:$BA$163)))+95),(SUMPRODUCT(('C-Intervention_Grouping'!$B$10:$BA$163='C-Background_Data'!$B202)*(COLUMN('C-Intervention_Grouping'!$B$10:$BA$163))))-1),0), "") -> 
I203: =IFERROR(ROUND(INDEX('C-Intervention_Grouping'!$B$10:$BA$163,(SUMPRODUCT(('C-Intervention_Grouping'!$B$10:$BA$163='C-Background_Data'!$B203)*(ROW('C-Intervention_Grouping'!$B$10:$BA$163)))+95),(SUMPRODUCT(('C-Intervention_Grouping'!$B$10:$BA$163='C-Background_Data'!$B203)*(COLUMN('C-Intervention_Grouping'!$B$10:$BA$163))))-1),0), "") -> 
I204: =IFERROR(ROUND(INDEX('C-Intervention_Grouping'!$B$10:$BA$163,(SUMPRODUCT(('C-Intervention_Grouping'!$B$10:$BA$163='C-Background_Data'!$B204)*(ROW('C-Intervention_Grouping'!$B$10:$BA$163)))+95),(SUMPRODUCT(('C-Intervention_Grouping'!$B$10:$BA$163='C-Background_Data'!$B204)*(COLUMN('C-Intervention_Grouping'!$B$10:$BA$163))))-1),0), "") -> 
... 85 more rows

Sheet C-Intervention_Grouping
C2: File Name: | F2: =IFERROR(MID(CELL("filename",F2),FIND("[",CELL("filename",F2))+1,FIND("]",CELL("filename",F2))-FIND("[",CELL("filename",F2))-1),"Please save the file to show here") -> LTICBT Excel Tool.xlsm
C3: Sheet Name: | F3: =IFERROR(MID(CELL("filename",F2),FIND("]",CELL("filename",F2))+1,255),"Please save the file to show here") -> C-Intervention_Grouping
C4: Description & Purpose of Sheet:
C5: Version: | F5: 0.01
B7: Background Data - Grouping of Benchmarks by Intervention
B9: Intervention Groups | C9: =TRANSPOSE(_xlfn._xlws.SORT(_xlfn.UNIQUE(_xlfn._xlws.FILTER('C-Background_Data'!D11:D219,'C-Background_Data'!D11:D219<>"")),1,1)) -> (additional benchmarks can be added by filling the blue cells. Overwrite this text first.) | D9: Bus Gate | E9: Bus Lane | F9: Bus Station | G9: Bus Stop | H9: Car Parking | I9: Charging Infrastructure | J9: Cycle Lane | K9: Footway | L9: Highway Treatment | M9: Junction | N9: Major Road Case Studies | O9: Modal Filter | P9: Parking & Docking for Active Travel Modes | Q9: Pedestrian/Cycle Bridge | R9: Pedestrian/Cycle Crossing | S9: Pedestrian/Cycle Subway | T9: Railway Station | U9: Road | V9: Road - Roadside Elements | W9: Road - Single Lane of Carriageway | X9: Road Bridge | Y9: Travel Corridor [Case Studies]
C10: =IF('C-Intervention_Grouping'!C9="", "", _xlfn.CHOOSECOLS(_xlfn._xlws.FILTER('C-Background_Data'!$B$11:$H$219, 'C-Background_Data'!$D$11:$D$219='C-Intervention_Grouping'!C$9),1)) -> 0 | D10: =IF('C-Intervention_Grouping'!D9="", "", _xlfn.CHOOSECOLS(_xlfn._xlws.FILTER('C-Background_Data'!$B$11:$H$219, 'C-Background_Data'!$D$11:$D$219='C-Intervention_Grouping'!D$9),1)) -> BG1 | E10: =IF('C-Intervention_Grouping'!E9="", "", _xlfn.CHOOSECOLS(_xlfn._xlws.FILTER('C-Background_Data'!$B$11:$H$219, 'C-Background_Data'!$D$11:$D$219='C-Intervention_Grouping'!E$9),1)) -> BL1 | F10: =IF('C-Intervention_Grouping'!F9="", "", _xlfn.CHOOSECOLS(_xlfn._xlws.FILTER('C-Background_Data'!$B$11:$H$219, 'C-Background_Data'!$D$11:$D$219='C-Intervention_Grouping'!F$9),1)) -> BN1 | G10: =IF('C-Intervention_Grouping'!G9="", "", _xlfn.CHOOSECOLS(_xlfn._xlws.FILTER('C-Background_Data'!$B$11:$H$219, 'C-Background_Data'!$D$11:$D$219='C-Intervention_Grouping'!G$9),1)) -> BS1 | H10: =IF('C-Intervention_Grouping'!H9="", "", _xlfn.CHOOSECOLS(_xlfn._xlws.FILTER('C-Background_Data'!$B$11:$H$219, 'C-Background_Data'!$D$11:$D$219='C-Intervention_Grouping'!H$9),1)) -> CP1 | I10: =IF('C-Intervention_Grouping'!I9="", "", _xlfn.CHOOSECOLS(_xlfn._xlws.FILTER('C-Background_Data'!$B$11:$H$219, 'C-Background_Data'!$D$11:$D$219='C-Intervention_Grouping'!I$9),1)) -> CH1 | J10: =IF('C-Intervention_Grouping'!J9="", "", _xlfn.CHOOSECOLS(_xlfn._xlws.FILTER('C-Background_Data'!$B$11:$H$219, 'C-Background_Data'!$D$11:$D$219='C-Intervention_Grouping'!J$9),1)) -> CL1 | K10: =IF('C-Intervention_Grouping'!K9="", "", _xlfn.CHOOSECOLS(_xlfn._xlws.FILTER('C-Background_Data'!$B$11:$H$219, 'C-Background_Data'!$D$11:$D$219='C-Intervention_Grouping'!K$9),1)) -> FP1 | L10: =IF('C-Intervention_Grouping'!L9="", "", _xlfn.CHOOSECOLS(_xlfn._xlws.FILTER('C-Background_Data'!$B$11:$H$219, 'C-Background_Data'!$D$11:$D$219='C-Intervention_Grouping'!L$9),1)) -> HT1 | M10: =IF('C-Intervention_Grouping'!M9="", "", _xlfn.CHOOSECOLS(_xlfn._xlws.FILTER('C-Background_Data'!$B$11:$H$219, 'C-Background_Data'!$D$11:$D$219='C-Intervention_Grouping'!M$9),1)) -> JU1 | N10: =IF('C-Intervention_Grouping'!N9="", "", _xlfn.CHOOSECOLS(_xlfn._xlws.FILTER('C-Background_Data'!$B$11:$H$219, 'C-Background_Data'!$D$11:$D$219='C-Intervention_Grouping'!N$9),1)) -> HI1 | O10: =IF('C-Intervention_Grouping'!O9="", "", _xlfn.CHOOSECOLS(_xlfn._xlws.FILTER('C-Background_Data'!$B$11:$H$219, 'C-Background_Data'!$D$11:$D$219='C-Intervention_Grouping'!O$9),1)) -> MF1 | P10: =IF('C-Intervention_Grouping'!P9="", "", _xlfn.CHOOSECOLS(_xlfn._xlws.FILTER('C-Background_Data'!$B$11:$H$219, 'C-Background_Data'!$D$11:$D$219='C-Intervention_Grouping'!P$9),1)) -> PD1 | Q10: =IF('C-Intervention_Grouping'!Q9="", "", _xlfn.CHOOSECOLS(_xlfn._xlws.FILTER('C-Background_Data'!$B$11:$H$219, 'C-Background_Data'!$D$11:$D$219='C-Intervention_Grouping'!Q$9),1)) -> PB1 | R10: =IF('C-Intervention_Grouping'!R9="", "", _xlfn.CHOOSECOLS(_xlfn._xlws.FILTER('C-Background_Data'!$B$11:$H$219, 'C-Background_Data'!$D$11:$D$219='C-Intervention_Grouping'!R$9),1)) -> PC1 | S10: =IF('C-Intervention_Grouping'!S9="", "", _xlfn.CHOOSECOLS(_xlfn._xlws.FILTER('C-Background_Data'!$B$11:$H$219, 'C-Background_Data'!$D$11:$D$219='C-Intervention_Grouping'!S$9),1)) -> PS1 | T10: =IF('C-Intervention_Grouping'!T9="", "", _xlfn.CHOOSECOLS(_xlfn._xlws.FILTER('C-Background_Data'!$B$11:$H$219, 'C-Background_Data'!$D$11:$D$219='C-Intervention_Grouping'!T$9),1)) -> RS1 | U10: =IF('C-Intervention_Grouping'!U9="", "", _xlfn.CHOOSECOLS(_xlfn._xlws.FILTER('C-Background_Data'!$B$11:$H$219, 'C-Background_Data'!$D$11:$D$219='C-Intervention_Grouping'!U$9),1)) -> RO1 | V10: =IF('C-Intervention_Grouping'!V9="", "", _xlfn.CHOOSECOLS(_xlfn._xlws.FILTER('C-Background_Data'!$B$11:$H$219, 'C-Background_Data'!$D$11:$D$219='C-Intervention_Grouping'!V$9),1)) -> RE1 | W10: =IF('C-Intervention_Grouping'!W9="", "", _xlfn.CHOOSECOLS(_xlfn._xlws.FILTER('C-Background_Data'!$B$11:$H$219, 'C-Background_Data'!$D$11:$D$219='C-Intervention_Grouping'!W$9),1)) -> CA1 | X10: =IF('C-Intervention_Grouping'!X9="", "", _xlfn.CHOOSECOLS(_xlfn._xlws.FILTER('C-Background_Data'!$B$11:$H$219, 'C-Background_Data'!$D$11:$D$219='C-Intervention_Grouping'!X$9),1)) -> RB1 | Y10: =IF('C-Intervention_Grouping'!Y9="", "", _xlfn.CHOOSECOLS(_xlfn._xlws.FILTER('C-Background_Data'!$B$11:$H$219, 'C-Background_Data'!$D$11:$D$219='C-Intervention_Grouping'!Y$9),1)) -> SC1 | Z10: =IF('C-Intervention_Grouping'!Z9="", "", _xlfn.CHOOSECOLS(_xlfn._xlws.FILTER('C-Background_Data'!$B$11:$H$219, 'C-Background_Data'!$D$11:$D$219='C-Intervention_Grouping'!Z$9),1)) ->  | AA10: =IF('C-Intervention_Grouping'!AA9="", "", _xlfn.CHOOSECOLS(_xlfn._xlws.FILTER('C-Background_Data'!$B$11:$H$219, 'C-Background_Data'!$D$11:$D$219='C-Intervention_Grouping'!AA$9),1)) ->  | AB10: =IF('C-Intervention_Grouping'!AB9="", "", _xlfn.CHOOSECOLS(_xlfn._xlws.FILTER('C-Background_Data'!$B$11:$H$219, 'C-Background_Data'!$D$11:$D$219='C-Intervention_Grouping'!AB$9),1)) ->  | AC10: =IF('C-Intervention_Grouping'!AC9="", "", _xlfn.CHOOSECOLS(_xlfn._xlws.FILTER('C-Background_Data'!$B$11:$H$219, 'C-Background_Data'!$D$11:$D$219='C-Intervention_Grouping'!AC$9),1)) ->  | AD10: =IF('C-Intervention_Grouping'!AD9="", "", _xlfn.CHOOSECOLS(_xlfn._xlws.FILTER('C-Background_Data'!$B$11:$H$219, 'C-Background_Data'!$D$11:$D$219='C-Intervention_Grouping'!AD$9),1)) ->  | AE10: =IF('C-Intervention_Grouping'!AE9="", "", _xlfn.CHOOSECOLS(_xlfn._xlws.FILTER('C-Background_Data'!$B$11:$H$219, 'C-Background_Data'!$D$11:$D$219='C-Intervention_Grouping'!AE$9),1)) ->  | AF10: =IF('C-Intervention_Grouping'!AF9="", "", _xlfn.CHOOSECOLS(_xlfn._xlws.FILTER('C-Background_Data'!$B$11:$H$219, 'C-Background_Data'!$D$11:$D$219='C-Intervention_Grouping'!AF$9),1)) ->  | AG10: =IF('C-Intervention_Grouping'!AG9="", "", _xlfn.CHOOSECOLS(_xlfn._xlws.FILTER('C-Background_Data'!$B$11:$H$219, 'C-Background_Data'!$D$11:$D$219='C-Intervention_Grouping'!AG$9),1)) ->  | AH10: =IF('C-Intervention_Grouping'!AH9="", "", _xlfn.CHOOSECOLS(_xlfn._xlws.FILTER('C-Background_Data'!$B$11:$H$219, 'C-Background_Data'!$D$11:$D$219='C-Intervention_Grouping'!AH$9),1)) ->  | AI10: =IF('C-Intervention_Grouping'!AI9="", "", _xlfn.CHOOSECOLS(_xlfn._xlws.FILTER('C-Background_Data'!$B$11:$H$219, 'C-Background_Data'!$D$11:$D$219='C-Intervention_Grouping'!AI$9),1)) ->  | AJ10: =IF('C-Intervention_Grouping'!AJ9="", "", _xlfn.CHOOSECOLS(_xlfn._xlws.FILTER('C-Background_Data'!$B$11:$H$219, 'C-Background_Data'!$D$11:$D$219='C-Intervention_Grouping'!AJ$9),1)) ->  | AK10: =IF('C-Intervention_Grouping'!AK9="", "", _xlfn.CHOOSECOLS(_xlfn._xlws.FILTER('C-Background_Data'!$B$11:$H$219, 'C-Background_Data'!$D$11:$D$219='C-Intervention_Grouping'!AK$9),1)) ->  | AL10: =IF('C-Intervention_Grouping'!AL9="", "", _xlfn.CHOOSECOLS(_xlfn._xlws.FILTER('C-Background_Data'!$B$11:$H$219, 'C-Background_Data'!$D$11:$D$219='C-Intervention_Grouping'!AL$9),1)) ->  | AM10: =IF('C-Intervention_Grouping'!AM9="", "", _xlfn.CHOOSECOLS(_xlfn._xlws.FILTER('C-Background_Data'!$B$11:$H$219, 'C-Background_Data'!$D$11:$D$219='C-Intervention_Grouping'!AM$9),1)) ->  | AN10: =IF('C-Intervention_Grouping'!AN9="", "", _xlfn.CHOOSECOLS(_xlfn._xlws.FILTER('C-Background_Data'!$B$11:$H$219, 'C-Background_Data'!$D$11:$D$219='C-Intervention_Grouping'!AN$9),1)) ->  | AO10: =IF('C-Intervention_Grouping'!AO9="", "", _xlfn.CHOOSECOLS(_xlfn._xlws.FILTER('C-Background_Data'!$B$11:$H$219, 'C-Background_Data'!$D$11:$D$219='C-Intervention_Grouping'!AO$9),1)) ->  | AP10: =IF('C-Intervention_Grouping'!AP9="", "", _xlfn.CHOOSECOLS(_xlfn._xlws.FILTER('C-Background_Data'!$B$11:$H$219, 'C-Background_Data'!$D$11:$D$219='C-Intervention_Grouping'!AP$9),1)) ->  | AQ10: =IF('C-Intervention_Grouping'!AQ9="", "", _xlfn.CHOOSECOLS(_xlfn._xlws.FILTER('C-Background_Data'!$B$11:$H$219, 'C-Background_Data'!$D$11:$D$219='C-Intervention_Grouping'!AQ$9),1)) ->  | AR10: =IF('C-Intervention_Grouping'!AR9="", "", _xlfn.CHOOSECOLS(_xlfn._xlws.FILTER('C-Background_Data'!$B$11:$H$219, 'C-Background_Data'!$D$11:$D$219='C-Intervention_Grouping'!AR$9),1)) ->  | AS10: =IF('C-Intervention_Grouping'!AS9="", "", _xlfn.CHOOSECOLS(_xlfn._xlws.FILTER('C-Background_Data'!$B$11:$H$219, 'C-Background_Data'!$D$11:$D$219='C-Intervention_Grouping'!AS$9),1)) ->  | AT10: =IF('C-Intervention_Grouping'!AT9="", "", _xlfn.CHOOSECOLS(_xlfn._xlws.FILTER('C-Background_Data'!$B$11:$H$219, 'C-Background_Data'!$D$11:$D$219='C-Intervention_Grouping'!AT$9),1)) ->  | AU10: =IF('C-Intervention_Grouping'!AU9="", "", _xlfn.CHOOSECOLS(_xlfn._xlws.FILTER('C-Background_Data'!$B$11:$H$219, 'C-Background_Data'!$D$11:$D$219='C-Intervention_Grouping'!AU$9),1)) ->  | AV10: =IF('C-Intervention_Grouping'!AV9="", "", _xlfn.CHOOSECOLS(_xlfn._xlws.FILTER('C-Background_Data'!$B$11:$H$219, 'C-Background_Data'!$D$11:$D$219='C-Intervention_Grouping'!AV$9),1)) ->  | AW10: =IF('C-Intervention_Grouping'!AW9="", "", _xlfn.CHOOSECOLS(_xlfn._xlws.FILTER('C-Background_Data'!$B$11:$H$219, 'C-Background_Data'!$D$11:$D$219='C-Intervention_Grouping'!AW$9),1)) ->  | AX10: =IF('C-Intervention_Grouping'!AX9="", "", _xlfn.CHOOSECOLS(_xlfn._xlws.FILTER('C-Background_Data'!$B$11:$H$219, 'C-Background_Data'!$D$11:$D$219='C-Intervention_Grouping'!AX$9),1)) ->  | AY10: =IF('C-Intervention_Grouping'!AY9="", "", _xlfn.CHOOSECOLS(_xlfn._xlws.FILTER('C-Background_Data'!$B$11:$H$219, 'C-Background_Data'!$D$11:$D$219='C-Intervention_Grouping'!AY$9),1)) ->  | AZ10: =IF('C-Intervention_Grouping'!AZ9="", "", _xlfn.CHOOSECOLS(_xlfn._xlws.FILTER('C-Background_Data'!$B$11:$H$219, 'C-Background_Data'!$D$11:$D$219='C-Intervention_Grouping'!AZ$9),1)) ->  | BA10: =IF('C-Intervention_Grouping'!BA9="", "", _xlfn.CHOOSECOLS(_xlfn._xlws.FILTER('C-Background_Data'!$B$11:$H$219, 'C-Background_Data'!$D$11:$D$219='C-Intervention_Grouping'!BA$9),1)) -> 
D11: BG2 | E11: BL2 | F11: BN2 | G11: BS2 | H11: CP2 | I11: CH2 | J11: CL2 | K11: FP2 | L11: HT2 | M11: JU2 | N11: HI2 | O11: MF2 | P11: PD2 | Q11: PB2 | R11: PC2 | S11: PS2 | T11: RS2 | U11: RO2 | V11: RE2 | W11: CA2 | X11: RB2 | Y11: SC2
E12: BL3 | G12: BS3 | I12: CH3 | J12: CL3 | K12: FP3 | L12: HT3 | M12: JU3 | O12: MF3 | P12: PD3 | R12: PC3 | S12: PS3 | V12: RE3 | X12: RB3 | Y12: SC3
G13: BS4 | J13: CL4 | K13: FP4 | L13: HT4 | M13: JU4 | R13: PC4 | X13: RB4 | Y13: SC4
G14: BS5 | L14: HT5
L15: HT6
L16: HT7
L17: HT8
I22: =IF('C-Intervention_Grouping'!I21=0, "", _xlfn.CHOOSECOLS(_xlfn._xlws.FILTER('C-Background_Data'!#REF!, 'C-Background_Data'!#REF!='C-Intervention_Grouping'!I21),2)) ->  | J22: =IF('C-Intervention_Grouping'!J21=0, "", _xlfn.CHOOSECOLS(_xlfn._xlws.FILTER('C-Background_Data'!#REF!, 'C-Background_Data'!#REF!='C-Intervention_Grouping'!J21),2)) ->  | K22: =IF('C-Intervention_Grouping'!K21=0, "", _xlfn.CHOOSECOLS(_xlfn._xlws.FILTER('C-Background_Data'!#REF!, 'C-Background_Data'!#REF!='C-Intervention_Grouping'!K21),2)) ->  | L22: =IF('C-Intervention_Grouping'!L21=0, "", _xlfn.CHOOSECOLS(_xlfn._xlws.FILTER('C-Background_Data'!#REF!, 'C-Background_Data'!#REF!='C-Intervention_Grouping'!L21),2)) ->  | M22: =IF('C-Intervention_Grouping'!M21=0, "", _xlfn.CHOOSECOLS(_xlfn._xlws.FILTER('C-Background_Data'!#REF!, 'C-Background_Data'!#REF!='C-Intervention_Grouping'!M21),2)) ->  | N22: =IF('C-Intervention_Grouping'!N21=0, "", _xlfn.CHOOSECOLS(_xlfn._xlws.FILTER('C-Background_Data'!#REF!, 'C-Background_Data'!#REF!='C-Intervention_Grouping'!N21),2)) ->  | O22: =IF('C-Intervention_Grouping'!O21=0, "", _xlfn.CHOOSECOLS(_xlfn._xlws.FILTER('C-Background_Data'!#REF!, 'C-Background_Data'!#REF!='C-Intervention_Grouping'!O21),2)) ->  | P22: =IF('C-Intervention_Grouping'!P21=0, "", _xlfn.CHOOSECOLS(_xlfn._xlws.FILTER('C-Background_Data'!#REF!, 'C-Background_Data'!#REF!='C-Intervention_Grouping'!P21),2)) ->  | Q22: =IF('C-Intervention_Grouping'!Q21=0, "", _xlfn.CHOOSECOLS(_xlfn._xlws.FILTER('C-Background_Data'!#REF!, 'C-Background_Data'!#REF!='C-Intervention_Grouping'!Q21),2)) ->  | R22: =IF('C-Intervention_Grouping'!R21=0, "", _xlfn.CHOOSECOLS(_xlfn._xlws.FILTER('C-Background_Data'!#REF!, 'C-Background_Data'!#REF!='C-Intervention_Grouping'!R21),2)) ->  | S22: =IF('C-Intervention_Grouping'!S21=0, "", _xlfn.CHOOSECOLS(_xlfn._xlws.FILTER('C-Background_Data'!#REF!, 'C-Background_Data'!#REF!='C-Intervention_Grouping'!S21),2)) ->  | T22: =IF('C-Intervention_Grouping'!T21=0, "", _xlfn.CHOOSECOLS(_xlfn._xlws.FILTER('C-Background_Data'!#REF!, 'C-Background_Data'!#REF!='C-Intervention_Grouping'!T21),2)) ->  | U22: =IF('C-Intervention_Grouping'!U21=0, "", _xlfn.CHOOSECOLS(_xlfn._xlws.FILTER('C-Background_Data'!#REF!, 'C-Background_Data'!#REF!='C-Intervention_Grouping'!U21),2)) ->  | V22: =IF('C-Intervention_Grouping'!V21=0, "", _xlfn.CHOOSECOLS(_xlfn._xlws.FILTER('C-Background_Data'!#REF!, 'C-Background_Data'!#REF!='C-Intervention_Grouping'!V21),2)) ->  | W22: =IF('C-Intervention_Grouping'!W21=0, "", _xlfn.CHOOSECOLS(_xlfn._xlws.FILTER('C-Background_Data'!#REF!, 'C-Background_Data'!#REF!='C-Intervention_Grouping'!W21),2)) ->  | X22: =IF('C-Intervention_Grouping'!X21=0, "", _xlfn.CHOOSECOLS(_xlfn._xlws.FILTER('C-Background_Data'!#REF!, 'C-Background_Data'!#REF!='C-Intervention_Grouping'!X21),2)) ->  | Y22: =IF('C-Intervention_Grouping'!Y21=0, "", _xlfn.CHOOSECOLS(_xlfn._xlws.FILTER('C-Background_Data'!#REF!, 'C-Background_Data'!#REF!='C-Intervention_Grouping'!Y21),2)) ->  | Z22: =IF('C-Intervention_Grouping'!Z21=0, "", _xlfn.CHOOSECOLS(_xlfn._xlws.FILTER('C-Background_Data'!#REF!, 'C-Background_Data'!#REF!='C-Intervention_Grouping'!Z21),2)) ->  | AA22: =IF('C-Intervention_Grouping'!AA21=0, "", _xlfn.CHOOSECOLS(_xlfn._xlws.FILTER('C-Background_Data'!#REF!, 'C-Background_Data'!#REF!='C-Intervention_Grouping'!AA21),2)) ->  | AB22: =IF('C-Intervention_Grouping'!AB21=0, "", _xlfn.CHOOSECOLS(_xlfn._xlws.FILTER('C-Background_Data'!#REF!, 'C-Background_Data'!#REF!='C-Intervention_Grouping'!AB21),2)) ->  | AC22: =IF('C-Intervention_Grouping'!AC21=0, "", _xlfn.CHOOSECOLS(_xlfn._xlws.FILTER('C-Background_Data'!#REF!, 'C-Background_Data'!#REF!='C-Intervention_Grouping'!AC21),2)) ->  | AD22: =IF('C-Intervention_Grouping'!AD21=0, "", _xlfn.CHOOSECOLS(_xlfn._xlws.FILTER('C-Background_Data'!#REF!, 'C-Background_Data'!#REF!='C-Intervention_Grouping'!AD21),2)) ->  | AE22: =IF('C-Intervention_Grouping'!AE21=0, "", _xlfn.CHOOSECOLS(_xlfn._xlws.FILTER('C-Background_Data'!#REF!, 'C-Background_Data'!#REF!='C-Intervention_Grouping'!AE21),2)) ->  | AF22: =IF('C-Intervention_Grouping'!AF21=0, "", _xlfn.CHOOSECOLS(_xlfn._xlws.FILTER('C-Background_Data'!#REF!, 'C-Background_Data'!#REF!='C-Intervention_Grouping'!AF21),2)) ->  | AG22: =IF('C-Intervention_Grouping'!AG21=0, "", _xlfn.CHOOSECOLS(_xlfn._xlws.FILTER('C-Background_Data'!#REF!, 'C-Background_Data'!#REF!='C-Intervention_Grouping'!AG21),2)) ->  | AH22: =IF('C-Intervention_Grouping'!AH21=0, "", _xlfn.CHOOSECOLS(_xlfn._xlws.FILTER('C-Background_Data'!#REF!, 'C-Background_Data'!#REF!='C-Intervention_Grouping'!AH21),2)) ->  | AI22: =IF('C-Intervention_Grouping'!AI21=0, "", _xlfn.CHOOSECOLS(_xlfn._xlws.FILTER('C-Background_Data'!#REF!, 'C-Background_Data'!#REF!='C-Intervention_Grouping'!AI21),2)) -> 
C38: =(_xlfn.IFS(C24="", "", C24 =MAX(C$22:C$32),10, C24=MIN(C$22:C$32),1, OR(C24 <> 1,C24 <> 10),(((C24-MIN(C$22:C$32))*(10-1))/(MAX(C$22:C$32)-MIN(C$22:C$32))+1))) ->  | D38: =(_xlfn.IFS(D24="", "", D24 =MAX(D$22:D$32),10, D24=MIN(D$22:D$32),1, OR(D24 <> 1,D24 <> 10),(((D24-MIN(D$22:D$32))*(10-1))/(MAX(D$22:D$32)-MIN(D$22:D$32))+1))) ->  | E38: =(_xlfn.IFS(E24="", "", E24 =MAX(E$22:E$32),10, E24=MIN(E$22:E$32),1, OR(E24 <> 1,E24 <> 10),(((E24-MIN(E$22:E$32))*(10-1))/(MAX(E$22:E$32)-MIN(E$22:E$32))+1))) ->  | F38: =(_xlfn.IFS(F24="", "", F24 =MAX(F$22:F$32),10, F24=MIN(F$22:F$32),1, OR(F24 <> 1,F24 <> 10),(((F24-MIN(F$22:F$32))*(10-1))/(MAX(F$22:F$32)-MIN(F$22:F$32))+1))) ->  | G38: =(_xlfn.IFS(G24="", "", G24 =MAX(G$22:G$32),10, G24=MIN(G$22:G$32),1, OR(G24 <> 1,G24 <> 10),(((G24-MIN(G$22:G$32))*(10-1))/(MAX(G$22:G$32)-MIN(G$22:G$32))+1))) -> 
C39: =(_xlfn.IFS(C25="", "", C25 =MAX(C$22:C$32),10, C25=MIN(C$22:C$32),1, OR(C25 <> 1,C25 <> 10),(((C25-MIN(C$22:C$32))*(10-1))/(MAX(C$22:C$32)-MIN(C$22:C$32))+1))) ->  | D39: =(_xlfn.IFS(D25="", "", D25 =MAX(D$22:D$32),10, D25=MIN(D$22:D$32),1, OR(D25 <> 1,D25 <> 10),(((D25-MIN(D$22:D$32))*(10-1))/(MAX(D$22:D$32)-MIN(D$22:D$32))+1))) ->  | E39: =(_xlfn.IFS(E25="", "", E25 =MAX(E$22:E$32),10, E25=MIN(E$22:E$32),1, OR(E25 <> 1,E25 <> 10),(((E25-MIN(E$22:E$32))*(10-1))/(MAX(E$22:E$32)-MIN(E$22:E$32))+1))) ->  | F39: =(_xlfn.IFS(F25="", "", F25 =MAX(F$22:F$32),10, F25=MIN(F$22:F$32),1, OR(F25 <> 1,F25 <> 10),(((F25-MIN(F$22:F$32))*(10-1))/(MAX(F$22:F$32)-MIN(F$22:F$32))+1))) ->  | G39: =(_xlfn.IFS(G25="", "", G25 =MAX(G$22:G$32),10, G25=MIN(G$22:G$32),1, OR(G25 <> 1,G25 <> 10),(((G25-MIN(G$22:G$32))*(10-1))/(MAX(G$22:G$32)-MIN(G$22:G$32))+1))) -> 
C40: =(_xlfn.IFS(C26="", "", C26 =MAX(C$22:C$32),10, C26=MIN(C$22:C$32),1, OR(C26 <> 1,C26 <> 10),(((C26-MIN(C$22:C$32))*(10-1))/(MAX(C$22:C$32)-MIN(C$22:C$32))+1))) ->  | D40: =(_xlfn.IFS(D26="", "", D26 =MAX(D$22:D$32),10, D26=MIN(D$22:D$32),1, OR(D26 <> 1,D26 <> 10),(((D26-MIN(D$22:D$32))*(10-1))/(MAX(D$22:D$32)-MIN(D$22:D$32))+1))) ->  | E40: =(_xlfn.IFS(E26="", "", E26 =MAX(E$22:E$32),10, E26=MIN(E$22:E$32),1, OR(E26 <> 1,E26 <> 10),(((E26-MIN(E$22:E$32))*(10-1))/(MAX(E$22:E$32)-MIN(E$22:E$32))+1))) ->  | F40: =(_xlfn.IFS(F26="", "", F26 =MAX(F$22:F$32),10, F26=MIN(F$22:F$32),1, OR(F26 <> 1,F26 <> 10),(((F26-MIN(F$22:F$32))*(10-1))/(MAX(F$22:F$32)-MIN(F$22:F$32))+1))) ->  | G40: =(_xlfn.IFS(G26="", "", G26 =MAX(G$22:G$32),10, G26=MIN(G$22:G$32),1, OR(G26 <> 1,G26 <> 10),(((G26-MIN(G$22:G$32))*(10-1))/(MAX(G$22:G$32)-MIN(G$22:G$32))+1))) -> 
C41: =(_xlfn.IFS(C27="", "", C27 =MAX(C$22:C$32),10, C27=MIN(C$22:C$32),1, OR(C27 <> 1,C27 <> 10),(((C27-MIN(C$22:C$32))*(10-1))/(MAX(C$22:C$32)-MIN(C$22:C$32))+1))) ->  | D41: =(_xlfn.IFS(D27="", "", D27 =MAX(D$22:D$32),10, D27=MIN(D$22:D$32),1, OR(D27 <> 1,D27 <> 10),(((D27-MIN(D$22:D$32))*(10-1))/(MAX(D$22:D$32)-MIN(D$22:D$32))+1))) ->  | E41: =(_xlfn.IFS(E27="", "", E27 =MAX(E$22:E$32),10, E27=MIN(E$22:E$32),1, OR(E27 <> 1,E27 <> 10),(((E27-MIN(E$22:E$32))*(10-1))/(MAX(E$22:E$32)-MIN(E$22:E$32))+1))) ->  | F41: =(_xlfn.IFS(F27="", "", F27 =MAX(F$22:F$32),10, F27=MIN(F$22:F$32),1, OR(F27 <> 1,F27 <> 10),(((F27-MIN(F$22:F$32))*(10-1))/(MAX(F$22:F$32)-MIN(F$22:F$32))+1))) ->  | G41: =(_xlfn.IFS(G27="", "", G27 =MAX(G$22:G$32),10, G27=MIN(G$22:G$32),1, OR(G27 <> 1,G27 <> 10),(((G27-MIN(G$22:G$32))*(10-1))/(MAX(G$22:G$32)-MIN(G$22:G$32))+1))) -> 
C42: =(_xlfn.IFS(C28="", "", C28 =MAX(C$22:C$32),10, C28=MIN(C$22:C$32),1, OR(C28 <> 1,C28 <> 10),(((C28-MIN(C$22:C$32))*(10-1))/(MAX(C$22:C$32)-MIN(C$22:C$32))+1))) ->  | D42: =(_xlfn.IFS(D28="", "", D28 =MAX(D$22:D$32),10, D28=MIN(D$22:D$32),1, OR(D28 <> 1,D28 <> 10),(((D28-MIN(D$22:D$32))*(10-1))/(MAX(D$22:D$32)-MIN(D$22:D$32))+1))) ->  | E42: =(_xlfn.IFS(E28="", "", E28 =MAX(E$22:E$32),10, E28=MIN(E$22:E$32),1, OR(E28 <> 1,E28 <> 10),(((E28-MIN(E$22:E$32))*(10-1))/(MAX(E$22:E$32)-MIN(E$22:E$32))+1))) ->  | F42: =(_xlfn.IFS(F28="", "", F28 =MAX(F$22:F$32),10, F28=MIN(F$22:F$32),1, OR(F28 <> 1,F28 <> 10),(((F28-MIN(F$22:F$32))*(10-1))/(MAX(F$22:F$32)-MIN(F$22:F$32))+1))) ->  | G42: =(_xlfn.IFS(G28="", "", G28 =MAX(G$22:G$32),10, G28=MIN(G$22:G$32),1, OR(G28 <> 1,G28 <> 10),(((G28-MIN(G$22:G$32))*(10-1))/(MAX(G$22:G$32)-MIN(G$22:G$32))+1))) -> 
C43: =(_xlfn.IFS(C29="", "", C29 =MAX(C$22:C$32),10, C29=MIN(C$22:C$32),1, OR(C29 <> 1,C29 <> 10),(((C29-MIN(C$22:C$32))*(10-1))/(MAX(C$22:C$32)-MIN(C$22:C$32))+1))) ->  | D43: =(_xlfn.IFS(D29="", "", D29 =MAX(D$22:D$32),10, D29=MIN(D$22:D$32),1, OR(D29 <> 1,D29 <> 10),(((D29-MIN(D$22:D$32))*(10-1))/(MAX(D$22:D$32)-MIN(D$22:D$32))+1))) ->  | E43: =(_xlfn.IFS(E29="", "", E29 =MAX(E$22:E$32),10, E29=MIN(E$22:E$32),1, OR(E29 <> 1,E29 <> 10),(((E29-MIN(E$22:E$32))*(10-1))/(MAX(E$22:E$32)-MIN(E$22:E$32))+1))) ->  | F43: =(_xlfn.IFS(F29="", "", F29 =MAX(F$22:F$32),10, F29=MIN(F$22:F$32),1, OR(F29 <> 1,F29 <> 10),(((F29-MIN(F$22:F$32))*(10-1))/(MAX(F$22:F$32)-MIN(F$22:F$32))+1))) ->  | G43: =(_xlfn.IFS(G29="", "", G29 =MAX(G$22:G$32),10, G29=MIN(G$22:G$32),1, OR(G29 <> 1,G29 <> 10),(((G29-MIN(G$22:G$32))*(10-1))/(MAX(G$22:G$32)-MIN(G$22:G$32))+1))) -> 
C44: =(_xlfn.IFS(C30="", "", C30 =MAX(C$22:C$32),10, C30=MIN(C$22:C$32),1, OR(C30 <> 1,C30 <> 10),(((C30-MIN(C$22:C$32))*(10-1))/(MAX(C$22:C$32)-MIN(C$22:C$32))+1))) ->  | D44: =(_xlfn.IFS(D30="", "", D30 =MAX(D$22:D$32),10, D30=MIN(D$22:D$32),1, OR(D30 <> 1,D30 <> 10),(((D30-MIN(D$22:D$32))*(10-1))/(MAX(D$22:D$32)-MIN(D$22:D$32))+1))) ->  | E44: =(_xlfn.IFS(E30="", "", E30 =MAX(E$22:E$32),10, E30=MIN(E$22:E$32),1, OR(E30 <> 1,E30 <> 10),(((E30-MIN(E$22:E$32))*(10-1))/(MAX(E$22:E$32)-MIN(E$22:E$32))+1))) ->  | F44: =(_xlfn.IFS(F30="", "", F30 =MAX(F$22:F$32),10, F30=MIN(F$22:F$32),1, OR(F30 <> 1,F30 <> 10),(((F30-MIN(F$22:F$32))*(10-1))/(MAX(F$22:F$32)-MIN(F$22:F$32))+1))) ->  | G44: =(_xlfn.IFS(G30="", "", G30 =MAX(G$22:G$32),10, G30=MIN(G$22:G$32),1, OR(G30 <> 1,G30 <> 10),(((G30-MIN(G$22:G$32))*(10-1))/(MAX(G$22:G$32)-MIN(G$22:G$32))+1))) -> 
C45: =(_xlfn.IFS(C31="", "", C31 =MAX(C$22:C$32),10, C31=MIN(C$22:C$32),1, OR(C31 <> 1,C31 <> 10),(((C31-MIN(C$22:C$32))*(10-1))/(MAX(C$22:C$32)-MIN(C$22:C$32))+1))) ->  | D45: =(_xlfn.IFS(D31="", "", D31 =MAX(D$22:D$32),10, D31=MIN(D$22:D$32),1, OR(D31 <> 1,D31 <> 10),(((D31-MIN(D$22:D$32))*(10-1))/(MAX(D$22:D$32)-MIN(D$22:D$32))+1))) ->  | E45: =(_xlfn.IFS(E31="", "", E31 =MAX(E$22:E$32),10, E31=MIN(E$22:E$32),1, OR(E31 <> 1,E31 <> 10),(((E31-MIN(E$22:E$32))*(10-1))/(MAX(E$22:E$32)-MIN(E$22:E$32))+1))) ->  | F45: =(_xlfn.IFS(F31="", "", F31 =MAX(F$22:F$32),10, F31=MIN(F$22:F$32),1, OR(F31 <> 1,F31 <> 10),(((F31-MIN(F$22:F$32))*(10-1))/(MAX(F$22:F$32)-MIN(F$22:F$32))+1))) ->  | G45: =(_xlfn.IFS(G31="", "", G31 =MAX(G$22:G$32),10, G31=MIN(G$22:G$32),1, OR(G31 <> 1,G31 <> 10),(((G31-MIN(G$22:G$32))*(10-1))/(MAX(G$22:G$32)-MIN(G$22:G$32))+1))) -> 
C46: =(_xlfn.IFS(C32="", "", C32 =MAX($C$22:$C$32),10, C32=MIN($C$22:$C$32),1, OR(C32 <> 1,C32 <> 10),(((C32-MIN($C$22:$C$32))*(10-1))/(MAX($C$22:$C$32)-MIN($C$22:$C$32))+1))) -> 
C47: =(_xlfn.IFS(C33="", "", C33 =MAX($C$22:$C$32),10, C33=MIN($C$22:$C$32),1, OR(C33 <> 1,C33 <> 10),(((C33-MIN($C$22:$C$32))*(10-1))/(MAX($C$22:$C$32)-MIN($C$22:$C$32))+1))) -> 
C48: =(_xlfn.IFS(C34="", "", C34 =MAX($C$22:$C$32),10, C34=MIN($C$22:$C$32),1, OR(C34 <> 1,C34 <> 10),(((C34-MIN($C$22:$C$32))*(10-1))/(MAX($C$22:$C$32)-MIN($C$22:$C$32))+1))) -> 
B61: Intervention Groups | C61: =IF(C9="", "", C9) -> (additional benchmarks can be added by filling the blue cells. Overwrite this text first.) | D61: Bus Gate | E61: Bus Lane | F61: Bus Station | G61: Bus Stop | H61: Car Parking | I61: Charging Infrastructure | J61: Cycle Lane | K61: Footway | L61: Highway Treatment | M61: Junction | N61: Major Road Case Studies | O61: Modal Filter | P61: Parking & Docking for Active Travel Modes | Q61: Pedestrian/Cycle Bridge | R61: Pedestrian/Cycle Crossing | S61: Pedestrian/Cycle Subway | T61: Railway Station | U61: Road | V61: Road - Roadside Elements | W61: Road - Single Lane of Carriageway | X61: Road Bridge | Y61: Travel Corridor [Case Studies] | AI61: =IF(AI9="", "", AI9) -> 
C62: =IF('C-Intervention_Grouping'!C61="", "", _xlfn.CHOOSECOLS(_xlfn._xlws.FILTER('C-Background_Data'!$B$11:$H$219, 'C-Background_Data'!$D$11:$D$219='C-Intervention_Grouping'!C61),7)) ->  | D62: =IF('C-Intervention_Grouping'!D61="", "", _xlfn.CHOOSECOLS(_xlfn._xlws.FILTER('C-Background_Data'!$B$11:$H$219, 'C-Background_Data'!$D$11:$D$219='C-Intervention_Grouping'!D61),7)) -> 2.183295734 | E62: =IF('C-Intervention_Grouping'!E61="", "", _xlfn.CHOOSECOLS(_xlfn._xlws.FILTER('C-Background_Data'!$B$11:$H$219, 'C-Background_Data'!$D$11:$D$219='C-Intervention_Grouping'!E61),7)) -> 0.3179150694 | F62: =IF('C-Intervention_Grouping'!F61="", "", _xlfn.CHOOSECOLS(_xlfn._xlws.FILTER('C-Background_Data'!$B$11:$H$219, 'C-Background_Data'!$D$11:$D$219='C-Intervention_Grouping'!F61),7)) -> 132.4755092 | G62: =IF('C-Intervention_Grouping'!G61="", "", _xlfn.CHOOSECOLS(_xlfn._xlws.FILTER('C-Background_Data'!$B$11:$H$219, 'C-Background_Data'!$D$11:$D$219='C-Intervention_Grouping'!G61),7)) -> 10.06582192 | H62: =IF('C-Intervention_Grouping'!H61="", "", _xlfn.CHOOSECOLS(_xlfn._xlws.FILTER('C-Background_Data'!$B$11:$H$219, 'C-Background_Data'!$D$11:$D$219='C-Intervention_Grouping'!H61),7)) -> 0.3503131057 | I62: =IF('C-Intervention_Grouping'!I61="", "", _xlfn.CHOOSECOLS(_xlfn._xlws.FILTER('C-Background_Data'!$B$11:$H$219, 'C-Background_Data'!$D$11:$D$219='C-Intervention_Grouping'!I61),7)) -> 26.0036505 | J62: =IF('C-Intervention_Grouping'!J61="", "", _xlfn.CHOOSECOLS(_xlfn._xlws.FILTER('C-Background_Data'!$B$11:$H$219, 'C-Background_Data'!$D$11:$D$219='C-Intervention_Grouping'!J61),7)) -> 0.008526382895 | K62: =IF('C-Intervention_Grouping'!K61="", "", _xlfn.CHOOSECOLS(_xlfn._xlws.FILTER('C-Background_Data'!$B$11:$H$219, 'C-Background_Data'!$D$11:$D$219='C-Intervention_Grouping'!K61),7)) -> 0.06398044544 | L62: =IF('C-Intervention_Grouping'!L61="", "", _xlfn.CHOOSECOLS(_xlfn._xlws.FILTER('C-Background_Data'!$B$11:$H$219, 'C-Background_Data'!$D$11:$D$219='C-Intervention_Grouping'!L61),7)) -> 0.01242909417 | M62: =IF('C-Intervention_Grouping'!M61="", "", _xlfn.CHOOSECOLS(_xlfn._xlws.FILTER('C-Background_Data'!$B$11:$H$219, 'C-Background_Data'!$D$11:$D$219='C-Intervention_Grouping'!M61),7)) -> 92.41636982 | N62: =IF('C-Intervention_Grouping'!N61="", "", _xlfn.CHOOSECOLS(_xlfn._xlws.FILTER('C-Background_Data'!$B$11:$H$219, 'C-Background_Data'!$D$11:$D$219='C-Intervention_Grouping'!N61),7)) -> 6.456310786 | O62: =IF('C-Intervention_Grouping'!O61="", "", _xlfn.CHOOSECOLS(_xlfn._xlws.FILTER('C-Background_Data'!$B$11:$H$219, 'C-Background_Data'!$D$11:$D$219='C-Intervention_Grouping'!O61),7)) -> 1.226833375 | P62: =IF('C-Intervention_Grouping'!P61="", "", _xlfn.CHOOSECOLS(_xlfn._xlws.FILTER('C-Background_Data'!$B$11:$H$219, 'C-Background_Data'!$D$11:$D$219='C-Intervention_Grouping'!P61),7)) -> 0.0332487885 | Q62: =IF('C-Intervention_Grouping'!Q61="", "", _xlfn.CHOOSECOLS(_xlfn._xlws.FILTER('C-Background_Data'!$B$11:$H$219, 'C-Background_Data'!$D$11:$D$219='C-Intervention_Grouping'!Q61),7)) -> 6.683559713 | R62: =IF('C-Intervention_Grouping'!R61="", "", _xlfn.CHOOSECOLS(_xlfn._xlws.FILTER('C-Background_Data'!$B$11:$H$219, 'C-Background_Data'!$D$11:$D$219='C-Intervention_Grouping'!R61),7)) -> 4.061671367 | S62: =IF('C-Intervention_Grouping'!S61="", "", _xlfn.CHOOSECOLS(_xlfn._xlws.FILTER('C-Background_Data'!$B$11:$H$219, 'C-Background_Data'!$D$11:$D$219='C-Intervention_Grouping'!S61),7)) -> 11.17913668 | T62: =IF('C-Intervention_Grouping'!T61="", "", _xlfn.CHOOSECOLS(_xlfn._xlws.FILTER('C-Background_Data'!$B$11:$H$219, 'C-Background_Data'!$D$11:$D$219='C-Intervention_Grouping'!T61),7)) -> 494.730235 | U62: =IF('C-Intervention_Grouping'!U61="", "", _xlfn.CHOOSECOLS(_xlfn._xlws.FILTER('C-Background_Data'!$B$11:$H$219, 'C-Background_Data'!$D$11:$D$219='C-Intervention_Grouping'!U61),7)) -> 0.5061952304 | V62: =IF('C-Intervention_Grouping'!V61="", "", _xlfn.CHOOSECOLS(_xlfn._xlws.FILTER('C-Background_Data'!$B$11:$H$219, 'C-Background_Data'!$D$11:$D$219='C-Intervention_Grouping'!V61),7)) -> 0.08859174702 | W62: =IF('C-Intervention_Grouping'!W61="", "", _xlfn.CHOOSECOLS(_xlfn._xlws.FILTER('C-Background_Data'!$B$11:$H$219, 'C-Background_Data'!$D$11:$D$219='C-Intervention_Grouping'!W61),7)) -> 0.1021711765 | X62: =IF('C-Intervention_Grouping'!X61="", "", _xlfn.CHOOSECOLS(_xlfn._xlws.FILTER('C-Background_Data'!$B$11:$H$219, 'C-Background_Data'!$D$11:$D$219='C-Intervention_Grouping'!X61),7)) -> 14.54440551 | Y62: =IF('C-Intervention_Grouping'!Y61="", "", _xlfn.CHOOSECOLS(_xlfn._xlws.FILTER('C-Background_Data'!$B$11:$H$219, 'C-Background_Data'!$D$11:$D$219='C-Intervention_Grouping'!Y61),7)) -> 0.1042057681 | Z62: =IF('C-Intervention_Grouping'!Z61="", "", _xlfn.CHOOSECOLS(_xlfn._xlws.FILTER('C-Background_Data'!$B$11:$H$219, 'C-Background_Data'!$D$11:$D$219='C-Intervention_Grouping'!Z61),7)) ->  | AA62: =IF('C-Intervention_Grouping'!AA61="", "", _xlfn.CHOOSECOLS(_xlfn._xlws.FILTER('C-Background_Data'!$B$11:$H$219, 'C-Background_Data'!$D$11:$D$219='C-Intervention_Grouping'!AA61),7)) ->  | AB62: =IF('C-Intervention_Grouping'!AB61="", "", _xlfn.CHOOSECOLS(_xlfn._xlws.FILTER('C-Background_Data'!$B$11:$H$219, 'C-Background_Data'!$D$11:$D$219='C-Intervention_Grouping'!AB61),7)) ->  | AC62: =IF('C-Intervention_Grouping'!AC61="", "", _xlfn.CHOOSECOLS(_xlfn._xlws.FILTER('C-Background_Data'!$B$11:$H$219, 'C-Background_Data'!$D$11:$D$219='C-Intervention_Grouping'!AC61),7)) ->  | AD62: =IF('C-Intervention_Grouping'!AD61="", "", _xlfn.CHOOSECOLS(_xlfn._xlws.FILTER('C-Background_Data'!$B$11:$H$219, 'C-Background_Data'!$D$11:$D$219='C-Intervention_Grouping'!AD61),7)) ->  | AE62: =IF('C-Intervention_Grouping'!AE61="", "", _xlfn.CHOOSECOLS(_xlfn._xlws.FILTER('C-Background_Data'!$B$11:$H$219, 'C-Background_Data'!$D$11:$D$219='C-Intervention_Grouping'!AE61),7)) ->  | AF62: =IF('C-Intervention_Grouping'!AF61="", "", _xlfn.CHOOSECOLS(_xlfn._xlws.FILTER('C-Background_Data'!$B$11:$H$219, 'C-Background_Data'!$D$11:$D$219='C-Intervention_Grouping'!AF61),7)) ->  | AG62: =IF('C-Intervention_Grouping'!AG61="", "", _xlfn.CHOOSECOLS(_xlfn._xlws.FILTER('C-Background_Data'!$B$11:$H$219, 'C-Background_Data'!$D$11:$D$219='C-Intervention_Grouping'!AG61),7)) ->  | AH62: =IF('C-Intervention_Grouping'!AH61="", "", _xlfn.CHOOSECOLS(_xlfn._xlws.FILTER('C-Background_Data'!$B$11:$H$219, 'C-Background_Data'!$D$11:$D$219='C-Intervention_Grouping'!AH61),7)) ->  | AI62: =IF('C-Intervention_Grouping'!AI61="", "", _xlfn.CHOOSECOLS(_xlfn._xlws.FILTER('C-Background_Data'!$B$11:$H$219, 'C-Background_Data'!$D$11:$D$219='C-Intervention_Grouping'!AI61),7)) ->  | AJ62: =IF('C-Intervention_Grouping'!AJ61="", "", _xlfn.CHOOSECOLS(_xlfn._xlws.FILTER('C-Background_Data'!$B$11:$H$219, 'C-Background_Data'!$D$11:$D$219='C-Intervention_Grouping'!AJ61),7)) ->  | AK62: =IF('C-Intervention_Grouping'!AK61="", "", _xlfn.CHOOSECOLS(_xlfn._xlws.FILTER('C-Background_Data'!$B$11:$H$219, 'C-Background_Data'!$D$11:$D$219='C-Intervention_Grouping'!AK61),7)) ->  | AL62: =IF('C-Intervention_Grouping'!AL61="", "", _xlfn.CHOOSECOLS(_xlfn._xlws.FILTER('C-Background_Data'!$B$11:$H$219, 'C-Background_Data'!$D$11:$D$219='C-Intervention_Grouping'!AL61),7)) ->  | AM62: =IF('C-Intervention_Grouping'!AM61="", "", _xlfn.CHOOSECOLS(_xlfn._xlws.FILTER('C-Background_Data'!$B$11:$H$219, 'C-Background_Data'!$D$11:$D$219='C-Intervention_Grouping'!AM61),7)) ->  | AN62: =IF('C-Intervention_Grouping'!AN61="", "", _xlfn.CHOOSECOLS(_xlfn._xlws.FILTER('C-Background_Data'!$B$11:$H$219, 'C-Background_Data'!$D$11:$D$219='C-Intervention_Grouping'!AN61),7)) ->  | AO62: =IF('C-Intervention_Grouping'!AO61="", "", _xlfn.CHOOSECOLS(_xlfn._xlws.FILTER('C-Background_Data'!$B$11:$H$219, 'C-Background_Data'!$D$11:$D$219='C-Intervention_Grouping'!AO61),7)) ->  | AP62: =IF('C-Intervention_Grouping'!AP61="", "", _xlfn.CHOOSECOLS(_xlfn._xlws.FILTER('C-Background_Data'!$B$11:$H$219, 'C-Background_Data'!$D$11:$D$219='C-Intervention_Grouping'!AP61),7)) ->  | AQ62: =IF('C-Intervention_Grouping'!AQ61="", "", _xlfn.CHOOSECOLS(_xlfn._xlws.FILTER('C-Background_Data'!$B$11:$H$219, 'C-Background_Data'!$D$11:$D$219='C-Intervention_Grouping'!AQ61),7)) ->  | AR62: =IF('C-Intervention_Grouping'!AR61="", "", _xlfn.CHOOSECOLS(_xlfn._xlws.FILTER('C-Background_Data'!$B$11:$H$219, 'C-Background_Data'!$D$11:$D$219='C-Intervention_Grouping'!AR61),7)) ->  | AS62: =IF('C-Intervention_Grouping'!AS61="", "", _xlfn.CHOOSECOLS(_xlfn._xlws.FILTER('C-Background_Data'!$B$11:$H$219, 'C-Background_Data'!$D$11:$D$219='C-Intervention_Grouping'!AS61),7)) ->  | AT62: =IF('C-Intervention_Grouping'!AT61="", "", _xlfn.CHOOSECOLS(_xlfn._xlws.FILTER('C-Background_Data'!$B$11:$H$219, 'C-Background_Data'!$D$11:$D$219='C-Intervention_Grouping'!AT61),7)) ->  | AU62: =IF('C-Intervention_Grouping'!AU61="", "", _xlfn.CHOOSECOLS(_xlfn._xlws.FILTER('C-Background_Data'!$B$11:$H$219, 'C-Background_Data'!$D$11:$D$219='C-Intervention_Grouping'!AU61),7)) ->  | AV62: =IF('C-Intervention_Grouping'!AV61="", "", _xlfn.CHOOSECOLS(_xlfn._xlws.FILTER('C-Background_Data'!$B$11:$H$219, 'C-Background_Data'!$D$11:$D$219='C-Intervention_Grouping'!AV61),7)) ->  | AW62: =IF('C-Intervention_Grouping'!AW61="", "", _xlfn.CHOOSECOLS(_xlfn._xlws.FILTER('C-Background_Data'!$B$11:$H$219, 'C-Background_Data'!$D$11:$D$219='C-Intervention_Grouping'!AW61),7)) ->  | AX62: =IF('C-Intervention_Grouping'!AX61="", "", _xlfn.CHOOSECOLS(_xlfn._xlws.FILTER('C-Background_Data'!$B$11:$H$219, 'C-Background_Data'!$D$11:$D$219='C-Intervention_Grouping'!AX61),7)) ->  | AY62: =IF('C-Intervention_Grouping'!AY61="", "", _xlfn.CHOOSECOLS(_xlfn._xlws.FILTER('C-Background_Data'!$B$11:$H$219, 'C-Background_Data'!$D$11:$D$219='C-Intervention_Grouping'!AY61),7)) ->  | AZ62: =IF('C-Intervention_Grouping'!AZ61="", "", _xlfn.CHOOSECOLS(_xlfn._xlws.FILTER('C-Background_Data'!$B$11:$H$219, 'C-Background_Data'!$D$11:$D$219='C-Intervention_Grouping'!AZ61),7)) ->  | BA62: =IF('C-Intervention_Grouping'!BA61="", "", _xlfn.CHOOSECOLS(_xlfn._xlws.FILTER('C-Background_Data'!$B$11:$H$219, 'C-Background_Data'!$D$11:$D$219='C-Intervention_Grouping'!BA61),7)) -> 
D63: 9.426720899 | E63: 0.6911093988 | F63: 45.42876686 | G63: 11.89391008 | H63: 3.045209204 | I63: 8.32416 | J63: 0.1197724784 | K63: 0.1935922997 | L63: 0.02104857451 | M63: 255.8593128 | N63: 7.679546667 | O63: 0.6527356791 | P63: 0.2564187038 | Q63: 9.39433968 | R63: 10.79237236 | S63: 18.60250073 | T63: 3556.95 | U63: 1.578224662 | V63: 0.3321497044 | W63: 0.2467964365 | X63: 29.12728433 | Y63: 0.1143766014
E64: 0.5842036562 | G64: 12.4602365 | I64: 0.52026 | J64: 0.06606584913 | K64: 0.1066385072 | L64: 0.003164820161 | M64: 126.316 | O64: 3.079651806 | P64: 2.755741344 | R64: 12.77865336 | S64: 25.65277546 | V64: 0.0101024548 | X64: 36.97601448 | Y64: 0.5708758621
G65: 17.37357108 | J65: 0.1297244398 | K65: 0.1307097035 | L65: 0.008229658517 | M65: 3378.22 | R65: 3.212250255 | X65: 63.32844311 | Y65: 0.07582078496
G66: 20.70648596 | L66: 0.001708676619
L67: 0.01571089074
L68: 0.008371294922
L69: 0.00222162743
S74: =IF('C-Intervention_Grouping'!S73=0, "", _xlfn.CHOOSECOLS(_xlfn._xlws.FILTER('C-Background_Data'!#REF!, 'C-Background_Data'!#REF!='C-Intervention_Grouping'!S73),2)) ->  | T74: =IF('C-Intervention_Grouping'!T73=0, "", _xlfn.CHOOSECOLS(_xlfn._xlws.FILTER('C-Background_Data'!#REF!, 'C-Background_Data'!#REF!='C-Intervention_Grouping'!T73),2)) ->  | U74: =IF('C-Intervention_Grouping'!U73=0, "", _xlfn.CHOOSECOLS(_xlfn._xlws.FILTER('C-Background_Data'!#REF!, 'C-Background_Data'!#REF!='C-Intervention_Grouping'!U73),2)) ->  | V74: =IF('C-Intervention_Grouping'!V73=0, "", _xlfn.CHOOSECOLS(_xlfn._xlws.FILTER('C-Background_Data'!#REF!, 'C-Background_Data'!#REF!='C-Intervention_Grouping'!V73),2)) ->  | W74: =IF('C-Intervention_Grouping'!W73=0, "", _xlfn.CHOOSECOLS(_xlfn._xlws.FILTER('C-Background_Data'!#REF!, 'C-Background_Data'!#REF!='C-Intervention_Grouping'!W73),2)) ->  | X74: =IF('C-Intervention_Grouping'!X73=0, "", _xlfn.CHOOSECOLS(_xlfn._xlws.FILTER('C-Background_Data'!#REF!, 'C-Background_Data'!#REF!='C-Intervention_Grouping'!X73),2)) ->  | Y74: =IF('C-Intervention_Grouping'!Y73=0, "", _xlfn.CHOOSECOLS(_xlfn._xlws.FILTER('C-Background_Data'!#REF!, 'C-Background_Data'!#REF!='C-Intervention_Grouping'!Y73),2)) ->  | Z74: =IF('C-Intervention_Grouping'!Z73=0, "", _xlfn.CHOOSECOLS(_xlfn._xlws.FILTER('C-Background_Data'!#REF!, 'C-Background_Data'!#REF!='C-Intervention_Grouping'!Z73),2)) ->  | AA74: =IF('C-Intervention_Grouping'!AA73=0, "", _xlfn.CHOOSECOLS(_xlfn._xlws.FILTER('C-Background_Data'!#REF!, 'C-Background_Data'!#REF!='C-Intervention_Grouping'!AA73),2)) ->  | AB74: =IF('C-Intervention_Grouping'!AB73=0, "", _xlfn.CHOOSECOLS(_xlfn._xlws.FILTER('C-Background_Data'!#REF!, 'C-Background_Data'!#REF!='C-Intervention_Grouping'!AB73),2)) ->  | AC74: =IF('C-Intervention_Grouping'!AC73=0, "", _xlfn.CHOOSECOLS(_xlfn._xlws.FILTER('C-Background_Data'!#REF!, 'C-Background_Data'!#REF!='C-Intervention_Grouping'!AC73),2)) ->  | AD74: =IF('C-Intervention_Grouping'!AD73=0, "", _xlfn.CHOOSECOLS(_xlfn._xlws.FILTER('C-Background_Data'!#REF!, 'C-Background_Data'!#REF!='C-Intervention_Grouping'!AD73),2)) ->  | AE74: =IF('C-Intervention_Grouping'!AE73=0, "", _xlfn.CHOOSECOLS(_xlfn._xlws.FILTER('C-Background_Data'!#REF!, 'C-Background_Data'!#REF!='C-Intervention_Grouping'!AE73),2)) ->  | AF74: =IF('C-Intervention_Grouping'!AF73=0, "", _xlfn.CHOOSECOLS(_xlfn._xlws.FILTER('C-Background_Data'!#REF!, 'C-Background_Data'!#REF!='C-Intervention_Grouping'!AF73),2)) ->  | AG74: =IF('C-Intervention_Grouping'!AG73=0, "", _xlfn.CHOOSECOLS(_xlfn._xlws.FILTER('C-Background_Data'!#REF!, 'C-Background_Data'!#REF!='C-Intervention_Grouping'!AG73),2)) ->  | AH74: =IF('C-Intervention_Grouping'!AH73=0, "", _xlfn.CHOOSECOLS(_xlfn._xlws.FILTER('C-Background_Data'!#REF!, 'C-Background_Data'!#REF!='C-Intervention_Grouping'!AH73),2)) ->  | AI74: =IF('C-Intervention_Grouping'!AI73=0, "", _xlfn.CHOOSECOLS(_xlfn._xlws.FILTER('C-Background_Data'!#REF!, 'C-Background_Data'!#REF!='C-Intervention_Grouping'!AI73),2)) -> 
C90: =(_xlfn.IFS(C76="", "", C76 =MAX(C$22:C$32),10, C76=MIN(C$22:C$32),1, OR(C76 <> 1,C76 <> 10),(((C76-MIN(C$22:C$32))*(10-1))/(MAX(C$22:C$32)-MIN(C$22:C$32))+1))) ->  | D90: =(_xlfn.IFS(D76="", "", D76 =MAX(D$22:D$32),10, D76=MIN(D$22:D$32),1, OR(D76 <> 1,D76 <> 10),(((D76-MIN(D$22:D$32))*(10-1))/(MAX(D$22:D$32)-MIN(D$22:D$32))+1))) ->  | E90: =(_xlfn.IFS(E76="", "", E76 =MAX(E$22:E$32),10, E76=MIN(E$22:E$32),1, OR(E76 <> 1,E76 <> 10),(((E76-MIN(E$22:E$32))*(10-1))/(MAX(E$22:E$32)-MIN(E$22:E$32))+1))) ->  | F90: =(_xlfn.IFS(F76="", "", F76 =MAX(F$22:F$32),10, F76=MIN(F$22:F$32),1, OR(F76 <> 1,F76 <> 10),(((F76-MIN(F$22:F$32))*(10-1))/(MAX(F$22:F$32)-MIN(F$22:F$32))+1))) ->  | G90: =(_xlfn.IFS(G76="", "", G76 =MAX(G$22:G$32),10, G76=MIN(G$22:G$32),1, OR(G76 <> 1,G76 <> 10),(((G76-MIN(G$22:G$32))*(10-1))/(MAX(G$22:G$32)-MIN(G$22:G$32))+1))) -> 
C91: =(_xlfn.IFS(C77="", "", C77 =MAX(C$22:C$32),10, C77=MIN(C$22:C$32),1, OR(C77 <> 1,C77 <> 10),(((C77-MIN(C$22:C$32))*(10-1))/(MAX(C$22:C$32)-MIN(C$22:C$32))+1))) ->  | D91: =(_xlfn.IFS(D77="", "", D77 =MAX(D$22:D$32),10, D77=MIN(D$22:D$32),1, OR(D77 <> 1,D77 <> 10),(((D77-MIN(D$22:D$32))*(10-1))/(MAX(D$22:D$32)-MIN(D$22:D$32))+1))) ->  | E91: =(_xlfn.IFS(E77="", "", E77 =MAX(E$22:E$32),10, E77=MIN(E$22:E$32),1, OR(E77 <> 1,E77 <> 10),(((E77-MIN(E$22:E$32))*(10-1))/(MAX(E$22:E$32)-MIN(E$22:E$32))+1))) ->  | F91: =(_xlfn.IFS(F77="", "", F77 =MAX(F$22:F$32),10, F77=MIN(F$22:F$32),1, OR(F77 <> 1,F77 <> 10),(((F77-MIN(F$22:F$32))*(10-1))/(MAX(F$22:F$32)-MIN(F$22:F$32))+1))) ->  | G91: =(_xlfn.IFS(G77="", "", G77 =MAX(G$22:G$32),10, G77=MIN(G$22:G$32),1, OR(G77 <> 1,G77 <> 10),(((G77-MIN(G$22:G$32))*(10-1))/(MAX(G$22:G$32)-MIN(G$22:G$32))+1))) -> 
C92: =(_xlfn.IFS(C78="", "", C78 =MAX(C$22:C$32),10, C78=MIN(C$22:C$32),1, OR(C78 <> 1,C78 <> 10),(((C78-MIN(C$22:C$32))*(10-1))/(MAX(C$22:C$32)-MIN(C$22:C$32))+1))) ->  | D92: =(_xlfn.IFS(D78="", "", D78 =MAX(D$22:D$32),10, D78=MIN(D$22:D$32),1, OR(D78 <> 1,D78 <> 10),(((D78-MIN(D$22:D$32))*(10-1))/(MAX(D$22:D$32)-MIN(D$22:D$32))+1))) ->  | E92: =(_xlfn.IFS(E78="", "", E78 =MAX(E$22:E$32),10, E78=MIN(E$22:E$32),1, OR(E78 <> 1,E78 <> 10),(((E78-MIN(E$22:E$32))*(10-1))/(MAX(E$22:E$32)-MIN(E$22:E$32))+1))) ->  | F92: =(_xlfn.IFS(F78="", "", F78 =MAX(F$22:F$32),10, F78=MIN(F$22:F$32),1, OR(F78 <> 1,F78 <> 10),(((F78-MIN(F$22:F$32))*(10-1))/(MAX(F$22:F$32)-MIN(F$22:F$32))+1))) ->  | G92: =(_xlfn.IFS(G78="", "", G78 =MAX(G$22:G$32),10, G78=MIN(G$22:G$32),1, OR(G78 <> 1,G78 <> 10),(((G78-MIN(G$22:G$32))*(10-1))/(MAX(G$22:G$32)-MIN(G$22:G$32))+1))) -> 
C93: =(_xlfn.IFS(C79="", "", C79 =MAX(C$22:C$32),10, C79=MIN(C$22:C$32),1, OR(C79 <> 1,C79 <> 10),(((C79-MIN(C$22:C$32))*(10-1))/(MAX(C$22:C$32)-MIN(C$22:C$32))+1))) ->  | D93: =(_xlfn.IFS(D79="", "", D79 =MAX(D$22:D$32),10, D79=MIN(D$22:D$32),1, OR(D79 <> 1,D79 <> 10),(((D79-MIN(D$22:D$32))*(10-1))/(MAX(D$22:D$32)-MIN(D$22:D$32))+1))) ->  | E93: =(_xlfn.IFS(E79="", "", E79 =MAX(E$22:E$32),10, E79=MIN(E$22:E$32),1, OR(E79 <> 1,E79 <> 10),(((E79-MIN(E$22:E$32))*(10-1))/(MAX(E$22:E$32)-MIN(E$22:E$32))+1))) ->  | F93: =(_xlfn.IFS(F79="", "", F79 =MAX(F$22:F$32),10, F79=MIN(F$22:F$32),1, OR(F79 <> 1,F79 <> 10),(((F79-MIN(F$22:F$32))*(10-1))/(MAX(F$22:F$32)-MIN(F$22:F$32))+1))) ->  | G93: =(_xlfn.IFS(G79="", "", G79 =MAX(G$22:G$32),10, G79=MIN(G$22:G$32),1, OR(G79 <> 1,G79 <> 10),(((G79-MIN(G$22:G$32))*(10-1))/(MAX(G$22:G$32)-MIN(G$22:G$32))+1))) -> 
C94: =(_xlfn.IFS(C80="", "", C80 =MAX(C$22:C$32),10, C80=MIN(C$22:C$32),1, OR(C80 <> 1,C80 <> 10),(((C80-MIN(C$22:C$32))*(10-1))/(MAX(C$22:C$32)-MIN(C$22:C$32))+1))) ->  | D94: =(_xlfn.IFS(D80="", "", D80 =MAX(D$22:D$32),10, D80=MIN(D$22:D$32),1, OR(D80 <> 1,D80 <> 10),(((D80-MIN(D$22:D$32))*(10-1))/(MAX(D$22:D$32)-MIN(D$22:D$32))+1))) ->  | E94: =(_xlfn.IFS(E80="", "", E80 =MAX(E$22:E$32),10, E80=MIN(E$22:E$32),1, OR(E80 <> 1,E80 <> 10),(((E80-MIN(E$22:E$32))*(10-1))/(MAX(E$22:E$32)-MIN(E$22:E$32))+1))) ->  | F94: =(_xlfn.IFS(F80="", "", F80 =MAX(F$22:F$32),10, F80=MIN(F$22:F$32),1, OR(F80 <> 1,F80 <> 10),(((F80-MIN(F$22:F$32))*(10-1))/(MAX(F$22:F$32)-MIN(F$22:F$32))+1))) ->  | G94: =(_xlfn.IFS(G80="", "", G80 =MAX(G$22:G$32),10, G80=MIN(G$22:G$32),1, OR(G80 <> 1,G80 <> 10),(((G80-MIN(G$22:G$32))*(10-1))/(MAX(G$22:G$32)-MIN(G$22:G$32))+1))) -> 
